Workbook

Sheet Contents
C2: Contents
F3: Colour Codes | K3: File Name: | M3: =IFERROR(File_name(),"") -> 
C4: Model | G4: Inputs | I4: 1234567890
D5: True Value | G5: Section Titles | I5: TITLE ROW | K5: Last Save Date | M5: =IFERROR(lastsaved(),"") -> 
D6: Alternative terminal Value Models | G6: Sum Column | I6: 1000000000
G7: True or 1 | I7: =1=1 -> TRUE | K7: Last Save By | M7: =IFERROR(last_save_by(),"") -> 
C8: Assumptions | G8: False or 0 | I8: =1=2 -> FALSE
G9: Other Sheet Links | I9: |||||||||||||||||||

Sheet Summary
F3: Theoretical Value | G3: Growth Rate | H3: Value Incremental | I3: Value Sudden | J3: Value Incremental
C4: Value of Corporation | F4: ='Valuation Model'!E16 -> 130.484584 | G4: ='Valuation Model'!E32 -> 155.1629937 | H4: ='Valuation Model'!E41 -> 152.6364788 | I4: ='Valuation Model'!E49 -> 124.7955178 | J4: ='Valuation Model'!E67 -> 130.3794112
C6: Price to Book | F6: ='Valuation Model'!E24 -> 1.30484584
C7: Price to Earnings | F7: ='Valuation Model'!E23 -> 10.87371533
C9: Explicit Period | F9: =Scenarios!D5 -> 15
C10: Post Terminal Period | F10: =Scenarios!D6 -> 5
C12: Cost of Capital | F12: =Scenarios!D3 -> 0.084

Sheet Control
D3: Scenario Code Number | F3: 11
D5: Description | E5: Return | G5: Growth | I5: Cost of Capital
D6: Constant Return, Growth | E6: =INDEX(Scenarios!C$14:C$23,F6) -> Flat Constant Return Case | F6: 1 | G6: =INDEX(Scenarios!$C$31:$C$39,H6) -> Flat Growth Case | H6: 1 | I6: 0.068
D7: Higher Return, Constant Growth | E7: =INDEX(Scenarios!C$14:C$23,F7) -> High Constant Return Case | F7: 2 | G7: =INDEX(Scenarios!$C$31:$C$39,H7) -> Flat Growth Case | H7: 1 | I7: 0.068
D8: Constant Return, Higher Growth | E8: =INDEX(Scenarios!C$14:C$23,F8) -> Flat Constant Return Case | F8: 1 | G8: =INDEX(Scenarios!$C$31:$C$39,H8) -> High Flat Growth Case | H8: 2 | I8: 0.068
D9: Higher Return, Lower Growth | E9: =INDEX(Scenarios!C$14:C$23,F9) -> Flat Constant Return Case | F9: 1 | G9: =INDEX(Scenarios!$C$31:$C$39,H9) -> Low Flat Growth Case | H9: 3 | I9: 0.068
D10: Lower Return, Higher Growth | E10: =INDEX(Scenarios!C$14:C$23,F10) -> Low Constant Return Case | F10: 3 | G10: =INDEX(Scenarios!$C$31:$C$39,H10) -> High Flat Growth Case | H10: 2 | I10: 0.068
D11: Low Terminal Return | E11: =INDEX(Scenarios!C$14:C$23,F11) -> Lower Terminal Return | F11: 4 | G11: =INDEX(Scenarios!$C$31:$C$39,H11) -> Flat Growth Case | H11: 1 | I11: 0.068
D12: Low Terminal Growth | E12: =INDEX(Scenarios!C$14:C$23,F12) -> Flat Constant Return Case | F12: 1 | G12: =INDEX(Scenarios!$C$31:$C$39,H12) -> Lower Terminal Growth Case | H12: 4 | I12: 0.068
D13: Low Terminal Growth and Return | E13: =INDEX(Scenarios!C$14:C$23,F13) -> Lower Terminal Return | F13: 4 | G13: =INDEX(Scenarios!$C$31:$C$39,H13) -> Lower Terminal Growth Case | H13: 4 | I13: 0.068
D14: Low Post-terminal Return | E14: =INDEX(Scenarios!C$14:C$23,F14) -> Lower Post Terminal Return | F14: 5 | G14: =INDEX(Scenarios!$C$31:$C$39,H14) -> Flat Growth Case | H14: 1 | I14: 0.068
D15: Low Post-terminal Growth | E15: =INDEX(Scenarios!C$14:C$23,F15) -> Flat Constant Return Case | F15: 1 | G15: =INDEX(Scenarios!$C$31:$C$39,H15) -> Lower Post Terminal Growth | H15: 5 | I15: 0.068
D16: Low Post-terminal Growth and Return | E16: =INDEX(Scenarios!C$14:C$23,F16) -> Lower Post Terminal Return | F16: 5 | G16: =INDEX(Scenarios!$C$31:$C$39,H16) -> Lower Post Terminal Growth | H16: 5 | I16: 0.068
D17: Extremene Low Post-terminal Return | E17: =INDEX(Scenarios!C$14:C$23,F17) -> Lower Post Terminal Return Extreme | F17: 6 | G17: =INDEX(Scenarios!$C$31:$C$39,H17) -> Flat Growth Case | H17: 1 | I17: 0.068
D18: Extreme Low Post Terminal Growth | E18: =INDEX(Scenarios!C$14:C$23,F18) -> Flat Constant Return Case | F18: 1 | G18: =INDEX(Scenarios!$C$31:$C$39,H18) -> Lower Post Terminal Growth | H18: 5 | I18: 0.068
D19: Increasing Return Case | E19: =INDEX(Scenarios!C$14:C$23,F19) -> Increasing Return Case | F19: 7 | G19: =INDEX(Scenarios!$C$31:$C$39,H19) -> Flat Growth Case | H19: 1 | I19: 0.068
D20: Extremene Increasing Return Case | E20: =INDEX(Scenarios!C$14:C$23,F20) -> Extreme Increasing Case | F20: 9 | G20: =INDEX(Scenarios!$C$31:$C$39,H20) -> Flat Growth Case | H20: 1 | I20: 0.068
D21: Decreasing Return Case | E21: =INDEX(Scenarios!C$14:C$23,F21) -> Decreasing Return Case | F21: 8 | G21: =INDEX(Scenarios!$C$31:$C$39,H21) -> Flat Growth Case | H21: 1 | I21: 0.068
D22: Decreasing Growth Case | E22: =INDEX(Scenarios!C$14:C$23,F22) -> Flat Constant Return Case | F22: 1 | G22: =INDEX(Scenarios!$C$31:$C$39,H22) -> Decreasing Growth Case | H22: 7 | I22: 0.068
D23: Extreme Decreasing Return Case | E23: =INDEX(Scenarios!C$14:C$23,F23) -> Extreme Decreasing Case | F23: 10 | G23: =INDEX(Scenarios!$C$31:$C$39,H23) -> Flat Growth Case | H23: 1 | I23: 0.068
D25: =INDEX(D6:D23,$F$3) -> Low Post-terminal Growth and Return | E25: =INDEX(E6:E23,$F$3) -> Lower Post Terminal Return | F25: =INDEX(F6:F23,$F$3) -> 5 | G25: =INDEX(G6:G23,$F$3) -> Lower Post Terminal Growth | H25: =INDEX(H6:H23,$F$3) -> 5 | I25: =INDEX(I6:I23,$F$3) -> 0.068 | J25: Index
D27: Low Post-terminal Growth and Return | E27: Lower Post Terminal Return | F27: 5 | G27: Lower Post Terminal Growth | H27: 5 | I27: 0.068 | J27: Applied

Sheet Scenarios
B2: General Assumptions
C3: Cost of Equity Capital | D3: =F3/1000 -> 0.084 | F3: 84
C4: Starting Book Value of Equity | D4: 100
C5: Terminal Period | D5: 15
C6: Post Terminal Period | D6: 5
C8: P/E Ratio | D8: =(1-D48/D47)/(D3-D48) -> 15.15151515
C10: Date | D10: =TODAY() -> 2020-04-29 | E10: =EDATE($D$10,E45*12) -> 2025-04-29 | F10: =EDATE($D$10,F45*12) -> 2027-04-29 | G10: =EDATE($D$10,G45*12) -> 2034-04-29 | H10: =EDATE($D$10,H45*12) -> 2035-04-29 | I10: =EDATE($D$10,I45*12) -> 2040-04-29
B11: Rate of Return Scenarios | D11: =Control!F27 -> 5 | G11: Pre | H11: Initial | I11: Post
D12: Short-term | E12: Intermediate | F12: Long-term | G12: Terminal | H12: Terminal | I12: Terminal
D13: =Scenarios!D45 -> 1 | E13: =Scenarios!E45 -> 5 | F13: =Scenarios!F45 -> 7 | G13: =Scenarios!G45 -> 14 | H13: =Scenarios!H45 -> 15 | I13: =Scenarios!I45 -> 20
C14: Flat Constant Return Case | D14: 0.1 | E14: 0.1 | F14: 0.1 | G14: 0.1 | H14: 0.1 | I14: 0.1
C15: High Constant Return Case | D15: 0.12 | E15: 0.12 | F15: 0.12 | G15: 0.12 | H15: 0.12 | I15: 0.12
C16: Low Constant Return Case | D16: 0.07 | E16: 0.07 | F16: 0.07 | G16: 0.07 | H16: 0.07 | I16: 0.07
C17: Lower Terminal Return | D17: 0.12 | E17: 0.12 | F17: 0.12 | G17: 0.12 | H17: 0.09 | I17: 0.09
C18: Lower Post Terminal Return | D18: 0.12 | E18: 0.12 | F18: 0.12 | G18: 0.12 | H18: 0.11 | I18: 0.07
C19: Lower Post Terminal Return Extreme | D19: 0.13 | E19: 0.13 | F19: 0.13 | G19: 0.13 | H19: 0.13 | I19: 0.06
C20: Increasing Return Case | D20: 0.05 | E20: 0.07 | F20: 0.09 | G20: 0.09 | H20: 0.1 | I20: 0.12
C21: Decreasing Return Case | D21: 0.18 | E21: 0.16 | F21: 0.14 | G21: 0.14 | H21: 0.12 | I21: 0.1
C22: Extreme Increasing Case | D22: -0.05 | E22: 0 | F22: 0.07 | G22: 0.07 | H22: 0.12 | I22: 0.15
C23: Extreme Decreasing Case | D23: 0.25 | E23: 0.2 | F23: 0.15 | G23: 0.15 | H23: 0.12 | I23: 0.07
C25: =INDEX(C14:C23,$D$11) -> Lower Post Terminal Return | D25: =INDEX(D14:D23,$D$11) -> 0.12 | E25: =INDEX(E14:E23,$D$11) -> 0.12 | F25: =INDEX(F14:F23,$D$11) -> 0.12 | G25: =INDEX(G14:G23,$D$11) -> 0.12 | H25: =INDEX(H14:H23,$D$11) -> 0.11 | I25: =INDEX(I14:I23,$D$11) -> 0.07
B28: Growth Rate Scenarios | D28: =Control!H27 -> 5 | G28: Pre | H28: Initial | I28: Post
D29: Short-term | E29: Intermediate | F29: Long-term | G29: Terminal | H29: Terminal | I29: Terminal
D30: 1 | E30: 5 | F30: 7 | G30: 9 | H30: 10 | I30: =I13 -> 20
C31: Flat Growth Case | D31: 0.03 | E31: 0.03 | F31: 0.03 | G31: 0.03 | H31: 0.03 | I31: 0.03
C32: High Flat Growth Case | D32: 0.055 | E32: 0.055 | F32: 0.055 | G32: 0.055 | H32: 0.055 | I32: 0.055
C33: Low Flat Growth Case | D33: 0.01 | E33: 0.01 | F33: 0.01 | G33: 0.01 | H33: 0.01 | I33: 0.01
C34: Lower Terminal Growth Case | D34: 0.04 | E34: 0.04 | F34: 0.04 | G34: 0.04 | H34: 0.025 | I34: 0.025
C35: Lower Post Terminal Growth | D35: 0.04 | E35: 0.04 | F35: 0.04 | G35: 0.04 | H35: 0.025 | I35: 0.01
C36: Increasing Growth Case | D36: 0 | E36: 0.04 | F36: 0.08 | G36: 0.08 | H36: 0.025 | I36: 0.025
C37: Decreasing Growth Case | D37: 0.08 | E37: 0.05 | F37: 0.03 | G37: 0.03 | H37: 0.025 | I37: 0.025
C38: Extreme Increasing Growth Case | D38: -0.04 | E38: 0.05 | F38: 0.15 | G38: 0.15 | H38: 0.025 | I38: 0.025
C39: Extreme Decreasing Growth Case | D39: 0.15 | E39: 0.1 | F39: 0.05 | G39: 0.05 | H39: 0.025 | I39: 0.025
C41: =INDEX(C31:C39,$D$28) -> Lower Post Terminal Growth | D41: =INDEX(D31:D39,$D$28) -> 0.04 | E41: =INDEX(E31:E39,$D$28) -> 0.04 | F41: =INDEX(F31:F39,$D$28) -> 0.04 | G41: =INDEX(G31:G39,$D$28) -> 0.04 | H41: =INDEX(H31:H39,$D$28) -> 0.025 | I41: =INDEX(I31:I39,$D$28) -> 0.01
G43: Pre | I43: Post
D44: Short-term | E44: Intermediate | F44: Long-term | G44: Terminal | H44: Terminal | I44: Terminal
D45: 1 | E45: 5 | F45: 7 | G45: =H45-1 -> 14 | H45: =D5 -> 15 | I45: =H45+D6 -> 20
C47: Rate of Return | D47: =Scenarios!D25 -> 0.12 | E47: =Scenarios!E25 -> 0.12 | F47: =Scenarios!F25 -> 0.12 | G47: =Scenarios!G25 -> 0.12 | H47: =Scenarios!H25 -> 0.11 | I47: =Scenarios!I25 -> 0.07
C48: Growth Rate | D48: =Scenarios!D41 -> 0.04 | E48: =Scenarios!E41 -> 0.04 | F48: =Scenarios!F41 -> 0.04 | G48: =Scenarios!G41 -> 0.04 | H48: =Scenarios!H41 -> 0.025 | I48: =Scenarios!I41 -> 0.01

Sheet Valuation Model
B1: Time Line | F1: Driver 1 | G1: Driver2 | H1: Driver 3 | J1: Cost of Capital | L1: =Scenarios!$D$3 -> 0.084
J3: 0 | K3: 1 | L3: 2 | M3: 3 | N3: 4 | O3: 5 | P3: 6 | Q3: 7 | R3: 8 | S3: 9 | T3: 10 | U3: 11 | V3: 12 | W3: 13 | X3: 14 | Y3: 15 | Z3: 16 | AA3: 17 | AB3: 18 | AC3: 19 | AD3: 20 | AE3: 21 | AF3: 22 | AG3: 23 | AH3: 24 | AI3: 25 | AJ3: 26 | AK3: 27 | AL3: 28 | AM3: 29 | AN3: 30 | AO3: 31 | AP3: 32 | AQ3: 33 | AR3: 34 | AS3: 35 | AT3: 36 | AU3: 37 | AV3: 38 | AW3: 39 | AX3: 40 | AY3: 41 | AZ3: 42 | BA3: 43 | BB3: 44 | BC3: 45 | BD3: 46 | BE3: 47 | BF3: 48 | BG3: 49 | BH3: 50 | BI3: 51 | BJ3: 52 | BK3: 53 | BL3: 54 | BM3: 55 | BN3: 56 | BO3: 57 | BP3: 58 | BQ3: 59 | BR3: 60 | BS3: 61 | BT3: 62 | BU3: 63 | BV3: 64 | BW3: 65 | BX3: 66 | BY3: 67 | BZ3: 68 | CA3: 69 | CB3: 70 | CC3: 71 | CD3: 72 | CE3: 73 | CF3: 74 | CG3: 75 | CH3: 76 | CI3: 77 | CJ3: 78 | CK3: 79 | CL3: 80 | CM3: 81 | CN3: 82 | CO3: 83 | CP3: 84 | CQ3: 85 | CR3: 86 | CS3: 87 | CT3: 88 | CU3: 89 | CV3: 90 | CW3: 91 | CX3: 92 | CY3: 93 | CZ3: 94 | DA3: 95 | DB3: 96 | DC3: 97 | DD3: 98 | DE3: 99 | DF3: 100 | DG3: 101 | DH3: 102 | DI3: 103 | DJ3: 104 | DK3: 105 | DL3: 106 | DM3: 107 | DN3: 108 | DO3: 109 | DP3: 110 | DQ3: 111 | DR3: 112 | DS3: 113 | DT3: 114 | DU3: 115 | DV3: 116 | DW3: 117 | DX3: 118 | DY3: 119 | DZ3: 120 | EA3: 121 | EB3: 122 | EC3: 123 | ED3: 124 | EE3: 125 | EF3: 126 | EG3: 127 | EH3: 128 | EI3: 129 | EJ3: 130 | EK3: 131 | EL3: 132 | EM3: 133 | EN3: 134 | EO3: 135 | EP3: 136 | EQ3: 137 | ER3: 138 | ES3: 139 | ET3: 140 | EU3: 141 | EV3: 142 | EW3: 143 | EX3: 144 | EY3: 145 | EZ3: 146 | FA3: 147 | FB3: 148 | FC3: 149 | FD3: 150 | FE3: 151 | FF3: 152 | FG3: 153 | FH3: 154 | FI3: 155 | FJ3: 156 | FK3: 157 | FL3: 158 | FM3: 159 | FN3: 160 | FO3: 161 | FP3: 162 | FQ3: 163 | FR3: 164 | FS3: 165 | FT3: 166 | FU3: 167 | FV3: 168 | FW3: 169 | FX3: 170 | FY3: 171 | FZ3: 172 | GA3: 173 | GB3: 174 | GC3: 175 | GD3: 176 | GE3: 177 | GF3: 178 | GG3: 179 | GH3: 180 | GI3: 181 | GJ3: 182 | GK3: 183 | GL3: 184 | GM3: 185 | GN3: 186 | GO3: 187 | GP3: 188 | GQ3: 189 | GR3: 190 | GS3: 191 | GT3: 192 | GU3: 193 | GV3: 194 | GW3: 195 | GX3: 196 | GY3: 197 | GZ3: 198 | HA3: 199 | HB3: 200 | HC3: 201 | HD3: 202 | HE3: 203 | HF3: 204 | HG3: 205 | HH3: 206 | HI3: 207 | HJ3: 208 | HK3: 209 | HL3: 210 | HM3: 211 | HN3: 212 | HO3: 213 | HP3: 214 | HQ3: 215 | HR3: 216 | HS3: 217 | HT3: 218 | HU3: 219 | HV3: 220 | HW3: 221 | HX3: 222 | HY3: 223 | HZ3: 224 | IA3: 225 | IB3: 226 | IC3: 227 | ID3: 228 | IE3: 229 | IF3: 230 | IG3: 231 | IH3: 232 | II3: 233 | IJ3: 234 | IK3: 235 | IL3: 236 | IM3: 237 | IN3: 238 | IO3: 239 | IP3: 240 | IQ3: 241 | IR3: 242 | IS3: 243 | IT3: 244 | IU3: 245 | IV3: 246 | IW3: 247 | IX3: 248 | IY3: 249 | IZ3: 250 | JA3: 251 | JB3: 252 | JC3: 253 | JD3: 254 | JE3: 255 | JF3: 256 | JG3: 257 | JH3: 258 | JI3: 259 | JJ3: 260 | JK3: 261 | JL3: 262 | JM3: 263 | JN3: 264 | JO3: 265 | JP3: 266 | JQ3: 267 | JR3: 268 | JS3: 269 | JT3: 270 | JU3: 271 | JV3: 272 | JW3: 273 | JX3: 274 | JY3: 275 | JZ3: 276 | KA3: 277 | KB3: 278 | KC3: 279 | KD3: 280 | KE3: 281 | KF3: 282 | KG3: 283 | KH3: 284 | KI3: 285 | KJ3: 286 | KK3: 287 | KL3: 288 | KM3: 289 | KN3: 290 | KO3: 291 | KP3: 292 | KQ3: 293 | KR3: 294 | KS3: 295 | KT3: 296 | KU3: 297 | KV3: 298 | KW3: 299 | KX3: 300 | KY3: 301 | KZ3: 302 | LA3: 303 | LB3: 304 | LC3: 305 | LD3: 306 | LE3: 307 | LF3: 308 | LG3: 309 | LH3: 310 | LI3: 311 | LJ3: 312 | LK3: 313 | LL3: 314 | LM3: 315 | LN3: 316 | LO3: 317 | LP3: 318 | LQ3: 319 | LR3: 320 | LS3: 321 | LT3: 322 | LU3: 323 | LV3: 324 | LW3: 325 | LX3: 326 | LY3: 327 | LZ3: 328 | MA3: 329 | MB3: 330 | MC3: 331 | MD3: 332 | ME3: 333 | MF3: 334 | MG3: 335 | MH3: 336 | MI3: 337 | MJ3: 338 | MK3: 339 | ML3: 340 | MM3: 341 | MN3: 342 | MO3: 343 | MP3: 344 | MQ3: 345 | MR3: 346 | MS3: 347 | MT3: 348 | MU3: 349 | MV3: 350 | MW3: 351 | MX3: 352 | MY3: 353 | MZ3: 354 | NA3: 355 | NB3: 356 | NC3: 357 | ND3: 358 | NE3: 359 | NF3: 360 | NG3: 361 | NH3: 362 | NI3: 363 | NJ3: 364 | NK3: 365 | NL3: 366 | NM3: 367 | NN3: 368 | NO3: 369 | NP3: 370 | NQ3: 371 | NR3: 372 | NS3: 373 | NT3: 374 | NU3: 375 | NV3: 376 | NW3: 377 | NX3: 378 | NY3: 379 | NZ3: 380 | OA3: 381 | OB3: 382 | OC3: 383 | OD3: 384 | OE3: 385 | OF3: 386 | OG3: 387 | OH3: 388 | OI3: 389 | OJ3: 390 | OK3: 391 | OL3: 392 | OM3: 393 | ON3: 394 | OO3: 395 | OP3: 396 | OQ3: 397 | OR3: 398 | OS3: 399 | OT3: 400 | OU3: 401 | OV3: 402 | OW3: 403 | OX3: 404 | OY3: 405 | OZ3: 406 | PA3: 407 | PB3: 408 | PC3: 409 | PD3: 410 | PE3: 411 | PF3: 412 | PG3: 413 | PH3: 414 | PI3: 415 | PJ3: 416 | PK3: 417 | PL3: 418 | PM3: 419 | PN3: 420 | PO3: 421 | PP3: 422 | PQ3: 423 | PR3: 424 | PS3: 425 | PT3: 426 | PU3: 427 | PV3: 428 | PW3: 429 | PX3: 430 | PY3: 431 | PZ3: 432 | QA3: 433 | QB3: 434 | QC3: 435 | QD3: 436 | QE3: 437 | QF3: 438 | QG3: 439 | QH3: 440 | QI3: 441 | QJ3: 442 | QK3: 443 | QL3: 444 | QM3: 445 | QN3: 446 | QO3: 447 | QP3: 448 | QQ3: 449 | QR3: 450 | QS3: 451 | QT3: 452 | QU3: 453 | QV3: 454 | QW3: 455 | QX3: 456 | QY3: 457 | QZ3: 458 | RA3: 459 | RB3: 460 | RC3: 461 | RD3: 462 | RE3: 463 | RF3: 464 | RG3: 465 | RH3: 466 | RI3: 467 | RJ3: 468 | RK3: 469 | RL3: 470 | RM3: 471 | RN3: 472 | RO3: 473 | RP3: 474 | RQ3: 475 | RR3: 476 | RS3: 477 | RT3: 478 | RU3: 479 | RV3: 480 | RW3: 481 | RX3: 482 | RY3: 483 | RZ3: 484 | SA3: 485 | SB3: 486 | SC3: 487 | SD3: 488 | SE3: 489 | SF3: 490 | SG3: 491 | SH3: 492 | SI3: 493 | SJ3: 494 | SK3: 495 | SL3: 496 | SM3: 497 | SN3: 498 | SO3: 499 | SP3: 500 | SQ3: 501 | SR3: 502 | SS3: 503 | ST3: 504 | SU3: 505 | SV3: 506 | SW3: 507 | SX3: 508 | SY3: 509 | SZ3: 510 | TA3: 511 | TB3: 512 | TC3: 513
C4: Holding Period | F4: =Scenarios!D5 -> 15 | J4: =J25<=Scenarios!$D$5 -> TRUE | K4: =K25<=Scenarios!$D$5 -> TRUE | L4: =L25<=Scenarios!$D$5 -> TRUE | M4: =M25<=Scenarios!$D$5 -> TRUE | N4: =N25<=Scenarios!$D$5 -> TRUE | O4: =O25<=Scenarios!$D$5 -> TRUE | P4: =P25<=Scenarios!$D$5 -> TRUE | Q4: =Q25<=Scenarios!$D$5 -> TRUE | R4: =R25<=Scenarios!$D$5 -> TRUE | S4: =S25<=Scenarios!$D$5 -> TRUE | T4: =T25<=Scenarios!$D$5 -> TRUE | U4: =U25<=Scenarios!$D$5 -> TRUE | V4: =V25<=Scenarios!$D$5 -> TRUE | W4: =W25<=Scenarios!$D$5 -> TRUE | X4: =X25<=Scenarios!$D$5 -> TRUE | Y4: =Y25<=Scenarios!$D$5 -> TRUE | Z4: =Z25<=Scenarios!$D$5 -> FALSE | AA4: =AA25<=Scenarios!$D$5 -> FALSE | AB4: =AB25<=Scenarios!$D$5 -> FALSE | AC4: =AC25<=Scenarios!$D$5 -> FALSE | AD4: =AD25<=Scenarios!$D$5 -> FALSE | AE4: =AE25<=Scenarios!$D$5 -> FALSE | AF4: =AF25<=Scenarios!$D$5 -> FALSE | AG4: =AG25<=Scenarios!$D$5 -> FALSE | AH4: =AH25<=Scenarios!$D$5 -> FALSE | AI4: =AI25<=Scenarios!$D$5 -> FALSE | AJ4: =AJ25<=Scenarios!$D$5 -> FALSE | AK4: =AK25<=Scenarios!$D$5 -> FALSE | AL4: =AL25<=Scenarios!$D$5 -> FALSE | AM4: =AM25<=Scenarios!$D$5 -> FALSE | AN4: =AN25<=Scenarios!$D$5 -> FALSE | AO4: =AO25<=Scenarios!$D$5 -> FALSE | AP4: =AP25<=Scenarios!$D$5 -> FALSE | AQ4: =AQ25<=Scenarios!$D$5 -> FALSE | AR4: =AR25<=Scenarios!$D$5 -> FALSE | AS4: =AS25<=Scenarios!$D$5 -> FALSE | AT4: =AT25<=Scenarios!$D$5 -> FALSE | AU4: =AU25<=Scenarios!$D$5 -> FALSE | AV4: =AV25<=Scenarios!$D$5 -> FALSE | AW4: =AW25<=Scenarios!$D$5 -> FALSE | AX4: =AX25<=Scenarios!$D$5 -> FALSE | AY4: =AY25<=Scenarios!$D$5 -> FALSE | AZ4: =AZ25<=Scenarios!$D$5 -> FALSE | BA4: =BA25<=Scenarios!$D$5 -> FALSE | BB4: =BB25<=Scenarios!$D$5 -> FALSE | BC4: =BC25<=Scenarios!$D$5 -> FALSE | BD4: =BD25<=Scenarios!$D$5 -> FALSE | BE4: =BE25<=Scenarios!$D$5 -> FALSE | BF4: =BF25<=Scenarios!$D$5 -> FALSE | BG4: =BG25<=Scenarios!$D$5 -> FALSE | BH4: =BH25<=Scenarios!$D$5 -> FALSE | BI4: =BI25<=Scenarios!$D$5 -> FALSE | BJ4: =BJ25<=Scenarios!$D$5 -> FALSE | BK4: =BK25<=Scenarios!$D$5 -> FALSE | BL4: =BL25<=Scenarios!$D$5 -> FALSE | BM4: =BM25<=Scenarios!$D$5 -> FALSE | BN4: =BN25<=Scenarios!$D$5 -> FALSE | BO4: =BO25<=Scenarios!$D$5 -> FALSE | BP4: =BP25<=Scenarios!$D$5 -> FALSE | BQ4: =BQ25<=Scenarios!$D$5 -> FALSE | BR4: =BR25<=Scenarios!$D$5 -> FALSE | BS4: =BS25<=Scenarios!$D$5 -> FALSE | BT4: =BT25<=Scenarios!$D$5 -> FALSE | BU4: =BU25<=Scenarios!$D$5 -> FALSE | BV4: =BV25<=Scenarios!$D$5 -> FALSE | BW4: =BW25<=Scenarios!$D$5 -> FALSE | BX4: =BX25<=Scenarios!$D$5 -> FALSE | BY4: =BY25<=Scenarios!$D$5 -> FALSE | BZ4: =BZ25<=Scenarios!$D$5 -> FALSE | CA4: =CA25<=Scenarios!$D$5 -> FALSE | CB4: =CB25<=Scenarios!$D$5 -> FALSE | CC4: =CC25<=Scenarios!$D$5 -> FALSE | CD4: =CD25<=Scenarios!$D$5 -> FALSE | CE4: =CE25<=Scenarios!$D$5 -> FALSE | CF4: =CF25<=Scenarios!$D$5 -> FALSE | CG4: =CG25<=Scenarios!$D$5 -> FALSE | CH4: =CH25<=Scenarios!$D$5 -> FALSE | CI4: =CI25<=Scenarios!$D$5 -> FALSE | CJ4: =CJ25<=Scenarios!$D$5 -> FALSE | CK4: =CK25<=Scenarios!$D$5 -> FALSE | CL4: =CL25<=Scenarios!$D$5 -> FALSE | CM4: =CM25<=Scenarios!$D$5 -> FALSE | CN4: =CN25<=Scenarios!$D$5 -> FALSE | CO4: =CO25<=Scenarios!$D$5 -> FALSE | CP4: =CP25<=Scenarios!$D$5 -> FALSE | CQ4: =CQ25<=Scenarios!$D$5 -> FALSE | CR4: =CR25<=Scenarios!$D$5 -> FALSE | CS4: =CS25<=Scenarios!$D$5 -> FALSE | CT4: =CT25<=Scenarios!$D$5 -> FALSE | CU4: =CU25<=Scenarios!$D$5 -> FALSE | CV4: =CV25<=Scenarios!$D$5 -> FALSE | CW4: =CW25<=Scenarios!$D$5 -> FALSE | CX4: =CX25<=Scenarios!$D$5 -> FALSE | CY4: =CY25<=Scenarios!$D$5 -> FALSE | CZ4: =CZ25<=Scenarios!$D$5 -> FALSE | DA4: =DA25<=Scenarios!$D$5 -> FALSE | DB4: =DB25<=Scenarios!$D$5 -> FALSE | DC4: =DC25<=Scenarios!$D$5 -> FALSE | DD4: =DD25<=Scenarios!$D$5 -> FALSE | DE4: =DE25<=Scenarios!$D$5 -> FALSE | DF4: =DF25<=Scenarios!$D$5 -> FALSE | DG4: =DG25<=Scenarios!$D$5 -> FALSE | DH4: =DH25<=Scenarios!$D$5 -> FALSE | DI4: =DI25<=Scenarios!$D$5 -> FALSE | DJ4: =DJ25<=Scenarios!$D$5 -> FALSE | DK4: =DK25<=Scenarios!$D$5 -> FALSE | DL4: =DL25<=Scenarios!$D$5 -> FALSE | DM4: =DM25<=Scenarios!$D$5 -> FALSE | DN4: =DN25<=Scenarios!$D$5 -> FALSE | DO4: =DO25<=Scenarios!$D$5 -> FALSE | DP4: =DP25<=Scenarios!$D$5 -> FALSE | DQ4: =DQ25<=Scenarios!$D$5 -> FALSE | DR4: =DR25<=Scenarios!$D$5 -> FALSE | DS4: =DS25<=Scenarios!$D$5 -> FALSE | DT4: =DT25<=Scenarios!$D$5 -> FALSE | DU4: =DU25<=Scenarios!$D$5 -> FALSE | DV4: =DV25<=Scenarios!$D$5 -> FALSE | DW4: =DW25<=Scenarios!$D$5 -> FALSE | DX4: =DX25<=Scenarios!$D$5 -> FALSE | DY4: =DY25<=Scenarios!$D$5 -> FALSE | DZ4: =DZ25<=Scenarios!$D$5 -> FALSE | EA4: =EA25<=Scenarios!$D$5 -> FALSE | EB4: =EB25<=Scenarios!$D$5 -> FALSE | EC4: =EC25<=Scenarios!$D$5 -> FALSE | ED4: =ED25<=Scenarios!$D$5 -> FALSE | EE4: =EE25<=Scenarios!$D$5 -> FALSE | EF4: =EF25<=Scenarios!$D$5 -> FALSE | EG4: =EG25<=Scenarios!$D$5 -> FALSE | EH4: =EH25<=Scenarios!$D$5 -> FALSE | EI4: =EI25<=Scenarios!$D$5 -> FALSE | EJ4: =EJ25<=Scenarios!$D$5 -> FALSE | EK4: =EK25<=Scenarios!$D$5 -> FALSE | EL4: =EL25<=Scenarios!$D$5 -> FALSE | EM4: =EM25<=Scenarios!$D$5 -> FALSE | EN4: =EN25<=Scenarios!$D$5 -> FALSE | EO4: =EO25<=Scenarios!$D$5 -> FALSE | EP4: =EP25<=Scenarios!$D$5 -> FALSE | EQ4: =EQ25<=Scenarios!$D$5 -> FALSE | ER4: =ER25<=Scenarios!$D$5 -> FALSE | ES4: =ES25<=Scenarios!$D$5 -> FALSE | ET4: =ET25<=Scenarios!$D$5 -> FALSE | EU4: =EU25<=Scenarios!$D$5 -> FALSE | EV4: =EV25<=Scenarios!$D$5 -> FALSE | EW4: =EW25<=Scenarios!$D$5 -> FALSE | EX4: =EX25<=Scenarios!$D$5 -> FALSE | EY4: =EY25<=Scenarios!$D$5 -> FALSE | EZ4: =EZ25<=Scenarios!$D$5 -> FALSE | FA4: =FA25<=Scenarios!$D$5 -> FALSE | FB4: =FB25<=Scenarios!$D$5 -> FALSE | FC4: =FC25<=Scenarios!$D$5 -> FALSE | FD4: =FD25<=Scenarios!$D$5 -> FALSE | FE4: =FE25<=Scenarios!$D$5 -> FALSE | FF4: =FF25<=Scenarios!$D$5 -> FALSE | FG4: =FG25<=Scenarios!$D$5 -> FALSE | FH4: =FH25<=Scenarios!$D$5 -> FALSE | FI4: =FI25<=Scenarios!$D$5 -> FALSE | FJ4: =FJ25<=Scenarios!$D$5 -> FALSE | FK4: =FK25<=Scenarios!$D$5 -> FALSE | FL4: =FL25<=Scenarios!$D$5 -> FALSE | FM4: =FM25<=Scenarios!$D$5 -> FALSE | FN4: =FN25<=Scenarios!$D$5 -> FALSE | FO4: =FO25<=Scenarios!$D$5 -> FALSE | FP4: =FP25<=Scenarios!$D$5 -> FALSE | FQ4: =FQ25<=Scenarios!$D$5 -> FALSE | FR4: =FR25<=Scenarios!$D$5 -> FALSE | FS4: =FS25<=Scenarios!$D$5 -> FALSE | FT4: =FT25<=Scenarios!$D$5 -> FALSE | FU4: =FU25<=Scenarios!$D$5 -> FALSE | FV4: =FV25<=Scenarios!$D$5 -> FALSE | FW4: =FW25<=Scenarios!$D$5 -> FALSE | FX4: =FX25<=Scenarios!$D$5 -> FALSE | FY4: =FY25<=Scenarios!$D$5 -> FALSE | FZ4: =FZ25<=Scenarios!$D$5 -> FALSE | GA4: =GA25<=Scenarios!$D$5 -> FALSE | GB4: =GB25<=Scenarios!$D$5 -> FALSE | GC4: =GC25<=Scenarios!$D$5 -> FALSE | GD4: =GD25<=Scenarios!$D$5 -> FALSE | GE4: =GE25<=Scenarios!$D$5 -> FALSE | GF4: =GF25<=Scenarios!$D$5 -> FALSE | GG4: =GG25<=Scenarios!$D$5 -> FALSE | GH4: =GH25<=Scenarios!$D$5 -> FALSE | GI4: =GI25<=Scenarios!$D$5 -> FALSE | GJ4: =GJ25<=Scenarios!$D$5 -> FALSE | GK4: =GK25<=Scenarios!$D$5 -> FALSE | GL4: =GL25<=Scenarios!$D$5 -> FALSE | GM4: =GM25<=Scenarios!$D$5 -> FALSE | GN4: =GN25<=Scenarios!$D$5 -> FALSE | GO4: =GO25<=Scenarios!$D$5 -> FALSE | GP4: =GP25<=Scenarios!$D$5 -> FALSE | GQ4: =GQ25<=Scenarios!$D$5 -> FALSE | GR4: =GR25<=Scenarios!$D$5 -> FALSE | GS4: =GS25<=Scenarios!$D$5 -> FALSE | GT4: =GT25<=Scenarios!$D$5 -> FALSE | GU4: =GU25<=Scenarios!$D$5 -> FALSE | GV4: =GV25<=Scenarios!$D$5 -> FALSE | GW4: =GW25<=Scenarios!$D$5 -> FALSE | GX4: =GX25<=Scenarios!$D$5 -> FALSE | GY4: =GY25<=Scenarios!$D$5 -> FALSE | GZ4: =GZ25<=Scenarios!$D$5 -> FALSE | HA4: =HA25<=Scenarios!$D$5 -> FALSE | HB4: =HB25<=Scenarios!$D$5 -> FALSE | HC4: =HC25<=Scenarios!$D$5 -> FALSE | HD4: =HD25<=Scenarios!$D$5 -> FALSE | HE4: =HE25<=Scenarios!$D$5 -> FALSE | HF4: =HF25<=Scenarios!$D$5 -> FALSE | HG4: =HG25<=Scenarios!$D$5 -> FALSE | HH4: =HH25<=Scenarios!$D$5 -> FALSE | HI4: =HI25<=Scenarios!$D$5 -> FALSE | HJ4: =HJ25<=Scenarios!$D$5 -> FALSE | HK4: =HK25<=Scenarios!$D$5 -> FALSE | HL4: =HL25<=Scenarios!$D$5 -> FALSE | HM4: =HM25<=Scenarios!$D$5 -> FALSE | HN4: =HN25<=Scenarios!$D$5 -> FALSE | HO4: =HO25<=Scenarios!$D$5 -> FALSE | HP4: =HP25<=Scenarios!$D$5 -> FALSE | HQ4: =HQ25<=Scenarios!$D$5 -> FALSE | HR4: =HR25<=Scenarios!$D$5 -> FALSE | HS4: =HS25<=Scenarios!$D$5 -> FALSE | HT4: =HT25<=Scenarios!$D$5 -> FALSE | HU4: =HU25<=Scenarios!$D$5 -> FALSE | HV4: =HV25<=Scenarios!$D$5 -> FALSE | HW4: =HW25<=Scenarios!$D$5 -> FALSE | HX4: =HX25<=Scenarios!$D$5 -> FALSE | HY4: =HY25<=Scenarios!$D$5 -> FALSE | HZ4: =HZ25<=Scenarios!$D$5 -> FALSE | IA4: =IA25<=Scenarios!$D$5 -> FALSE | IB4: =IB25<=Scenarios!$D$5 -> FALSE | IC4: =IC25<=Scenarios!$D$5 -> FALSE | ID4: =ID25<=Scenarios!$D$5 -> FALSE | IE4: =IE25<=Scenarios!$D$5 -> FALSE | IF4: =IF25<=Scenarios!$D$5 -> FALSE | IG4: =IG25<=Scenarios!$D$5 -> FALSE | IH4: =IH25<=Scenarios!$D$5 -> FALSE | II4: =II25<=Scenarios!$D$5 -> FALSE | IJ4: =IJ25<=Scenarios!$D$5 -> FALSE | IK4: =IK25<=Scenarios!$D$5 -> FALSE | IL4: =IL25<=Scenarios!$D$5 -> FALSE | IM4: =IM25<=Scenarios!$D$5 -> FALSE | IN4: =IN25<=Scenarios!$D$5 -> FALSE | IO4: =IO25<=Scenarios!$D$5 -> FALSE | IP4: =IP25<=Scenarios!$D$5 -> FALSE | IQ4: =IQ25<=Scenarios!$D$5 -> FALSE | IR4: =IR25<=Scenarios!$D$5 -> FALSE | IS4: =IS25<=Scenarios!$D$5 -> FALSE | IT4: =IT25<=Scenarios!$D$5 -> FALSE | IU4: =IU25<=Scenarios!$D$5 -> FALSE | IV4: =IV25<=Scenarios!$D$5 -> FALSE | IW4: =IW25<=Scenarios!$D$5 -> FALSE | IX4: =IX25<=Scenarios!$D$5 -> FALSE | IY4: =IY25<=Scenarios!$D$5 -> FALSE | IZ4: =IZ25<=Scenarios!$D$5 -> FALSE | JA4: =JA25<=Scenarios!$D$5 -> FALSE | JB4: =JB25<=Scenarios!$D$5 -> FALSE | JC4: =JC25<=Scenarios!$D$5 -> FALSE | JD4: =JD25<=Scenarios!$D$5 -> FALSE | JE4: =JE25<=Scenarios!$D$5 -> FALSE | JF4: =JF25<=Scenarios!$D$5 -> FALSE | JG4: =JG25<=Scenarios!$D$5 -> FALSE | JH4: =JH25<=Scenarios!$D$5 -> FALSE | JI4: =JI25<=Scenarios!$D$5 -> FALSE | JJ4: =JJ25<=Scenarios!$D$5 -> FALSE | JK4: =JK25<=Scenarios!$D$5 -> FALSE | JL4: =JL25<=Scenarios!$D$5 -> FALSE | JM4: =JM25<=Scenarios!$D$5 -> FALSE | JN4: =JN25<=Scenarios!$D$5 -> FALSE | JO4: =JO25<=Scenarios!$D$5 -> FALSE | JP4: =JP25<=Scenarios!$D$5 -> FALSE | JQ4: =JQ25<=Scenarios!$D$5 -> FALSE | JR4: =JR25<=Scenarios!$D$5 -> FALSE | JS4: =JS25<=Scenarios!$D$5 -> FALSE | JT4: =JT25<=Scenarios!$D$5 -> FALSE | JU4: =JU25<=Scenarios!$D$5 -> FALSE | JV4: =JV25<=Scenarios!$D$5 -> FALSE | JW4: =JW25<=Scenarios!$D$5 -> FALSE | JX4: =JX25<=Scenarios!$D$5 -> FALSE | JY4: =JY25<=Scenarios!$D$5 -> FALSE | JZ4: =JZ25<=Scenarios!$D$5 -> FALSE | KA4: =KA25<=Scenarios!$D$5 -> FALSE | KB4: =KB25<=Scenarios!$D$5 -> FALSE | KC4: =KC25<=Scenarios!$D$5 -> FALSE | KD4: =KD25<=Scenarios!$D$5 -> FALSE | KE4: =KE25<=Scenarios!$D$5 -> FALSE | KF4: =KF25<=Scenarios!$D$5 -> FALSE | KG4: =KG25<=Scenarios!$D$5 -> FALSE | KH4: =KH25<=Scenarios!$D$5 -> FALSE | KI4: =KI25<=Scenarios!$D$5 -> FALSE | KJ4: =KJ25<=Scenarios!$D$5 -> FALSE | KK4: =KK25<=Scenarios!$D$5 -> FALSE | KL4: =KL25<=Scenarios!$D$5 -> FALSE | KM4: =KM25<=Scenarios!$D$5 -> FALSE | KN4: =KN25<=Scenarios!$D$5 -> FALSE | KO4: =KO25<=Scenarios!$D$5 -> FALSE | KP4: =KP25<=Scenarios!$D$5 -> FALSE | KQ4: =KQ25<=Scenarios!$D$5 -> FALSE | KR4: =KR25<=Scenarios!$D$5 -> FALSE | KS4: =KS25<=Scenarios!$D$5 -> FALSE | KT4: =KT25<=Scenarios!$D$5 -> FALSE | KU4: =KU25<=Scenarios!$D$5 -> FALSE | KV4: =KV25<=Scenarios!$D$5 -> FALSE | KW4: =KW25<=Scenarios!$D$5 -> FALSE | KX4: =KX25<=Scenarios!$D$5 -> FALSE | KY4: =KY25<=Scenarios!$D$5 -> FALSE | KZ4: =KZ25<=Scenarios!$D$5 -> FALSE | LA4: =LA25<=Scenarios!$D$5 -> FALSE | LB4: =LB25<=Scenarios!$D$5 -> FALSE | LC4: =LC25<=Scenarios!$D$5 -> FALSE | LD4: =LD25<=Scenarios!$D$5 -> FALSE | LE4: =LE25<=Scenarios!$D$5 -> FALSE | LF4: =LF25<=Scenarios!$D$5 -> FALSE | LG4: =LG25<=Scenarios!$D$5 -> FALSE | LH4: =LH25<=Scenarios!$D$5 -> FALSE | LI4: =LI25<=Scenarios!$D$5 -> FALSE | LJ4: =LJ25<=Scenarios!$D$5 -> FALSE | LK4: =LK25<=Scenarios!$D$5 -> FALSE | LL4: =LL25<=Scenarios!$D$5 -> FALSE | LM4: =LM25<=Scenarios!$D$5 -> FALSE | LN4: =LN25<=Scenarios!$D$5 -> FALSE | LO4: =LO25<=Scenarios!$D$5 -> FALSE | LP4: =LP25<=Scenarios!$D$5 -> FALSE | LQ4: =LQ25<=Scenarios!$D$5 -> FALSE | LR4: =LR25<=Scenarios!$D$5 -> FALSE | LS4: =LS25<=Scenarios!$D$5 -> FALSE | LT4: =LT25<=Scenarios!$D$5 -> FALSE | LU4: =LU25<=Scenarios!$D$5 -> FALSE | LV4: =LV25<=Scenarios!$D$5 -> FALSE | LW4: =LW25<=Scenarios!$D$5 -> FALSE | LX4: =LX25<=Scenarios!$D$5 -> FALSE | LY4: =LY25<=Scenarios!$D$5 -> FALSE | LZ4: =LZ25<=Scenarios!$D$5 -> FALSE | MA4: =MA25<=Scenarios!$D$5 -> FALSE | MB4: =MB25<=Scenarios!$D$5 -> FALSE | MC4: =MC25<=Scenarios!$D$5 -> FALSE | MD4: =MD25<=Scenarios!$D$5 -> FALSE | ME4: =ME25<=Scenarios!$D$5 -> FALSE | MF4: =MF25<=Scenarios!$D$5 -> FALSE | MG4: =MG25<=Scenarios!$D$5 -> FALSE | MH4: =MH25<=Scenarios!$D$5 -> FALSE | MI4: =MI25<=Scenarios!$D$5 -> FALSE | MJ4: =MJ25<=Scenarios!$D$5 -> FALSE | MK4: =MK25<=Scenarios!$D$5 -> FALSE | ML4: =ML25<=Scenarios!$D$5 -> FALSE | MM4: =MM25<=Scenarios!$D$5 -> FALSE | MN4: =MN25<=Scenarios!$D$5 -> FALSE | MO4: =MO25<=Scenarios!$D$5 -> FALSE | MP4: =MP25<=Scenarios!$D$5 -> FALSE | MQ4: =MQ25<=Scenarios!$D$5 -> FALSE | MR4: =MR25<=Scenarios!$D$5 -> FALSE | MS4: =MS25<=Scenarios!$D$5 -> FALSE | MT4: =MT25<=Scenarios!$D$5 -> FALSE | MU4: =MU25<=Scenarios!$D$5 -> FALSE | MV4: =MV25<=Scenarios!$D$5 -> FALSE | MW4: =MW25<=Scenarios!$D$5 -> FALSE | MX4: =MX25<=Scenarios!$D$5 -> FALSE | MY4: =MY25<=Scenarios!$D$5 -> FALSE | MZ4: =MZ25<=Scenarios!$D$5 -> FALSE | NA4: =NA25<=Scenarios!$D$5 -> FALSE | NB4: =NB25<=Scenarios!$D$5 -> FALSE | NC4: =NC25<=Scenarios!$D$5 -> FALSE | ND4: =ND25<=Scenarios!$D$5 -> FALSE | NE4: =NE25<=Scenarios!$D$5 -> FALSE | NF4: =NF25<=Scenarios!$D$5 -> FALSE | NG4: =NG25<=Scenarios!$D$5 -> FALSE | NH4: =NH25<=Scenarios!$D$5 -> FALSE | NI4: =NI25<=Scenarios!$D$5 -> FALSE | NJ4: =NJ25<=Scenarios!$D$5 -> FALSE | NK4: =NK25<=Scenarios!$D$5 -> FALSE | NL4: =NL25<=Scenarios!$D$5 -> FALSE | NM4: =NM25<=Scenarios!$D$5 -> FALSE | NN4: =NN25<=Scenarios!$D$5 -> FALSE | NO4: =NO25<=Scenarios!$D$5 -> FALSE | NP4: =NP25<=Scenarios!$D$5 -> FALSE | NQ4: =NQ25<=Scenarios!$D$5 -> FALSE | NR4: =NR25<=Scenarios!$D$5 -> FALSE | NS4: =NS25<=Scenarios!$D$5 -> FALSE | NT4: =NT25<=Scenarios!$D$5 -> FALSE | NU4: =NU25<=Scenarios!$D$5 -> FALSE | NV4: =NV25<=Scenarios!$D$5 -> FALSE | NW4: =NW25<=Scenarios!$D$5 -> FALSE | NX4: =NX25<=Scenarios!$D$5 -> FALSE | NY4: =NY25<=Scenarios!$D$5 -> FALSE | NZ4: =NZ25<=Scenarios!$D$5 -> FALSE | OA4: =OA25<=Scenarios!$D$5 -> FALSE | OB4: =OB25<=Scenarios!$D$5 -> FALSE | OC4: =OC25<=Scenarios!$D$5 -> FALSE | OD4: =OD25<=Scenarios!$D$5 -> FALSE | OE4: =OE25<=Scenarios!$D$5 -> FALSE | OF4: =OF25<=Scenarios!$D$5 -> FALSE | OG4: =OG25<=Scenarios!$D$5 -> FALSE | OH4: =OH25<=Scenarios!$D$5 -> FALSE | OI4: =OI25<=Scenarios!$D$5 -> FALSE | OJ4: =OJ25<=Scenarios!$D$5 -> FALSE | OK4: =OK25<=Scenarios!$D$5 -> FALSE | OL4: =OL25<=Scenarios!$D$5 -> FALSE | OM4: =OM25<=Scenarios!$D$5 -> FALSE | ON4: =ON25<=Scenarios!$D$5 -> FALSE | OO4: =OO25<=Scenarios!$D$5 -> FALSE | OP4: =OP25<=Scenarios!$D$5 -> FALSE | OQ4: =OQ25<=Scenarios!$D$5 -> FALSE | OR4: =OR25<=Scenarios!$D$5 -> FALSE | OS4: =OS25<=Scenarios!$D$5 -> FALSE | OT4: =OT25<=Scenarios!$D$5 -> FALSE | OU4: =OU25<=Scenarios!$D$5 -> FALSE | OV4: =OV25<=Scenarios!$D$5 -> FALSE | OW4: =OW25<=Scenarios!$D$5 -> FALSE | OX4: =OX25<=Scenarios!$D$5 -> FALSE | OY4: =OY25<=Scenarios!$D$5 -> FALSE | OZ4: =OZ25<=Scenarios!$D$5 -> FALSE | PA4: =PA25<=Scenarios!$D$5 -> FALSE | PB4: =PB25<=Scenarios!$D$5 -> FALSE | PC4: =PC25<=Scenarios!$D$5 -> FALSE | PD4: =PD25<=Scenarios!$D$5 -> FALSE | PE4: =PE25<=Scenarios!$D$5 -> FALSE | PF4: =PF25<=Scenarios!$D$5 -> FALSE | PG4: =PG25<=Scenarios!$D$5 -> FALSE | PH4: =PH25<=Scenarios!$D$5 -> FALSE | PI4: =PI25<=Scenarios!$D$5 -> FALSE | PJ4: =PJ25<=Scenarios!$D$5 -> FALSE | PK4: =PK25<=Scenarios!$D$5 -> FALSE | PL4: =PL25<=Scenarios!$D$5 -> FALSE | PM4: =PM25<=Scenarios!$D$5 -> FALSE | PN4: =PN25<=Scenarios!$D$5 -> FALSE | PO4: =PO25<=Scenarios!$D$5 -> FALSE | PP4: =PP25<=Scenarios!$D$5 -> FALSE | PQ4: =PQ25<=Scenarios!$D$5 -> FALSE | PR4: =PR25<=Scenarios!$D$5 -> FALSE | PS4: =PS25<=Scenarios!$D$5 -> FALSE | PT4: =PT25<=Scenarios!$D$5 -> FALSE | PU4: =PU25<=Scenarios!$D$5 -> FALSE | PV4: =PV25<=Scenarios!$D$5 -> FALSE | PW4: =PW25<=Scenarios!$D$5 -> FALSE | PX4: =PX25<=Scenarios!$D$5 -> FALSE | PY4: =PY25<=Scenarios!$D$5 -> FALSE | PZ4: =PZ25<=Scenarios!$D$5 -> FALSE | QA4: =QA25<=Scenarios!$D$5 -> FALSE | QB4: =QB25<=Scenarios!$D$5 -> FALSE | QC4: =QC25<=Scenarios!$D$5 -> FALSE | QD4: =QD25<=Scenarios!$D$5 -> FALSE | QE4: =QE25<=Scenarios!$D$5 -> FALSE | QF4: =QF25<=Scenarios!$D$5 -> FALSE | QG4: =QG25<=Scenarios!$D$5 -> FALSE | QH4: =QH25<=Scenarios!$D$5 -> FALSE | QI4: =QI25<=Scenarios!$D$5 -> FALSE | QJ4: =QJ25<=Scenarios!$D$5 -> FALSE | QK4: =QK25<=Scenarios!$D$5 -> FALSE | QL4: =QL25<=Scenarios!$D$5 -> FALSE | QM4: =QM25<=Scenarios!$D$5 -> FALSE | QN4: =QN25<=Scenarios!$D$5 -> FALSE | QO4: =QO25<=Scenarios!$D$5 -> FALSE | QP4: =QP25<=Scenarios!$D$5 -> FALSE | QQ4: =QQ25<=Scenarios!$D$5 -> FALSE | QR4: =QR25<=Scenarios!$D$5 -> FALSE | QS4: =QS25<=Scenarios!$D$5 -> FALSE | QT4: =QT25<=Scenarios!$D$5 -> FALSE | QU4: =QU25<=Scenarios!$D$5 -> FALSE | QV4: =QV25<=Scenarios!$D$5 -> FALSE | QW4: =QW25<=Scenarios!$D$5 -> FALSE | QX4: =QX25<=Scenarios!$D$5 -> FALSE | QY4: =QY25<=Scenarios!$D$5 -> FALSE | QZ4: =QZ25<=Scenarios!$D$5 -> FALSE | RA4: =RA25<=Scenarios!$D$5 -> FALSE | RB4: =RB25<=Scenarios!$D$5 -> FALSE | RC4: =RC25<=Scenarios!$D$5 -> FALSE | RD4: =RD25<=Scenarios!$D$5 -> FALSE | RE4: =RE25<=Scenarios!$D$5 -> FALSE | RF4: =RF25<=Scenarios!$D$5 -> FALSE | RG4: =RG25<=Scenarios!$D$5 -> FALSE | RH4: =RH25<=Scenarios!$D$5 -> FALSE | RI4: =RI25<=Scenarios!$D$5 -> FALSE | RJ4: =RJ25<=Scenarios!$D$5 -> FALSE | RK4: =RK25<=Scenarios!$D$5 -> FALSE | RL4: =RL25<=Scenarios!$D$5 -> FALSE | RM4: =RM25<=Scenarios!$D$5 -> FALSE | RN4: =RN25<=Scenarios!$D$5 -> FALSE | RO4: =RO25<=Scenarios!$D$5 -> FALSE | RP4: =RP25<=Scenarios!$D$5 -> FALSE | RQ4: =RQ25<=Scenarios!$D$5 -> FALSE | RR4: =RR25<=Scenarios!$D$5 -> FALSE | RS4: =RS25<=Scenarios!$D$5 -> FALSE | RT4: =RT25<=Scenarios!$D$5 -> FALSE | RU4: =RU25<=Scenarios!$D$5 -> FALSE | RV4: =RV25<=Scenarios!$D$5 -> FALSE | RW4: =RW25<=Scenarios!$D$5 -> FALSE | RX4: =RX25<=Scenarios!$D$5 -> FALSE | RY4: =RY25<=Scenarios!$D$5 -> FALSE | RZ4: =RZ25<=Scenarios!$D$5 -> FALSE | SA4: =SA25<=Scenarios!$D$5 -> FALSE | SB4: =SB25<=Scenarios!$D$5 -> FALSE | SC4: =SC25<=Scenarios!$D$5 -> FALSE | SD4: =SD25<=Scenarios!$D$5 -> FALSE | SE4: =SE25<=Scenarios!$D$5 -> FALSE | SF4: =SF25<=Scenarios!$D$5 -> FALSE | SG4: =SG25<=Scenarios!$D$5 -> FALSE | SH4: =SH25<=Scenarios!$D$5 -> FALSE | SI4: =SI25<=Scenarios!$D$5 -> FALSE | SJ4: =SJ25<=Scenarios!$D$5 -> FALSE | SK4: =SK25<=Scenarios!$D$5 -> FALSE | SL4: =SL25<=Scenarios!$D$5 -> FALSE | SM4: =SM25<=Scenarios!$D$5 -> FALSE | SN4: =SN25<=Scenarios!$D$5 -> FALSE | SO4: =SO25<=Scenarios!$D$5 -> FALSE | SP4: =SP25<=Scenarios!$D$5 -> FALSE | SQ4: =SQ25<=Scenarios!$D$5 -> FALSE | SR4: =SR25<=Scenarios!$D$5 -> FALSE | SS4: =SS25<=Scenarios!$D$5 -> FALSE | ST4: =ST25<=Scenarios!$D$5 -> FALSE | SU4: =SU25<=Scenarios!$D$5 -> FALSE | SV4: =SV25<=Scenarios!$D$5 -> FALSE | SW4: =SW25<=Scenarios!$D$5 -> FALSE | SX4: =SX25<=Scenarios!$D$5 -> FALSE | SY4: =SY25<=Scenarios!$D$5 -> FALSE | SZ4: =SZ25<=Scenarios!$D$5 -> FALSE | TA4: =TA25<=Scenarios!$D$5 -> FALSE | TB4: =TB25<=Scenarios!$D$5 -> FALSE | TC4: =TC25<=Scenarios!$D$5 -> FALSE
C5: Exit Period | F5: =Scenarios!D5 -> 15 | J5: =J25=Scenarios!$D$5 -> FALSE | K5: =K25=Scenarios!$D$5 -> FALSE | L5: =L25=Scenarios!$D$5 -> FALSE | M5: =M25=Scenarios!$D$5 -> FALSE | N5: =N25=Scenarios!$D$5 -> FALSE | O5: =O25=Scenarios!$D$5 -> FALSE | P5: =P25=Scenarios!$D$5 -> FALSE | Q5: =Q25=Scenarios!$D$5 -> FALSE | R5: =R25=Scenarios!$D$5 -> FALSE | S5: =S25=Scenarios!$D$5 -> FALSE | T5: =T25=Scenarios!$D$5 -> FALSE | U5: =U25=Scenarios!$D$5 -> FALSE | V5: =V25=Scenarios!$D$5 -> FALSE | W5: =W25=Scenarios!$D$5 -> FALSE | X5: =X25=Scenarios!$D$5 -> FALSE | Y5: =Y25=Scenarios!$D$5 -> TRUE | Z5: =Z25=Scenarios!$D$5 -> FALSE | AA5: =AA25=Scenarios!$D$5 -> FALSE | AB5: =AB25=Scenarios!$D$5 -> FALSE | AC5: =AC25=Scenarios!$D$5 -> FALSE | AD5: =AD25=Scenarios!$D$5 -> FALSE | AE5: =AE25=Scenarios!$D$5 -> FALSE | AF5: =AF25=Scenarios!$D$5 -> FALSE | AG5: =AG25=Scenarios!$D$5 -> FALSE | AH5: =AH25=Scenarios!$D$5 -> FALSE | AI5: =AI25=Scenarios!$D$5 -> FALSE | AJ5: =AJ25=Scenarios!$D$5 -> FALSE | AK5: =AK25=Scenarios!$D$5 -> FALSE | AL5: =AL25=Scenarios!$D$5 -> FALSE | AM5: =AM25=Scenarios!$D$5 -> FALSE | AN5: =AN25=Scenarios!$D$5 -> FALSE | AO5: =AO25=Scenarios!$D$5 -> FALSE | AP5: =AP25=Scenarios!$D$5 -> FALSE | AQ5: =AQ25=Scenarios!$D$5 -> FALSE | AR5: =AR25=Scenarios!$D$5 -> FALSE | AS5: =AS25=Scenarios!$D$5 -> FALSE | AT5: =AT25=Scenarios!$D$5 -> FALSE | AU5: =AU25=Scenarios!$D$5 -> FALSE | AV5: =AV25=Scenarios!$D$5 -> FALSE | AW5: =AW25=Scenarios!$D$5 -> FALSE | AX5: =AX25=Scenarios!$D$5 -> FALSE | AY5: =AY25=Scenarios!$D$5 -> FALSE | AZ5: =AZ25=Scenarios!$D$5 -> FALSE | BA5: =BA25=Scenarios!$D$5 -> FALSE | BB5: =BB25=Scenarios!$D$5 -> FALSE | BC5: =BC25=Scenarios!$D$5 -> FALSE | BD5: =BD25=Scenarios!$D$5 -> FALSE | BE5: =BE25=Scenarios!$D$5 -> FALSE | BF5: =BF25=Scenarios!$D$5 -> FALSE | BG5: =BG25=Scenarios!$D$5 -> FALSE | BH5: =BH25=Scenarios!$D$5 -> FALSE | BI5: =BI25=Scenarios!$D$5 -> FALSE | BJ5: =BJ25=Scenarios!$D$5 -> FALSE | BK5: =BK25=Scenarios!$D$5 -> FALSE | BL5: =BL25=Scenarios!$D$5 -> FALSE | BM5: =BM25=Scenarios!$D$5 -> FALSE | BN5: =BN25=Scenarios!$D$5 -> FALSE | BO5: =BO25=Scenarios!$D$5 -> FALSE | BP5: =BP25=Scenarios!$D$5 -> FALSE | BQ5: =BQ25=Scenarios!$D$5 -> FALSE | BR5: =BR25=Scenarios!$D$5 -> FALSE | BS5: =BS25=Scenarios!$D$5 -> FALSE | BT5: =BT25=Scenarios!$D$5 -> FALSE | BU5: =BU25=Scenarios!$D$5 -> FALSE | BV5: =BV25=Scenarios!$D$5 -> FALSE | BW5: =BW25=Scenarios!$D$5 -> FALSE | BX5: =BX25=Scenarios!$D$5 -> FALSE | BY5: =BY25=Scenarios!$D$5 -> FALSE | BZ5: =BZ25=Scenarios!$D$5 -> FALSE | CA5: =CA25=Scenarios!$D$5 -> FALSE | CB5: =CB25=Scenarios!$D$5 -> FALSE | CC5: =CC25=Scenarios!$D$5 -> FALSE | CD5: =CD25=Scenarios!$D$5 -> FALSE | CE5: =CE25=Scenarios!$D$5 -> FALSE | CF5: =CF25=Scenarios!$D$5 -> FALSE | CG5: =CG25=Scenarios!$D$5 -> FALSE | CH5: =CH25=Scenarios!$D$5 -> FALSE | CI5: =CI25=Scenarios!$D$5 -> FALSE | CJ5: =CJ25=Scenarios!$D$5 -> FALSE | CK5: =CK25=Scenarios!$D$5 -> FALSE | CL5: =CL25=Scenarios!$D$5 -> FALSE | CM5: =CM25=Scenarios!$D$5 -> FALSE | CN5: =CN25=Scenarios!$D$5 -> FALSE | CO5: =CO25=Scenarios!$D$5 -> FALSE | CP5: =CP25=Scenarios!$D$5 -> FALSE | CQ5: =CQ25=Scenarios!$D$5 -> FALSE | CR5: =CR25=Scenarios!$D$5 -> FALSE | CS5: =CS25=Scenarios!$D$5 -> FALSE | CT5: =CT25=Scenarios!$D$5 -> FALSE | CU5: =CU25=Scenarios!$D$5 -> FALSE | CV5: =CV25=Scenarios!$D$5 -> FALSE | CW5: =CW25=Scenarios!$D$5 -> FALSE | CX5: =CX25=Scenarios!$D$5 -> FALSE | CY5: =CY25=Scenarios!$D$5 -> FALSE | CZ5: =CZ25=Scenarios!$D$5 -> FALSE | DA5: =DA25=Scenarios!$D$5 -> FALSE | DB5: =DB25=Scenarios!$D$5 -> FALSE | DC5: =DC25=Scenarios!$D$5 -> FALSE | DD5: =DD25=Scenarios!$D$5 -> FALSE | DE5: =DE25=Scenarios!$D$5 -> FALSE | DF5: =DF25=Scenarios!$D$5 -> FALSE | DG5: =DG25=Scenarios!$D$5 -> FALSE | DH5: =DH25=Scenarios!$D$5 -> FALSE | DI5: =DI25=Scenarios!$D$5 -> FALSE | DJ5: =DJ25=Scenarios!$D$5 -> FALSE | DK5: =DK25=Scenarios!$D$5 -> FALSE | DL5: =DL25=Scenarios!$D$5 -> FALSE | DM5: =DM25=Scenarios!$D$5 -> FALSE | DN5: =DN25=Scenarios!$D$5 -> FALSE | DO5: =DO25=Scenarios!$D$5 -> FALSE | DP5: =DP25=Scenarios!$D$5 -> FALSE | DQ5: =DQ25=Scenarios!$D$5 -> FALSE | DR5: =DR25=Scenarios!$D$5 -> FALSE | DS5: =DS25=Scenarios!$D$5 -> FALSE | DT5: =DT25=Scenarios!$D$5 -> FALSE | DU5: =DU25=Scenarios!$D$5 -> FALSE | DV5: =DV25=Scenarios!$D$5 -> FALSE | DW5: =DW25=Scenarios!$D$5 -> FALSE | DX5: =DX25=Scenarios!$D$5 -> FALSE | DY5: =DY25=Scenarios!$D$5 -> FALSE | DZ5: =DZ25=Scenarios!$D$5 -> FALSE | EA5: =EA25=Scenarios!$D$5 -> FALSE | EB5: =EB25=Scenarios!$D$5 -> FALSE | EC5: =EC25=Scenarios!$D$5 -> FALSE | ED5: =ED25=Scenarios!$D$5 -> FALSE | EE5: =EE25=Scenarios!$D$5 -> FALSE | EF5: =EF25=Scenarios!$D$5 -> FALSE | EG5: =EG25=Scenarios!$D$5 -> FALSE | EH5: =EH25=Scenarios!$D$5 -> FALSE | EI5: =EI25=Scenarios!$D$5 -> FALSE | EJ5: =EJ25=Scenarios!$D$5 -> FALSE | EK5: =EK25=Scenarios!$D$5 -> FALSE | EL5: =EL25=Scenarios!$D$5 -> FALSE | EM5: =EM25=Scenarios!$D$5 -> FALSE | EN5: =EN25=Scenarios!$D$5 -> FALSE | EO5: =EO25=Scenarios!$D$5 -> FALSE | EP5: =EP25=Scenarios!$D$5 -> FALSE | EQ5: =EQ25=Scenarios!$D$5 -> FALSE | ER5: =ER25=Scenarios!$D$5 -> FALSE | ES5: =ES25=Scenarios!$D$5 -> FALSE | ET5: =ET25=Scenarios!$D$5 -> FALSE | EU5: =EU25=Scenarios!$D$5 -> FALSE | EV5: =EV25=Scenarios!$D$5 -> FALSE | EW5: =EW25=Scenarios!$D$5 -> FALSE | EX5: =EX25=Scenarios!$D$5 -> FALSE | EY5: =EY25=Scenarios!$D$5 -> FALSE | EZ5: =EZ25=Scenarios!$D$5 -> FALSE | FA5: =FA25=Scenarios!$D$5 -> FALSE | FB5: =FB25=Scenarios!$D$5 -> FALSE | FC5: =FC25=Scenarios!$D$5 -> FALSE | FD5: =FD25=Scenarios!$D$5 -> FALSE | FE5: =FE25=Scenarios!$D$5 -> FALSE | FF5: =FF25=Scenarios!$D$5 -> FALSE | FG5: =FG25=Scenarios!$D$5 -> FALSE | FH5: =FH25=Scenarios!$D$5 -> FALSE | FI5: =FI25=Scenarios!$D$5 -> FALSE | FJ5: =FJ25=Scenarios!$D$5 -> FALSE | FK5: =FK25=Scenarios!$D$5 -> FALSE | FL5: =FL25=Scenarios!$D$5 -> FALSE | FM5: =FM25=Scenarios!$D$5 -> FALSE | FN5: =FN25=Scenarios!$D$5 -> FALSE | FO5: =FO25=Scenarios!$D$5 -> FALSE | FP5: =FP25=Scenarios!$D$5 -> FALSE | FQ5: =FQ25=Scenarios!$D$5 -> FALSE | FR5: =FR25=Scenarios!$D$5 -> FALSE | FS5: =FS25=Scenarios!$D$5 -> FALSE | FT5: =FT25=Scenarios!$D$5 -> FALSE | FU5: =FU25=Scenarios!$D$5 -> FALSE | FV5: =FV25=Scenarios!$D$5 -> FALSE | FW5: =FW25=Scenarios!$D$5 -> FALSE | FX5: =FX25=Scenarios!$D$5 -> FALSE | FY5: =FY25=Scenarios!$D$5 -> FALSE | FZ5: =FZ25=Scenarios!$D$5 -> FALSE | GA5: =GA25=Scenarios!$D$5 -> FALSE | GB5: =GB25=Scenarios!$D$5 -> FALSE | GC5: =GC25=Scenarios!$D$5 -> FALSE | GD5: =GD25=Scenarios!$D$5 -> FALSE | GE5: =GE25=Scenarios!$D$5 -> FALSE | GF5: =GF25=Scenarios!$D$5 -> FALSE | GG5: =GG25=Scenarios!$D$5 -> FALSE | GH5: =GH25=Scenarios!$D$5 -> FALSE | GI5: =GI25=Scenarios!$D$5 -> FALSE | GJ5: =GJ25=Scenarios!$D$5 -> FALSE | GK5: =GK25=Scenarios!$D$5 -> FALSE | GL5: =GL25=Scenarios!$D$5 -> FALSE | GM5: =GM25=Scenarios!$D$5 -> FALSE | GN5: =GN25=Scenarios!$D$5 -> FALSE | GO5: =GO25=Scenarios!$D$5 -> FALSE | GP5: =GP25=Scenarios!$D$5 -> FALSE | GQ5: =GQ25=Scenarios!$D$5 -> FALSE | GR5: =GR25=Scenarios!$D$5 -> FALSE | GS5: =GS25=Scenarios!$D$5 -> FALSE | GT5: =GT25=Scenarios!$D$5 -> FALSE | GU5: =GU25=Scenarios!$D$5 -> FALSE | GV5: =GV25=Scenarios!$D$5 -> FALSE | GW5: =GW25=Scenarios!$D$5 -> FALSE | GX5: =GX25=Scenarios!$D$5 -> FALSE | GY5: =GY25=Scenarios!$D$5 -> FALSE | GZ5: =GZ25=Scenarios!$D$5 -> FALSE | HA5: =HA25=Scenarios!$D$5 -> FALSE | HB5: =HB25=Scenarios!$D$5 -> FALSE | HC5: =HC25=Scenarios!$D$5 -> FALSE | HD5: =HD25=Scenarios!$D$5 -> FALSE | HE5: =HE25=Scenarios!$D$5 -> FALSE | HF5: =HF25=Scenarios!$D$5 -> FALSE | HG5: =HG25=Scenarios!$D$5 -> FALSE | HH5: =HH25=Scenarios!$D$5 -> FALSE | HI5: =HI25=Scenarios!$D$5 -> FALSE | HJ5: =HJ25=Scenarios!$D$5 -> FALSE | HK5: =HK25=Scenarios!$D$5 -> FALSE | HL5: =HL25=Scenarios!$D$5 -> FALSE | HM5: =HM25=Scenarios!$D$5 -> FALSE | HN5: =HN25=Scenarios!$D$5 -> FALSE | HO5: =HO25=Scenarios!$D$5 -> FALSE | HP5: =HP25=Scenarios!$D$5 -> FALSE | HQ5: =HQ25=Scenarios!$D$5 -> FALSE | HR5: =HR25=Scenarios!$D$5 -> FALSE | HS5: =HS25=Scenarios!$D$5 -> FALSE | HT5: =HT25=Scenarios!$D$5 -> FALSE | HU5: =HU25=Scenarios!$D$5 -> FALSE | HV5: =HV25=Scenarios!$D$5 -> FALSE | HW5: =HW25=Scenarios!$D$5 -> FALSE | HX5: =HX25=Scenarios!$D$5 -> FALSE | HY5: =HY25=Scenarios!$D$5 -> FALSE | HZ5: =HZ25=Scenarios!$D$5 -> FALSE | IA5: =IA25=Scenarios!$D$5 -> FALSE | IB5: =IB25=Scenarios!$D$5 -> FALSE | IC5: =IC25=Scenarios!$D$5 -> FALSE | ID5: =ID25=Scenarios!$D$5 -> FALSE | IE5: =IE25=Scenarios!$D$5 -> FALSE | IF5: =IF25=Scenarios!$D$5 -> FALSE | IG5: =IG25=Scenarios!$D$5 -> FALSE | IH5: =IH25=Scenarios!$D$5 -> FALSE | II5: =II25=Scenarios!$D$5 -> FALSE | IJ5: =IJ25=Scenarios!$D$5 -> FALSE | IK5: =IK25=Scenarios!$D$5 -> FALSE | IL5: =IL25=Scenarios!$D$5 -> FALSE | IM5: =IM25=Scenarios!$D$5 -> FALSE | IN5: =IN25=Scenarios!$D$5 -> FALSE | IO5: =IO25=Scenarios!$D$5 -> FALSE | IP5: =IP25=Scenarios!$D$5 -> FALSE | IQ5: =IQ25=Scenarios!$D$5 -> FALSE | IR5: =IR25=Scenarios!$D$5 -> FALSE | IS5: =IS25=Scenarios!$D$5 -> FALSE | IT5: =IT25=Scenarios!$D$5 -> FALSE | IU5: =IU25=Scenarios!$D$5 -> FALSE | IV5: =IV25=Scenarios!$D$5 -> FALSE | IW5: =IW25=Scenarios!$D$5 -> FALSE | IX5: =IX25=Scenarios!$D$5 -> FALSE | IY5: =IY25=Scenarios!$D$5 -> FALSE | IZ5: =IZ25=Scenarios!$D$5 -> FALSE | JA5: =JA25=Scenarios!$D$5 -> FALSE | JB5: =JB25=Scenarios!$D$5 -> FALSE | JC5: =JC25=Scenarios!$D$5 -> FALSE | JD5: =JD25=Scenarios!$D$5 -> FALSE | JE5: =JE25=Scenarios!$D$5 -> FALSE | JF5: =JF25=Scenarios!$D$5 -> FALSE | JG5: =JG25=Scenarios!$D$5 -> FALSE | JH5: =JH25=Scenarios!$D$5 -> FALSE | JI5: =JI25=Scenarios!$D$5 -> FALSE | JJ5: =JJ25=Scenarios!$D$5 -> FALSE | JK5: =JK25=Scenarios!$D$5 -> FALSE | JL5: =JL25=Scenarios!$D$5 -> FALSE | JM5: =JM25=Scenarios!$D$5 -> FALSE | JN5: =JN25=Scenarios!$D$5 -> FALSE | JO5: =JO25=Scenarios!$D$5 -> FALSE | JP5: =JP25=Scenarios!$D$5 -> FALSE | JQ5: =JQ25=Scenarios!$D$5 -> FALSE | JR5: =JR25=Scenarios!$D$5 -> FALSE | JS5: =JS25=Scenarios!$D$5 -> FALSE | JT5: =JT25=Scenarios!$D$5 -> FALSE | JU5: =JU25=Scenarios!$D$5 -> FALSE | JV5: =JV25=Scenarios!$D$5 -> FALSE | JW5: =JW25=Scenarios!$D$5 -> FALSE | JX5: =JX25=Scenarios!$D$5 -> FALSE | JY5: =JY25=Scenarios!$D$5 -> FALSE | JZ5: =JZ25=Scenarios!$D$5 -> FALSE | KA5: =KA25=Scenarios!$D$5 -> FALSE | KB5: =KB25=Scenarios!$D$5 -> FALSE | KC5: =KC25=Scenarios!$D$5 -> FALSE | KD5: =KD25=Scenarios!$D$5 -> FALSE | KE5: =KE25=Scenarios!$D$5 -> FALSE | KF5: =KF25=Scenarios!$D$5 -> FALSE | KG5: =KG25=Scenarios!$D$5 -> FALSE | KH5: =KH25=Scenarios!$D$5 -> FALSE | KI5: =KI25=Scenarios!$D$5 -> FALSE | KJ5: =KJ25=Scenarios!$D$5 -> FALSE | KK5: =KK25=Scenarios!$D$5 -> FALSE | KL5: =KL25=Scenarios!$D$5 -> FALSE | KM5: =KM25=Scenarios!$D$5 -> FALSE | KN5: =KN25=Scenarios!$D$5 -> FALSE | KO5: =KO25=Scenarios!$D$5 -> FALSE | KP5: =KP25=Scenarios!$D$5 -> FALSE | KQ5: =KQ25=Scenarios!$D$5 -> FALSE | KR5: =KR25=Scenarios!$D$5 -> FALSE | KS5: =KS25=Scenarios!$D$5 -> FALSE | KT5: =KT25=Scenarios!$D$5 -> FALSE | KU5: =KU25=Scenarios!$D$5 -> FALSE | KV5: =KV25=Scenarios!$D$5 -> FALSE | KW5: =KW25=Scenarios!$D$5 -> FALSE | KX5: =KX25=Scenarios!$D$5 -> FALSE | KY5: =KY25=Scenarios!$D$5 -> FALSE | KZ5: =KZ25=Scenarios!$D$5 -> FALSE | LA5: =LA25=Scenarios!$D$5 -> FALSE | LB5: =LB25=Scenarios!$D$5 -> FALSE | LC5: =LC25=Scenarios!$D$5 -> FALSE | LD5: =LD25=Scenarios!$D$5 -> FALSE | LE5: =LE25=Scenarios!$D$5 -> FALSE | LF5: =LF25=Scenarios!$D$5 -> FALSE | LG5: =LG25=Scenarios!$D$5 -> FALSE | LH5: =LH25=Scenarios!$D$5 -> FALSE | LI5: =LI25=Scenarios!$D$5 -> FALSE | LJ5: =LJ25=Scenarios!$D$5 -> FALSE | LK5: =LK25=Scenarios!$D$5 -> FALSE | LL5: =LL25=Scenarios!$D$5 -> FALSE | LM5: =LM25=Scenarios!$D$5 -> FALSE | LN5: =LN25=Scenarios!$D$5 -> FALSE | LO5: =LO25=Scenarios!$D$5 -> FALSE | LP5: =LP25=Scenarios!$D$5 -> FALSE | LQ5: =LQ25=Scenarios!$D$5 -> FALSE | LR5: =LR25=Scenarios!$D$5 -> FALSE | LS5: =LS25=Scenarios!$D$5 -> FALSE | LT5: =LT25=Scenarios!$D$5 -> FALSE | LU5: =LU25=Scenarios!$D$5 -> FALSE | LV5: =LV25=Scenarios!$D$5 -> FALSE | LW5: =LW25=Scenarios!$D$5 -> FALSE | LX5: =LX25=Scenarios!$D$5 -> FALSE | LY5: =LY25=Scenarios!$D$5 -> FALSE | LZ5: =LZ25=Scenarios!$D$5 -> FALSE | MA5: =MA25=Scenarios!$D$5 -> FALSE | MB5: =MB25=Scenarios!$D$5 -> FALSE | MC5: =MC25=Scenarios!$D$5 -> FALSE | MD5: =MD25=Scenarios!$D$5 -> FALSE | ME5: =ME25=Scenarios!$D$5 -> FALSE | MF5: =MF25=Scenarios!$D$5 -> FALSE | MG5: =MG25=Scenarios!$D$5 -> FALSE | MH5: =MH25=Scenarios!$D$5 -> FALSE | MI5: =MI25=Scenarios!$D$5 -> FALSE | MJ5: =MJ25=Scenarios!$D$5 -> FALSE | MK5: =MK25=Scenarios!$D$5 -> FALSE | ML5: =ML25=Scenarios!$D$5 -> FALSE | MM5: =MM25=Scenarios!$D$5 -> FALSE | MN5: =MN25=Scenarios!$D$5 -> FALSE | MO5: =MO25=Scenarios!$D$5 -> FALSE | MP5: =MP25=Scenarios!$D$5 -> FALSE | MQ5: =MQ25=Scenarios!$D$5 -> FALSE | MR5: =MR25=Scenarios!$D$5 -> FALSE | MS5: =MS25=Scenarios!$D$5 -> FALSE | MT5: =MT25=Scenarios!$D$5 -> FALSE | MU5: =MU25=Scenarios!$D$5 -> FALSE | MV5: =MV25=Scenarios!$D$5 -> FALSE | MW5: =MW25=Scenarios!$D$5 -> FALSE | MX5: =MX25=Scenarios!$D$5 -> FALSE | MY5: =MY25=Scenarios!$D$5 -> FALSE | MZ5: =MZ25=Scenarios!$D$5 -> FALSE | NA5: =NA25=Scenarios!$D$5 -> FALSE | NB5: =NB25=Scenarios!$D$5 -> FALSE | NC5: =NC25=Scenarios!$D$5 -> FALSE | ND5: =ND25=Scenarios!$D$5 -> FALSE | NE5: =NE25=Scenarios!$D$5 -> FALSE | NF5: =NF25=Scenarios!$D$5 -> FALSE | NG5: =NG25=Scenarios!$D$5 -> FALSE | NH5: =NH25=Scenarios!$D$5 -> FALSE | NI5: =NI25=Scenarios!$D$5 -> FALSE | NJ5: =NJ25=Scenarios!$D$5 -> FALSE | NK5: =NK25=Scenarios!$D$5 -> FALSE | NL5: =NL25=Scenarios!$D$5 -> FALSE | NM5: =NM25=Scenarios!$D$5 -> FALSE | NN5: =NN25=Scenarios!$D$5 -> FALSE | NO5: =NO25=Scenarios!$D$5 -> FALSE | NP5: =NP25=Scenarios!$D$5 -> FALSE | NQ5: =NQ25=Scenarios!$D$5 -> FALSE | NR5: =NR25=Scenarios!$D$5 -> FALSE | NS5: =NS25=Scenarios!$D$5 -> FALSE | NT5: =NT25=Scenarios!$D$5 -> FALSE | NU5: =NU25=Scenarios!$D$5 -> FALSE | NV5: =NV25=Scenarios!$D$5 -> FALSE | NW5: =NW25=Scenarios!$D$5 -> FALSE | NX5: =NX25=Scenarios!$D$5 -> FALSE | NY5: =NY25=Scenarios!$D$5 -> FALSE | NZ5: =NZ25=Scenarios!$D$5 -> FALSE | OA5: =OA25=Scenarios!$D$5 -> FALSE | OB5: =OB25=Scenarios!$D$5 -> FALSE | OC5: =OC25=Scenarios!$D$5 -> FALSE | OD5: =OD25=Scenarios!$D$5 -> FALSE | OE5: =OE25=Scenarios!$D$5 -> FALSE | OF5: =OF25=Scenarios!$D$5 -> FALSE | OG5: =OG25=Scenarios!$D$5 -> FALSE | OH5: =OH25=Scenarios!$D$5 -> FALSE | OI5: =OI25=Scenarios!$D$5 -> FALSE | OJ5: =OJ25=Scenarios!$D$5 -> FALSE | OK5: =OK25=Scenarios!$D$5 -> FALSE | OL5: =OL25=Scenarios!$D$5 -> FALSE | OM5: =OM25=Scenarios!$D$5 -> FALSE | ON5: =ON25=Scenarios!$D$5 -> FALSE | OO5: =OO25=Scenarios!$D$5 -> FALSE | OP5: =OP25=Scenarios!$D$5 -> FALSE | OQ5: =OQ25=Scenarios!$D$5 -> FALSE | OR5: =OR25=Scenarios!$D$5 -> FALSE | OS5: =OS25=Scenarios!$D$5 -> FALSE | OT5: =OT25=Scenarios!$D$5 -> FALSE | OU5: =OU25=Scenarios!$D$5 -> FALSE | OV5: =OV25=Scenarios!$D$5 -> FALSE | OW5: =OW25=Scenarios!$D$5 -> FALSE | OX5: =OX25=Scenarios!$D$5 -> FALSE | OY5: =OY25=Scenarios!$D$5 -> FALSE | OZ5: =OZ25=Scenarios!$D$5 -> FALSE | PA5: =PA25=Scenarios!$D$5 -> FALSE | PB5: =PB25=Scenarios!$D$5 -> FALSE | PC5: =PC25=Scenarios!$D$5 -> FALSE | PD5: =PD25=Scenarios!$D$5 -> FALSE | PE5: =PE25=Scenarios!$D$5 -> FALSE | PF5: =PF25=Scenarios!$D$5 -> FALSE | PG5: =PG25=Scenarios!$D$5 -> FALSE | PH5: =PH25=Scenarios!$D$5 -> FALSE | PI5: =PI25=Scenarios!$D$5 -> FALSE | PJ5: =PJ25=Scenarios!$D$5 -> FALSE | PK5: =PK25=Scenarios!$D$5 -> FALSE | PL5: =PL25=Scenarios!$D$5 -> FALSE | PM5: =PM25=Scenarios!$D$5 -> FALSE | PN5: =PN25=Scenarios!$D$5 -> FALSE | PO5: =PO25=Scenarios!$D$5 -> FALSE | PP5: =PP25=Scenarios!$D$5 -> FALSE | PQ5: =PQ25=Scenarios!$D$5 -> FALSE | PR5: =PR25=Scenarios!$D$5 -> FALSE | PS5: =PS25=Scenarios!$D$5 -> FALSE | PT5: =PT25=Scenarios!$D$5 -> FALSE | PU5: =PU25=Scenarios!$D$5 -> FALSE | PV5: =PV25=Scenarios!$D$5 -> FALSE | PW5: =PW25=Scenarios!$D$5 -> FALSE | PX5: =PX25=Scenarios!$D$5 -> FALSE | PY5: =PY25=Scenarios!$D$5 -> FALSE | PZ5: =PZ25=Scenarios!$D$5 -> FALSE | QA5: =QA25=Scenarios!$D$5 -> FALSE | QB5: =QB25=Scenarios!$D$5 -> FALSE | QC5: =QC25=Scenarios!$D$5 -> FALSE | QD5: =QD25=Scenarios!$D$5 -> FALSE | QE5: =QE25=Scenarios!$D$5 -> FALSE | QF5: =QF25=Scenarios!$D$5 -> FALSE | QG5: =QG25=Scenarios!$D$5 -> FALSE | QH5: =QH25=Scenarios!$D$5 -> FALSE | QI5: =QI25=Scenarios!$D$5 -> FALSE | QJ5: =QJ25=Scenarios!$D$5 -> FALSE | QK5: =QK25=Scenarios!$D$5 -> FALSE | QL5: =QL25=Scenarios!$D$5 -> FALSE | QM5: =QM25=Scenarios!$D$5 -> FALSE | QN5: =QN25=Scenarios!$D$5 -> FALSE | QO5: =QO25=Scenarios!$D$5 -> FALSE | QP5: =QP25=Scenarios!$D$5 -> FALSE | QQ5: =QQ25=Scenarios!$D$5 -> FALSE | QR5: =QR25=Scenarios!$D$5 -> FALSE | QS5: =QS25=Scenarios!$D$5 -> FALSE | QT5: =QT25=Scenarios!$D$5 -> FALSE | QU5: =QU25=Scenarios!$D$5 -> FALSE | QV5: =QV25=Scenarios!$D$5 -> FALSE | QW5: =QW25=Scenarios!$D$5 -> FALSE | QX5: =QX25=Scenarios!$D$5 -> FALSE | QY5: =QY25=Scenarios!$D$5 -> FALSE | QZ5: =QZ25=Scenarios!$D$5 -> FALSE | RA5: =RA25=Scenarios!$D$5 -> FALSE | RB5: =RB25=Scenarios!$D$5 -> FALSE | RC5: =RC25=Scenarios!$D$5 -> FALSE | RD5: =RD25=Scenarios!$D$5 -> FALSE | RE5: =RE25=Scenarios!$D$5 -> FALSE | RF5: =RF25=Scenarios!$D$5 -> FALSE | RG5: =RG25=Scenarios!$D$5 -> FALSE | RH5: =RH25=Scenarios!$D$5 -> FALSE | RI5: =RI25=Scenarios!$D$5 -> FALSE | RJ5: =RJ25=Scenarios!$D$5 -> FALSE | RK5: =RK25=Scenarios!$D$5 -> FALSE | RL5: =RL25=Scenarios!$D$5 -> FALSE | RM5: =RM25=Scenarios!$D$5 -> FALSE | RN5: =RN25=Scenarios!$D$5 -> FALSE | RO5: =RO25=Scenarios!$D$5 -> FALSE | RP5: =RP25=Scenarios!$D$5 -> FALSE | RQ5: =RQ25=Scenarios!$D$5 -> FALSE | RR5: =RR25=Scenarios!$D$5 -> FALSE | RS5: =RS25=Scenarios!$D$5 -> FALSE | RT5: =RT25=Scenarios!$D$5 -> FALSE | RU5: =RU25=Scenarios!$D$5 -> FALSE | RV5: =RV25=Scenarios!$D$5 -> FALSE | RW5: =RW25=Scenarios!$D$5 -> FALSE | RX5: =RX25=Scenarios!$D$5 -> FALSE | RY5: =RY25=Scenarios!$D$5 -> FALSE | RZ5: =RZ25=Scenarios!$D$5 -> FALSE | SA5: =SA25=Scenarios!$D$5 -> FALSE | SB5: =SB25=Scenarios!$D$5 -> FALSE | SC5: =SC25=Scenarios!$D$5 -> FALSE | SD5: =SD25=Scenarios!$D$5 -> FALSE | SE5: =SE25=Scenarios!$D$5 -> FALSE | SF5: =SF25=Scenarios!$D$5 -> FALSE | SG5: =SG25=Scenarios!$D$5 -> FALSE | SH5: =SH25=Scenarios!$D$5 -> FALSE | SI5: =SI25=Scenarios!$D$5 -> FALSE | SJ5: =SJ25=Scenarios!$D$5 -> FALSE | SK5: =SK25=Scenarios!$D$5 -> FALSE | SL5: =SL25=Scenarios!$D$5 -> FALSE | SM5: =SM25=Scenarios!$D$5 -> FALSE | SN5: =SN25=Scenarios!$D$5 -> FALSE | SO5: =SO25=Scenarios!$D$5 -> FALSE | SP5: =SP25=Scenarios!$D$5 -> FALSE | SQ5: =SQ25=Scenarios!$D$5 -> FALSE | SR5: =SR25=Scenarios!$D$5 -> FALSE | SS5: =SS25=Scenarios!$D$5 -> FALSE | ST5: =ST25=Scenarios!$D$5 -> FALSE | SU5: =SU25=Scenarios!$D$5 -> FALSE | SV5: =SV25=Scenarios!$D$5 -> FALSE | SW5: =SW25=Scenarios!$D$5 -> FALSE | SX5: =SX25=Scenarios!$D$5 -> FALSE | SY5: =SY25=Scenarios!$D$5 -> FALSE | SZ5: =SZ25=Scenarios!$D$5 -> FALSE | TA5: =TA25=Scenarios!$D$5 -> FALSE | TB5: =TB25=Scenarios!$D$5 -> FALSE | TC5: =TC25=Scenarios!$D$5 -> FALSE
D6: Rate of Return Earned on Capital (Equity or Total) | K6: =interpolate_look_up(K3,Scenarios!45:45,Scenarios!47:47) -> 0.12 | L6: =interpolate_look_up(L3,Scenarios!45:45,Scenarios!47:47) -> 0.12 | M6: =interpolate_look_up(M3,Scenarios!45:45,Scenarios!47:47) -> 0.12 | N6: =interpolate_look_up(N3,Scenarios!45:45,Scenarios!47:47) -> 0.12 | O6: =interpolate_look_up(O3,Scenarios!45:45,Scenarios!47:47) -> 0.12 | P6: =interpolate_look_up(P3,Scenarios!45:45,Scenarios!47:47) -> 0.12 | Q6: =interpolate_look_up(Q3,Scenarios!45:45,Scenarios!47:47) -> 0.12 | R6: =interpolate_look_up(R3,Scenarios!45:45,Scenarios!47:47) -> 0.12 | S6: =interpolate_look_up(S3,Scenarios!45:45,Scenarios!47:47) -> 0.12 | T6: =interpolate_look_up(T3,Scenarios!45:45,Scenarios!47:47) -> 0.12 | U6: =interpolate_look_up(U3,Scenarios!45:45,Scenarios!47:47) -> 0.12 | V6: =interpolate_look_up(V3,Scenarios!45:45,Scenarios!47:47) -> 0.12 | W6: =interpolate_look_up(W3,Scenarios!45:45,Scenarios!47:47) -> 0.12 | X6: =interpolate_look_up(X3,Scenarios!45:45,Scenarios!47:47) -> 0.12 | Y6: =interpolate_look_up(Y3,Scenarios!45:45,Scenarios!47:47) -> 0.11 | Z6: =interpolate_look_up(Z3,Scenarios!45:45,Scenarios!47:47) -> 0.1004925244 | AA6: =interpolate_look_up(AA3,Scenarios!45:45,Scenarios!47:47) -> 0.09180679517 | AB6: =interpolate_look_up(AB3,Scenarios!45:45,Scenarios!47:47) -> 0.08387178733 | AC6: =interpolate_look_up(AC3,Scenarios!45:45,Scenarios!47:47) -> 0.0766226149 | AD6: =interpolate_look_up(AD3,Scenarios!45:45,Scenarios!47:47) -> 0.07 | AE6: =interpolate_look_up(AE3,Scenarios!45:45,Scenarios!47:47) -> 0.07 | AF6: =interpolate_look_up(AF3,Scenarios!45:45,Scenarios!47:47) -> 0.07 | AG6: =interpolate_look_up(AG3,Scenarios!45:45,Scenarios!47:47) -> 0.07 | AH6: =interpolate_look_up(AH3,Scenarios!45:45,Scenarios!47:47) -> 0.07 | AI6: =interpolate_look_up(AI3,Scenarios!45:45,Scenarios!47:47) -> 0.07 | AJ6: =interpolate_look_up(AJ3,Scenarios!45:45,Scenarios!47:47) -> 0.07 | AK6: =interpolate_look_up(AK3,Scenarios!45:45,Scenarios!47:47) -> 0.07 | AL6: =interpolate_look_up(AL3,Scenarios!45:45,Scenarios!47:47) -> 0.07 | AM6: =interpolate_look_up(AM3,Scenarios!45:45,Scenarios!47:47) -> 0.07 | AN6: =interpolate_look_up(AN3,Scenarios!45:45,Scenarios!47:47) -> 0.07 | AO6: =interpolate_look_up(AO3,Scenarios!45:45,Scenarios!47:47) -> 0.07 | AP6: =interpolate_look_up(AP3,Scenarios!45:45,Scenarios!47:47) -> 0.07 | AQ6: =interpolate_look_up(AQ3,Scenarios!45:45,Scenarios!47:47) -> 0.07 | AR6: =interpolate_look_up(AR3,Scenarios!45:45,Scenarios!47:47) -> 0.07 | AS6: =interpolate_look_up(AS3,Scenarios!45:45,Scenarios!47:47) -> 0.07 | AT6: =interpolate_look_up(AT3,Scenarios!45:45,Scenarios!47:47) -> 0.07 | AU6: =interpolate_look_up(AU3,Scenarios!45:45,Scenarios!47:47) -> 0.07 | AV6: =interpolate_look_up(AV3,Scenarios!45:45,Scenarios!47:47) -> 0.07 | AW6: =interpolate_look_up(AW3,Scenarios!45:45,Scenarios!47:47) -> 0.07 | AX6: =interpolate_look_up(AX3,Scenarios!45:45,Scenarios!47:47) -> 0.07 | AY6: =interpolate_look_up(AY3,Scenarios!45:45,Scenarios!47:47) -> 0.07 | AZ6: =interpolate_look_up(AZ3,Scenarios!45:45,Scenarios!47:47) -> 0.07 | BA6: =interpolate_look_up(BA3,Scenarios!45:45,Scenarios!47:47) -> 0.07 | BB6: =interpolate_look_up(BB3,Scenarios!45:45,Scenarios!47:47) -> 0.07 | BC6: =interpolate_look_up(BC3,Scenarios!45:45,Scenarios!47:47) -> 0.07 | BD6: =interpolate_look_up(BD3,Scenarios!45:45,Scenarios!47:47) -> 0.07 | BE6: =interpolate_look_up(BE3,Scenarios!45:45,Scenarios!47:47) -> 0.07 | BF6: =interpolate_look_up(BF3,Scenarios!45:45,Scenarios!47:47) -> 0.07 | BG6: =interpolate_look_up(BG3,Scenarios!45:45,Scenarios!47:47) -> 0.07 | BH6: =interpolate_look_up(BH3,Scenarios!45:45,Scenarios!47:47) -> 0.07 | BI6: =interpolate_look_up(BI3,Scenarios!45:45,Scenarios!47:47) -> 0.07 | BJ6: =interpolate_look_up(BJ3,Scenarios!45:45,Scenarios!47:47) -> 0.07 | BK6: =interpolate_look_up(BK3,Scenarios!45:45,Scenarios!47:47) -> 0.07 | BL6: =interpolate_look_up(BL3,Scenarios!45:45,Scenarios!47:47) -> 0.07 | BM6: =interpolate_look_up(BM3,Scenarios!45:45,Scenarios!47:47) -> 0.07 | BN6: =interpolate_look_up(BN3,Scenarios!45:45,Scenarios!47:47) -> 0.07 | BO6: =interpolate_look_up(BO3,Scenarios!45:45,Scenarios!47:47) -> 0.07 | BP6: =interpolate_look_up(BP3,Scenarios!45:45,Scenarios!47:47) -> 0.07 | BQ6: =interpolate_look_up(BQ3,Scenarios!45:45,Scenarios!47:47) -> 0.07 | BR6: =interpolate_look_up(BR3,Scenarios!45:45,Scenarios!47:47) -> 0.07 | BS6: =interpolate_look_up(BS3,Scenarios!45:45,Scenarios!47:47) -> 0.07 | BT6: =interpolate_look_up(BT3,Scenarios!45:45,Scenarios!47:47) -> 0.07 | BU6: =interpolate_look_up(BU3,Scenarios!45:45,Scenarios!47:47) -> 0.07 | BV6: =interpolate_look_up(BV3,Scenarios!45:45,Scenarios!47:47) -> 0.07 | BW6: =interpolate_look_up(BW3,Scenarios!45:45,Scenarios!47:47) -> 0.07 | BX6: =interpolate_look_up(BX3,Scenarios!45:45,Scenarios!47:47) -> 0.07 | BY6: =interpolate_look_up(BY3,Scenarios!45:45,Scenarios!47:47) -> 0.07 | BZ6: =interpolate_look_up(BZ3,Scenarios!45:45,Scenarios!47:47) -> 0.07 | CA6: =interpolate_look_up(CA3,Scenarios!45:45,Scenarios!47:47) -> 0.07 | CB6: =interpolate_look_up(CB3,Scenarios!45:45,Scenarios!47:47) -> 0.07 | CC6: =interpolate_look_up(CC3,Scenarios!45:45,Scenarios!47:47) -> 0.07 | CD6: =interpolate_look_up(CD3,Scenarios!45:45,Scenarios!47:47) -> 0.07 | CE6: =interpolate_look_up(CE3,Scenarios!45:45,Scenarios!47:47) -> 0.07 | CF6: =interpolate_look_up(CF3,Scenarios!45:45,Scenarios!47:47) -> 0.07 | CG6: =interpolate_look_up(CG3,Scenarios!45:45,Scenarios!47:47) -> 0.07 | CH6: =interpolate_look_up(CH3,Scenarios!45:45,Scenarios!47:47) -> 0.07 | CI6: =interpolate_look_up(CI3,Scenarios!45:45,Scenarios!47:47) -> 0.07 | CJ6: =interpolate_look_up(CJ3,Scenarios!45:45,Scenarios!47:47) -> 0.07 | CK6: =interpolate_look_up(CK3,Scenarios!45:45,Scenarios!47:47) -> 0.07 | CL6: =interpolate_look_up(CL3,Scenarios!45:45,Scenarios!47:47) -> 0.07 | CM6: =interpolate_look_up(CM3,Scenarios!45:45,Scenarios!47:47) -> 0.07 | CN6: =interpolate_look_up(CN3,Scenarios!45:45,Scenarios!47:47) -> 0.07 | CO6: =interpolate_look_up(CO3,Scenarios!45:45,Scenarios!47:47) -> 0.07 | CP6: =interpolate_look_up(CP3,Scenarios!45:45,Scenarios!47:47) -> 0.07 | CQ6: =interpolate_look_up(CQ3,Scenarios!45:45,Scenarios!47:47) -> 0.07 | CR6: =interpolate_look_up(CR3,Scenarios!45:45,Scenarios!47:47) -> 0.07 | CS6: =interpolate_look_up(CS3,Scenarios!45:45,Scenarios!47:47) -> 0.07 | CT6: =interpolate_look_up(CT3,Scenarios!45:45,Scenarios!47:47) -> 0.07 | CU6: =interpolate_look_up(CU3,Scenarios!45:45,Scenarios!47:47) -> 0.07 | CV6: =interpolate_look_up(CV3,Scenarios!45:45,Scenarios!47:47) -> 0.07 | CW6: =interpolate_look_up(CW3,Scenarios!45:45,Scenarios!47:47) -> 0.07 | CX6: =interpolate_look_up(CX3,Scenarios!45:45,Scenarios!47:47) -> 0.07 | CY6: =interpolate_look_up(CY3,Scenarios!45:45,Scenarios!47:47) -> 0.07 | CZ6: =interpolate_look_up(CZ3,Scenarios!45:45,Scenarios!47:47) -> 0.07 | DA6: =interpolate_look_up(DA3,Scenarios!45:45,Scenarios!47:47) -> 0.07 | DB6: =interpolate_look_up(DB3,Scenarios!45:45,Scenarios!47:47) -> 0.07 | DC6: =interpolate_look_up(DC3,Scenarios!45:45,Scenarios!47:47) -> 0.07 | DD6: =interpolate_look_up(DD3,Scenarios!45:45,Scenarios!47:47) -> 0.07 | DE6: =interpolate_look_up(DE3,Scenarios!45:45,Scenarios!47:47) -> 0.07 | DF6: =interpolate_look_up(DF3,Scenarios!45:45,Scenarios!47:47) -> 0.07 | DG6: =interpolate_look_up(DG3,Scenarios!45:45,Scenarios!47:47) -> 0.07 | DH6: =interpolate_look_up(DH3,Scenarios!45:45,Scenarios!47:47) -> 0.07 | DI6: =interpolate_look_up(DI3,Scenarios!45:45,Scenarios!47:47) -> 0.07 | DJ6: =interpolate_look_up(DJ3,Scenarios!45:45,Scenarios!47:47) -> 0.07 | DK6: =interpolate_look_up(DK3,Scenarios!45:45,Scenarios!47:47) -> 0.07 | DL6: =interpolate_look_up(DL3,Scenarios!45:45,Scenarios!47:47) -> 0.07 | DM6: =interpolate_look_up(DM3,Scenarios!45:45,Scenarios!47:47) -> 0.07 | DN6: =interpolate_look_up(DN3,Scenarios!45:45,Scenarios!47:47) -> 0.07 | DO6: =interpolate_look_up(DO3,Scenarios!45:45,Scenarios!47:47) -> 0.07 | DP6: =interpolate_look_up(DP3,Scenarios!45:45,Scenarios!47:47) -> 0.07 | DQ6: =interpolate_look_up(DQ3,Scenarios!45:45,Scenarios!47:47) -> 0.07 | DR6: =interpolate_look_up(DR3,Scenarios!45:45,Scenarios!47:47) -> 0.07 | DS6: =interpolate_look_up(DS3,Scenarios!45:45,Scenarios!47:47) -> 0.07 | DT6: =interpolate_look_up(DT3,Scenarios!45:45,Scenarios!47:47) -> 0.07 | DU6: =interpolate_look_up(DU3,Scenarios!45:45,Scenarios!47:47) -> 0.07 | DV6: =interpolate_look_up(DV3,Scenarios!45:45,Scenarios!47:47) -> 0.07 | DW6: =interpolate_look_up(DW3,Scenarios!45:45,Scenarios!47:47) -> 0.07 | DX6: =interpolate_look_up(DX3,Scenarios!45:45,Scenarios!47:47) -> 0.07 | DY6: =interpolate_look_up(DY3,Scenarios!45:45,Scenarios!47:47) -> 0.07 | DZ6: =interpolate_look_up(DZ3,Scenarios!45:45,Scenarios!47:47) -> 0.07 | EA6: =interpolate_look_up(EA3,Scenarios!45:45,Scenarios!47:47) -> 0.07 | EB6: =interpolate_look_up(EB3,Scenarios!45:45,Scenarios!47:47) -> 0.07 | EC6: =interpolate_look_up(EC3,Scenarios!45:45,Scenarios!47:47) -> 0.07 | ED6: =interpolate_look_up(ED3,Scenarios!45:45,Scenarios!47:47) -> 0.07 | EE6: =interpolate_look_up(EE3,Scenarios!45:45,Scenarios!47:47) -> 0.07 | EF6: =interpolate_look_up(EF3,Scenarios!45:45,Scenarios!47:47) -> 0.07 | EG6: =interpolate_look_up(EG3,Scenarios!45:45,Scenarios!47:47) -> 0.07 | EH6: =interpolate_look_up(EH3,Scenarios!45:45,Scenarios!47:47) -> 0.07 | EI6: =interpolate_look_up(EI3,Scenarios!45:45,Scenarios!47:47) -> 0.07 | EJ6: =interpolate_look_up(EJ3,Scenarios!45:45,Scenarios!47:47) -> 0.07 | EK6: =interpolate_look_up(EK3,Scenarios!45:45,Scenarios!47:47) -> 0.07 | EL6: =interpolate_look_up(EL3,Scenarios!45:45,Scenarios!47:47) -> 0.07 | EM6: =interpolate_look_up(EM3,Scenarios!45:45,Scenarios!47:47) -> 0.07 | EN6: =interpolate_look_up(EN3,Scenarios!45:45,Scenarios!47:47) -> 0.07 | EO6: =interpolate_look_up(EO3,Scenarios!45:45,Scenarios!47:47) -> 0.07 | EP6: =interpolate_look_up(EP3,Scenarios!45:45,Scenarios!47:47) -> 0.07 | EQ6: =interpolate_look_up(EQ3,Scenarios!45:45,Scenarios!47:47) -> 0.07 | ER6: =interpolate_look_up(ER3,Scenarios!45:45,Scenarios!47:47) -> 0.07 | ES6: =interpolate_look_up(ES3,Scenarios!45:45,Scenarios!47:47) -> 0.07 | ET6: =interpolate_look_up(ET3,Scenarios!45:45,Scenarios!47:47) -> 0.07 | EU6: =interpolate_look_up(EU3,Scenarios!45:45,Scenarios!47:47) -> 0.07 | EV6: =interpolate_look_up(EV3,Scenarios!45:45,Scenarios!47:47) -> 0.07 | EW6: =interpolate_look_up(EW3,Scenarios!45:45,Scenarios!47:47) -> 0.07 | EX6: =interpolate_look_up(EX3,Scenarios!45:45,Scenarios!47:47) -> 0.07 | EY6: =interpolate_look_up(EY3,Scenarios!45:45,Scenarios!47:47) -> 0.07 | EZ6: =interpolate_look_up(EZ3,Scenarios!45:45,Scenarios!47:47) -> 0.07 | FA6: =interpolate_look_up(FA3,Scenarios!45:45,Scenarios!47:47) -> 0.07 | FB6: =interpolate_look_up(FB3,Scenarios!45:45,Scenarios!47:47) -> 0.07 | FC6: =interpolate_look_up(FC3,Scenarios!45:45,Scenarios!47:47) -> 0.07 | FD6: =interpolate_look_up(FD3,Scenarios!45:45,Scenarios!47:47) -> 0.07 | FE6: =interpolate_look_up(FE3,Scenarios!45:45,Scenarios!47:47) -> 0.07 | FF6: =interpolate_look_up(FF3,Scenarios!45:45,Scenarios!47:47) -> 0.07 | FG6: =interpolate_look_up(FG3,Scenarios!45:45,Scenarios!47:47) -> 0.07 | FH6: =interpolate_look_up(FH3,Scenarios!45:45,Scenarios!47:47) -> 0.07 | FI6: =interpolate_look_up(FI3,Scenarios!45:45,Scenarios!47:47) -> 0.07 | FJ6: =interpolate_look_up(FJ3,Scenarios!45:45,Scenarios!47:47) -> 0.07 | FK6: =interpolate_look_up(FK3,Scenarios!45:45,Scenarios!47:47) -> 0.07 | FL6: =interpolate_look_up(FL3,Scenarios!45:45,Scenarios!47:47) -> 0.07 | FM6: =interpolate_look_up(FM3,Scenarios!45:45,Scenarios!47:47) -> 0.07 | FN6: =interpolate_look_up(FN3,Scenarios!45:45,Scenarios!47:47) -> 0.07 | FO6: =interpolate_look_up(FO3,Scenarios!45:45,Scenarios!47:47) -> 0.07 | FP6: =interpolate_look_up(FP3,Scenarios!45:45,Scenarios!47:47) -> 0.07 | FQ6: =interpolate_look_up(FQ3,Scenarios!45:45,Scenarios!47:47) -> 0.07 | FR6: =interpolate_look_up(FR3,Scenarios!45:45,Scenarios!47:47) -> 0.07 | FS6: =interpolate_look_up(FS3,Scenarios!45:45,Scenarios!47:47) -> 0.07 | FT6: =interpolate_look_up(FT3,Scenarios!45:45,Scenarios!47:47) -> 0.07 | FU6: =interpolate_look_up(FU3,Scenarios!45:45,Scenarios!47:47) -> 0.07 | FV6: =interpolate_look_up(FV3,Scenarios!45:45,Scenarios!47:47) -> 0.07 | FW6: =interpolate_look_up(FW3,Scenarios!45:45,Scenarios!47:47) -> 0.07 | FX6: =interpolate_look_up(FX3,Scenarios!45:45,Scenarios!47:47) -> 0.07 | FY6: =interpolate_look_up(FY3,Scenarios!45:45,Scenarios!47:47) -> 0.07 | FZ6: =interpolate_look_up(FZ3,Scenarios!45:45,Scenarios!47:47) -> 0.07 | GA6: =interpolate_look_up(GA3,Scenarios!45:45,Scenarios!47:47) -> 0.07 | GB6: =interpolate_look_up(GB3,Scenarios!45:45,Scenarios!47:47) -> 0.07 | GC6: =interpolate_look_up(GC3,Scenarios!45:45,Scenarios!47:47) -> 0.07 | GD6: =interpolate_look_up(GD3,Scenarios!45:45,Scenarios!47:47) -> 0.07 | GE6: =interpolate_look_up(GE3,Scenarios!45:45,Scenarios!47:47) -> 0.07 | GF6: =interpolate_look_up(GF3,Scenarios!45:45,Scenarios!47:47) -> 0.07 | GG6: =interpolate_look_up(GG3,Scenarios!45:45,Scenarios!47:47) -> 0.07 | GH6: =interpolate_look_up(GH3,Scenarios!45:45,Scenarios!47:47) -> 0.07 | GI6: =interpolate_look_up(GI3,Scenarios!45:45,Scenarios!47:47) -> 0.07 | GJ6: =interpolate_look_up(GJ3,Scenarios!45:45,Scenarios!47:47) -> 0.07 | GK6: =interpolate_look_up(GK3,Scenarios!45:45,Scenarios!47:47) -> 0.07 | GL6: =interpolate_look_up(GL3,Scenarios!45:45,Scenarios!47:47) -> 0.07 | GM6: =interpolate_look_up(GM3,Scenarios!45:45,Scenarios!47:47) -> 0.07 | GN6: =interpolate_look_up(GN3,Scenarios!45:45,Scenarios!47:47) -> 0.07 | GO6: =interpolate_look_up(GO3,Scenarios!45:45,Scenarios!47:47) -> 0.07 | GP6: =interpolate_look_up(GP3,Scenarios!45:45,Scenarios!47:47) -> 0.07 | GQ6: =interpolate_look_up(GQ3,Scenarios!45:45,Scenarios!47:47) -> 0.07 | GR6: =interpolate_look_up(GR3,Scenarios!45:45,Scenarios!47:47) -> 0.07 | GS6: =interpolate_look_up(GS3,Scenarios!45:45,Scenarios!47:47) -> 0.07 | GT6: =interpolate_look_up(GT3,Scenarios!45:45,Scenarios!47:47) -> 0.07 | GU6: =interpolate_look_up(GU3,Scenarios!45:45,Scenarios!47:47) -> 0.07 | GV6: =interpolate_look_up(GV3,Scenarios!45:45,Scenarios!47:47) -> 0.07 | GW6: =interpolate_look_up(GW3,Scenarios!45:45,Scenarios!47:47) -> 0.07 | GX6: =interpolate_look_up(GX3,Scenarios!45:45,Scenarios!47:47) -> 0.07 | GY6: =interpolate_look_up(GY3,Scenarios!45:45,Scenarios!47:47) -> 0.07 | GZ6: =interpolate_look_up(GZ3,Scenarios!45:45,Scenarios!47:47) -> 0.07 | HA6: =interpolate_look_up(HA3,Scenarios!45:45,Scenarios!47:47) -> 0.07 | HB6: =interpolate_look_up(HB3,Scenarios!45:45,Scenarios!47:47) -> 0.07 | HC6: =interpolate_look_up(HC3,Scenarios!45:45,Scenarios!47:47) -> 0.07 | HD6: =interpolate_look_up(HD3,Scenarios!45:45,Scenarios!47:47) -> 0.07 | HE6: =interpolate_look_up(HE3,Scenarios!45:45,Scenarios!47:47) -> 0.07 | HF6: =interpolate_look_up(HF3,Scenarios!45:45,Scenarios!47:47) -> 0.07 | HG6: =interpolate_look_up(HG3,Scenarios!45:45,Scenarios!47:47) -> 0.07 | HH6: =interpolate_look_up(HH3,Scenarios!45:45,Scenarios!47:47) -> 0.07 | HI6: =interpolate_look_up(HI3,Scenarios!45:45,Scenarios!47:47) -> 0.07 | HJ6: =interpolate_look_up(HJ3,Scenarios!45:45,Scenarios!47:47) -> 0.07 | HK6: =interpolate_look_up(HK3,Scenarios!45:45,Scenarios!47:47) -> 0.07 | HL6: =interpolate_look_up(HL3,Scenarios!45:45,Scenarios!47:47) -> 0.07 | HM6: =interpolate_look_up(HM3,Scenarios!45:45,Scenarios!47:47) -> 0.07 | HN6: =interpolate_look_up(HN3,Scenarios!45:45,Scenarios!47:47) -> 0.07 | HO6: =interpolate_look_up(HO3,Scenarios!45:45,Scenarios!47:47) -> 0.07 | HP6: =interpolate_look_up(HP3,Scenarios!45:45,Scenarios!47:47) -> 0.07 | HQ6: =interpolate_look_up(HQ3,Scenarios!45:45,Scenarios!47:47) -> 0.07 | HR6: =interpolate_look_up(HR3,Scenarios!45:45,Scenarios!47:47) -> 0.07 | HS6: =interpolate_look_up(HS3,Scenarios!45:45,Scenarios!47:47) -> 0.07 | HT6: =interpolate_look_up(HT3,Scenarios!45:45,Scenarios!47:47) -> 0.07 | HU6: =interpolate_look_up(HU3,Scenarios!45:45,Scenarios!47:47) -> 0.07 | HV6: =interpolate_look_up(HV3,Scenarios!45:45,Scenarios!47:47) -> 0.07 | HW6: =interpolate_look_up(HW3,Scenarios!45:45,Scenarios!47:47) -> 0.07 | HX6: =interpolate_look_up(HX3,Scenarios!45:45,Scenarios!47:47) -> 0.07 | HY6: =interpolate_look_up(HY3,Scenarios!45:45,Scenarios!47:47) -> 0.07 | HZ6: =interpolate_look_up(HZ3,Scenarios!45:45,Scenarios!47:47) -> 0.07 | IA6: =interpolate_look_up(IA3,Scenarios!45:45,Scenarios!47:47) -> 0.07 | IB6: =interpolate_look_up(IB3,Scenarios!45:45,Scenarios!47:47) -> 0.07 | IC6: =interpolate_look_up(IC3,Scenarios!45:45,Scenarios!47:47) -> 0.07 | ID6: =interpolate_look_up(ID3,Scenarios!45:45,Scenarios!47:47) -> 0.07 | IE6: =interpolate_look_up(IE3,Scenarios!45:45,Scenarios!47:47) -> 0.07 | IF6: =interpolate_look_up(IF3,Scenarios!45:45,Scenarios!47:47) -> 0.07 | IG6: =interpolate_look_up(IG3,Scenarios!45:45,Scenarios!47:47) -> 0.07 | IH6: =interpolate_look_up(IH3,Scenarios!45:45,Scenarios!47:47) -> 0.07 | II6: =interpolate_look_up(II3,Scenarios!45:45,Scenarios!47:47) -> 0.07 | IJ6: =interpolate_look_up(IJ3,Scenarios!45:45,Scenarios!47:47) -> 0.07 | IK6: =interpolate_look_up(IK3,Scenarios!45:45,Scenarios!47:47) -> 0.07 | IL6: =interpolate_look_up(IL3,Scenarios!45:45,Scenarios!47:47) -> 0.07 | IM6: =interpolate_look_up(IM3,Scenarios!45:45,Scenarios!47:47) -> 0.07 | IN6: =interpolate_look_up(IN3,Scenarios!45:45,Scenarios!47:47) -> 0.07 | IO6: =interpolate_look_up(IO3,Scenarios!45:45,Scenarios!47:47) -> 0.07 | IP6: =interpolate_look_up(IP3,Scenarios!45:45,Scenarios!47:47) -> 0.07 | IQ6: =interpolate_look_up(IQ3,Scenarios!45:45,Scenarios!47:47) -> 0.07 | IR6: =interpolate_look_up(IR3,Scenarios!45:45,Scenarios!47:47) -> 0.07 | IS6: =interpolate_look_up(IS3,Scenarios!45:45,Scenarios!47:47) -> 0.07 | IT6: =interpolate_look_up(IT3,Scenarios!45:45,Scenarios!47:47) -> 0.07 | IU6: =interpolate_look_up(IU3,Scenarios!45:45,Scenarios!47:47) -> 0.07 | IV6: =interpolate_look_up(IV3,Scenarios!45:45,Scenarios!47:47) -> 0.07 | IW6: =interpolate_look_up(IW3,Scenarios!45:45,Scenarios!47:47) -> 0.07 | IX6: =interpolate_look_up(IX3,Scenarios!45:45,Scenarios!47:47) -> 0.07 | IY6: =interpolate_look_up(IY3,Scenarios!45:45,Scenarios!47:47) -> 0.07 | IZ6: =interpolate_look_up(IZ3,Scenarios!45:45,Scenarios!47:47) -> 0.07 | JA6: =interpolate_look_up(JA3,Scenarios!45:45,Scenarios!47:47) -> 0.07 | JB6: =interpolate_look_up(JB3,Scenarios!45:45,Scenarios!47:47) -> 0.07 | JC6: =interpolate_look_up(JC3,Scenarios!45:45,Scenarios!47:47) -> 0.07 | JD6: =interpolate_look_up(JD3,Scenarios!45:45,Scenarios!47:47) -> 0.07 | JE6: =interpolate_look_up(JE3,Scenarios!45:45,Scenarios!47:47) -> 0.07 | JF6: =interpolate_look_up(JF3,Scenarios!45:45,Scenarios!47:47) -> 0.07 | JG6: =interpolate_look_up(JG3,Scenarios!45:45,Scenarios!47:47) -> 0.07 | JH6: =interpolate_look_up(JH3,Scenarios!45:45,Scenarios!47:47) -> 0.07 | JI6: =interpolate_look_up(JI3,Scenarios!45:45,Scenarios!47:47) -> 0.07 | JJ6: =interpolate_look_up(JJ3,Scenarios!45:45,Scenarios!47:47) -> 0.07 | JK6: =interpolate_look_up(JK3,Scenarios!45:45,Scenarios!47:47) -> 0.07 | JL6: =interpolate_look_up(JL3,Scenarios!45:45,Scenarios!47:47) -> 0.07 | JM6: =interpolate_look_up(JM3,Scenarios!45:45,Scenarios!47:47) -> 0.07 | JN6: =interpolate_look_up(JN3,Scenarios!45:45,Scenarios!47:47) -> 0.07 | JO6: =interpolate_look_up(JO3,Scenarios!45:45,Scenarios!47:47) -> 0.07 | JP6: =interpolate_look_up(JP3,Scenarios!45:45,Scenarios!47:47) -> 0.07 | JQ6: =interpolate_look_up(JQ3,Scenarios!45:45,Scenarios!47:47) -> 0.07 | JR6: =interpolate_look_up(JR3,Scenarios!45:45,Scenarios!47:47) -> 0.07 | JS6: =interpolate_look_up(JS3,Scenarios!45:45,Scenarios!47:47) -> 0.07 | JT6: =interpolate_look_up(JT3,Scenarios!45:45,Scenarios!47:47) -> 0.07 | JU6: =interpolate_look_up(JU3,Scenarios!45:45,Scenarios!47:47) -> 0.07 | JV6: =interpolate_look_up(JV3,Scenarios!45:45,Scenarios!47:47) -> 0.07 | JW6: =interpolate_look_up(JW3,Scenarios!45:45,Scenarios!47:47) -> 0.07 | JX6: =interpolate_look_up(JX3,Scenarios!45:45,Scenarios!47:47) -> 0.07 | JY6: =interpolate_look_up(JY3,Scenarios!45:45,Scenarios!47:47) -> 0.07 | JZ6: =interpolate_look_up(JZ3,Scenarios!45:45,Scenarios!47:47) -> 0.07 | KA6: =interpolate_look_up(KA3,Scenarios!45:45,Scenarios!47:47) -> 0.07 | KB6: =interpolate_look_up(KB3,Scenarios!45:45,Scenarios!47:47) -> 0.07 | KC6: =interpolate_look_up(KC3,Scenarios!45:45,Scenarios!47:47) -> 0.07 | KD6: =interpolate_look_up(KD3,Scenarios!45:45,Scenarios!47:47) -> 0.07 | KE6: =interpolate_look_up(KE3,Scenarios!45:45,Scenarios!47:47) -> 0.07 | KF6: =interpolate_look_up(KF3,Scenarios!45:45,Scenarios!47:47) -> 0.07 | KG6: =interpolate_look_up(KG3,Scenarios!45:45,Scenarios!47:47) -> 0.07 | KH6: =interpolate_look_up(KH3,Scenarios!45:45,Scenarios!47:47) -> 0.07 | KI6: =interpolate_look_up(KI3,Scenarios!45:45,Scenarios!47:47) -> 0.07 | KJ6: =interpolate_look_up(KJ3,Scenarios!45:45,Scenarios!47:47) -> 0.07 | KK6: =interpolate_look_up(KK3,Scenarios!45:45,Scenarios!47:47) -> 0.07 | KL6: =interpolate_look_up(KL3,Scenarios!45:45,Scenarios!47:47) -> 0.07 | KM6: =interpolate_look_up(KM3,Scenarios!45:45,Scenarios!47:47) -> 0.07 | KN6: =interpolate_look_up(KN3,Scenarios!45:45,Scenarios!47:47) -> 0.07 | KO6: =interpolate_look_up(KO3,Scenarios!45:45,Scenarios!47:47) -> 0.07 | KP6: =interpolate_look_up(KP3,Scenarios!45:45,Scenarios!47:47) -> 0.07 | KQ6: =interpolate_look_up(KQ3,Scenarios!45:45,Scenarios!47:47) -> 0.07 | KR6: =interpolate_look_up(KR3,Scenarios!45:45,Scenarios!47:47) -> 0.07 | KS6: =interpolate_look_up(KS3,Scenarios!45:45,Scenarios!47:47) -> 0.07 | KT6: =interpolate_look_up(KT3,Scenarios!45:45,Scenarios!47:47) -> 0.07 | KU6: =interpolate_look_up(KU3,Scenarios!45:45,Scenarios!47:47) -> 0.07 | KV6: =interpolate_look_up(KV3,Scenarios!45:45,Scenarios!47:47) -> 0.07 | KW6: =interpolate_look_up(KW3,Scenarios!45:45,Scenarios!47:47) -> 0.07 | KX6: =interpolate_look_up(KX3,Scenarios!45:45,Scenarios!47:47) -> 0.07 | KY6: =interpolate_look_up(KY3,Scenarios!45:45,Scenarios!47:47) -> 0.07 | KZ6: =interpolate_look_up(KZ3,Scenarios!45:45,Scenarios!47:47) -> 0.07 | LA6: =interpolate_look_up(LA3,Scenarios!45:45,Scenarios!47:47) -> 0.07 | LB6: =interpolate_look_up(LB3,Scenarios!45:45,Scenarios!47:47) -> 0.07 | LC6: =interpolate_look_up(LC3,Scenarios!45:45,Scenarios!47:47) -> 0.07 | LD6: =interpolate_look_up(LD3,Scenarios!45:45,Scenarios!47:47) -> 0.07 | LE6: =interpolate_look_up(LE3,Scenarios!45:45,Scenarios!47:47) -> 0.07 | LF6: =interpolate_look_up(LF3,Scenarios!45:45,Scenarios!47:47) -> 0.07 | LG6: =interpolate_look_up(LG3,Scenarios!45:45,Scenarios!47:47) -> 0.07 | LH6: =interpolate_look_up(LH3,Scenarios!45:45,Scenarios!47:47) -> 0.07 | LI6: =interpolate_look_up(LI3,Scenarios!45:45,Scenarios!47:47) -> 0.07 | LJ6: =interpolate_look_up(LJ3,Scenarios!45:45,Scenarios!47:47) -> 0.07 | LK6: =interpolate_look_up(LK3,Scenarios!45:45,Scenarios!47:47) -> 0.07 | LL6: =interpolate_look_up(LL3,Scenarios!45:45,Scenarios!47:47) -> 0.07 | LM6: =interpolate_look_up(LM3,Scenarios!45:45,Scenarios!47:47) -> 0.07 | LN6: =interpolate_look_up(LN3,Scenarios!45:45,Scenarios!47:47) -> 0.07 | LO6: =interpolate_look_up(LO3,Scenarios!45:45,Scenarios!47:47) -> 0.07 | LP6: =interpolate_look_up(LP3,Scenarios!45:45,Scenarios!47:47) -> 0.07 | LQ6: =interpolate_look_up(LQ3,Scenarios!45:45,Scenarios!47:47) -> 0.07 | LR6: =interpolate_look_up(LR3,Scenarios!45:45,Scenarios!47:47) -> 0.07 | LS6: =interpolate_look_up(LS3,Scenarios!45:45,Scenarios!47:47) -> 0.07 | LT6: =interpolate_look_up(LT3,Scenarios!45:45,Scenarios!47:47) -> 0.07 | LU6: =interpolate_look_up(LU3,Scenarios!45:45,Scenarios!47:47) -> 0.07 | LV6: =interpolate_look_up(LV3,Scenarios!45:45,Scenarios!47:47) -> 0.07 | LW6: =interpolate_look_up(LW3,Scenarios!45:45,Scenarios!47:47) -> 0.07 | LX6: =interpolate_look_up(LX3,Scenarios!45:45,Scenarios!47:47) -> 0.07 | LY6: =interpolate_look_up(LY3,Scenarios!45:45,Scenarios!47:47) -> 0.07 | LZ6: =interpolate_look_up(LZ3,Scenarios!45:45,Scenarios!47:47) -> 0.07 | MA6: =interpolate_look_up(MA3,Scenarios!45:45,Scenarios!47:47) -> 0.07 | MB6: =interpolate_look_up(MB3,Scenarios!45:45,Scenarios!47:47) -> 0.07 | MC6: =interpolate_look_up(MC3,Scenarios!45:45,Scenarios!47:47) -> 0.07 | MD6: =interpolate_look_up(MD3,Scenarios!45:45,Scenarios!47:47) -> 0.07 | ME6: =interpolate_look_up(ME3,Scenarios!45:45,Scenarios!47:47) -> 0.07 | MF6: =interpolate_look_up(MF3,Scenarios!45:45,Scenarios!47:47) -> 0.07 | MG6: =interpolate_look_up(MG3,Scenarios!45:45,Scenarios!47:47) -> 0.07 | MH6: =interpolate_look_up(MH3,Scenarios!45:45,Scenarios!47:47) -> 0.07 | MI6: =interpolate_look_up(MI3,Scenarios!45:45,Scenarios!47:47) -> 0.07 | MJ6: =interpolate_look_up(MJ3,Scenarios!45:45,Scenarios!47:47) -> 0.07 | MK6: =interpolate_look_up(MK3,Scenarios!45:45,Scenarios!47:47) -> 0.07 | ML6: =interpolate_look_up(ML3,Scenarios!45:45,Scenarios!47:47) -> 0.07 | MM6: =interpolate_look_up(MM3,Scenarios!45:45,Scenarios!47:47) -> 0.07 | MN6: =interpolate_look_up(MN3,Scenarios!45:45,Scenarios!47:47) -> 0.07 | MO6: =interpolate_look_up(MO3,Scenarios!45:45,Scenarios!47:47) -> 0.07 | MP6: =interpolate_look_up(MP3,Scenarios!45:45,Scenarios!47:47) -> 0.07 | MQ6: =interpolate_look_up(MQ3,Scenarios!45:45,Scenarios!47:47) -> 0.07 | MR6: =interpolate_look_up(MR3,Scenarios!45:45,Scenarios!47:47) -> 0.07 | MS6: =interpolate_look_up(MS3,Scenarios!45:45,Scenarios!47:47) -> 0.07 | MT6: =interpolate_look_up(MT3,Scenarios!45:45,Scenarios!47:47) -> 0.07 | MU6: =interpolate_look_up(MU3,Scenarios!45:45,Scenarios!47:47) -> 0.07 | MV6: =interpolate_look_up(MV3,Scenarios!45:45,Scenarios!47:47) -> 0.07 | MW6: =interpolate_look_up(MW3,Scenarios!45:45,Scenarios!47:47) -> 0.07 | MX6: =interpolate_look_up(MX3,Scenarios!45:45,Scenarios!47:47) -> 0.07 | MY6: =interpolate_look_up(MY3,Scenarios!45:45,Scenarios!47:47) -> 0.07 | MZ6: =interpolate_look_up(MZ3,Scenarios!45:45,Scenarios!47:47) -> 0.07 | NA6: =interpolate_look_up(NA3,Scenarios!45:45,Scenarios!47:47) -> 0.07 | NB6: =interpolate_look_up(NB3,Scenarios!45:45,Scenarios!47:47) -> 0.07 | NC6: =interpolate_look_up(NC3,Scenarios!45:45,Scenarios!47:47) -> 0.07 | ND6: =interpolate_look_up(ND3,Scenarios!45:45,Scenarios!47:47) -> 0.07 | NE6: =interpolate_look_up(NE3,Scenarios!45:45,Scenarios!47:47) -> 0.07 | NF6: =interpolate_look_up(NF3,Scenarios!45:45,Scenarios!47:47) -> 0.07 | NG6: =interpolate_look_up(NG3,Scenarios!45:45,Scenarios!47:47) -> 0.07 | NH6: =interpolate_look_up(NH3,Scenarios!45:45,Scenarios!47:47) -> 0.07 | NI6: =interpolate_look_up(NI3,Scenarios!45:45,Scenarios!47:47) -> 0.07 | NJ6: =interpolate_look_up(NJ3,Scenarios!45:45,Scenarios!47:47) -> 0.07 | NK6: =interpolate_look_up(NK3,Scenarios!45:45,Scenarios!47:47) -> 0.07 | NL6: =interpolate_look_up(NL3,Scenarios!45:45,Scenarios!47:47) -> 0.07 | NM6: =interpolate_look_up(NM3,Scenarios!45:45,Scenarios!47:47) -> 0.07 | NN6: =interpolate_look_up(NN3,Scenarios!45:45,Scenarios!47:47) -> 0.07 | NO6: =interpolate_look_up(NO3,Scenarios!45:45,Scenarios!47:47) -> 0.07 | NP6: =interpolate_look_up(NP3,Scenarios!45:45,Scenarios!47:47) -> 0.07 | NQ6: =interpolate_look_up(NQ3,Scenarios!45:45,Scenarios!47:47) -> 0.07 | NR6: =interpolate_look_up(NR3,Scenarios!45:45,Scenarios!47:47) -> 0.07 | NS6: =interpolate_look_up(NS3,Scenarios!45:45,Scenarios!47:47) -> 0.07 | NT6: =interpolate_look_up(NT3,Scenarios!45:45,Scenarios!47:47) -> 0.07 | NU6: =interpolate_look_up(NU3,Scenarios!45:45,Scenarios!47:47) -> 0.07 | NV6: =interpolate_look_up(NV3,Scenarios!45:45,Scenarios!47:47) -> 0.07 | NW6: =interpolate_look_up(NW3,Scenarios!45:45,Scenarios!47:47) -> 0.07 | NX6: =interpolate_look_up(NX3,Scenarios!45:45,Scenarios!47:47) -> 0.07 | NY6: =interpolate_look_up(NY3,Scenarios!45:45,Scenarios!47:47) -> 0.07 | NZ6: =interpolate_look_up(NZ3,Scenarios!45:45,Scenarios!47:47) -> 0.07 | OA6: =interpolate_look_up(OA3,Scenarios!45:45,Scenarios!47:47) -> 0.07 | OB6: =interpolate_look_up(OB3,Scenarios!45:45,Scenarios!47:47) -> 0.07 | OC6: =interpolate_look_up(OC3,Scenarios!45:45,Scenarios!47:47) -> 0.07 | OD6: =interpolate_look_up(OD3,Scenarios!45:45,Scenarios!47:47) -> 0.07 | OE6: =interpolate_look_up(OE3,Scenarios!45:45,Scenarios!47:47) -> 0.07 | OF6: =interpolate_look_up(OF3,Scenarios!45:45,Scenarios!47:47) -> 0.07 | OG6: =interpolate_look_up(OG3,Scenarios!45:45,Scenarios!47:47) -> 0.07 | OH6: =interpolate_look_up(OH3,Scenarios!45:45,Scenarios!47:47) -> 0.07 | OI6: =interpolate_look_up(OI3,Scenarios!45:45,Scenarios!47:47) -> 0.07 | OJ6: =interpolate_look_up(OJ3,Scenarios!45:45,Scenarios!47:47) -> 0.07 | OK6: =interpolate_look_up(OK3,Scenarios!45:45,Scenarios!47:47) -> 0.07 | OL6: =interpolate_look_up(OL3,Scenarios!45:45,Scenarios!47:47) -> 0.07 | OM6: =interpolate_look_up(OM3,Scenarios!45:45,Scenarios!47:47) -> 0.07 | ON6: =interpolate_look_up(ON3,Scenarios!45:45,Scenarios!47:47) -> 0.07 | OO6: =interpolate_look_up(OO3,Scenarios!45:45,Scenarios!47:47) -> 0.07 | OP6: =interpolate_look_up(OP3,Scenarios!45:45,Scenarios!47:47) -> 0.07 | OQ6: =interpolate_look_up(OQ3,Scenarios!45:45,Scenarios!47:47) -> 0.07 | OR6: =interpolate_look_up(OR3,Scenarios!45:45,Scenarios!47:47) -> 0.07 | OS6: =interpolate_look_up(OS3,Scenarios!45:45,Scenarios!47:47) -> 0.07 | OT6: =interpolate_look_up(OT3,Scenarios!45:45,Scenarios!47:47) -> 0.07 | OU6: =interpolate_look_up(OU3,Scenarios!45:45,Scenarios!47:47) -> 0.07 | OV6: =interpolate_look_up(OV3,Scenarios!45:45,Scenarios!47:47) -> 0.07 | OW6: =interpolate_look_up(OW3,Scenarios!45:45,Scenarios!47:47) -> 0.07 | OX6: =interpolate_look_up(OX3,Scenarios!45:45,Scenarios!47:47) -> 0.07 | OY6: =interpolate_look_up(OY3,Scenarios!45:45,Scenarios!47:47) -> 0.07 | OZ6: =interpolate_look_up(OZ3,Scenarios!45:45,Scenarios!47:47) -> 0.07 | PA6: =interpolate_look_up(PA3,Scenarios!45:45,Scenarios!47:47) -> 0.07 | PB6: =interpolate_look_up(PB3,Scenarios!45:45,Scenarios!47:47) -> 0.07 | PC6: =interpolate_look_up(PC3,Scenarios!45:45,Scenarios!47:47) -> 0.07 | PD6: =interpolate_look_up(PD3,Scenarios!45:45,Scenarios!47:47) -> 0.07 | PE6: =interpolate_look_up(PE3,Scenarios!45:45,Scenarios!47:47) -> 0.07 | PF6: =interpolate_look_up(PF3,Scenarios!45:45,Scenarios!47:47) -> 0.07 | PG6: =interpolate_look_up(PG3,Scenarios!45:45,Scenarios!47:47) -> 0.07 | PH6: =interpolate_look_up(PH3,Scenarios!45:45,Scenarios!47:47) -> 0.07 | PI6: =interpolate_look_up(PI3,Scenarios!45:45,Scenarios!47:47) -> 0.07 | PJ6: =interpolate_look_up(PJ3,Scenarios!45:45,Scenarios!47:47) -> 0.07 | PK6: =interpolate_look_up(PK3,Scenarios!45:45,Scenarios!47:47) -> 0.07 | PL6: =interpolate_look_up(PL3,Scenarios!45:45,Scenarios!47:47) -> 0.07 | PM6: =interpolate_look_up(PM3,Scenarios!45:45,Scenarios!47:47) -> 0.07 | PN6: =interpolate_look_up(PN3,Scenarios!45:45,Scenarios!47:47) -> 0.07 | PO6: =interpolate_look_up(PO3,Scenarios!45:45,Scenarios!47:47) -> 0.07 | PP6: =interpolate_look_up(PP3,Scenarios!45:45,Scenarios!47:47) -> 0.07 | PQ6: =interpolate_look_up(PQ3,Scenarios!45:45,Scenarios!47:47) -> 0.07 | PR6: =interpolate_look_up(PR3,Scenarios!45:45,Scenarios!47:47) -> 0.07 | PS6: =interpolate_look_up(PS3,Scenarios!45:45,Scenarios!47:47) -> 0.07 | PT6: =interpolate_look_up(PT3,Scenarios!45:45,Scenarios!47:47) -> 0.07 | PU6: =interpolate_look_up(PU3,Scenarios!45:45,Scenarios!47:47) -> 0.07 | PV6: =interpolate_look_up(PV3,Scenarios!45:45,Scenarios!47:47) -> 0.07 | PW6: =interpolate_look_up(PW3,Scenarios!45:45,Scenarios!47:47) -> 0.07 | PX6: =interpolate_look_up(PX3,Scenarios!45:45,Scenarios!47:47) -> 0.07 | PY6: =interpolate_look_up(PY3,Scenarios!45:45,Scenarios!47:47) -> 0.07 | PZ6: =interpolate_look_up(PZ3,Scenarios!45:45,Scenarios!47:47) -> 0.07 | QA6: =interpolate_look_up(QA3,Scenarios!45:45,Scenarios!47:47) -> 0.07 | QB6: =interpolate_look_up(QB3,Scenarios!45:45,Scenarios!47:47) -> 0.07 | QC6: =interpolate_look_up(QC3,Scenarios!45:45,Scenarios!47:47) -> 0.07 | QD6: =interpolate_look_up(QD3,Scenarios!45:45,Scenarios!47:47) -> 0.07 | QE6: =interpolate_look_up(QE3,Scenarios!45:45,Scenarios!47:47) -> 0.07 | QF6: =interpolate_look_up(QF3,Scenarios!45:45,Scenarios!47:47) -> 0.07 | QG6: =interpolate_look_up(QG3,Scenarios!45:45,Scenarios!47:47) -> 0.07 | QH6: =interpolate_look_up(QH3,Scenarios!45:45,Scenarios!47:47) -> 0.07 | QI6: =interpolate_look_up(QI3,Scenarios!45:45,Scenarios!47:47) -> 0.07 | QJ6: =interpolate_look_up(QJ3,Scenarios!45:45,Scenarios!47:47) -> 0.07 | QK6: =interpolate_look_up(QK3,Scenarios!45:45,Scenarios!47:47) -> 0.07 | QL6: =interpolate_look_up(QL3,Scenarios!45:45,Scenarios!47:47) -> 0.07 | QM6: =interpolate_look_up(QM3,Scenarios!45:45,Scenarios!47:47) -> 0.07 | QN6: =interpolate_look_up(QN3,Scenarios!45:45,Scenarios!47:47) -> 0.07 | QO6: =interpolate_look_up(QO3,Scenarios!45:45,Scenarios!47:47) -> 0.07 | QP6: =interpolate_look_up(QP3,Scenarios!45:45,Scenarios!47:47) -> 0.07 | QQ6: =interpolate_look_up(QQ3,Scenarios!45:45,Scenarios!47:47) -> 0.07 | QR6: =interpolate_look_up(QR3,Scenarios!45:45,Scenarios!47:47) -> 0.07 | QS6: =interpolate_look_up(QS3,Scenarios!45:45,Scenarios!47:47) -> 0.07 | QT6: =interpolate_look_up(QT3,Scenarios!45:45,Scenarios!47:47) -> 0.07 | QU6: =interpolate_look_up(QU3,Scenarios!45:45,Scenarios!47:47) -> 0.07 | QV6: =interpolate_look_up(QV3,Scenarios!45:45,Scenarios!47:47) -> 0.07 | QW6: =interpolate_look_up(QW3,Scenarios!45:45,Scenarios!47:47) -> 0.07 | QX6: =interpolate_look_up(QX3,Scenarios!45:45,Scenarios!47:47) -> 0.07 | QY6: =interpolate_look_up(QY3,Scenarios!45:45,Scenarios!47:47) -> 0.07 | QZ6: =interpolate_look_up(QZ3,Scenarios!45:45,Scenarios!47:47) -> 0.07 | RA6: =interpolate_look_up(RA3,Scenarios!45:45,Scenarios!47:47) -> 0.07 | RB6: =interpolate_look_up(RB3,Scenarios!45:45,Scenarios!47:47) -> 0.07 | RC6: =interpolate_look_up(RC3,Scenarios!45:45,Scenarios!47:47) -> 0.07 | RD6: =interpolate_look_up(RD3,Scenarios!45:45,Scenarios!47:47) -> 0.07 | RE6: =interpolate_look_up(RE3,Scenarios!45:45,Scenarios!47:47) -> 0.07 | RF6: =interpolate_look_up(RF3,Scenarios!45:45,Scenarios!47:47) -> 0.07 | RG6: =interpolate_look_up(RG3,Scenarios!45:45,Scenarios!47:47) -> 0.07 | RH6: =interpolate_look_up(RH3,Scenarios!45:45,Scenarios!47:47) -> 0.07 | RI6: =interpolate_look_up(RI3,Scenarios!45:45,Scenarios!47:47) -> 0.07 | RJ6: =interpolate_look_up(RJ3,Scenarios!45:45,Scenarios!47:47) -> 0.07 | RK6: =interpolate_look_up(RK3,Scenarios!45:45,Scenarios!47:47) -> 0.07 | RL6: =interpolate_look_up(RL3,Scenarios!45:45,Scenarios!47:47) -> 0.07 | RM6: =interpolate_look_up(RM3,Scenarios!45:45,Scenarios!47:47) -> 0.07 | RN6: =interpolate_look_up(RN3,Scenarios!45:45,Scenarios!47:47) -> 0.07 | RO6: =interpolate_look_up(RO3,Scenarios!45:45,Scenarios!47:47) -> 0.07 | RP6: =interpolate_look_up(RP3,Scenarios!45:45,Scenarios!47:47) -> 0.07 | RQ6: =interpolate_look_up(RQ3,Scenarios!45:45,Scenarios!47:47) -> 0.07 | RR6: =interpolate_look_up(RR3,Scenarios!45:45,Scenarios!47:47) -> 0.07 | RS6: =interpolate_look_up(RS3,Scenarios!45:45,Scenarios!47:47) -> 0.07 | RT6: =interpolate_look_up(RT3,Scenarios!45:45,Scenarios!47:47) -> 0.07 | RU6: =interpolate_look_up(RU3,Scenarios!45:45,Scenarios!47:47) -> 0.07 | RV6: =interpolate_look_up(RV3,Scenarios!45:45,Scenarios!47:47) -> 0.07 | RW6: =interpolate_look_up(RW3,Scenarios!45:45,Scenarios!47:47) -> 0.07 | RX6: =interpolate_look_up(RX3,Scenarios!45:45,Scenarios!47:47) -> 0.07 | RY6: =interpolate_look_up(RY3,Scenarios!45:45,Scenarios!47:47) -> 0.07 | RZ6: =interpolate_look_up(RZ3,Scenarios!45:45,Scenarios!47:47) -> 0.07 | SA6: =interpolate_look_up(SA3,Scenarios!45:45,Scenarios!47:47) -> 0.07 | SB6: =interpolate_look_up(SB3,Scenarios!45:45,Scenarios!47:47) -> 0.07 | SC6: =interpolate_look_up(SC3,Scenarios!45:45,Scenarios!47:47) -> 0.07 | SD6: =interpolate_look_up(SD3,Scenarios!45:45,Scenarios!47:47) -> 0.07 | SE6: =interpolate_look_up(SE3,Scenarios!45:45,Scenarios!47:47) -> 0.07 | SF6: =interpolate_look_up(SF3,Scenarios!45:45,Scenarios!47:47) -> 0.07 | SG6: =interpolate_look_up(SG3,Scenarios!45:45,Scenarios!47:47) -> 0.07 | SH6: =interpolate_look_up(SH3,Scenarios!45:45,Scenarios!47:47) -> 0.07 | SI6: =interpolate_look_up(SI3,Scenarios!45:45,Scenarios!47:47) -> 0.07 | SJ6: =interpolate_look_up(SJ3,Scenarios!45:45,Scenarios!47:47) -> 0.07 | SK6: =interpolate_look_up(SK3,Scenarios!45:45,Scenarios!47:47) -> 0.07 | SL6: =interpolate_look_up(SL3,Scenarios!45:45,Scenarios!47:47) -> 0.07 | SM6: =interpolate_look_up(SM3,Scenarios!45:45,Scenarios!47:47) -> 0.07 | SN6: =interpolate_look_up(SN3,Scenarios!45:45,Scenarios!47:47) -> 0.07 | SO6: =interpolate_look_up(SO3,Scenarios!45:45,Scenarios!47:47) -> 0.07 | SP6: =interpolate_look_up(SP3,Scenarios!45:45,Scenarios!47:47) -> 0.07 | SQ6: =interpolate_look_up(SQ3,Scenarios!45:45,Scenarios!47:47) -> 0.07 | SR6: =interpolate_look_up(SR3,Scenarios!45:45,Scenarios!47:47) -> 0.07 | SS6: =interpolate_look_up(SS3,Scenarios!45:45,Scenarios!47:47) -> 0.07 | ST6: =interpolate_look_up(ST3,Scenarios!45:45,Scenarios!47:47) -> 0.07 | SU6: =interpolate_look_up(SU3,Scenarios!45:45,Scenarios!47:47) -> 0.07 | SV6: =interpolate_look_up(SV3,Scenarios!45:45,Scenarios!47:47) -> 0.07 | SW6: =interpolate_look_up(SW3,Scenarios!45:45,Scenarios!47:47) -> 0.07 | SX6: =interpolate_look_up(SX3,Scenarios!45:45,Scenarios!47:47) -> 0.07 | SY6: =interpolate_look_up(SY3,Scenarios!45:45,Scenarios!47:47) -> 0.07 | SZ6: =interpolate_look_up(SZ3,Scenarios!45:45,Scenarios!47:47) -> 0.07 | TA6: =interpolate_look_up(TA3,Scenarios!45:45,Scenarios!47:47) -> 0.07 | TB6: =interpolate_look_up(TB3,Scenarios!45:45,Scenarios!47:47) -> 0.07 | TC6: =interpolate_look_up(TC3,Scenarios!45:45,Scenarios!47:47) -> 0.07
D7: Growth Rate | K7: =interpolate_look_up(K3,Scenarios!45:45,Scenarios!48:48) -> 0.04 | L7: =interpolate_look_up(L3,Scenarios!45:45,Scenarios!48:48) -> 0.04 | M7: =interpolate_look_up(M3,Scenarios!45:45,Scenarios!48:48) -> 0.04 | N7: =interpolate_look_up(N3,Scenarios!45:45,Scenarios!48:48) -> 0.04 | O7: =interpolate_look_up(O3,Scenarios!45:45,Scenarios!48:48) -> 0.04 | P7: =interpolate_look_up(P3,Scenarios!45:45,Scenarios!48:48) -> 0.04 | Q7: =interpolate_look_up(Q3,Scenarios!45:45,Scenarios!48:48) -> 0.04 | R7: =interpolate_look_up(R3,Scenarios!45:45,Scenarios!48:48) -> 0.04 | S7: =interpolate_look_up(S3,Scenarios!45:45,Scenarios!48:48) -> 0.04 | T7: =interpolate_look_up(T3,Scenarios!45:45,Scenarios!48:48) -> 0.04 | U7: =interpolate_look_up(U3,Scenarios!45:45,Scenarios!48:48) -> 0.04 | V7: =interpolate_look_up(V3,Scenarios!45:45,Scenarios!48:48) -> 0.04 | W7: =interpolate_look_up(W3,Scenarios!45:45,Scenarios!48:48) -> 0.04 | X7: =interpolate_look_up(X3,Scenarios!45:45,Scenarios!48:48) -> 0.04 | Y7: =interpolate_look_up(Y3,Scenarios!45:45,Scenarios!48:48) -> 0.025 | Z7: =interpolate_look_up(Z3,Scenarios!45:45,Scenarios!48:48) -> 0.02081383019 | AA7: =interpolate_look_up(AA3,Scenarios!45:45,Scenarios!48:48) -> 0.01732862108 | AB7: =interpolate_look_up(AB3,Scenarios!45:45,Scenarios!48:48) -> 0.01442699906 | AC7: =interpolate_look_up(AC3,Scenarios!45:45,Scenarios!48:48) -> 0.01201124434 | AD7: =interpolate_look_up(AD3,Scenarios!45:45,Scenarios!48:48) -> 0.01 | AE7: =interpolate_look_up(AE3,Scenarios!45:45,Scenarios!48:48) -> 0.01 | AF7: =interpolate_look_up(AF3,Scenarios!45:45,Scenarios!48:48) -> 0.01 | AG7: =interpolate_look_up(AG3,Scenarios!45:45,Scenarios!48:48) -> 0.01 | AH7: =interpolate_look_up(AH3,Scenarios!45:45,Scenarios!48:48) -> 0.01 | AI7: =interpolate_look_up(AI3,Scenarios!45:45,Scenarios!48:48) -> 0.01 | AJ7: =interpolate_look_up(AJ3,Scenarios!45:45,Scenarios!48:48) -> 0.01 | AK7: =interpolate_look_up(AK3,Scenarios!45:45,Scenarios!48:48) -> 0.01 | AL7: =interpolate_look_up(AL3,Scenarios!45:45,Scenarios!48:48) -> 0.01 | AM7: =interpolate_look_up(AM3,Scenarios!45:45,Scenarios!48:48) -> 0.01 | AN7: =interpolate_look_up(AN3,Scenarios!45:45,Scenarios!48:48) -> 0.01 | AO7: =interpolate_look_up(AO3,Scenarios!45:45,Scenarios!48:48) -> 0.01 | AP7: =interpolate_look_up(AP3,Scenarios!45:45,Scenarios!48:48) -> 0.01 | AQ7: =interpolate_look_up(AQ3,Scenarios!45:45,Scenarios!48:48) -> 0.01 | AR7: =interpolate_look_up(AR3,Scenarios!45:45,Scenarios!48:48) -> 0.01 | AS7: =interpolate_look_up(AS3,Scenarios!45:45,Scenarios!48:48) -> 0.01 | AT7: =interpolate_look_up(AT3,Scenarios!45:45,Scenarios!48:48) -> 0.01 | AU7: =interpolate_look_up(AU3,Scenarios!45:45,Scenarios!48:48) -> 0.01 | AV7: =interpolate_look_up(AV3,Scenarios!45:45,Scenarios!48:48) -> 0.01 | AW7: =interpolate_look_up(AW3,Scenarios!45:45,Scenarios!48:48) -> 0.01 | AX7: =interpolate_look_up(AX3,Scenarios!45:45,Scenarios!48:48) -> 0.01 | AY7: =interpolate_look_up(AY3,Scenarios!45:45,Scenarios!48:48) -> 0.01 | AZ7: =interpolate_look_up(AZ3,Scenarios!45:45,Scenarios!48:48) -> 0.01 | BA7: =interpolate_look_up(BA3,Scenarios!45:45,Scenarios!48:48) -> 0.01 | BB7: =interpolate_look_up(BB3,Scenarios!45:45,Scenarios!48:48) -> 0.01 | BC7: =interpolate_look_up(BC3,Scenarios!45:45,Scenarios!48:48) -> 0.01 | BD7: =interpolate_look_up(BD3,Scenarios!45:45,Scenarios!48:48) -> 0.01 | BE7: =interpolate_look_up(BE3,Scenarios!45:45,Scenarios!48:48) -> 0.01 | BF7: =interpolate_look_up(BF3,Scenarios!45:45,Scenarios!48:48) -> 0.01 | BG7: =interpolate_look_up(BG3,Scenarios!45:45,Scenarios!48:48) -> 0.01 | BH7: =interpolate_look_up(BH3,Scenarios!45:45,Scenarios!48:48) -> 0.01 | BI7: =interpolate_look_up(BI3,Scenarios!45:45,Scenarios!48:48) -> 0.01 | BJ7: =interpolate_look_up(BJ3,Scenarios!45:45,Scenarios!48:48) -> 0.01 | BK7: =interpolate_look_up(BK3,Scenarios!45:45,Scenarios!48:48) -> 0.01 | BL7: =interpolate_look_up(BL3,Scenarios!45:45,Scenarios!48:48) -> 0.01 | BM7: =interpolate_look_up(BM3,Scenarios!45:45,Scenarios!48:48) -> 0.01 | BN7: =interpolate_look_up(BN3,Scenarios!45:45,Scenarios!48:48) -> 0.01 | BO7: =interpolate_look_up(BO3,Scenarios!45:45,Scenarios!48:48) -> 0.01 | BP7: =interpolate_look_up(BP3,Scenarios!45:45,Scenarios!48:48) -> 0.01 | BQ7: =interpolate_look_up(BQ3,Scenarios!45:45,Scenarios!48:48) -> 0.01 | BR7: =interpolate_look_up(BR3,Scenarios!45:45,Scenarios!48:48) -> 0.01 | BS7: =interpolate_look_up(BS3,Scenarios!45:45,Scenarios!48:48) -> 0.01 | BT7: =interpolate_look_up(BT3,Scenarios!45:45,Scenarios!48:48) -> 0.01 | BU7: =interpolate_look_up(BU3,Scenarios!45:45,Scenarios!48:48) -> 0.01 | BV7: =interpolate_look_up(BV3,Scenarios!45:45,Scenarios!48:48) -> 0.01 | BW7: =interpolate_look_up(BW3,Scenarios!45:45,Scenarios!48:48) -> 0.01 | BX7: =interpolate_look_up(BX3,Scenarios!45:45,Scenarios!48:48) -> 0.01 | BY7: =interpolate_look_up(BY3,Scenarios!45:45,Scenarios!48:48) -> 0.01 | BZ7: =interpolate_look_up(BZ3,Scenarios!45:45,Scenarios!48:48) -> 0.01 | CA7: =interpolate_look_up(CA3,Scenarios!45:45,Scenarios!48:48) -> 0.01 | CB7: =interpolate_look_up(CB3,Scenarios!45:45,Scenarios!48:48) -> 0.01 | CC7: =interpolate_look_up(CC3,Scenarios!45:45,Scenarios!48:48) -> 0.01 | CD7: =interpolate_look_up(CD3,Scenarios!45:45,Scenarios!48:48) -> 0.01 | CE7: =interpolate_look_up(CE3,Scenarios!45:45,Scenarios!48:48) -> 0.01 | CF7: =interpolate_look_up(CF3,Scenarios!45:45,Scenarios!48:48) -> 0.01 | CG7: =interpolate_look_up(CG3,Scenarios!45:45,Scenarios!48:48) -> 0.01 | CH7: =interpolate_look_up(CH3,Scenarios!45:45,Scenarios!48:48) -> 0.01 | CI7: =interpolate_look_up(CI3,Scenarios!45:45,Scenarios!48:48) -> 0.01 | CJ7: =interpolate_look_up(CJ3,Scenarios!45:45,Scenarios!48:48) -> 0.01 | CK7: =interpolate_look_up(CK3,Scenarios!45:45,Scenarios!48:48) -> 0.01 | CL7: =interpolate_look_up(CL3,Scenarios!45:45,Scenarios!48:48) -> 0.01 | CM7: =interpolate_look_up(CM3,Scenarios!45:45,Scenarios!48:48) -> 0.01 | CN7: =interpolate_look_up(CN3,Scenarios!45:45,Scenarios!48:48) -> 0.01 | CO7: =interpolate_look_up(CO3,Scenarios!45:45,Scenarios!48:48) -> 0.01 | CP7: =interpolate_look_up(CP3,Scenarios!45:45,Scenarios!48:48) -> 0.01 | CQ7: =interpolate_look_up(CQ3,Scenarios!45:45,Scenarios!48:48) -> 0.01 | CR7: =interpolate_look_up(CR3,Scenarios!45:45,Scenarios!48:48) -> 0.01 | CS7: =interpolate_look_up(CS3,Scenarios!45:45,Scenarios!48:48) -> 0.01 | CT7: =interpolate_look_up(CT3,Scenarios!45:45,Scenarios!48:48) -> 0.01 | CU7: =interpolate_look_up(CU3,Scenarios!45:45,Scenarios!48:48) -> 0.01 | CV7: =interpolate_look_up(CV3,Scenarios!45:45,Scenarios!48:48) -> 0.01 | CW7: =interpolate_look_up(CW3,Scenarios!45:45,Scenarios!48:48) -> 0.01 | CX7: =interpolate_look_up(CX3,Scenarios!45:45,Scenarios!48:48) -> 0.01 | CY7: =interpolate_look_up(CY3,Scenarios!45:45,Scenarios!48:48) -> 0.01 | CZ7: =interpolate_look_up(CZ3,Scenarios!45:45,Scenarios!48:48) -> 0.01 | DA7: =interpolate_look_up(DA3,Scenarios!45:45,Scenarios!48:48) -> 0.01 | DB7: =interpolate_look_up(DB3,Scenarios!45:45,Scenarios!48:48) -> 0.01 | DC7: =interpolate_look_up(DC3,Scenarios!45:45,Scenarios!48:48) -> 0.01 | DD7: =interpolate_look_up(DD3,Scenarios!45:45,Scenarios!48:48) -> 0.01 | DE7: =interpolate_look_up(DE3,Scenarios!45:45,Scenarios!48:48) -> 0.01 | DF7: =interpolate_look_up(DF3,Scenarios!45:45,Scenarios!48:48) -> 0.01 | DG7: =interpolate_look_up(DG3,Scenarios!45:45,Scenarios!48:48) -> 0.01 | DH7: =interpolate_look_up(DH3,Scenarios!45:45,Scenarios!48:48) -> 0.01 | DI7: =interpolate_look_up(DI3,Scenarios!45:45,Scenarios!48:48) -> 0.01 | DJ7: =interpolate_look_up(DJ3,Scenarios!45:45,Scenarios!48:48) -> 0.01 | DK7: =interpolate_look_up(DK3,Scenarios!45:45,Scenarios!48:48) -> 0.01 | DL7: =interpolate_look_up(DL3,Scenarios!45:45,Scenarios!48:48) -> 0.01 | DM7: =interpolate_look_up(DM3,Scenarios!45:45,Scenarios!48:48) -> 0.01 | DN7: =interpolate_look_up(DN3,Scenarios!45:45,Scenarios!48:48) -> 0.01 | DO7: =interpolate_look_up(DO3,Scenarios!45:45,Scenarios!48:48) -> 0.01 | DP7: =interpolate_look_up(DP3,Scenarios!45:45,Scenarios!48:48) -> 0.01 | DQ7: =interpolate_look_up(DQ3,Scenarios!45:45,Scenarios!48:48) -> 0.01 | DR7: =interpolate_look_up(DR3,Scenarios!45:45,Scenarios!48:48) -> 0.01 | DS7: =interpolate_look_up(DS3,Scenarios!45:45,Scenarios!48:48) -> 0.01 | DT7: =interpolate_look_up(DT3,Scenarios!45:45,Scenarios!48:48) -> 0.01 | DU7: =interpolate_look_up(DU3,Scenarios!45:45,Scenarios!48:48) -> 0.01 | DV7: =interpolate_look_up(DV3,Scenarios!45:45,Scenarios!48:48) -> 0.01 | DW7: =interpolate_look_up(DW3,Scenarios!45:45,Scenarios!48:48) -> 0.01 | DX7: =interpolate_look_up(DX3,Scenarios!45:45,Scenarios!48:48) -> 0.01 | DY7: =interpolate_look_up(DY3,Scenarios!45:45,Scenarios!48:48) -> 0.01 | DZ7: =interpolate_look_up(DZ3,Scenarios!45:45,Scenarios!48:48) -> 0.01 | EA7: =interpolate_look_up(EA3,Scenarios!45:45,Scenarios!48:48) -> 0.01 | EB7: =interpolate_look_up(EB3,Scenarios!45:45,Scenarios!48:48) -> 0.01 | EC7: =interpolate_look_up(EC3,Scenarios!45:45,Scenarios!48:48) -> 0.01 | ED7: =interpolate_look_up(ED3,Scenarios!45:45,Scenarios!48:48) -> 0.01 | EE7: =interpolate_look_up(EE3,Scenarios!45:45,Scenarios!48:48) -> 0.01 | EF7: =interpolate_look_up(EF3,Scenarios!45:45,Scenarios!48:48) -> 0.01 | EG7: =interpolate_look_up(EG3,Scenarios!45:45,Scenarios!48:48) -> 0.01 | EH7: =interpolate_look_up(EH3,Scenarios!45:45,Scenarios!48:48) -> 0.01 | EI7: =interpolate_look_up(EI3,Scenarios!45:45,Scenarios!48:48) -> 0.01 | EJ7: =interpolate_look_up(EJ3,Scenarios!45:45,Scenarios!48:48) -> 0.01 | EK7: =interpolate_look_up(EK3,Scenarios!45:45,Scenarios!48:48) -> 0.01 | EL7: =interpolate_look_up(EL3,Scenarios!45:45,Scenarios!48:48) -> 0.01 | EM7: =interpolate_look_up(EM3,Scenarios!45:45,Scenarios!48:48) -> 0.01 | EN7: =interpolate_look_up(EN3,Scenarios!45:45,Scenarios!48:48) -> 0.01 | EO7: =interpolate_look_up(EO3,Scenarios!45:45,Scenarios!48:48) -> 0.01 | EP7: =interpolate_look_up(EP3,Scenarios!45:45,Scenarios!48:48) -> 0.01 | EQ7: =interpolate_look_up(EQ3,Scenarios!45:45,Scenarios!48:48) -> 0.01 | ER7: =interpolate_look_up(ER3,Scenarios!45:45,Scenarios!48:48) -> 0.01 | ES7: =interpolate_look_up(ES3,Scenarios!45:45,Scenarios!48:48) -> 0.01 | ET7: =interpolate_look_up(ET3,Scenarios!45:45,Scenarios!48:48) -> 0.01 | EU7: =interpolate_look_up(EU3,Scenarios!45:45,Scenarios!48:48) -> 0.01 | EV7: =interpolate_look_up(EV3,Scenarios!45:45,Scenarios!48:48) -> 0.01 | EW7: =interpolate_look_up(EW3,Scenarios!45:45,Scenarios!48:48) -> 0.01 | EX7: =interpolate_look_up(EX3,Scenarios!45:45,Scenarios!48:48) -> 0.01 | EY7: =interpolate_look_up(EY3,Scenarios!45:45,Scenarios!48:48) -> 0.01 | EZ7: =interpolate_look_up(EZ3,Scenarios!45:45,Scenarios!48:48) -> 0.01 | FA7: =interpolate_look_up(FA3,Scenarios!45:45,Scenarios!48:48) -> 0.01 | FB7: =interpolate_look_up(FB3,Scenarios!45:45,Scenarios!48:48) -> 0.01 | FC7: =interpolate_look_up(FC3,Scenarios!45:45,Scenarios!48:48) -> 0.01 | FD7: =interpolate_look_up(FD3,Scenarios!45:45,Scenarios!48:48) -> 0.01 | FE7: =interpolate_look_up(FE3,Scenarios!45:45,Scenarios!48:48) -> 0.01 | FF7: =interpolate_look_up(FF3,Scenarios!45:45,Scenarios!48:48) -> 0.01 | FG7: =interpolate_look_up(FG3,Scenarios!45:45,Scenarios!48:48) -> 0.01 | FH7: =interpolate_look_up(FH3,Scenarios!45:45,Scenarios!48:48) -> 0.01 | FI7: =interpolate_look_up(FI3,Scenarios!45:45,Scenarios!48:48) -> 0.01 | FJ7: =interpolate_look_up(FJ3,Scenarios!45:45,Scenarios!48:48) -> 0.01 | FK7: =interpolate_look_up(FK3,Scenarios!45:45,Scenarios!48:48) -> 0.01 | FL7: =interpolate_look_up(FL3,Scenarios!45:45,Scenarios!48:48) -> 0.01 | FM7: =interpolate_look_up(FM3,Scenarios!45:45,Scenarios!48:48) -> 0.01 | FN7: =interpolate_look_up(FN3,Scenarios!45:45,Scenarios!48:48) -> 0.01 | FO7: =interpolate_look_up(FO3,Scenarios!45:45,Scenarios!48:48) -> 0.01 | FP7: =interpolate_look_up(FP3,Scenarios!45:45,Scenarios!48:48) -> 0.01 | FQ7: =interpolate_look_up(FQ3,Scenarios!45:45,Scenarios!48:48) -> 0.01 | FR7: =interpolate_look_up(FR3,Scenarios!45:45,Scenarios!48:48) -> 0.01 | FS7: =interpolate_look_up(FS3,Scenarios!45:45,Scenarios!48:48) -> 0.01 | FT7: =interpolate_look_up(FT3,Scenarios!45:45,Scenarios!48:48) -> 0.01 | FU7: =interpolate_look_up(FU3,Scenarios!45:45,Scenarios!48:48) -> 0.01 | FV7: =interpolate_look_up(FV3,Scenarios!45:45,Scenarios!48:48) -> 0.01 | FW7: =interpolate_look_up(FW3,Scenarios!45:45,Scenarios!48:48) -> 0.01 | FX7: =interpolate_look_up(FX3,Scenarios!45:45,Scenarios!48:48) -> 0.01 | FY7: =interpolate_look_up(FY3,Scenarios!45:45,Scenarios!48:48) -> 0.01 | FZ7: =interpolate_look_up(FZ3,Scenarios!45:45,Scenarios!48:48) -> 0.01 | GA7: =interpolate_look_up(GA3,Scenarios!45:45,Scenarios!48:48) -> 0.01 | GB7: =interpolate_look_up(GB3,Scenarios!45:45,Scenarios!48:48) -> 0.01 | GC7: =interpolate_look_up(GC3,Scenarios!45:45,Scenarios!48:48) -> 0.01 | GD7: =interpolate_look_up(GD3,Scenarios!45:45,Scenarios!48:48) -> 0.01 | GE7: =interpolate_look_up(GE3,Scenarios!45:45,Scenarios!48:48) -> 0.01 | GF7: =interpolate_look_up(GF3,Scenarios!45:45,Scenarios!48:48) -> 0.01 | GG7: =interpolate_look_up(GG3,Scenarios!45:45,Scenarios!48:48) -> 0.01 | GH7: =interpolate_look_up(GH3,Scenarios!45:45,Scenarios!48:48) -> 0.01 | GI7: =interpolate_look_up(GI3,Scenarios!45:45,Scenarios!48:48) -> 0.01 | GJ7: =interpolate_look_up(GJ3,Scenarios!45:45,Scenarios!48:48) -> 0.01 | GK7: =interpolate_look_up(GK3,Scenarios!45:45,Scenarios!48:48) -> 0.01 | GL7: =interpolate_look_up(GL3,Scenarios!45:45,Scenarios!48:48) -> 0.01 | GM7: =interpolate_look_up(GM3,Scenarios!45:45,Scenarios!48:48) -> 0.01 | GN7: =interpolate_look_up(GN3,Scenarios!45:45,Scenarios!48:48) -> 0.01 | GO7: =interpolate_look_up(GO3,Scenarios!45:45,Scenarios!48:48) -> 0.01 | GP7: =interpolate_look_up(GP3,Scenarios!45:45,Scenarios!48:48) -> 0.01 | GQ7: =interpolate_look_up(GQ3,Scenarios!45:45,Scenarios!48:48) -> 0.01 | GR7: =interpolate_look_up(GR3,Scenarios!45:45,Scenarios!48:48) -> 0.01 | GS7: =interpolate_look_up(GS3,Scenarios!45:45,Scenarios!48:48) -> 0.01 | GT7: =interpolate_look_up(GT3,Scenarios!45:45,Scenarios!48:48) -> 0.01 | GU7: =interpolate_look_up(GU3,Scenarios!45:45,Scenarios!48:48) -> 0.01 | GV7: =interpolate_look_up(GV3,Scenarios!45:45,Scenarios!48:48) -> 0.01 | GW7: =interpolate_look_up(GW3,Scenarios!45:45,Scenarios!48:48) -> 0.01 | GX7: =interpolate_look_up(GX3,Scenarios!45:45,Scenarios!48:48) -> 0.01 | GY7: =interpolate_look_up(GY3,Scenarios!45:45,Scenarios!48:48) -> 0.01 | GZ7: =interpolate_look_up(GZ3,Scenarios!45:45,Scenarios!48:48) -> 0.01 | HA7: =interpolate_look_up(HA3,Scenarios!45:45,Scenarios!48:48) -> 0.01 | HB7: =interpolate_look_up(HB3,Scenarios!45:45,Scenarios!48:48) -> 0.01 | HC7: =interpolate_look_up(HC3,Scenarios!45:45,Scenarios!48:48) -> 0.01 | HD7: =interpolate_look_up(HD3,Scenarios!45:45,Scenarios!48:48) -> 0.01 | HE7: =interpolate_look_up(HE3,Scenarios!45:45,Scenarios!48:48) -> 0.01 | HF7: =interpolate_look_up(HF3,Scenarios!45:45,Scenarios!48:48) -> 0.01 | HG7: =interpolate_look_up(HG3,Scenarios!45:45,Scenarios!48:48) -> 0.01 | HH7: =interpolate_look_up(HH3,Scenarios!45:45,Scenarios!48:48) -> 0.01 | HI7: =interpolate_look_up(HI3,Scenarios!45:45,Scenarios!48:48) -> 0.01 | HJ7: =interpolate_look_up(HJ3,Scenarios!45:45,Scenarios!48:48) -> 0.01 | HK7: =interpolate_look_up(HK3,Scenarios!45:45,Scenarios!48:48) -> 0.01 | HL7: =interpolate_look_up(HL3,Scenarios!45:45,Scenarios!48:48) -> 0.01 | HM7: =interpolate_look_up(HM3,Scenarios!45:45,Scenarios!48:48) -> 0.01 | HN7: =interpolate_look_up(HN3,Scenarios!45:45,Scenarios!48:48) -> 0.01 | HO7: =interpolate_look_up(HO3,Scenarios!45:45,Scenarios!48:48) -> 0.01 | HP7: =interpolate_look_up(HP3,Scenarios!45:45,Scenarios!48:48) -> 0.01 | HQ7: =interpolate_look_up(HQ3,Scenarios!45:45,Scenarios!48:48) -> 0.01 | HR7: =interpolate_look_up(HR3,Scenarios!45:45,Scenarios!48:48) -> 0.01 | HS7: =interpolate_look_up(HS3,Scenarios!45:45,Scenarios!48:48) -> 0.01 | HT7: =interpolate_look_up(HT3,Scenarios!45:45,Scenarios!48:48) -> 0.01 | HU7: =interpolate_look_up(HU3,Scenarios!45:45,Scenarios!48:48) -> 0.01 | HV7: =interpolate_look_up(HV3,Scenarios!45:45,Scenarios!48:48) -> 0.01 | HW7: =interpolate_look_up(HW3,Scenarios!45:45,Scenarios!48:48) -> 0.01 | HX7: =interpolate_look_up(HX3,Scenarios!45:45,Scenarios!48:48) -> 0.01 | HY7: =interpolate_look_up(HY3,Scenarios!45:45,Scenarios!48:48) -> 0.01 | HZ7: =interpolate_look_up(HZ3,Scenarios!45:45,Scenarios!48:48) -> 0.01 | IA7: =interpolate_look_up(IA3,Scenarios!45:45,Scenarios!48:48) -> 0.01 | IB7: =interpolate_look_up(IB3,Scenarios!45:45,Scenarios!48:48) -> 0.01 | IC7: =interpolate_look_up(IC3,Scenarios!45:45,Scenarios!48:48) -> 0.01 | ID7: =interpolate_look_up(ID3,Scenarios!45:45,Scenarios!48:48) -> 0.01 | IE7: =interpolate_look_up(IE3,Scenarios!45:45,Scenarios!48:48) -> 0.01 | IF7: =interpolate_look_up(IF3,Scenarios!45:45,Scenarios!48:48) -> 0.01 | IG7: =interpolate_look_up(IG3,Scenarios!45:45,Scenarios!48:48) -> 0.01 | IH7: =interpolate_look_up(IH3,Scenarios!45:45,Scenarios!48:48) -> 0.01 | II7: =interpolate_look_up(II3,Scenarios!45:45,Scenarios!48:48) -> 0.01 | IJ7: =interpolate_look_up(IJ3,Scenarios!45:45,Scenarios!48:48) -> 0.01 | IK7: =interpolate_look_up(IK3,Scenarios!45:45,Scenarios!48:48) -> 0.01 | IL7: =interpolate_look_up(IL3,Scenarios!45:45,Scenarios!48:48) -> 0.01 | IM7: =interpolate_look_up(IM3,Scenarios!45:45,Scenarios!48:48) -> 0.01 | IN7: =interpolate_look_up(IN3,Scenarios!45:45,Scenarios!48:48) -> 0.01 | IO7: =interpolate_look_up(IO3,Scenarios!45:45,Scenarios!48:48) -> 0.01 | IP7: =interpolate_look_up(IP3,Scenarios!45:45,Scenarios!48:48) -> 0.01 | IQ7: =interpolate_look_up(IQ3,Scenarios!45:45,Scenarios!48:48) -> 0.01 | IR7: =interpolate_look_up(IR3,Scenarios!45:45,Scenarios!48:48) -> 0.01 | IS7: =interpolate_look_up(IS3,Scenarios!45:45,Scenarios!48:48) -> 0.01 | IT7: =interpolate_look_up(IT3,Scenarios!45:45,Scenarios!48:48) -> 0.01 | IU7: =interpolate_look_up(IU3,Scenarios!45:45,Scenarios!48:48) -> 0.01 | IV7: =interpolate_look_up(IV3,Scenarios!45:45,Scenarios!48:48) -> 0.01 | IW7: =interpolate_look_up(IW3,Scenarios!45:45,Scenarios!48:48) -> 0.01 | IX7: =interpolate_look_up(IX3,Scenarios!45:45,Scenarios!48:48) -> 0.01 | IY7: =interpolate_look_up(IY3,Scenarios!45:45,Scenarios!48:48) -> 0.01 | IZ7: =interpolate_look_up(IZ3,Scenarios!45:45,Scenarios!48:48) -> 0.01 | JA7: =interpolate_look_up(JA3,Scenarios!45:45,Scenarios!48:48) -> 0.01 | JB7: =interpolate_look_up(JB3,Scenarios!45:45,Scenarios!48:48) -> 0.01 | JC7: =interpolate_look_up(JC3,Scenarios!45:45,Scenarios!48:48) -> 0.01 | JD7: =interpolate_look_up(JD3,Scenarios!45:45,Scenarios!48:48) -> 0.01 | JE7: =interpolate_look_up(JE3,Scenarios!45:45,Scenarios!48:48) -> 0.01 | JF7: =interpolate_look_up(JF3,Scenarios!45:45,Scenarios!48:48) -> 0.01 | JG7: =interpolate_look_up(JG3,Scenarios!45:45,Scenarios!48:48) -> 0.01 | JH7: =interpolate_look_up(JH3,Scenarios!45:45,Scenarios!48:48) -> 0.01 | JI7: =interpolate_look_up(JI3,Scenarios!45:45,Scenarios!48:48) -> 0.01 | JJ7: =interpolate_look_up(JJ3,Scenarios!45:45,Scenarios!48:48) -> 0.01 | JK7: =interpolate_look_up(JK3,Scenarios!45:45,Scenarios!48:48) -> 0.01 | JL7: =interpolate_look_up(JL3,Scenarios!45:45,Scenarios!48:48) -> 0.01 | JM7: =interpolate_look_up(JM3,Scenarios!45:45,Scenarios!48:48) -> 0.01 | JN7: =interpolate_look_up(JN3,Scenarios!45:45,Scenarios!48:48) -> 0.01 | JO7: =interpolate_look_up(JO3,Scenarios!45:45,Scenarios!48:48) -> 0.01 | JP7: =interpolate_look_up(JP3,Scenarios!45:45,Scenarios!48:48) -> 0.01 | JQ7: =interpolate_look_up(JQ3,Scenarios!45:45,Scenarios!48:48) -> 0.01 | JR7: =interpolate_look_up(JR3,Scenarios!45:45,Scenarios!48:48) -> 0.01 | JS7: =interpolate_look_up(JS3,Scenarios!45:45,Scenarios!48:48) -> 0.01 | JT7: =interpolate_look_up(JT3,Scenarios!45:45,Scenarios!48:48) -> 0.01 | JU7: =interpolate_look_up(JU3,Scenarios!45:45,Scenarios!48:48) -> 0.01 | JV7: =interpolate_look_up(JV3,Scenarios!45:45,Scenarios!48:48) -> 0.01 | JW7: =interpolate_look_up(JW3,Scenarios!45:45,Scenarios!48:48) -> 0.01 | JX7: =interpolate_look_up(JX3,Scenarios!45:45,Scenarios!48:48) -> 0.01 | JY7: =interpolate_look_up(JY3,Scenarios!45:45,Scenarios!48:48) -> 0.01 | JZ7: =interpolate_look_up(JZ3,Scenarios!45:45,Scenarios!48:48) -> 0.01 | KA7: =interpolate_look_up(KA3,Scenarios!45:45,Scenarios!48:48) -> 0.01 | KB7: =interpolate_look_up(KB3,Scenarios!45:45,Scenarios!48:48) -> 0.01 | KC7: =interpolate_look_up(KC3,Scenarios!45:45,Scenarios!48:48) -> 0.01 | KD7: =interpolate_look_up(KD3,Scenarios!45:45,Scenarios!48:48) -> 0.01 | KE7: =interpolate_look_up(KE3,Scenarios!45:45,Scenarios!48:48) -> 0.01 | KF7: =interpolate_look_up(KF3,Scenarios!45:45,Scenarios!48:48) -> 0.01 | KG7: =interpolate_look_up(KG3,Scenarios!45:45,Scenarios!48:48) -> 0.01 | KH7: =interpolate_look_up(KH3,Scenarios!45:45,Scenarios!48:48) -> 0.01 | KI7: =interpolate_look_up(KI3,Scenarios!45:45,Scenarios!48:48) -> 0.01 | KJ7: =interpolate_look_up(KJ3,Scenarios!45:45,Scenarios!48:48) -> 0.01 | KK7: =interpolate_look_up(KK3,Scenarios!45:45,Scenarios!48:48) -> 0.01 | KL7: =interpolate_look_up(KL3,Scenarios!45:45,Scenarios!48:48) -> 0.01 | KM7: =interpolate_look_up(KM3,Scenarios!45:45,Scenarios!48:48) -> 0.01 | KN7: =interpolate_look_up(KN3,Scenarios!45:45,Scenarios!48:48) -> 0.01 | KO7: =interpolate_look_up(KO3,Scenarios!45:45,Scenarios!48:48) -> 0.01 | KP7: =interpolate_look_up(KP3,Scenarios!45:45,Scenarios!48:48) -> 0.01 | KQ7: =interpolate_look_up(KQ3,Scenarios!45:45,Scenarios!48:48) -> 0.01 | KR7: =interpolate_look_up(KR3,Scenarios!45:45,Scenarios!48:48) -> 0.01 | KS7: =interpolate_look_up(KS3,Scenarios!45:45,Scenarios!48:48) -> 0.01 | KT7: =interpolate_look_up(KT3,Scenarios!45:45,Scenarios!48:48) -> 0.01 | KU7: =interpolate_look_up(KU3,Scenarios!45:45,Scenarios!48:48) -> 0.01 | KV7: =interpolate_look_up(KV3,Scenarios!45:45,Scenarios!48:48) -> 0.01 | KW7: =interpolate_look_up(KW3,Scenarios!45:45,Scenarios!48:48) -> 0.01 | KX7: =interpolate_look_up(KX3,Scenarios!45:45,Scenarios!48:48) -> 0.01 | KY7: =interpolate_look_up(KY3,Scenarios!45:45,Scenarios!48:48) -> 0.01 | KZ7: =interpolate_look_up(KZ3,Scenarios!45:45,Scenarios!48:48) -> 0.01 | LA7: =interpolate_look_up(LA3,Scenarios!45:45,Scenarios!48:48) -> 0.01 | LB7: =interpolate_look_up(LB3,Scenarios!45:45,Scenarios!48:48) -> 0.01 | LC7: =interpolate_look_up(LC3,Scenarios!45:45,Scenarios!48:48) -> 0.01 | LD7: =interpolate_look_up(LD3,Scenarios!45:45,Scenarios!48:48) -> 0.01 | LE7: =interpolate_look_up(LE3,Scenarios!45:45,Scenarios!48:48) -> 0.01 | LF7: =interpolate_look_up(LF3,Scenarios!45:45,Scenarios!48:48) -> 0.01 | LG7: =interpolate_look_up(LG3,Scenarios!45:45,Scenarios!48:48) -> 0.01 | LH7: =interpolate_look_up(LH3,Scenarios!45:45,Scenarios!48:48) -> 0.01 | LI7: =interpolate_look_up(LI3,Scenarios!45:45,Scenarios!48:48) -> 0.01 | LJ7: =interpolate_look_up(LJ3,Scenarios!45:45,Scenarios!48:48) -> 0.01 | LK7: =interpolate_look_up(LK3,Scenarios!45:45,Scenarios!48:48) -> 0.01 | LL7: =interpolate_look_up(LL3,Scenarios!45:45,Scenarios!48:48) -> 0.01 | LM7: =interpolate_look_up(LM3,Scenarios!45:45,Scenarios!48:48) -> 0.01 | LN7: =interpolate_look_up(LN3,Scenarios!45:45,Scenarios!48:48) -> 0.01 | LO7: =interpolate_look_up(LO3,Scenarios!45:45,Scenarios!48:48) -> 0.01 | LP7: =interpolate_look_up(LP3,Scenarios!45:45,Scenarios!48:48) -> 0.01 | LQ7: =interpolate_look_up(LQ3,Scenarios!45:45,Scenarios!48:48) -> 0.01 | LR7: =interpolate_look_up(LR3,Scenarios!45:45,Scenarios!48:48) -> 0.01 | LS7: =interpolate_look_up(LS3,Scenarios!45:45,Scenarios!48:48) -> 0.01 | LT7: =interpolate_look_up(LT3,Scenarios!45:45,Scenarios!48:48) -> 0.01 | LU7: =interpolate_look_up(LU3,Scenarios!45:45,Scenarios!48:48) -> 0.01 | LV7: =interpolate_look_up(LV3,Scenarios!45:45,Scenarios!48:48) -> 0.01 | LW7: =interpolate_look_up(LW3,Scenarios!45:45,Scenarios!48:48) -> 0.01 | LX7: =interpolate_look_up(LX3,Scenarios!45:45,Scenarios!48:48) -> 0.01 | LY7: =interpolate_look_up(LY3,Scenarios!45:45,Scenarios!48:48) -> 0.01 | LZ7: =interpolate_look_up(LZ3,Scenarios!45:45,Scenarios!48:48) -> 0.01 | MA7: =interpolate_look_up(MA3,Scenarios!45:45,Scenarios!48:48) -> 0.01 | MB7: =interpolate_look_up(MB3,Scenarios!45:45,Scenarios!48:48) -> 0.01 | MC7: =interpolate_look_up(MC3,Scenarios!45:45,Scenarios!48:48) -> 0.01 | MD7: =interpolate_look_up(MD3,Scenarios!45:45,Scenarios!48:48) -> 0.01 | ME7: =interpolate_look_up(ME3,Scenarios!45:45,Scenarios!48:48) -> 0.01 | MF7: =interpolate_look_up(MF3,Scenarios!45:45,Scenarios!48:48) -> 0.01 | MG7: =interpolate_look_up(MG3,Scenarios!45:45,Scenarios!48:48) -> 0.01 | MH7: =interpolate_look_up(MH3,Scenarios!45:45,Scenarios!48:48) -> 0.01 | MI7: =interpolate_look_up(MI3,Scenarios!45:45,Scenarios!48:48) -> 0.01 | MJ7: =interpolate_look_up(MJ3,Scenarios!45:45,Scenarios!48:48) -> 0.01 | MK7: =interpolate_look_up(MK3,Scenarios!45:45,Scenarios!48:48) -> 0.01 | ML7: =interpolate_look_up(ML3,Scenarios!45:45,Scenarios!48:48) -> 0.01 | MM7: =interpolate_look_up(MM3,Scenarios!45:45,Scenarios!48:48) -> 0.01 | MN7: =interpolate_look_up(MN3,Scenarios!45:45,Scenarios!48:48) -> 0.01 | MO7: =interpolate_look_up(MO3,Scenarios!45:45,Scenarios!48:48) -> 0.01 | MP7: =interpolate_look_up(MP3,Scenarios!45:45,Scenarios!48:48) -> 0.01 | MQ7: =interpolate_look_up(MQ3,Scenarios!45:45,Scenarios!48:48) -> 0.01 | MR7: =interpolate_look_up(MR3,Scenarios!45:45,Scenarios!48:48) -> 0.01 | MS7: =interpolate_look_up(MS3,Scenarios!45:45,Scenarios!48:48) -> 0.01 | MT7: =interpolate_look_up(MT3,Scenarios!45:45,Scenarios!48:48) -> 0.01 | MU7: =interpolate_look_up(MU3,Scenarios!45:45,Scenarios!48:48) -> 0.01 | MV7: =interpolate_look_up(MV3,Scenarios!45:45,Scenarios!48:48) -> 0.01 | MW7: =interpolate_look_up(MW3,Scenarios!45:45,Scenarios!48:48) -> 0.01 | MX7: =interpolate_look_up(MX3,Scenarios!45:45,Scenarios!48:48) -> 0.01 | MY7: =interpolate_look_up(MY3,Scenarios!45:45,Scenarios!48:48) -> 0.01 | MZ7: =interpolate_look_up(MZ3,Scenarios!45:45,Scenarios!48:48) -> 0.01 | NA7: =interpolate_look_up(NA3,Scenarios!45:45,Scenarios!48:48) -> 0.01 | NB7: =interpolate_look_up(NB3,Scenarios!45:45,Scenarios!48:48) -> 0.01 | NC7: =interpolate_look_up(NC3,Scenarios!45:45,Scenarios!48:48) -> 0.01 | ND7: =interpolate_look_up(ND3,Scenarios!45:45,Scenarios!48:48) -> 0.01 | NE7: =interpolate_look_up(NE3,Scenarios!45:45,Scenarios!48:48) -> 0.01 | NF7: =interpolate_look_up(NF3,Scenarios!45:45,Scenarios!48:48) -> 0.01 | NG7: =interpolate_look_up(NG3,Scenarios!45:45,Scenarios!48:48) -> 0.01 | NH7: =interpolate_look_up(NH3,Scenarios!45:45,Scenarios!48:48) -> 0.01 | NI7: =interpolate_look_up(NI3,Scenarios!45:45,Scenarios!48:48) -> 0.01 | NJ7: =interpolate_look_up(NJ3,Scenarios!45:45,Scenarios!48:48) -> 0.01 | NK7: =interpolate_look_up(NK3,Scenarios!45:45,Scenarios!48:48) -> 0.01 | NL7: =interpolate_look_up(NL3,Scenarios!45:45,Scenarios!48:48) -> 0.01 | NM7: =interpolate_look_up(NM3,Scenarios!45:45,Scenarios!48:48) -> 0.01 | NN7: =interpolate_look_up(NN3,Scenarios!45:45,Scenarios!48:48) -> 0.01 | NO7: =interpolate_look_up(NO3,Scenarios!45:45,Scenarios!48:48) -> 0.01 | NP7: =interpolate_look_up(NP3,Scenarios!45:45,Scenarios!48:48) -> 0.01 | NQ7: =interpolate_look_up(NQ3,Scenarios!45:45,Scenarios!48:48) -> 0.01 | NR7: =interpolate_look_up(NR3,Scenarios!45:45,Scenarios!48:48) -> 0.01 | NS7: =interpolate_look_up(NS3,Scenarios!45:45,Scenarios!48:48) -> 0.01 | NT7: =interpolate_look_up(NT3,Scenarios!45:45,Scenarios!48:48) -> 0.01 | NU7: =interpolate_look_up(NU3,Scenarios!45:45,Scenarios!48:48) -> 0.01 | NV7: =interpolate_look_up(NV3,Scenarios!45:45,Scenarios!48:48) -> 0.01 | NW7: =interpolate_look_up(NW3,Scenarios!45:45,Scenarios!48:48) -> 0.01 | NX7: =interpolate_look_up(NX3,Scenarios!45:45,Scenarios!48:48) -> 0.01 | NY7: =interpolate_look_up(NY3,Scenarios!45:45,Scenarios!48:48) -> 0.01 | NZ7: =interpolate_look_up(NZ3,Scenarios!45:45,Scenarios!48:48) -> 0.01 | OA7: =interpolate_look_up(OA3,Scenarios!45:45,Scenarios!48:48) -> 0.01 | OB7: =interpolate_look_up(OB3,Scenarios!45:45,Scenarios!48:48) -> 0.01 | OC7: =interpolate_look_up(OC3,Scenarios!45:45,Scenarios!48:48) -> 0.01 | OD7: =interpolate_look_up(OD3,Scenarios!45:45,Scenarios!48:48) -> 0.01 | OE7: =interpolate_look_up(OE3,Scenarios!45:45,Scenarios!48:48) -> 0.01 | OF7: =interpolate_look_up(OF3,Scenarios!45:45,Scenarios!48:48) -> 0.01 | OG7: =interpolate_look_up(OG3,Scenarios!45:45,Scenarios!48:48) -> 0.01 | OH7: =interpolate_look_up(OH3,Scenarios!45:45,Scenarios!48:48) -> 0.01 | OI7: =interpolate_look_up(OI3,Scenarios!45:45,Scenarios!48:48) -> 0.01 | OJ7: =interpolate_look_up(OJ3,Scenarios!45:45,Scenarios!48:48) -> 0.01 | OK7: =interpolate_look_up(OK3,Scenarios!45:45,Scenarios!48:48) -> 0.01 | OL7: =interpolate_look_up(OL3,Scenarios!45:45,Scenarios!48:48) -> 0.01 | OM7: =interpolate_look_up(OM3,Scenarios!45:45,Scenarios!48:48) -> 0.01 | ON7: =interpolate_look_up(ON3,Scenarios!45:45,Scenarios!48:48) -> 0.01 | OO7: =interpolate_look_up(OO3,Scenarios!45:45,Scenarios!48:48) -> 0.01 | OP7: =interpolate_look_up(OP3,Scenarios!45:45,Scenarios!48:48) -> 0.01 | OQ7: =interpolate_look_up(OQ3,Scenarios!45:45,Scenarios!48:48) -> 0.01 | OR7: =interpolate_look_up(OR3,Scenarios!45:45,Scenarios!48:48) -> 0.01 | OS7: =interpolate_look_up(OS3,Scenarios!45:45,Scenarios!48:48) -> 0.01 | OT7: =interpolate_look_up(OT3,Scenarios!45:45,Scenarios!48:48) -> 0.01 | OU7: =interpolate_look_up(OU3,Scenarios!45:45,Scenarios!48:48) -> 0.01 | OV7: =interpolate_look_up(OV3,Scenarios!45:45,Scenarios!48:48) -> 0.01 | OW7: =interpolate_look_up(OW3,Scenarios!45:45,Scenarios!48:48) -> 0.01 | OX7: =interpolate_look_up(OX3,Scenarios!45:45,Scenarios!48:48) -> 0.01 | OY7: =interpolate_look_up(OY3,Scenarios!45:45,Scenarios!48:48) -> 0.01 | OZ7: =interpolate_look_up(OZ3,Scenarios!45:45,Scenarios!48:48) -> 0.01 | PA7: =interpolate_look_up(PA3,Scenarios!45:45,Scenarios!48:48) -> 0.01 | PB7: =interpolate_look_up(PB3,Scenarios!45:45,Scenarios!48:48) -> 0.01 | PC7: =interpolate_look_up(PC3,Scenarios!45:45,Scenarios!48:48) -> 0.01 | PD7: =interpolate_look_up(PD3,Scenarios!45:45,Scenarios!48:48) -> 0.01 | PE7: =interpolate_look_up(PE3,Scenarios!45:45,Scenarios!48:48) -> 0.01 | PF7: =interpolate_look_up(PF3,Scenarios!45:45,Scenarios!48:48) -> 0.01 | PG7: =interpolate_look_up(PG3,Scenarios!45:45,Scenarios!48:48) -> 0.01 | PH7: =interpolate_look_up(PH3,Scenarios!45:45,Scenarios!48:48) -> 0.01 | PI7: =interpolate_look_up(PI3,Scenarios!45:45,Scenarios!48:48) -> 0.01 | PJ7: =interpolate_look_up(PJ3,Scenarios!45:45,Scenarios!48:48) -> 0.01 | PK7: =interpolate_look_up(PK3,Scenarios!45:45,Scenarios!48:48) -> 0.01 | PL7: =interpolate_look_up(PL3,Scenarios!45:45,Scenarios!48:48) -> 0.01 | PM7: =interpolate_look_up(PM3,Scenarios!45:45,Scenarios!48:48) -> 0.01 | PN7: =interpolate_look_up(PN3,Scenarios!45:45,Scenarios!48:48) -> 0.01 | PO7: =interpolate_look_up(PO3,Scenarios!45:45,Scenarios!48:48) -> 0.01 | PP7: =interpolate_look_up(PP3,Scenarios!45:45,Scenarios!48:48) -> 0.01 | PQ7: =interpolate_look_up(PQ3,Scenarios!45:45,Scenarios!48:48) -> 0.01 | PR7: =interpolate_look_up(PR3,Scenarios!45:45,Scenarios!48:48) -> 0.01 | PS7: =interpolate_look_up(PS3,Scenarios!45:45,Scenarios!48:48) -> 0.01 | PT7: =interpolate_look_up(PT3,Scenarios!45:45,Scenarios!48:48) -> 0.01 | PU7: =interpolate_look_up(PU3,Scenarios!45:45,Scenarios!48:48) -> 0.01 | PV7: =interpolate_look_up(PV3,Scenarios!45:45,Scenarios!48:48) -> 0.01 | PW7: =interpolate_look_up(PW3,Scenarios!45:45,Scenarios!48:48) -> 0.01 | PX7: =interpolate_look_up(PX3,Scenarios!45:45,Scenarios!48:48) -> 0.01 | PY7: =interpolate_look_up(PY3,Scenarios!45:45,Scenarios!48:48) -> 0.01 | PZ7: =interpolate_look_up(PZ3,Scenarios!45:45,Scenarios!48:48) -> 0.01 | QA7: =interpolate_look_up(QA3,Scenarios!45:45,Scenarios!48:48) -> 0.01 | QB7: =interpolate_look_up(QB3,Scenarios!45:45,Scenarios!48:48) -> 0.01 | QC7: =interpolate_look_up(QC3,Scenarios!45:45,Scenarios!48:48) -> 0.01 | QD7: =interpolate_look_up(QD3,Scenarios!45:45,Scenarios!48:48) -> 0.01 | QE7: =interpolate_look_up(QE3,Scenarios!45:45,Scenarios!48:48) -> 0.01 | QF7: =interpolate_look_up(QF3,Scenarios!45:45,Scenarios!48:48) -> 0.01 | QG7: =interpolate_look_up(QG3,Scenarios!45:45,Scenarios!48:48) -> 0.01 | QH7: =interpolate_look_up(QH3,Scenarios!45:45,Scenarios!48:48) -> 0.01 | QI7: =interpolate_look_up(QI3,Scenarios!45:45,Scenarios!48:48) -> 0.01 | QJ7: =interpolate_look_up(QJ3,Scenarios!45:45,Scenarios!48:48) -> 0.01 | QK7: =interpolate_look_up(QK3,Scenarios!45:45,Scenarios!48:48) -> 0.01 | QL7: =interpolate_look_up(QL3,Scenarios!45:45,Scenarios!48:48) -> 0.01 | QM7: =interpolate_look_up(QM3,Scenarios!45:45,Scenarios!48:48) -> 0.01 | QN7: =interpolate_look_up(QN3,Scenarios!45:45,Scenarios!48:48) -> 0.01 | QO7: =interpolate_look_up(QO3,Scenarios!45:45,Scenarios!48:48) -> 0.01 | QP7: =interpolate_look_up(QP3,Scenarios!45:45,Scenarios!48:48) -> 0.01 | QQ7: =interpolate_look_up(QQ3,Scenarios!45:45,Scenarios!48:48) -> 0.01 | QR7: =interpolate_look_up(QR3,Scenarios!45:45,Scenarios!48:48) -> 0.01 | QS7: =interpolate_look_up(QS3,Scenarios!45:45,Scenarios!48:48) -> 0.01 | QT7: =interpolate_look_up(QT3,Scenarios!45:45,Scenarios!48:48) -> 0.01 | QU7: =interpolate_look_up(QU3,Scenarios!45:45,Scenarios!48:48) -> 0.01 | QV7: =interpolate_look_up(QV3,Scenarios!45:45,Scenarios!48:48) -> 0.01 | QW7: =interpolate_look_up(QW3,Scenarios!45:45,Scenarios!48:48) -> 0.01 | QX7: =interpolate_look_up(QX3,Scenarios!45:45,Scenarios!48:48) -> 0.01 | QY7: =interpolate_look_up(QY3,Scenarios!45:45,Scenarios!48:48) -> 0.01 | QZ7: =interpolate_look_up(QZ3,Scenarios!45:45,Scenarios!48:48) -> 0.01 | RA7: =interpolate_look_up(RA3,Scenarios!45:45,Scenarios!48:48) -> 0.01 | RB7: =interpolate_look_up(RB3,Scenarios!45:45,Scenarios!48:48) -> 0.01 | RC7: =interpolate_look_up(RC3,Scenarios!45:45,Scenarios!48:48) -> 0.01 | RD7: =interpolate_look_up(RD3,Scenarios!45:45,Scenarios!48:48) -> 0.01 | RE7: =interpolate_look_up(RE3,Scenarios!45:45,Scenarios!48:48) -> 0.01 | RF7: =interpolate_look_up(RF3,Scenarios!45:45,Scenarios!48:48) -> 0.01 | RG7: =interpolate_look_up(RG3,Scenarios!45:45,Scenarios!48:48) -> 0.01 | RH7: =interpolate_look_up(RH3,Scenarios!45:45,Scenarios!48:48) -> 0.01 | RI7: =interpolate_look_up(RI3,Scenarios!45:45,Scenarios!48:48) -> 0.01 | RJ7: =interpolate_look_up(RJ3,Scenarios!45:45,Scenarios!48:48) -> 0.01 | RK7: =interpolate_look_up(RK3,Scenarios!45:45,Scenarios!48:48) -> 0.01 | RL7: =interpolate_look_up(RL3,Scenarios!45:45,Scenarios!48:48) -> 0.01 | RM7: =interpolate_look_up(RM3,Scenarios!45:45,Scenarios!48:48) -> 0.01 | RN7: =interpolate_look_up(RN3,Scenarios!45:45,Scenarios!48:48) -> 0.01 | RO7: =interpolate_look_up(RO3,Scenarios!45:45,Scenarios!48:48) -> 0.01 | RP7: =interpolate_look_up(RP3,Scenarios!45:45,Scenarios!48:48) -> 0.01 | RQ7: =interpolate_look_up(RQ3,Scenarios!45:45,Scenarios!48:48) -> 0.01 | RR7: =interpolate_look_up(RR3,Scenarios!45:45,Scenarios!48:48) -> 0.01 | RS7: =interpolate_look_up(RS3,Scenarios!45:45,Scenarios!48:48) -> 0.01 | RT7: =interpolate_look_up(RT3,Scenarios!45:45,Scenarios!48:48) -> 0.01 | RU7: =interpolate_look_up(RU3,Scenarios!45:45,Scenarios!48:48) -> 0.01 | RV7: =interpolate_look_up(RV3,Scenarios!45:45,Scenarios!48:48) -> 0.01 | RW7: =interpolate_look_up(RW3,Scenarios!45:45,Scenarios!48:48) -> 0.01 | RX7: =interpolate_look_up(RX3,Scenarios!45:45,Scenarios!48:48) -> 0.01 | RY7: =interpolate_look_up(RY3,Scenarios!45:45,Scenarios!48:48) -> 0.01 | RZ7: =interpolate_look_up(RZ3,Scenarios!45:45,Scenarios!48:48) -> 0.01 | SA7: =interpolate_look_up(SA3,Scenarios!45:45,Scenarios!48:48) -> 0.01 | SB7: =interpolate_look_up(SB3,Scenarios!45:45,Scenarios!48:48) -> 0.01 | SC7: =interpolate_look_up(SC3,Scenarios!45:45,Scenarios!48:48) -> 0.01 | SD7: =interpolate_look_up(SD3,Scenarios!45:45,Scenarios!48:48) -> 0.01 | SE7: =interpolate_look_up(SE3,Scenarios!45:45,Scenarios!48:48) -> 0.01 | SF7: =interpolate_look_up(SF3,Scenarios!45:45,Scenarios!48:48) -> 0.01 | SG7: =interpolate_look_up(SG3,Scenarios!45:45,Scenarios!48:48) -> 0.01 | SH7: =interpolate_look_up(SH3,Scenarios!45:45,Scenarios!48:48) -> 0.01 | SI7: =interpolate_look_up(SI3,Scenarios!45:45,Scenarios!48:48) -> 0.01 | SJ7: =interpolate_look_up(SJ3,Scenarios!45:45,Scenarios!48:48) -> 0.01 | SK7: =interpolate_look_up(SK3,Scenarios!45:45,Scenarios!48:48) -> 0.01 | SL7: =interpolate_look_up(SL3,Scenarios!45:45,Scenarios!48:48) -> 0.01 | SM7: =interpolate_look_up(SM3,Scenarios!45:45,Scenarios!48:48) -> 0.01 | SN7: =interpolate_look_up(SN3,Scenarios!45:45,Scenarios!48:48) -> 0.01 | SO7: =interpolate_look_up(SO3,Scenarios!45:45,Scenarios!48:48) -> 0.01 | SP7: =interpolate_look_up(SP3,Scenarios!45:45,Scenarios!48:48) -> 0.01 | SQ7: =interpolate_look_up(SQ3,Scenarios!45:45,Scenarios!48:48) -> 0.01 | SR7: =interpolate_look_up(SR3,Scenarios!45:45,Scenarios!48:48) -> 0.01 | SS7: =interpolate_look_up(SS3,Scenarios!45:45,Scenarios!48:48) -> 0.01 | ST7: =interpolate_look_up(ST3,Scenarios!45:45,Scenarios!48:48) -> 0.01 | SU7: =interpolate_look_up(SU3,Scenarios!45:45,Scenarios!48:48) -> 0.01 | SV7: =interpolate_look_up(SV3,Scenarios!45:45,Scenarios!48:48) -> 0.01 | SW7: =interpolate_look_up(SW3,Scenarios!45:45,Scenarios!48:48) -> 0.01 | SX7: =interpolate_look_up(SX3,Scenarios!45:45,Scenarios!48:48) -> 0.01 | SY7: =interpolate_look_up(SY3,Scenarios!45:45,Scenarios!48:48) -> 0.01 | SZ7: =interpolate_look_up(SZ3,Scenarios!45:45,Scenarios!48:48) -> 0.01 | TA7: =interpolate_look_up(TA3,Scenarios!45:45,Scenarios!48:48) -> 0.01 | TB7: =interpolate_look_up(TB3,Scenarios!45:45,Scenarios!48:48) -> 0.01 | TC7: =interpolate_look_up(TC3,Scenarios!45:45,Scenarios!48:48) -> 0.01
D8: Dividend Payout (Money Extracted) | K8: =1-K7/K6 -> 0.6666666667 | L8: =1-L7/L6 -> 0.6666666667 | M8: 0.6666666667 | N8: 0.6666666667 | O8: 0.6666666667 | P8: 0.6666666667 | Q8: 0.6666666667 | R8: 0.6666666667 | S8: 0.6666666667 | T8: 0.6666666667 | U8: 0.6666666667 | V8: 0.6666666667 | W8: 0.6666666667 | X8: 0.6666666667 | Y8: 0.7727272727 | Z8: 0.7928818059 | AA8: 0.8112490361 | AB8: 0.8279874614 | AC8: 0.843241524 | AD8: 0.8571428571 | AE8: 0.8571428571 | AF8: 0.8571428571 | AG8: 0.8571428571 | AH8: 0.8571428571 | AI8: 0.8571428571 | AJ8: 0.8571428571 | AK8: 0.8571428571 | AL8: 0.8571428571 | AM8: 0.8571428571 | AN8: 0.8571428571 | AO8: 0.8571428571 | AP8: 0.8571428571 | AQ8: 0.8571428571 | AR8: 0.8571428571 | AS8: 0.8571428571 | AT8: 0.8571428571 | AU8: 0.8571428571 | AV8: 0.8571428571 | AW8: 0.8571428571 | AX8: 0.8571428571 | AY8: 0.8571428571 | AZ8: 0.8571428571 | BA8: 0.8571428571 | BB8: 0.8571428571 | BC8: 0.8571428571 | BD8: 0.8571428571 | BE8: 0.8571428571 | BF8: 0.8571428571 | BG8: 0.8571428571 | BH8: 0.8571428571 | BI8: 0.8571428571 | BJ8: 0.8571428571 | BK8: 0.8571428571 | BL8: 0.8571428571 | BM8: 0.8571428571 | BN8: 0.8571428571 | BO8: 0.8571428571 | BP8: 0.8571428571 | BQ8: 0.8571428571 | BR8: 0.8571428571 | BS8: 0.8571428571 | BT8: 0.8571428571 | BU8: 0.8571428571 | BV8: 0.8571428571 | BW8: 0.8571428571 | BX8: =1-BX7/BX6 -> 0.8571428571 | BY8: 0.8571428571 | BZ8: 0.8571428571 | CA8: 0.8571428571 | CB8: 0.8571428571 | CC8: 0.8571428571 | CD8: 0.8571428571 | CE8: 0.8571428571 | CF8: 0.8571428571 | CG8: 0.8571428571 | CH8: 0.8571428571 | CI8: 0.8571428571 | CJ8: 0.8571428571 | CK8: 0.8571428571 | CL8: 0.8571428571 | CM8: 0.8571428571 | CN8: 0.8571428571 | CO8: 0.8571428571 | CP8: 0.8571428571 | CQ8: 0.8571428571 | CR8: 0.8571428571 | CS8: 0.8571428571 | CT8: 0.8571428571 | CU8: 0.8571428571 | CV8: 0.8571428571 | CW8: 0.8571428571 | CX8: 0.8571428571 | CY8: 0.8571428571 | CZ8: 0.8571428571 | DA8: 0.8571428571 | DB8: 0.8571428571 | DC8: 0.8571428571 | DD8: 0.8571428571 | DE8: 0.8571428571 | DF8: 0.8571428571 | DG8: 0.8571428571 | DH8: 0.8571428571 | DI8: 0.8571428571 | DJ8: 0.8571428571 | DK8: 0.8571428571 | DL8: 0.8571428571 | DM8: 0.8571428571 | DN8: 0.8571428571 | DO8: 0.8571428571 | DP8: 0.8571428571 | DQ8: 0.8571428571 | DR8: 0.8571428571 | DS8: 0.8571428571 | DT8: 0.8571428571 | DU8: 0.8571428571 | DV8: 0.8571428571 | DW8: 0.8571428571 | DX8: 0.8571428571 | DY8: 0.8571428571 | DZ8: 0.8571428571 | EA8: 0.8571428571 | EB8: 0.8571428571 | EC8: 0.8571428571 | ED8: 0.8571428571 | EE8: 0.8571428571 | EF8: 0.8571428571 | EG8: 0.8571428571 | EH8: 0.8571428571 | EI8: 0.8571428571 | EJ8: =1-EJ7/EJ6 -> 0.8571428571 | EK8: 0.8571428571 | EL8: 0.8571428571 | EM8: 0.8571428571 | EN8: 0.8571428571 | EO8: 0.8571428571 | EP8: 0.8571428571 | EQ8: 0.8571428571 | ER8: 0.8571428571 | ES8: 0.8571428571 | ET8: 0.8571428571 | EU8: 0.8571428571 | EV8: 0.8571428571 | EW8: 0.8571428571 | EX8: 0.8571428571 | EY8: 0.8571428571 | EZ8: 0.8571428571 | FA8: 0.8571428571 | FB8: 0.8571428571 | FC8: 0.8571428571 | FD8: 0.8571428571 | FE8: 0.8571428571 | FF8: 0.8571428571 | FG8: 0.8571428571 | FH8: 0.8571428571 | FI8: 0.8571428571 | FJ8: 0.8571428571 | FK8: 0.8571428571 | FL8: 0.8571428571 | FM8: 0.8571428571 | FN8: 0.8571428571 | FO8: 0.8571428571 | FP8: 0.8571428571 | FQ8: 0.8571428571 | FR8: 0.8571428571 | FS8: 0.8571428571 | FT8: 0.8571428571 | FU8: 0.8571428571 | FV8: 0.8571428571 | FW8: 0.8571428571 | FX8: 0.8571428571 | FY8: 0.8571428571 | FZ8: 0.8571428571 | GA8: 0.8571428571 | GB8: 0.8571428571 | GC8: 0.8571428571 | GD8: 0.8571428571 | GE8: 0.8571428571 | GF8: 0.8571428571 | GG8: 0.8571428571 | GH8: 0.8571428571 | GI8: 0.8571428571 | GJ8: 0.8571428571 | GK8: 0.8571428571 | GL8: 0.8571428571 | GM8: 0.8571428571 | GN8: 0.8571428571 | GO8: 0.8571428571 | GP8: 0.8571428571 | GQ8: 0.8571428571 | GR8: 0.8571428571 | GS8: 0.8571428571 | GT8: 0.8571428571 | GU8: 0.8571428571 | GV8: =1-GV7/GV6 -> 0.8571428571 | GW8: 0.8571428571 | GX8: 0.8571428571 | GY8: 0.8571428571 | GZ8: 0.8571428571 | HA8: 0.8571428571 | HB8: 0.8571428571 | HC8: 0.8571428571 | HD8: 0.8571428571 | HE8: 0.8571428571 | HF8: 0.8571428571 | HG8: 0.8571428571 | HH8: 0.8571428571 | HI8: 0.8571428571 | HJ8: 0.8571428571 | HK8: 0.8571428571 | HL8: 0.8571428571 | HM8: 0.8571428571 | HN8: 0.8571428571 | HO8: 0.8571428571 | HP8: 0.8571428571 | HQ8: 0.8571428571 | HR8: 0.8571428571 | HS8: 0.8571428571 | HT8: 0.8571428571 | HU8: 0.8571428571 | HV8: 0.8571428571 | HW8: 0.8571428571 | HX8: 0.8571428571 | HY8: 0.8571428571 | HZ8: 0.8571428571 | IA8: 0.8571428571 | IB8: 0.8571428571 | IC8: 0.8571428571 | ID8: 0.8571428571 | IE8: 0.8571428571 | IF8: 0.8571428571 | IG8: 0.8571428571 | IH8: 0.8571428571 | II8: 0.8571428571 | IJ8: 0.8571428571 | IK8: 0.8571428571 | IL8: 0.8571428571 | IM8: 0.8571428571 | IN8: 0.8571428571 | IO8: 0.8571428571 | IP8: 0.8571428571 | IQ8: 0.8571428571 | IR8: 0.8571428571 | IS8: 0.8571428571 | IT8: 0.8571428571 | IU8: 0.8571428571 | IV8: 0.8571428571 | IW8: 0.8571428571 | IX8: 0.8571428571 | IY8: 0.8571428571 | IZ8: 0.8571428571 | JA8: 0.8571428571 | JB8: 0.8571428571 | JC8: 0.8571428571 | JD8: 0.8571428571 | JE8: 0.8571428571 | JF8: 0.8571428571 | JG8: 0.8571428571 | JH8: =1-JH7/JH6 -> 0.8571428571 | JI8: 0.8571428571 | JJ8: 0.8571428571 | JK8: 0.8571428571 | JL8: 0.8571428571 | JM8: 0.8571428571 | JN8: 0.8571428571 | JO8: 0.8571428571 | JP8: 0.8571428571 | JQ8: 0.8571428571 | JR8: 0.8571428571 | JS8: 0.8571428571 | JT8: 0.8571428571 | JU8: 0.8571428571 | JV8: 0.8571428571 | JW8: 0.8571428571 | JX8: 0.8571428571 | JY8: 0.8571428571 | JZ8: 0.8571428571 | KA8: 0.8571428571 | KB8: 0.8571428571 | KC8: 0.8571428571 | KD8: 0.8571428571 | KE8: 0.8571428571 | KF8: 0.8571428571 | KG8: 0.8571428571 | KH8: 0.8571428571 | KI8: 0.8571428571 | KJ8: 0.8571428571 | KK8: 0.8571428571 | KL8: 0.8571428571 | KM8: 0.8571428571 | KN8: 0.8571428571 | KO8: 0.8571428571 | KP8: 0.8571428571 | KQ8: 0.8571428571 | KR8: 0.8571428571 | KS8: 0.8571428571 | KT8: 0.8571428571 | KU8: 0.8571428571 | KV8: 0.8571428571 | KW8: 0.8571428571 | KX8: =1-KX7/KX6 -> 0.8571428571 | KY8: =1-KY7/KY6 -> 0.8571428571 | KZ8: =1-KZ7/KZ6 -> 0.8571428571 | LA8: =1-LA7/LA6 -> 0.8571428571 | LB8: =1-LB7/LB6 -> 0.8571428571 | LC8: =1-LC7/LC6 -> 0.8571428571 | LD8: =1-LD7/LD6 -> 0.8571428571 | LE8: =1-LE7/LE6 -> 0.8571428571 | LF8: =1-LF7/LF6 -> 0.8571428571 | LG8: =1-LG7/LG6 -> 0.8571428571 | LH8: =1-LH7/LH6 -> 0.8571428571 | LI8: =1-LI7/LI6 -> 0.8571428571 | LJ8: =1-LJ7/LJ6 -> 0.8571428571 | LK8: =1-LK7/LK6 -> 0.8571428571 | LL8: =1-LL7/LL6 -> 0.8571428571 | LM8: =1-LM7/LM6 -> 0.8571428571 | LN8: =1-LN7/LN6 -> 0.8571428571 | LO8: =1-LO7/LO6 -> 0.8571428571 | LP8: =1-LP7/LP6 -> 0.8571428571 | LQ8: =1-LQ7/LQ6 -> 0.8571428571 | LR8: =1-LR7/LR6 -> 0.8571428571 | LS8: =1-LS7/LS6 -> 0.8571428571 | LT8: =1-LT7/LT6 -> 0.8571428571 | LU8: =1-LU7/LU6 -> 0.8571428571 | LV8: =1-LV7/LV6 -> 0.8571428571 | LW8: =1-LW7/LW6 -> 0.8571428571 | LX8: =1-LX7/LX6 -> 0.8571428571 | LY8: =1-LY7/LY6 -> 0.8571428571 | LZ8: =1-LZ7/LZ6 -> 0.8571428571 | MA8: =1-MA7/MA6 -> 0.8571428571 | MB8: =1-MB7/MB6 -> 0.8571428571 | MC8: =1-MC7/MC6 -> 0.8571428571 | MD8: =1-MD7/MD6 -> 0.8571428571 | ME8: =1-ME7/ME6 -> 0.8571428571 | MF8: =1-MF7/MF6 -> 0.8571428571 | MG8: =1-MG7/MG6 -> 0.8571428571 | MH8: =1-MH7/MH6 -> 0.8571428571 | MI8: =1-MI7/MI6 -> 0.8571428571 | MJ8: =1-MJ7/MJ6 -> 0.8571428571 | MK8: =1-MK7/MK6 -> 0.8571428571 | ML8: =1-ML7/ML6 -> 0.8571428571 | MM8: =1-MM7/MM6 -> 0.8571428571 | MN8: =1-MN7/MN6 -> 0.8571428571 | MO8: =1-MO7/MO6 -> 0.8571428571 | MP8: =1-MP7/MP6 -> 0.8571428571 | MQ8: =1-MQ7/MQ6 -> 0.8571428571 | MR8: =1-MR7/MR6 -> 0.8571428571 | MS8: =1-MS7/MS6 -> 0.8571428571 | MT8: =1-MT7/MT6 -> 0.8571428571 | MU8: =1-MU7/MU6 -> 0.8571428571 | MV8: =1-MV7/MV6 -> 0.8571428571 | MW8: =1-MW7/MW6 -> 0.8571428571 | MX8: =1-MX7/MX6 -> 0.8571428571 | MY8: =1-MY7/MY6 -> 0.8571428571 | MZ8: =1-MZ7/MZ6 -> 0.8571428571 | NA8: =1-NA7/NA6 -> 0.8571428571 | NB8: =1-NB7/NB6 -> 0.8571428571 | NC8: =1-NC7/NC6 -> 0.8571428571 | ND8: =1-ND7/ND6 -> 0.8571428571 | NE8: =1-NE7/NE6 -> 0.8571428571 | NF8: =1-NF7/NF6 -> 0.8571428571 | NG8: =1-NG7/NG6 -> 0.8571428571 | NH8: =1-NH7/NH6 -> 0.8571428571 | NI8: =1-NI7/NI6 -> 0.8571428571 | NJ8: =1-NJ7/NJ6 -> 0.8571428571 | NK8: =1-NK7/NK6 -> 0.8571428571 | NL8: =1-NL7/NL6 -> 0.8571428571 | NM8: =1-NM7/NM6 -> 0.8571428571 | NN8: =1-NN7/NN6 -> 0.8571428571 | NO8: =1-NO7/NO6 -> 0.8571428571 | NP8: =1-NP7/NP6 -> 0.8571428571 | NQ8: =1-NQ7/NQ6 -> 0.8571428571 | NR8: =1-NR7/NR6 -> 0.8571428571 | NS8: =1-NS7/NS6 -> 0.8571428571 | NT8: =1-NT7/NT6 -> 0.8571428571 | NU8: =1-NU7/NU6 -> 0.8571428571 | NV8: =1-NV7/NV6 -> 0.8571428571 | NW8: =1-NW7/NW6 -> 0.8571428571 | NX8: =1-NX7/NX6 -> 0.8571428571 | NY8: =1-NY7/NY6 -> 0.8571428571 | NZ8: =1-NZ7/NZ6 -> 0.8571428571 | OA8: =1-OA7/OA6 -> 0.8571428571 | OB8: =1-OB7/OB6 -> 0.8571428571 | OC8: =1-OC7/OC6 -> 0.8571428571 | OD8: =1-OD7/OD6 -> 0.8571428571 | OE8: =1-OE7/OE6 -> 0.8571428571 | OF8: =1-OF7/OF6 -> 0.8571428571 | OG8: =1-OG7/OG6 -> 0.8571428571 | OH8: =1-OH7/OH6 -> 0.8571428571 | OI8: =1-OI7/OI6 -> 0.8571428571 | OJ8: =1-OJ7/OJ6 -> 0.8571428571 | OK8: =1-OK7/OK6 -> 0.8571428571 | OL8: =1-OL7/OL6 -> 0.8571428571 | OM8: =1-OM7/OM6 -> 0.8571428571 | ON8: =1-ON7/ON6 -> 0.8571428571 | OO8: =1-OO7/OO6 -> 0.8571428571 | OP8: =1-OP7/OP6 -> 0.8571428571 | OQ8: =1-OQ7/OQ6 -> 0.8571428571 | OR8: =1-OR7/OR6 -> 0.8571428571 | OS8: =1-OS7/OS6 -> 0.8571428571 | OT8: =1-OT7/OT6 -> 0.8571428571 | OU8: =1-OU7/OU6 -> 0.8571428571 | OV8: =1-OV7/OV6 -> 0.8571428571 | OW8: =1-OW7/OW6 -> 0.8571428571 | OX8: =1-OX7/OX6 -> 0.8571428571 | OY8: =1-OY7/OY6 -> 0.8571428571 | OZ8: =1-OZ7/OZ6 -> 0.8571428571 | PA8: =1-PA7/PA6 -> 0.8571428571 | PB8: =1-PB7/PB6 -> 0.8571428571 | PC8: =1-PC7/PC6 -> 0.8571428571 | PD8: =1-PD7/PD6 -> 0.8571428571 | PE8: =1-PE7/PE6 -> 0.8571428571 | PF8: =1-PF7/PF6 -> 0.8571428571 | PG8: =1-PG7/PG6 -> 0.8571428571 | PH8: =1-PH7/PH6 -> 0.8571428571 | PI8: =1-PI7/PI6 -> 0.8571428571 | PJ8: =1-PJ7/PJ6 -> 0.8571428571 | PK8: =1-PK7/PK6 -> 0.8571428571 | PL8: =1-PL7/PL6 -> 0.8571428571 | PM8: =1-PM7/PM6 -> 0.8571428571 | PN8: =1-PN7/PN6 -> 0.8571428571 | PO8: =1-PO7/PO6 -> 0.8571428571 | PP8: =1-PP7/PP6 -> 0.8571428571 | PQ8: =1-PQ7/PQ6 -> 0.8571428571 | PR8: =1-PR7/PR6 -> 0.8571428571 | PS8: =1-PS7/PS6 -> 0.8571428571 | PT8: =1-PT7/PT6 -> 0.8571428571 | PU8: =1-PU7/PU6 -> 0.8571428571 | PV8: =1-PV7/PV6 -> 0.8571428571 | PW8: =1-PW7/PW6 -> 0.8571428571 | PX8: =1-PX7/PX6 -> 0.8571428571 | PY8: =1-PY7/PY6 -> 0.8571428571 | PZ8: =1-PZ7/PZ6 -> 0.8571428571 | QA8: =1-QA7/QA6 -> 0.8571428571 | QB8: =1-QB7/QB6 -> 0.8571428571 | QC8: =1-QC7/QC6 -> 0.8571428571 | QD8: =1-QD7/QD6 -> 0.8571428571 | QE8: =1-QE7/QE6 -> 0.8571428571 | QF8: =1-QF7/QF6 -> 0.8571428571 | QG8: =1-QG7/QG6 -> 0.8571428571 | QH8: =1-QH7/QH6 -> 0.8571428571 | QI8: =1-QI7/QI6 -> 0.8571428571 | QJ8: =1-QJ7/QJ6 -> 0.8571428571 | QK8: =1-QK7/QK6 -> 0.8571428571 | QL8: =1-QL7/QL6 -> 0.8571428571 | QM8: =1-QM7/QM6 -> 0.8571428571 | QN8: =1-QN7/QN6 -> 0.8571428571 | QO8: =1-QO7/QO6 -> 0.8571428571 | QP8: =1-QP7/QP6 -> 0.8571428571 | QQ8: =1-QQ7/QQ6 -> 0.8571428571 | QR8: =1-QR7/QR6 -> 0.8571428571 | QS8: =1-QS7/QS6 -> 0.8571428571 | QT8: =1-QT7/QT6 -> 0.8571428571 | QU8: =1-QU7/QU6 -> 0.8571428571 | QV8: =1-QV7/QV6 -> 0.8571428571 | QW8: =1-QW7/QW6 -> 0.8571428571 | QX8: =1-QX7/QX6 -> 0.8571428571 | QY8: =1-QY7/QY6 -> 0.8571428571 | QZ8: =1-QZ7/QZ6 -> 0.8571428571 | RA8: =1-RA7/RA6 -> 0.8571428571 | RB8: =1-RB7/RB6 -> 0.8571428571 | RC8: =1-RC7/RC6 -> 0.8571428571 | RD8: =1-RD7/RD6 -> 0.8571428571 | RE8: =1-RE7/RE6 -> 0.8571428571 | RF8: =1-RF7/RF6 -> 0.8571428571 | RG8: =1-RG7/RG6 -> 0.8571428571 | RH8: =1-RH7/RH6 -> 0.8571428571 | RI8: =1-RI7/RI6 -> 0.8571428571 | RJ8: =1-RJ7/RJ6 -> 0.8571428571 | RK8: =1-RK7/RK6 -> 0.8571428571 | RL8: =1-RL7/RL6 -> 0.8571428571 | RM8: =1-RM7/RM6 -> 0.8571428571 | RN8: =1-RN7/RN6 -> 0.8571428571 | RO8: =1-RO7/RO6 -> 0.8571428571 | RP8: =1-RP7/RP6 -> 0.8571428571 | RQ8: =1-RQ7/RQ6 -> 0.8571428571 | RR8: =1-RR7/RR6 -> 0.8571428571 | RS8: =1-RS7/RS6 -> 0.8571428571 | RT8: =1-RT7/RT6 -> 0.8571428571 | RU8: =1-RU7/RU6 -> 0.8571428571 | RV8: =1-RV7/RV6 -> 0.8571428571 | RW8: =1-RW7/RW6 -> 0.8571428571 | RX8: =1-RX7/RX6 -> 0.8571428571 | RY8: =1-RY7/RY6 -> 0.8571428571 | RZ8: =1-RZ7/RZ6 -> 0.8571428571 | SA8: =1-SA7/SA6 -> 0.8571428571 | SB8: =1-SB7/SB6 -> 0.8571428571 | SC8: =1-SC7/SC6 -> 0.8571428571 | SD8: =1-SD7/SD6 -> 0.8571428571 | SE8: =1-SE7/SE6 -> 0.8571428571 | SF8: =1-SF7/SF6 -> 0.8571428571 | SG8: =1-SG7/SG6 -> 0.8571428571 | SH8: =1-SH7/SH6 -> 0.8571428571 | SI8: =1-SI7/SI6 -> 0.8571428571 | SJ8: =1-SJ7/SJ6 -> 0.8571428571 | SK8: =1-SK7/SK6 -> 0.8571428571 | SL8: =1-SL7/SL6 -> 0.8571428571 | SM8: =1-SM7/SM6 -> 0.8571428571 | SN8: =1-SN7/SN6 -> 0.8571428571 | SO8: =1-SO7/SO6 -> 0.8571428571 | SP8: =1-SP7/SP6 -> 0.8571428571 | SQ8: =1-SQ7/SQ6 -> 0.8571428571 | SR8: =1-SR7/SR6 -> 0.8571428571 | SS8: =1-SS7/SS6 -> 0.8571428571 | ST8: =1-ST7/ST6 -> 0.8571428571 | SU8: =1-SU7/SU6 -> 0.8571428571 | SV8: =1-SV7/SV6 -> 0.8571428571 | SW8: =1-SW7/SW6 -> 0.8571428571 | SX8: =1-SX7/SX6 -> 0.8571428571 | SY8: =1-SY7/SY6 -> 0.8571428571 | SZ8: =1-SZ7/SZ6 -> 0.8571428571 | TA8: =1-TA7/TA6 -> 0.8571428571 | TB8: =1-TB7/TB6 -> 0.8571428571 | TC8: =1-TC7/TC6 -> 0.8571428571
B9: Theoretical Long-term Model
D10: Opening Balance | K10: =J13 -> 100 | L10: 104 | M10: 108.16 | N10: 112.4864 | O10: 116.985856 | P10: 121.6652902 | Q10: 126.5319018 | R10: 131.5931779 | S10: 136.856905 | T10: 142.3311812 | U10: 148.0244285 | V10: 153.9454056 | W10: 160.1032219 | X10: 166.5073507 | Y10: 173.1676448 | Z10: 177.4968359 | AA10: 181.1912249 | AB10: 184.331019 | AC10: 186.9903624 | AD10: 189.2363493 | AE10: 191.1287128 | AF10: 193.0399999 | AG10: 194.9703999 | AH10: 196.9201039 | AI10: 198.889305 | AJ10: 200.878198 | AK10: 202.88698 | AL10: 204.9158498 | AM10: 206.9650083 | AN10: 209.0346584 | AO10: 211.125005 | AP10: 213.236255 | AQ10: 215.3686176 | AR10: 217.5223038 | AS10: 219.6975268 | AT10: 221.8945021 | AU10: 224.1134471 | AV10: 226.3545816 | AW10: 228.6181274 | AX10: 230.9043086 | AY10: 233.2133517 | AZ10: 235.5454852 | BA10: 237.9009401 | BB10: 240.2799495 | BC10: 242.682749 | BD10: 245.1095765 | BE10: 247.5606723 | BF10: 250.036279 | BG10: 252.5366418 | BH10: 255.0620082 | BI10: 257.6126283 | BJ10: 260.1887545 | BK10: 262.7906421 | BL10: 265.4185485 | BM10: 268.072734 | BN10: 270.7534613 | BO10: 273.460996 | BP10: 276.1956059 | BQ10: 278.957562 | BR10: 281.7471376 | BS10: 284.564609 | BT10: 287.4102551 | BU10: 290.2843576 | BV10: 293.1872012 | BW10: =BV13 -> 296.1190732 | BX10: 299.0802639 | BY10: 302.0710666 | BZ10: 305.0917772 | CA10: 308.142695 | CB10: 311.224122 | CC10: 314.3363632 | CD10: 317.4797268 | CE10: 320.6545241 | CF10: 323.8610693 | CG10: 327.09968 | CH10: 330.3706768 | CI10: 333.6743836 | CJ10: 337.0111274 | CK10: 340.3812387 | CL10: 343.7850511 | CM10: 347.2229016 | CN10: 350.6951306 | CO10: 354.2020819 | CP10: 357.7441027 | CQ10: 361.3215438 | CR10: 364.9347592 | CS10: 368.5841068 | CT10: 372.2699478 | CU10: 375.9926473 | CV10: 379.7525738 | CW10: 383.5500995 | CX10: 387.3856005 | CY10: 391.2594565 | CZ10: 395.1720511 | DA10: 399.1237716 | DB10: 403.1150093 | DC10: 407.1461594 | DD10: 411.217621 | DE10: 415.3297972 | DF10: 419.4830952 | DG10: 423.6779262 | DH10: 427.9147054 | DI10: 432.1938525 | DJ10: 436.515791 | DK10: 440.8809489 | DL10: 445.2897584 | DM10: 449.742656 | DN10: 454.2400825 | DO10: 458.7824834 | DP10: 463.3703082 | DQ10: 468.0040113 | DR10: 472.6840514 | DS10: 477.4108919 | DT10: 482.1850008 | DU10: 487.0068508 | DV10: 491.8769193 | DW10: 496.7956885 | DX10: 501.7636454 | DY10: 506.7812819 | DZ10: 511.8490947 | EA10: 516.9675856 | EB10: 522.1372615 | EC10: 527.3586341 | ED10: 532.6322204 | EE10: 537.9585427 | EF10: 543.3381281 | EG10: 548.7715094 | EH10: 554.2592245 | EI10: =EH13 -> 559.8018167 | EJ10: 565.3998349 | EK10: 571.0538332 | EL10: 576.7643715 | EM10: 582.5320153 | EN10: 588.3573354 | EO10: 594.2409088 | EP10: 600.1833179 | EQ10: 606.185151 | ER10: 612.2470025 | ES10: 618.3694726 | ET10: 624.5531673 | EU10: 630.798699 | EV10: 637.106686 | EW10: 643.4777528 | EX10: 649.9125303 | EY10: 656.4116557 | EZ10: 662.9757722 | FA10: 669.6055299 | FB10: 676.3015852 | FC10: 683.0646011 | FD10: 689.8952471 | FE10: 696.7941996 | FF10: 703.7621416 | FG10: 710.799763 | FH10: 717.9077606 | FI10: 725.0868382 | FJ10: 732.3377066 | FK10: 739.6610837 | FL10: 747.0576945 | FM10: 754.5282714 | FN10: 762.0735542 | FO10: 769.6942897 | FP10: 777.3912326 | FQ10: 785.1651449 | FR10: 793.0167964 | FS10: 800.9469643 | FT10: 808.956434 | FU10: 817.0459983 | FV10: 825.2164583 | FW10: 833.4686229 | FX10: 841.8033091 | FY10: 850.2213422 | FZ10: 858.7235556 | GA10: 867.3107912 | GB10: 875.9838991 | GC10: 884.7437381 | GD10: 893.5911755 | GE10: 902.5270872 | GF10: 911.5523581 | GG10: 920.6678817 | GH10: 929.8745605 | GI10: 939.1733061 | GJ10: 948.5650392 | GK10: 958.0506895 | GL10: 967.6311964 | GM10: 977.3075084 | GN10: 987.0805835 | GO10: 996.9513893 | GP10: 1006.920903 | GQ10: 1016.990112 | GR10: 1027.160013 | GS10: 1037.431614 | GT10: 1047.80593 | GU10: =GT13 -> 1058.283989 | GV10: 1068.866829 | GW10: 1079.555497 | GX10: 1090.351052 | GY10: 1101.254563 | GZ10: 1112.267108 | HA10: 1123.389779 | HB10: 1134.623677 | HC10: 1145.969914 | HD10: 1157.429613 | HE10: 1169.003909 | HF10: 1180.693948 | HG10: 1192.500888 | HH10: 1204.425897 | HI10: 1216.470156 | HJ10: 1228.634857 | HK10: 1240.921206 | HL10: 1253.330418 | HM10: 1265.863722 | HN10: 1278.522359 | HO10: 1291.307583 | HP10: 1304.220659 | HQ10: 1317.262865 | HR10: 1330.435494 | HS10: 1343.739849 | HT10: 1357.177247 | HU10: 1370.74902 | HV10: 1384.45651 | HW10: 1398.301075 | HX10: 1412.284086 | HY10: 1426.406927 | HZ10: 1440.670996 | IA10: 1455.077706 | IB10: 1469.628483 | IC10: 1484.324768 | ID10: 1499.168015 | IE10: 1514.159696 | IF10: 1529.301292 | IG10: 1544.594305 | IH10: 1560.040248 | II10: 1575.640651 | IJ10: 1591.397057 | IK10: 1607.311028 | IL10: 1623.384138 | IM10: 1639.61798 | IN10: 1656.01416 | IO10: 1672.574301 | IP10: 1689.300044 | IQ10: 1706.193045 | IR10: 1723.254975 | IS10: 1740.487525 | IT10: 1757.8924 | IU10: 1775.471324 | IV10: 1793.226037 | IW10: 1811.158298 | IX10: 1829.269881 | IY10: 1847.562579 | IZ10: 1866.038205 | JA10: 1884.698587 | JB10: 1903.545573 | JC10: 1922.581029 | JD10: 1941.806839 | JE10: 1961.224908 | JF10: 1980.837157 | JG10: =JF13 -> 2000.645528 | JH10: 2020.651983 | JI10: 2040.858503 | JJ10: 2061.267088 | JK10: 2081.879759 | JL10: 2102.698557 | JM10: 2123.725542 | JN10: 2144.962798 | JO10: 2166.412426 | JP10: 2188.07655 | JQ10: 2209.957316 | JR10: 2232.056889 | JS10: 2254.377458 | JT10: 2276.921232 | JU10: 2299.690444 | JV10: 2322.687349 | JW10: 2345.914222 | JX10: 2369.373365 | JY10: 2393.067098 | JZ10: 2416.997769 | KA10: 2441.167747 | KB10: 2465.579424 | KC10: 2490.235219 | KD10: 2515.137571 | KE10: 2540.288947 | KF10: 2565.691836 | KG10: 2591.348754 | KH10: 2617.262242 | KI10: 2643.434864 | KJ10: 2669.869213 | KK10: 2696.567905 | KL10: 2723.533584 | KM10: 2750.76892 | KN10: 2778.276609 | KO10: 2806.059375 | KP10: 2834.119969 | KQ10: 2862.461169 | KR10: 2891.08578 | KS10: 2919.996638 | KT10: 2949.196605 | KU10: 2978.688571 | KV10: 3008.475456 | KW10: 3038.560211 | KX10: =KW13 -> 3068.945813 | KY10: 3099.635271 | KZ10: 3130.631624 | LA10: 3161.93794 | LB10: 3193.55732 | LC10: 3225.492893 | LD10: 3257.747822 | LE10: 3290.3253 | LF10: 3323.228553 | LG10: 3356.460838 | LH10: 3390.025447 | LI10: 3423.925701 | LJ10: 3458.164958 | LK10: 3492.746608 | LL10: 3527.674074 | LM10: 3562.950815 | LN10: 3598.580323 | LO10: 3634.566126 | LP10: 3670.911787 | LQ10: 3707.620905 | LR10: 3744.697114 | LS10: 3782.144085 | LT10: 3819.965526 | LU10: 3858.165181 | LV10: 3896.746833 | LW10: 3935.714302 | LX10: 3975.071445 | LY10: 4014.822159 | LZ10: 4054.970381 | MA10: 4095.520084 | MB10: 4136.475285 | MC10: 4177.840038 | MD10: 4219.618439 | ME10: 4261.814623 | MF10: 4304.432769 | MG10: 4347.477097 | MH10: 4390.951868 | MI10: 4434.861386 | MJ10: 4479.21 | MK10: 4524.0021 | ML10: 4569.242121 | MM10: 4614.934543 | MN10: 4661.083888 | MO10: 4707.694727 | MP10: 4754.771674 | MQ10: 4802.319391 | MR10: 4850.342585 | MS10: 4898.846011 | MT10: 4947.834471 | MU10: 4997.312815 | MV10: 5047.285944 | MW10: 5097.758803 | MX10: 5148.736391 | MY10: 5200.223755 | MZ10: 5252.225993 | NA10: 5304.748252 | NB10: 5357.795735 | NC10: 5411.373692 | ND10: 5465.487429 | NE10: 5520.142304 | NF10: 5575.343727 | NG10: 5631.097164 | NH10: 5687.408136 | NI10: 5744.282217 | NJ10: =NI13 -> 5801.725039 | NK10: 5859.742289 | NL10: 5918.339712 | NM10: 5977.523109 | NN10: 6037.298341 | NO10: 6097.671324 | NP10: 6158.648037 | NQ10: 6220.234518 | NR10: 6282.436863 | NS10: 6345.261231 | NT10: 6408.713844 | NU10: 6472.800982 | NV10: 6537.528992 | NW10: 6602.904282 | NX10: 6668.933325 | NY10: 6735.622658 | NZ10: 6802.978884 | OA10: 6871.008673 | OB10: 6939.71876 | OC10: 7009.115948 | OD10: 7079.207107 | OE10: 7149.999178 | OF10: 7221.49917 | OG10: 7293.714162 | OH10: 7366.651303 | OI10: 7440.317816 | OJ10: 7514.720995 | OK10: 7589.868204 | OL10: 7665.766886 | OM10: 7742.424555 | ON10: 7819.848801 | OO10: 7898.047289 | OP10: 7977.027762 | OQ10: 8056.798039 | OR10: 8137.36602 | OS10: 8218.73968 | OT10: 8300.927077 | OU10: 8383.936348 | OV10: 8467.775711 | OW10: 8552.453468 | OX10: 8637.978003 | OY10: 8724.357783 | OZ10: 8811.601361 | PA10: 8899.717374 | PB10: 8988.714548 | PC10: 9078.601694 | PD10: 9169.38771 | PE10: 9261.081588 | PF10: 9353.692403 | PG10: 9447.229327 | PH10: 9541.701621 | PI10: 9637.118637 | PJ10: 9733.489823 | PK10: 9830.824722 | PL10: 9929.132969 | PM10: 10028.4243 | PN10: 10128.70854 | PO10: 10229.99563 | PP10: 10332.29558 | PQ10: 10435.61854 | PR10: 10539.97472 | PS10: 10645.37447 | PT10: 10751.82822 | PU10: 10859.3465 | PV10: =PU13 -> 10967.93996 | PW10: 11077.61936 | PX10: 11188.39556 | PY10: 11300.27951 | PZ10: 11413.28231 | QA10: 11527.41513 | QB10: 11642.68928 | QC10: 11759.11617 | QD10: 11876.70734 | QE10: 11995.47441 | QF10: 12115.42915 | QG10: 12236.58345 | QH10: 12358.94928 | QI10: 12482.53877 | QJ10: 12607.36416 | QK10: 12733.4378 | QL10: 12860.77218 | QM10: 12989.3799 | QN10: 13119.2737 | QO10: 13250.46644 | QP10: 13382.9711 | QQ10: 13516.80081 | QR10: 13651.96882 | QS10: 13788.48851 | QT10: 13926.37339 | QU10: 14065.63713 | QV10: 14206.2935 | QW10: 14348.35643 | QX10: 14491.84 | QY10: 14636.7584 | QZ10: 14783.12598 | RA10: 14930.95724 | RB10: 15080.26682 | RC10: 15231.06948 | RD10: 15383.38018 | RE10: 15537.21398 | RF10: 15692.58612 | RG10: 15849.51198 | RH10: 16008.0071 | RI10: 16168.08717 | RJ10: 16329.76804 | RK10: 16493.06572 | RL10: 16657.99638 | RM10: 16824.57635 | RN10: 16992.82211 | RO10: 17162.75033 | RP10: 17334.37783 | RQ10: 17507.72161 | RR10: 17682.79883 | RS10: 17859.62682 | RT10: 18038.22308 | RU10: 18218.60531 | RV10: 18400.79137 | RW10: 18584.79928 | RX10: 18770.64727 | RY10: 18958.35375 | RZ10: 19147.93728 | SA10: 19339.41666 | SB10: 19532.81082 | SC10: 19728.13893 | SD10: 19925.42032 | SE10: 20124.67452 | SF10: 20325.92127 | SG10: 20529.18048 | SH10: =SG13 -> 20734.47229 | SI10: 20941.81701 | SJ10: 21151.23518 | SK10: 21362.74753 | SL10: 21576.37501 | SM10: 21792.13876 | SN10: 22010.06015 | SO10: 22230.16075 | SP10: 22452.46235 | SQ10: 22676.98698 | SR10: 22903.75685 | SS10: 23132.79442 | ST10: 23364.12236 | SU10: 23597.76358 | SV10: 23833.74122 | SW10: 24072.07863 | SX10: 24312.79942 | SY10: 24555.92741 | SZ10: 24801.48669 | TA10: 25049.50155 | TB10: 25299.99657 | TC10: 25552.99653
D11: Add: Net Income | K11: =K10*K6 -> 12 | L11: 12.48 | M11: 12.9792 | N11: 13.498368 | O11: 14.03830272 | P11: 14.59983483 | Q11: 15.18382822 | R11: 15.79118135 | S11: 16.4228286 | T11: 17.07974175 | U11: 17.76293142 | V11: 18.47344868 | W11: 19.21238662 | X11: 19.98088209 | Y11: 19.04844092 | Z11: 17.83710512 | AA11: 16.63458567 | AB11: 15.46017202 | AC11: 14.32769053 | AD11: 13.24654445 | AE11: 13.3790099 | AF11: 13.5128 | AG11: 13.647928 | AH11: 13.78440728 | AI11: 13.92225135 | AJ11: 14.06147386 | AK11: 14.2020886 | AL11: 14.34410949 | AM11: 14.48755058 | AN11: 14.63242609 | AO11: 14.77875035 | AP11: 14.92653785 | AQ11: 15.07580323 | AR11: 15.22656126 | AS11: 15.37882688 | AT11: 15.53261514 | AU11: 15.6879413 | AV11: 15.84482071 | AW11: 16.00326892 | AX11: 16.16330161 | AY11: 16.32493462 | AZ11: 16.48818397 | BA11: 16.65306581 | BB11: 16.81959647 | BC11: 16.98779243 | BD11: 17.15767035 | BE11: 17.32924706 | BF11: 17.50253953 | BG11: 17.67756492 | BH11: 17.85434057 | BI11: 18.03288398 | BJ11: 18.21321282 | BK11: 18.39534495 | BL11: 18.5792984 | BM11: 18.76509138 | BN11: 18.95274229 | BO11: 19.14226972 | BP11: 19.33369241 | BQ11: 19.52702934 | BR11: 19.72229963 | BS11: 19.91952263 | BT11: 20.11871785 | BU11: 20.31990503 | BV11: 20.52310408 | BW11: =BW10*BW6 -> 20.72833512 | BX11: 20.93561847 | BY11: 21.14497466 | BZ11: 21.35642441 | CA11: 21.56998865 | CB11: 21.78568854 | CC11: 22.00354542 | CD11: 22.22358088 | CE11: 22.44581669 | CF11: 22.67027485 | CG11: 22.8969776 | CH11: 23.12594738 | CI11: 23.35720685 | CJ11: 23.59077892 | CK11: 23.82668671 | CL11: 24.06495358 | CM11: 24.30560311 | CN11: 24.54865914 | CO11: 24.79414573 | CP11: 25.04208719 | CQ11: 25.29250806 | CR11: 25.54543314 | CS11: 25.80088747 | CT11: 26.05889635 | CU11: 26.31948531 | CV11: 26.58268017 | CW11: 26.84850697 | CX11: 27.11699204 | CY11: 27.38816196 | CZ11: 27.66204358 | DA11: 27.93866401 | DB11: 28.21805065 | DC11: 28.50023116 | DD11: 28.78523347 | DE11: 29.07308581 | DF11: 29.36381666 | DG11: 29.65745483 | DH11: 29.95402938 | DI11: 30.25356967 | DJ11: 30.55610537 | DK11: 30.86166642 | DL11: 31.17028309 | DM11: 31.48198592 | DN11: 31.79680578 | DO11: 32.11477384 | DP11: 32.43592157 | DQ11: 32.76028079 | DR11: 33.0878836 | DS11: 33.41876243 | DT11: 33.75295006 | DU11: 34.09047956 | DV11: 34.43138435 | DW11: 34.7756982 | DX11: 35.12345518 | DY11: 35.47468973 | DZ11: 35.82943663 | EA11: 36.18773099 | EB11: 36.5496083 | EC11: 36.91510439 | ED11: 37.28425543 | EE11: 37.65709799 | EF11: 38.03366897 | EG11: 38.41400566 | EH11: 38.79814571 | EI11: =EI10*EI6 -> 39.18612717 | EJ11: 39.57798844 | EK11: 39.97376833 | EL11: 40.37350601 | EM11: 40.77724107 | EN11: 41.18501348 | EO11: 41.59686361 | EP11: 42.01283225 | EQ11: 42.43296057 | ER11: 42.85729018 | ES11: 43.28586308 | ET11: 43.71872171 | EU11: 44.15590893 | EV11: 44.59746802 | EW11: 45.0434427 | EX11: 45.49387712 | EY11: 45.9488159 | EZ11: 46.40830405 | FA11: 46.8723871 | FB11: 47.34111097 | FC11: 47.81452208 | FD11: 48.2926673 | FE11: 48.77559397 | FF11: 49.26334991 | FG11: 49.75598341 | FH11: 50.25354324 | FI11: 50.75607867 | FJ11: 51.26363946 | FK11: 51.77627586 | FL11: 52.29403861 | FM11: 52.816979 | FN11: 53.34514879 | FO11: 53.87860028 | FP11: 54.41738628 | FQ11: 54.96156014 | FR11: 55.51117575 | FS11: 56.0662875 | FT11: 56.62695038 | FU11: 57.19321988 | FV11: 57.76515208 | FW11: 58.3428036 | FX11: 58.92623164 | FY11: 59.51549395 | FZ11: 60.11064889 | GA11: 60.71175538 | GB11: 61.31887294 | GC11: 61.93206167 | GD11: 62.55138228 | GE11: 63.17689611 | GF11: 63.80866507 | GG11: 64.44675172 | GH11: 65.09121923 | GI11: 65.74213143 | GJ11: 66.39955274 | GK11: 67.06354827 | GL11: 67.73418375 | GM11: 68.41152559 | GN11: 69.09564084 | GO11: 69.78659725 | GP11: 70.48446323 | GQ11: 71.18930786 | GR11: 71.90120094 | GS11: 72.62021295 | GT11: 73.34641507 | GU11: =GU10*GU6 -> 74.07987923 | GV11: 74.82067802 | GW11: 75.5688848 | GX11: 76.32457365 | GY11: 77.08781938 | GZ11: 77.85869758 | HA11: 78.63728455 | HB11: 79.4236574 | HC11: 80.21789397 | HD11: 81.02007291 | HE11: 81.83027364 | HF11: 82.64857638 | HG11: 83.47506214 | HH11: 84.30981276 | HI11: 85.15291089 | HJ11: 86.00444 | HK11: 86.8644844 | HL11: 87.73312924 | HM11: 88.61046053 | HN11: 89.49656514 | HO11: 90.39153079 | HP11: 91.2954461 | HQ11: 92.20840056 | HR11: 93.13048457 | HS11: 94.06178941 | HT11: 95.00240731 | HU11: 95.95243138 | HV11: 96.91195569 | HW11: 97.88107525 | HX11: 98.859886 | HY11: 99.84848486 | HZ11: 100.8469697 | IA11: 101.8554394 | IB11: 102.8739938 | IC11: 103.9027337 | ID11: 104.9417611 | IE11: 105.9911787 | IF11: 107.0510905 | IG11: 108.1216014 | IH11: 109.2028174 | II11: 110.2948456 | IJ11: 111.397794 | IK11: 112.511772 | IL11: 113.6368897 | IM11: 114.7732586 | IN11: 115.9209912 | IO11: 117.0802011 | IP11: 118.2510031 | IQ11: 119.4335131 | IR11: 120.6278483 | IS11: 121.8341267 | IT11: 123.052468 | IU11: 124.2829927 | IV11: 125.5258226 | IW11: 126.7810808 | IX11: 128.0488916 | IY11: 129.3293806 | IZ11: 130.6226744 | JA11: 131.9289011 | JB11: 133.2481901 | JC11: 134.580672 | JD11: 135.9264787 | JE11: 137.2857435 | JF11: 138.658601 | JG11: =JG10*JG6 -> 140.045187 | JH11: 141.4456388 | JI11: 142.8600952 | JJ11: 144.2886962 | JK11: 145.7315831 | JL11: 147.188899 | JM11: 148.660788 | JN11: 150.1473958 | JO11: 151.6488698 | JP11: 153.1653585 | JQ11: 154.6970121 | JR11: 156.2439822 | JS11: 157.806422 | JT11: 159.3844862 | JU11: 160.9783311 | JV11: 162.5881144 | JW11: 164.2139956 | JX11: 165.8561355 | JY11: 167.5146969 | JZ11: 169.1898438 | KA11: 170.8817423 | KB11: 172.5905597 | KC11: 174.3164653 | KD11: 176.05963 | KE11: 177.8202263 | KF11: 179.5984285 | KG11: 181.3944128 | KH11: 183.2083569 | KI11: 185.0404405 | KJ11: 186.8908449 | KK11: 188.7597534 | KL11: 190.6473509 | KM11: 192.5538244 | KN11: 194.4793626 | KO11: 196.4241563 | KP11: 198.3883978 | KQ11: 200.3722818 | KR11: 202.3760046 | KS11: 204.3997647 | KT11: 206.4437623 | KU11: 208.5081999 | KV11: 210.5932819 | KW11: 212.6992148 | KX11: =KX10*KX6 -> 214.8262069 | KY11: 216.974469 | KZ11: 219.1442137 | LA11: 221.3356558 | LB11: 223.5490124 | LC11: 225.7845025 | LD11: 228.0423475 | LE11: 230.322771 | LF11: 232.6259987 | LG11: 234.9522587 | LH11: 237.3017813 | LI11: 239.6747991 | LJ11: 242.0715471 | LK11: 244.4922625 | LL11: 246.9371852 | LM11: 249.406557 | LN11: 251.9006226 | LO11: 254.4196288 | LP11: 256.9638251 | LQ11: 259.5334634 | LR11: 262.128798 | LS11: 264.750086 | LT11: 267.3975868 | LU11: 270.0715627 | LV11: 272.7722783 | LW11: 275.5000011 | LX11: 278.2550011 | LY11: 281.0375511 | LZ11: 283.8479266 | MA11: 286.6864059 | MB11: 289.55327 | MC11: 292.4488027 | MD11: 295.3732907 | ME11: 298.3270236 | MF11: 301.3102938 | MG11: 304.3233968 | MH11: 307.3666307 | MI11: 310.4402971 | MJ11: 313.5447 | MK11: 316.680147 | ML11: 319.8469485 | MM11: 323.045418 | MN11: 326.2758722 | MO11: 329.5386309 | MP11: 332.8340172 | MQ11: 336.1623574 | MR11: 339.5239809 | MS11: 342.9192207 | MT11: 346.348413 | MU11: 349.8118971 | MV11: 353.3100161 | MW11: 356.8431162 | MX11: 360.4115474 | MY11: 364.0156628 | MZ11: 367.6558195 | NA11: 371.3323777 | NB11: 375.0457014 | NC11: 378.7961585 | ND11: 382.58412 | NE11: 386.4099612 | NF11: 390.2740609 | NG11: 394.1768015 | NH11: 398.1185695 | NI11: 402.0997552 | NJ11: =NJ10*NJ6 -> 406.1207527 | NK11: 410.1819603 | NL11: 414.2837799 | NM11: 418.4266177 | NN11: 422.6108838 | NO11: 426.8369927 | NP11: 431.1053626 | NQ11: 435.4164162 | NR11: 439.7705804 | NS11: 444.1682862 | NT11: 448.6099691 | NU11: 453.0960687 | NV11: 457.6270294 | NW11: 462.2032997 | NX11: 466.8253327 | NY11: 471.4935861 | NZ11: 476.2085219 | OA11: 480.9706071 | OB11: 485.7803132 | OC11: 490.6381163 | OD11: 495.5444975 | OE11: 500.4999425 | OF11: 505.5049419 | OG11: 510.5599913 | OH11: 515.6655912 | OI11: 520.8222471 | OJ11: 526.0304696 | OK11: 531.2907743 | OL11: 536.6036821 | OM11: 541.9697189 | ON11: 547.3894161 | OO11: 552.8633102 | OP11: 558.3919433 | OQ11: 563.9758628 | OR11: 569.6156214 | OS11: 575.3117776 | OT11: 581.0648954 | OU11: 586.8755443 | OV11: 592.7442998 | OW11: 598.6717428 | OX11: 604.6584602 | OY11: 610.7050448 | OZ11: 616.8120952 | PA11: 622.9802162 | PB11: 629.2100184 | PC11: 635.5021185 | PD11: 641.8571397 | PE11: 648.2757111 | PF11: 654.7584682 | PG11: 661.3060529 | PH11: 667.9191135 | PI11: 674.5983046 | PJ11: 681.3442876 | PK11: 688.1577305 | PL11: 695.0393078 | PM11: 701.9897009 | PN11: 709.0095979 | PO11: 716.0996939 | PP11: 723.2606908 | PQ11: 730.4932977 | PR11: 737.7982307 | PS11: 745.176213 | PT11: 752.6279751 | PU11: 760.1542549 | PV11: =PV10*PV6 -> 767.7557974 | PW11: 775.4333554 | PX11: 783.187689 | PY11: 791.0195659 | PZ11: 798.9297615 | QA11: 806.9190591 | QB11: 814.9882497 | QC11: 823.1381322 | QD11: 831.3695135 | QE11: 839.6832087 | QF11: 848.0800408 | QG11: 856.5608412 | QH11: 865.1264496 | QI11: 873.7777141 | QJ11: 882.5154912 | QK11: 891.3406461 | QL11: 900.2540526 | QM11: 909.2565931 | QN11: 918.3491591 | QO11: 927.5326506 | QP11: 936.8079772 | QQ11: 946.1760569 | QR11: 955.6378175 | QS11: 965.1941957 | QT11: 974.8461376 | QU11: 984.594599 | QV11: 994.440545 | QW11: 1004.38495 | QX11: 1014.4288 | QY11: 1024.573088 | QZ11: 1034.818819 | RA11: 1045.167007 | RB11: 1055.618677 | RC11: 1066.174864 | RD11: 1076.836612 | RE11: 1087.604979 | RF11: 1098.481028 | RG11: 1109.465839 | RH11: 1120.560497 | RI11: 1131.766102 | RJ11: 1143.083763 | RK11: 1154.514601 | RL11: 1166.059747 | RM11: 1177.720344 | RN11: 1189.497548 | RO11: 1201.392523 | RP11: 1213.406448 | RQ11: 1225.540513 | RR11: 1237.795918 | RS11: 1250.173877 | RT11: 1262.675616 | RU11: 1275.302372 | RV11: 1288.055396 | RW11: 1300.93595 | RX11: 1313.945309 | RY11: 1327.084762 | RZ11: 1340.35561 | SA11: 1353.759166 | SB11: 1367.296758 | SC11: 1380.969725 | SD11: 1394.779423 | SE11: 1408.727217 | SF11: 1422.814489 | SG11: 1437.042634 | SH11: =SH10*SH6 -> 1451.41306 | SI11: 1465.927191 | SJ11: 1480.586463 | SK11: 1495.392327 | SL11: 1510.346251 | SM11: 1525.449713 | SN11: 1540.70421 | SO11: 1556.111252 | SP11: 1571.672365 | SQ11: 1587.389088 | SR11: 1603.262979 | SS11: 1619.295609 | ST11: 1635.488565 | SU11: 1651.843451 | SV11: 1668.361885 | SW11: 1685.045504 | SX11: 1701.895959 | SY11: 1718.914919 | SZ11: 1736.104068 | TA11: 1753.465109 | TB11: 1770.99976 | TC11: 1788.709757
D12: Less Dividend | K12: =K11*K8 -> 8 | L12: 8.32 | M12: 8.6528 | N12: 8.998912 | O12: 9.35886848 | P12: 9.733223219 | Q12: 10.12255215 | R12: 10.52745423 | S12: 10.9485524 | T12: 11.3864945 | U12: 11.84195428 | V12: 12.31563245 | W12: 12.80825775 | X12: 13.32058806 | Y12: 14.7192498 | Z12: 14.14271612 | AA12: 13.49479159 | AB12: 12.80082858 | AC12: 12.0817036 | AD12: 11.35418096 | AE12: 11.46772277 | AF12: 11.5824 | AG12: 11.698224 | AH12: 11.81520624 | AI12: 11.9333583 | AJ12: 12.05269188 | AK12: 12.1732188 | AL12: 12.29495099 | AM12: 12.4179005 | AN12: 12.5420795 | AO12: 12.6675003 | AP12: 12.7941753 | AQ12: 12.92211705 | AR12: 13.05133823 | AS12: 13.18185161 | AT12: 13.31367012 | AU12: 13.44680683 | AV12: 13.58127489 | AW12: 13.71708764 | AX12: 13.85425852 | AY12: 13.9928011 | AZ12: 14.13272911 | BA12: 14.27405641 | BB12: 14.41679697 | BC12: 14.56096494 | BD12: 14.70657459 | BE12: 14.85364034 | BF12: 15.00217674 | BG12: 15.15219851 | BH12: 15.30372049 | BI12: 15.4567577 | BJ12: 15.61132527 | BK12: 15.76743853 | BL12: 15.92511291 | BM12: 16.08436404 | BN12: 16.24520768 | BO12: 16.40765976 | BP12: 16.57173635 | BQ12: 16.73745372 | BR12: 16.90482826 | BS12: 17.07387654 | BT12: 17.2446153 | BU12: 17.41706146 | BV12: 17.59123207 | BW12: =BW11*BW8 -> 17.76714439 | BX12: 17.94481584 | BY12: 18.12426399 | BZ12: 18.30550663 | CA12: 18.4885617 | CB12: 18.67344732 | CC12: 18.86018179 | CD12: 19.04878361 | CE12: 19.23927144 | CF12: 19.43166416 | CG12: 19.6259808 | CH12: 19.82224061 | CI12: 20.02046301 | CJ12: 20.22066764 | CK12: 20.42287432 | CL12: 20.62710306 | CM12: 20.83337409 | CN12: 21.04170784 | CO12: 21.25212491 | CP12: 21.46464616 | CQ12: 21.67929263 | CR12: 21.89608555 | CS12: 22.11504641 | CT12: 22.33619687 | CU12: 22.55955884 | CV12: 22.78515443 | CW12: 23.01300597 | CX12: 23.24313603 | CY12: 23.47556739 | CZ12: 23.71032307 | DA12: 23.9474263 | DB12: 24.18690056 | DC12: 24.42876957 | DD12: 24.67305726 | DE12: 24.91978783 | DF12: 25.16898571 | DG12: 25.42067557 | DH12: 25.67488232 | DI12: 25.93163115 | DJ12: 26.19094746 | DK12: 26.45285693 | DL12: 26.7173855 | DM12: 26.98455936 | DN12: 27.25440495 | DO12: 27.526949 | DP12: 27.80221849 | DQ12: 28.08024068 | DR12: 28.36104308 | DS12: 28.64465351 | DT12: 28.93110005 | DU12: 29.22041105 | DV12: 29.51261516 | DW12: 29.80774131 | DX12: 30.10581873 | DY12: 30.40687691 | DZ12: 30.71094568 | EA12: 31.01805514 | EB12: 31.32823569 | EC12: 31.64151805 | ED12: 31.95793323 | EE12: 32.27751256 | EF12: 32.60028768 | EG12: 32.92629056 | EH12: 33.25555347 | EI12: =EI11*EI8 -> 33.588109 | EJ12: 33.92399009 | EK12: 34.26322999 | EL12: 34.60586229 | EM12: 34.95192092 | EN12: 35.30144012 | EO12: 35.65445453 | EP12: 36.01099907 | EQ12: 36.37110906 | ER12: 36.73482015 | ES12: 37.10216835 | ET12: 37.47319004 | EU12: 37.84792194 | EV12: 38.22640116 | EW12: 38.60866517 | EX12: 38.99475182 | EY12: 39.38469934 | EZ12: 39.77854633 | FA12: 40.1763318 | FB12: 40.57809511 | FC12: 40.98387606 | FD12: 41.39371483 | FE12: 41.80765197 | FF12: 42.22572849 | FG12: 42.64798578 | FH12: 43.07446564 | FI12: 43.50521029 | FJ12: 43.9402624 | FK12: 44.37966502 | FL12: 44.82346167 | FM12: 45.27169629 | FN12: 45.72441325 | FO12: 46.18165738 | FP12: 46.64347396 | FQ12: 47.1099087 | FR12: 47.58100778 | FS12: 48.05681786 | FT12: 48.53738604 | FU12: 49.0227599 | FV12: 49.5129875 | FW12: 50.00811737 | FX12: 50.50819855 | FY12: 51.01328053 | FZ12: 51.52341334 | GA12: 52.03864747 | GB12: 52.55903395 | GC12: 53.08462428 | GD12: 53.61547053 | GE12: 54.15162523 | GF12: 54.69314149 | GG12: 55.2400729 | GH12: 55.79247363 | GI12: 56.35039837 | GJ12: 56.91390235 | GK12: 57.48304137 | GL12: 58.05787179 | GM12: 58.6384505 | GN12: 59.22483501 | GO12: 59.81708336 | GP12: 60.41525419 | GQ12: 61.01940673 | GR12: 61.6296008 | GS12: 62.24589681 | GT12: 62.86835578 | GU12: =GU11*GU8 -> 63.49703934 | GV12: 64.13200973 | GW12: 64.77332983 | GX12: 65.42106313 | GY12: 66.07527376 | GZ12: 66.73602649 | HA12: 67.40338676 | HB12: 68.07742063 | HC12: 68.75819483 | HD12: 69.44577678 | HE12: 70.14023455 | HF12: 70.84163689 | HG12: 71.55005326 | HH12: 72.2655538 | HI12: 72.98820933 | HJ12: 73.71809143 | HK12: 74.45527234 | HL12: 75.19982506 | HM12: 75.95182332 | HN12: 76.71134155 | HO12: 77.47845496 | HP12: 78.25323951 | HQ12: 79.03577191 | HR12: 79.82612963 | HS12: 80.62439092 | HT12: 81.43063483 | HU12: 82.24494118 | HV12: 83.06739059 | HW12: 83.8980645 | HX12: 84.73704514 | HY12: 85.5844156 | HZ12: 86.44025975 | IA12: 87.30466235 | IB12: 88.17770897 | IC12: 89.05948606 | ID12: 89.95008092 | IE12: 90.84958173 | IF12: 91.75807755 | IG12: 92.67565833 | IH12: 93.60241491 | II12: 94.53843906 | IJ12: 95.48382345 | IK12: 96.43866168 | IL12: 97.4030483 | IM12: 98.37707878 | IN12: 99.36084957 | IO12: 100.3544581 | IP12: 101.3580026 | IQ12: 102.3715827 | IR12: 103.3952985 | IS12: 104.4292515 | IT12: 105.473544 | IU12: 106.5282794 | IV12: 107.5935622 | IW12: 108.6694979 | IX12: 109.7561928 | IY12: 110.8537548 | IZ12: 111.9622923 | JA12: 113.0819152 | JB12: 114.2127344 | JC12: 115.3548617 | JD12: 116.5084103 | JE12: 117.6734945 | JF12: 118.8502294 | JG12: =JG11*JG8 -> 120.0387317 | JH12: 121.239119 | JI12: 122.4515102 | JJ12: 123.6760253 | JK12: 124.9127856 | JL12: 126.1619134 | JM12: 127.4235325 | JN12: 128.6977679 | JO12: 129.9847455 | JP12: 131.284593 | JQ12: 132.5974389 | JR12: 133.9234133 | JS12: 135.2626475 | JT12: 136.6152739 | JU12: 137.9814267 | JV12: 139.3612409 | JW12: 140.7548533 | JX12: 142.1624019 | JY12: 143.5840259 | JZ12: 145.0198662 | KA12: 146.4700648 | KB12: 147.9347655 | KC12: 149.4141131 | KD12: 150.9082542 | KE12: 152.4173368 | KF12: 153.9415102 | KG12: 155.4809253 | KH12: 157.0357345 | KI12: 158.6060919 | KJ12: 160.1921528 | KK12: 161.7940743 | KL12: 163.412015 | KM12: 165.0461352 | KN12: 166.6965966 | KO12: 168.3635625 | KP12: 170.0471981 | KQ12: 171.7476701 | KR12: 173.4651468 | KS12: 175.1997983 | KT12: 176.9517963 | KU12: 178.7213142 | KV12: 180.5085274 | KW12: 182.3136127 | KX12: =KX11*KX8 -> 184.1367488 | KY12: 185.9781163 | KZ12: 187.8378974 | LA12: 189.7162764 | LB12: 191.6134392 | LC12: 193.5295736 | LD12: 195.4648693 | LE12: 197.419518 | LF12: 199.3937132 | LG12: 201.3876503 | LH12: 203.4015268 | LI12: 205.4355421 | LJ12: 207.4898975 | LK12: 209.5647965 | LL12: 211.6604444 | LM12: 213.7770489 | LN12: 215.9148194 | LO12: 218.0739676 | LP12: 220.2547072 | LQ12: 222.4572543 | LR12: 224.6818269 | LS12: 226.9286451 | LT12: 229.1979316 | LU12: 231.4899109 | LV12: 233.80481 | LW12: 236.1428581 | LX12: 238.5042867 | LY12: 240.8893295 | LZ12: 243.2982228 | MA12: 245.7312051 | MB12: 248.1885171 | MC12: 250.6704023 | MD12: 253.1771063 | ME12: 255.7088774 | MF12: 258.2659661 | MG12: 260.8486258 | MH12: 263.4571121 | MI12: 266.0916832 | MJ12: 268.7526 | MK12: 271.440126 | ML12: 274.1545273 | MM12: 276.8960726 | MN12: 279.6650333 | MO12: 282.4616836 | MP12: 285.2863004 | MQ12: 288.1391635 | MR12: 291.0205551 | MS12: 293.9307606 | MT12: 296.8700682 | MU12: 299.8387689 | MV12: 302.8371566 | MW12: 305.8655282 | MX12: 308.9241835 | MY12: 312.0134253 | MZ12: 315.1335596 | NA12: 318.2848951 | NB12: 321.4677441 | NC12: 324.6824215 | ND12: 327.9292458 | NE12: 331.2085382 | NF12: 334.5206236 | NG12: 337.8658298 | NH12: 341.2444881 | NI12: 344.656933 | NJ12: =NJ11*NJ8 -> 348.1035023 | NK12: 351.5845374 | NL12: 355.1003827 | NM12: 358.6513866 | NN12: 362.2379004 | NO12: 365.8602794 | NP12: 369.5188822 | NQ12: 373.2140711 | NR12: 376.9462118 | NS12: 380.7156739 | NT12: 384.5228306 | NU12: 388.3680589 | NV12: 392.2517395 | NW12: 396.1742569 | NX12: 400.1359995 | NY12: 404.1373595 | NZ12: 408.1787331 | OA12: 412.2605204 | OB12: 416.3831256 | OC12: 420.5469569 | OD12: 424.7524264 | OE12: 428.9999507 | OF12: 433.2899502 | OG12: 437.6228497 | OH12: 441.9990782 | OI12: 446.419069 | OJ12: 450.8832597 | OK12: 455.3920923 | OL12: 459.9460132 | OM12: 464.5454733 | ON12: 469.1909281 | OO12: 473.8828373 | OP12: 478.6216657 | OQ12: 483.4078824 | OR12: 488.2419612 | OS12: 493.1243808 | OT12: 498.0556246 | OU12: 503.0361809 | OV12: 508.0665427 | OW12: 513.1472081 | OX12: 518.2786802 | OY12: 523.461467 | OZ12: 528.6960816 | PA12: 533.9830425 | PB12: 539.3228729 | PC12: 544.7161016 | PD12: 550.1632626 | PE12: 555.6648953 | PF12: 561.2215442 | PG12: 566.8337596 | PH12: 572.5020972 | PI12: 578.2271182 | PJ12: 584.0093894 | PK12: 589.8494833 | PL12: 595.7479781 | PM12: 601.7054579 | PN12: 607.7225125 | PO12: 613.7997376 | PP12: 619.937735 | PQ12: 626.1371123 | PR12: 632.3984835 | PS12: 638.7224683 | PT12: 645.109693 | PU12: 651.5607899 | PV12: =PV11*PV8 -> 658.0763978 | PW12: 664.6571618 | PX12: 671.3037334 | PY12: 678.0167707 | PZ12: 684.7969384 | QA12: 691.6449078 | QB12: 698.5613569 | QC12: 705.5469705 | QD12: 712.6024402 | QE12: 719.7284646 | QF12: 726.9257492 | QG12: 734.1950067 | QH12: 741.5369568 | QI12: 748.9523264 | QJ12: 756.4418496 | QK12: 764.0062681 | QL12: 771.6463308 | QM12: 779.3627941 | QN12: 787.156422 | QO12: 795.0279863 | QP12: 802.9782661 | QQ12: 811.0080488 | QR12: 819.1181293 | QS12: 827.3093106 | QT12: 835.5824037 | QU12: 843.9382277 | QV12: 852.37761 | QW12: 860.9013861 | QX12: 869.5104 | QY12: 878.205504 | QZ12: 886.987559 | RA12: 895.8574346 | RB12: 904.8160089 | RC12: 913.864169 | RD12: 923.0028107 | RE12: 932.2328388 | RF12: 941.5551672 | RG12: 950.9707189 | RH12: 960.4804261 | RI12: 970.0852303 | RJ12: 979.7860826 | RK12: 989.5839435 | RL12: 999.4797829 | RM12: 1009.474581 | RN12: 1019.569327 | RO12: 1029.76502 | RP12: 1040.06267 | RQ12: 1050.463297 | RR12: 1060.96793 | RS12: 1071.577609 | RT12: 1082.293385 | RU12: 1093.116319 | RV12: 1104.047482 | RW12: 1115.087957 | RX12: 1126.238836 | RY12: 1137.501225 | RZ12: 1148.876237 | SA12: 1160.364999 | SB12: 1171.968649 | SC12: 1183.688336 | SD12: 1195.525219 | SE12: 1207.480471 | SF12: 1219.555276 | SG12: 1231.750829 | SH12: =SH11*SH8 -> 1244.068337 | SI12: 1256.509021 | SJ12: 1269.074111 | SK12: 1281.764852 | SL12: 1294.5825 | SM12: 1307.528325 | SN12: 1320.603609 | SO12: 1333.809645 | SP12: 1347.147741 | SQ12: 1360.619219 | SR12: 1374.225411 | SS12: 1387.967665 | ST12: 1401.847342 | SU12: 1415.865815 | SV12: 1430.024473 | SW12: 1444.324718 | SX12: 1458.767965 | SY12: 1473.355645 | SZ12: 1488.089201 | TA12: 1502.970093 | TB12: 1517.999794 | TC12: 1533.179792
D13: Closing Balance | J13: =Scenarios!D4 -> 100 | K13: =K10+K11-K12 -> 104 | L13: 108.16 | M13: 112.4864 | N13: 116.985856 | O13: 121.6652902 | P13: 126.5319018 | Q13: 131.5931779 | R13: 136.856905 | S13: 142.3311812 | T13: 148.0244285 | U13: 153.9454056 | V13: 160.1032219 | W13: 166.5073507 | X13: 173.1676448 | Y13: 177.4968359 | Z13: 181.1912249 | AA13: 184.331019 | AB13: 186.9903624 | AC13: 189.2363493 | AD13: 191.1287128 | AE13: 193.0399999 | AF13: 194.9703999 | AG13: 196.9201039 | AH13: 198.889305 | AI13: 200.878198 | AJ13: 202.88698 | AK13: 204.9158498 | AL13: 206.9650083 | AM13: 209.0346584 | AN13: 211.125005 | AO13: 213.236255 | AP13: 215.3686176 | AQ13: 217.5223038 | AR13: 219.6975268 | AS13: 221.8945021 | AT13: 224.1134471 | AU13: 226.3545816 | AV13: 228.6181274 | AW13: 230.9043086 | AX13: 233.2133517 | AY13: 235.5454852 | AZ13: 237.9009401 | BA13: 240.2799495 | BB13: 242.682749 | BC13: 245.1095765 | BD13: 247.5606723 | BE13: 250.036279 | BF13: 252.5366418 | BG13: 255.0620082 | BH13: 257.6126283 | BI13: 260.1887545 | BJ13: 262.7906421 | BK13: 265.4185485 | BL13: 268.072734 | BM13: 270.7534613 | BN13: 273.460996 | BO13: 276.1956059 | BP13: 278.957562 | BQ13: 281.7471376 | BR13: 284.564609 | BS13: 287.4102551 | BT13: 290.2843576 | BU13: 293.1872012 | BV13: 296.1190732 | BW13: =BW10+BW11-BW12 -> 299.0802639 | BX13: 302.0710666 | BY13: 305.0917772 | BZ13: 308.142695 | CA13: 311.224122 | CB13: 314.3363632 | CC13: 317.4797268 | CD13: 320.6545241 | CE13: 323.8610693 | CF13: 327.09968 | CG13: 330.3706768 | CH13: 333.6743836 | CI13: 337.0111274 | CJ13: 340.3812387 | CK13: 343.7850511 | CL13: 347.2229016 | CM13: 350.6951306 | CN13: 354.2020819 | CO13: 357.7441027 | CP13: 361.3215438 | CQ13: 364.9347592 | CR13: 368.5841068 | CS13: 372.2699478 | CT13: 375.9926473 | CU13: 379.7525738 | CV13: 383.5500995 | CW13: 387.3856005 | CX13: 391.2594565 | CY13: 395.1720511 | CZ13: 399.1237716 | DA13: 403.1150093 | DB13: 407.1461594 | DC13: 411.217621 | DD13: 415.3297972 | DE13: 419.4830952 | DF13: 423.6779262 | DG13: 427.9147054 | DH13: 432.1938525 | DI13: 436.515791 | DJ13: 440.8809489 | DK13: 445.2897584 | DL13: 449.742656 | DM13: 454.2400825 | DN13: 458.7824834 | DO13: 463.3703082 | DP13: 468.0040113 | DQ13: 472.6840514 | DR13: 477.4108919 | DS13: 482.1850008 | DT13: 487.0068508 | DU13: 491.8769193 | DV13: 496.7956885 | DW13: 501.7636454 | DX13: 506.7812819 | DY13: 511.8490947 | DZ13: 516.9675856 | EA13: 522.1372615 | EB13: 527.3586341 | EC13: 532.6322204 | ED13: 537.9585427 | EE13: 543.3381281 | EF13: 548.7715094 | EG13: 554.2592245 | EH13: 559.8018167 | EI13: =EI10+EI11-EI12 -> 565.3998349 | EJ13: 571.0538332 | EK13: 576.7643715 | EL13: 582.5320153 | EM13: 588.3573354 | EN13: 594.2409088 | EO13: 600.1833179 | EP13: 606.185151 | EQ13: 612.2470025 | ER13: 618.3694726 | ES13: 624.5531673 | ET13: 630.798699 | EU13: 637.106686 | EV13: 643.4777528 | EW13: 649.9125303 | EX13: 656.4116557 | EY13: 662.9757722 | EZ13: 669.6055299 | FA13: 676.3015852 | FB13: 683.0646011 | FC13: 689.8952471 | FD13: 696.7941996 | FE13: 703.7621416 | FF13: 710.799763 | FG13: 717.9077606 | FH13: 725.0868382 | FI13: 732.3377066 | FJ13: 739.6610837 | FK13: 747.0576945 | FL13: 754.5282714 | FM13: 762.0735542 | FN13: 769.6942897 | FO13: 777.3912326 | FP13: 785.1651449 | FQ13: 793.0167964 | FR13: 800.9469643 | FS13: 808.956434 | FT13: 817.0459983 | FU13: 825.2164583 | FV13: 833.4686229 | FW13: 841.8033091 | FX13: 850.2213422 | FY13: 858.7235556 | FZ13: 867.3107912 | GA13: 875.9838991 | GB13: 884.7437381 | GC13: 893.5911755 | GD13: 902.5270872 | GE13: 911.5523581 | GF13: 920.6678817 | GG13: 929.8745605 | GH13: 939.1733061 | GI13: 948.5650392 | GJ13: 958.0506895 | GK13: 967.6311964 | GL13: 977.3075084 | GM13: 987.0805835 | GN13: 996.9513893 | GO13: 1006.920903 | GP13: 1016.990112 | GQ13: 1027.160013 | GR13: 1037.431614 | GS13: 1047.80593 | GT13: 1058.283989 | GU13: =GU10+GU11-GU12 -> 1068.866829 | GV13: 1079.555497 | GW13: 1090.351052 | GX13: 1101.254563 | GY13: 1112.267108 | GZ13: 1123.389779 | HA13: 1134.623677 | HB13: 1145.969914 | HC13: 1157.429613 | HD13: 1169.003909 | HE13: 1180.693948 | HF13: 1192.500888 | HG13: 1204.425897 | HH13: 1216.470156 | HI13: 1228.634857 | HJ13: 1240.921206 | HK13: 1253.330418 | HL13: 1265.863722 | HM13: 1278.522359 | HN13: 1291.307583 | HO13: 1304.220659 | HP13: 1317.262865 | HQ13: 1330.435494 | HR13: 1343.739849 | HS13: 1357.177247 | HT13: 1370.74902 | HU13: 1384.45651 | HV13: 1398.301075 | HW13: 1412.284086 | HX13: 1426.406927 | HY13: 1440.670996 | HZ13: 1455.077706 | IA13: 1469.628483 | IB13: 1484.324768 | IC13: 1499.168015 | ID13: 1514.159696 | IE13: 1529.301292 | IF13: 1544.594305 | IG13: 1560.040248 | IH13: 1575.640651 | II13: 1591.397057 | IJ13: 1607.311028 | IK13: 1623.384138 | IL13: 1639.61798 | IM13: 1656.01416 | IN13: 1672.574301 | IO13: 1689.300044 | IP13: 1706.193045 | IQ13: 1723.254975 | IR13: 1740.487525 | IS13: 1757.8924 | IT13: 1775.471324 | IU13: 1793.226037 | IV13: 1811.158298 | IW13: 1829.269881 | IX13: 1847.562579 | IY13: 1866.038205 | IZ13: 1884.698587 | JA13: 1903.545573 | JB13: 1922.581029 | JC13: 1941.806839 | JD13: 1961.224908 | JE13: 1980.837157 | JF13: 2000.645528 | JG13: =JG10+JG11-JG12 -> 2020.651983 | JH13: 2040.858503 | JI13: 2061.267088 | JJ13: 2081.879759 | JK13: 2102.698557 | JL13: 2123.725542 | JM13: 2144.962798 | JN13: 2166.412426 | JO13: 2188.07655 | JP13: 2209.957316 | JQ13: 2232.056889 | JR13: 2254.377458 | JS13: 2276.921232 | JT13: 2299.690444 | JU13: 2322.687349 | JV13: 2345.914222 | JW13: 2369.373365 | JX13: 2393.067098 | JY13: 2416.997769 | JZ13: 2441.167747 | KA13: 2465.579424 | KB13: 2490.235219 | KC13: 2515.137571 | KD13: 2540.288947 | KE13: 2565.691836 | KF13: 2591.348754 | KG13: 2617.262242 | KH13: 2643.434864 | KI13: 2669.869213 | KJ13: 2696.567905 | KK13: 2723.533584 | KL13: 2750.76892 | KM13: 2778.276609 | KN13: 2806.059375 | KO13: 2834.119969 | KP13: 2862.461169 | KQ13: 2891.08578 | KR13: 2919.996638 | KS13: 2949.196605 | KT13: 2978.688571 | KU13: 3008.475456 | KV13: 3038.560211 | KW13: 3068.945813 | KX13: =KX10+KX11-KX12 -> 3099.635271 | KY13: 3130.631624 | KZ13: 3161.93794 | LA13: 3193.55732 | LB13: 3225.492893 | LC13: 3257.747822 | LD13: 3290.3253 | LE13: 3323.228553 | LF13: 3356.460838 | LG13: 3390.025447 | LH13: 3423.925701 | LI13: 3458.164958 | LJ13: 3492.746608 | LK13: 3527.674074 | LL13: 3562.950815 | LM13: 3598.580323 | LN13: 3634.566126 | LO13: 3670.911787 | LP13: 3707.620905 | LQ13: 3744.697114 | LR13: 3782.144085 | LS13: 3819.965526 | LT13: 3858.165181 | LU13: 3896.746833 | LV13: 3935.714302 | LW13: 3975.071445 | LX13: 4014.822159 | LY13: 4054.970381 | LZ13: 4095.520084 | MA13: 4136.475285 | MB13: 4177.840038 | MC13: 4219.618439 | MD13: 4261.814623 | ME13: 4304.432769 | MF13: 4347.477097 | MG13: 4390.951868 | MH13: 4434.861386 | MI13: 4479.21 | MJ13: 4524.0021 | MK13: 4569.242121 | ML13: 4614.934543 | MM13: 4661.083888 | MN13: 4707.694727 | MO13: 4754.771674 | MP13: 4802.319391 | MQ13: 4850.342585 | MR13: 4898.846011 | MS13: 4947.834471 | MT13: 4997.312815 | MU13: 5047.285944 | MV13: 5097.758803 | MW13: 5148.736391 | MX13: 5200.223755 | MY13: 5252.225993 | MZ13: 5304.748252 | NA13: 5357.795735 | NB13: 5411.373692 | NC13: 5465.487429 | ND13: 5520.142304 | NE13: 5575.343727 | NF13: 5631.097164 | NG13: 5687.408136 | NH13: 5744.282217 | NI13: 5801.725039 | NJ13: =NJ10+NJ11-NJ12 -> 5859.742289 | NK13: 5918.339712 | NL13: 5977.523109 | NM13: 6037.298341 | NN13: 6097.671324 | NO13: 6158.648037 | NP13: 6220.234518 | NQ13: 6282.436863 | NR13: 6345.261231 | NS13: 6408.713844 | NT13: 6472.800982 | NU13: 6537.528992 | NV13: 6602.904282 | NW13: 6668.933325 | NX13: 6735.622658 | NY13: 6802.978884 | NZ13: 6871.008673 | OA13: 6939.71876 | OB13: 7009.115948 | OC13: 7079.207107 | OD13: 7149.999178 | OE13: 7221.49917 | OF13: 7293.714162 | OG13: 7366.651303 | OH13: 7440.317816 | OI13: 7514.720995 | OJ13: 7589.868204 | OK13: 7665.766886 | OL13: 7742.424555 | OM13: 7819.848801 | ON13: 7898.047289 | OO13: 7977.027762 | OP13: 8056.798039 | OQ13: 8137.36602 | OR13: 8218.73968 | OS13: 8300.927077 | OT13: 8383.936348 | OU13: 8467.775711 | OV13: 8552.453468 | OW13: 8637.978003 | OX13: 8724.357783 | OY13: 8811.601361 | OZ13: 8899.717374 | PA13: 8988.714548 | PB13: 9078.601694 | PC13: 9169.38771 | PD13: 9261.081588 | PE13: 9353.692403 | PF13: 9447.229327 | PG13: 9541.701621 | PH13: 9637.118637 | PI13: 9733.489823 | PJ13: 9830.824722 | PK13: 9929.132969 | PL13: 10028.4243 | PM13: 10128.70854 | PN13: 10229.99563 | PO13: 10332.29558 | PP13: 10435.61854 | PQ13: 10539.97472 | PR13: 10645.37447 | PS13: 10751.82822 | PT13: 10859.3465 | PU13: 10967.93996 | PV13: =PV10+PV11-PV12 -> 11077.61936 | PW13: 11188.39556 | PX13: 11300.27951 | PY13: 11413.28231 | PZ13: 11527.41513 | QA13: 11642.68928 | QB13: 11759.11617 | QC13: 11876.70734 | QD13: 11995.47441 | QE13: 12115.42915 | QF13: 12236.58345 | QG13: 12358.94928 | QH13: 12482.53877 | QI13: 12607.36416 | QJ13: 12733.4378 | QK13: 12860.77218 | QL13: 12989.3799 | QM13: 13119.2737 | QN13: 13250.46644 | QO13: 13382.9711 | QP13: 13516.80081 | QQ13: 13651.96882 | QR13: 13788.48851 | QS13: 13926.37339 | QT13: 14065.63713 | QU13: 14206.2935 | QV13: 14348.35643 | QW13: 14491.84 | QX13: 14636.7584 | QY13: 14783.12598 | QZ13: 14930.95724 | RA13: 15080.26682 | RB13: 15231.06948 | RC13: 15383.38018 | RD13: 15537.21398 | RE13: 15692.58612 | RF13: 15849.51198 | RG13: 16008.0071 | RH13: 16168.08717 | RI13: 16329.76804 | RJ13: 16493.06572 | RK13: 16657.99638 | RL13: 16824.57635 | RM13: 16992.82211 | RN13: 17162.75033 | RO13: 17334.37783 | RP13: 17507.72161 | RQ13: 17682.79883 | RR13: 17859.62682 | RS13: 18038.22308 | RT13: 18218.60531 | RU13: 18400.79137 | RV13: 18584.79928 | RW13: 18770.64727 | RX13: 18958.35375 | RY13: 19147.93728 | RZ13: 19339.41666 | SA13: 19532.81082 | SB13: 19728.13893 | SC13: 19925.42032 | SD13: 20124.67452 | SE13: 20325.92127 | SF13: 20529.18048 | SG13: 20734.47229 | SH13: =SH10+SH11-SH12 -> 20941.81701 | SI13: 21151.23518 | SJ13: 21362.74753 | SK13: 21576.37501 | SL13: 21792.13876 | SM13: 22010.06015 | SN13: 22230.16075 | SO13: 22452.46235 | SP13: 22676.98698 | SQ13: 22903.75685 | SR13: 23132.79442 | SS13: 23364.12236 | ST13: 23597.76358 | SU13: 23833.74122 | SV13: 24072.07863 | SW13: 24312.79942 | SX13: 24555.92741 | SY13: 24801.48669 | SZ13: 25049.50155 | TA13: 25299.99657 | TB13: 25552.99653 | TC13: 25808.5265
D14: Change in Investment | K14: =K13-K10 -> 4 | L14: =L13-L10 -> 4.16 | M14: 4.3264 | N14: 4.499456 | O14: 4.67943424 | P14: 4.86661161 | Q14: 5.061276074 | R14: 5.263727117 | S14: 5.474276202 | T14: 5.69324725 | U14: 5.92097714 | V14: 6.157816225 | W14: 6.404128874 | X14: 6.660294029 | Y14: 4.329191119 | Z14: 3.694389 | AA14: 3.139794079 | AB14: 2.659343437 | AC14: 2.245986932 | AD14: 1.892363493 | AE14: 1.911287128 | AF14: 1.930399999 | AG14: 1.949703999 | AH14: 1.969201039 | AI14: 1.98889305 | AJ14: 2.00878198 | AK14: 2.0288698 | AL14: 2.049158498 | AM14: 2.069650083 | AN14: 2.090346584 | AO14: 2.11125005 | AP14: 2.13236255 | AQ14: 2.153686176 | AR14: 2.175223038 | AS14: 2.196975268 | AT14: 2.218945021 | AU14: 2.241134471 | AV14: 2.263545816 | AW14: 2.286181274 | AX14: 2.309043086 | AY14: 2.332133517 | AZ14: 2.355454852 | BA14: 2.379009401 | BB14: 2.402799495 | BC14: 2.42682749 | BD14: 2.451095765 | BE14: 2.475606723 | BF14: 2.50036279 | BG14: 2.525366418 | BH14: 2.550620082 | BI14: 2.576126283 | BJ14: 2.601887545 | BK14: 2.627906421 | BL14: 2.654185485 | BM14: 2.68072734 | BN14: 2.707534613 | BO14: 2.73460996 | BP14: 2.761956059 | BQ14: 2.78957562 | BR14: 2.817471376 | BS14: 2.84564609 | BT14: 2.874102551 | BU14: 2.902843576 | BV14: 2.931872012 | BW14: 2.961190732 | BX14: =BX13-BX10 -> 2.990802639 | BY14: 3.020710666 | BZ14: 3.050917772 | CA14: 3.08142695 | CB14: 3.11224122 | CC14: 3.143363632 | CD14: 3.174797268 | CE14: 3.206545241 | CF14: 3.238610693 | CG14: 3.2709968 | CH14: 3.303706768 | CI14: 3.336743836 | CJ14: 3.370111274 | CK14: 3.403812387 | CL14: 3.437850511 | CM14: 3.472229016 | CN14: 3.506951306 | CO14: 3.542020819 | CP14: 3.577441027 | CQ14: 3.613215438 | CR14: 3.649347592 | CS14: 3.685841068 | CT14: 3.722699478 | CU14: 3.759926473 | CV14: 3.797525738 | CW14: 3.835500995 | CX14: 3.873856005 | CY14: 3.912594565 | CZ14: 3.951720511 | DA14: 3.991237716 | DB14: 4.031150093 | DC14: 4.071461594 | DD14: 4.11217621 | DE14: 4.153297972 | DF14: 4.194830952 | DG14: 4.236779262 | DH14: 4.279147054 | DI14: 4.321938525 | DJ14: 4.36515791 | DK14: 4.408809489 | DL14: 4.452897584 | DM14: 4.49742656 | DN14: 4.542400825 | DO14: 4.587824834 | DP14: 4.633703082 | DQ14: 4.680040113 | DR14: 4.726840514 | DS14: 4.774108919 | DT14: 4.821850008 | DU14: 4.870068508 | DV14: 4.918769193 | DW14: 4.967956885 | DX14: 5.017636454 | DY14: 5.067812819 | DZ14: 5.118490947 | EA14: 5.169675856 | EB14: 5.221372615 | EC14: 5.273586341 | ED14: 5.326322204 | EE14: 5.379585427 | EF14: 5.433381281 | EG14: 5.487715094 | EH14: 5.542592245 | EI14: 5.598018167 | EJ14: =EJ13-EJ10 -> 5.653998349 | EK14: 5.710538332 | EL14: 5.767643715 | EM14: 5.825320153 | EN14: 5.883573354 | EO14: 5.942409088 | EP14: 6.001833179 | EQ14: 6.06185151 | ER14: 6.122470025 | ES14: 6.183694726 | ET14: 6.245531673 | EU14: 6.30798699 | EV14: 6.37106686 | EW14: 6.434777528 | EX14: 6.499125303 | EY14: 6.564116557 | EZ14: 6.629757722 | FA14: 6.696055299 | FB14: 6.763015852 | FC14: 6.830646011 | FD14: 6.898952471 | FE14: 6.967941996 | FF14: 7.037621416 | FG14: 7.10799763 | FH14: 7.179077606 | FI14: 7.250868382 | FJ14: 7.323377066 | FK14: 7.396610837 | FL14: 7.470576945 | FM14: 7.545282714 | FN14: 7.620735542 | FO14: 7.696942897 | FP14: 7.773912326 | FQ14: 7.851651449 | FR14: 7.930167964 | FS14: 8.009469643 | FT14: 8.08956434 | FU14: 8.170459983 | FV14: 8.252164583 | FW14: 8.334686229 | FX14: 8.418033091 | FY14: 8.502213422 | FZ14: 8.587235556 | GA14: 8.673107912 | GB14: 8.759838991 | GC14: 8.847437381 | GD14: 8.935911755 | GE14: 9.025270872 | GF14: 9.115523581 | GG14: 9.206678817 | GH14: 9.298745605 | GI14: 9.391733061 | GJ14: 9.485650392 | GK14: 9.580506895 | GL14: 9.676311964 | GM14: 9.773075084 | GN14: 9.870805835 | GO14: 9.969513893 | GP14: 10.06920903 | GQ14: 10.16990112 | GR14: 10.27160013 | GS14: 10.37431614 | GT14: 10.4780593 | GU14: 10.58283989 | GV14: =GV13-GV10 -> 10.68866829 | GW14: 10.79555497 | GX14: 10.90351052 | GY14: 11.01254563 | GZ14: 11.12267108 | HA14: 11.23389779 | HB14: 11.34623677 | HC14: 11.45969914 | HD14: 11.57429613 | HE14: 11.69003909 | HF14: 11.80693948 | HG14: 11.92500888 | HH14: 12.04425897 | HI14: 12.16470156 | HJ14: 12.28634857 | HK14: 12.40921206 | HL14: 12.53330418 | HM14: 12.65863722 | HN14: 12.78522359 | HO14: 12.91307583 | HP14: 13.04220659 | HQ14: 13.17262865 | HR14: 13.30435494 | HS14: 13.43739849 | HT14: 13.57177247 | HU14: 13.7074902 | HV14: 13.8445651 | HW14: 13.98301075 | HX14: 14.12284086 | HY14: 14.26406927 | HZ14: 14.40670996 | IA14: 14.55077706 | IB14: 14.69628483 | IC14: 14.84324768 | ID14: 14.99168015 | IE14: 15.14159696 | IF14: 15.29301292 | IG14: 15.44594305 | IH14: 15.60040248 | II14: 15.75640651 | IJ14: 15.91397057 | IK14: 16.07311028 | IL14: 16.23384138 | IM14: 16.3961798 | IN14: 16.5601416 | IO14: 16.72574301 | IP14: 16.89300044 | IQ14: 17.06193045 | IR14: 17.23254975 | IS14: 17.40487525 | IT14: 17.578924 | IU14: 17.75471324 | IV14: 17.93226037 | IW14: 18.11158298 | IX14: 18.29269881 | IY14: 18.47562579 | IZ14: 18.66038205 | JA14: 18.84698587 | JB14: 19.03545573 | JC14: 19.22581029 | JD14: 19.41806839 | JE14: 19.61224908 | JF14: 19.80837157 | JG14: 20.00645528 | JH14: =JH13-JH10 -> 20.20651983 | JI14: 20.40858503 | JJ14: 20.61267088 | JK14: 20.81879759 | JL14: 21.02698557 | JM14: 21.23725542 | JN14: 21.44962798 | JO14: 21.66412426 | JP14: 21.8807655 | JQ14: 22.09957316 | JR14: 22.32056889 | JS14: 22.54377458 | JT14: 22.76921232 | JU14: 22.99690444 | JV14: 23.22687349 | JW14: 23.45914222 | JX14: 23.69373365 | JY14: 23.93067098 | JZ14: 24.16997769 | KA14: 24.41167747 | KB14: 24.65579424 | KC14: 24.90235219 | KD14: 25.15137571 | KE14: 25.40288947 | KF14: 25.65691836 | KG14: 25.91348754 | KH14: 26.17262242 | KI14: 26.43434864 | KJ14: 26.69869213 | KK14: 26.96567905 | KL14: 27.23533584 | KM14: 27.5076892 | KN14: 27.78276609 | KO14: 28.06059375 | KP14: 28.34119969 | KQ14: 28.62461169 | KR14: 28.9108578 | KS14: 29.19996638 | KT14: 29.49196605 | KU14: 29.78688571 | KV14: 30.08475456 | KW14: 30.38560211 | KX14: =KX13-KX10 -> 30.68945813 | KY14: =KY13-KY10 -> 30.99635271 | KZ14: =KZ13-KZ10 -> 31.30631624 | LA14: =LA13-LA10 -> 31.6193794 | LB14: =LB13-LB10 -> 31.9355732 | LC14: =LC13-LC10 -> 32.25492893 | LD14: =LD13-LD10 -> 32.57747822 | LE14: =LE13-LE10 -> 32.903253 | LF14: =LF13-LF10 -> 33.23228553 | LG14: =LG13-LG10 -> 33.56460838 | LH14: =LH13-LH10 -> 33.90025447 | LI14: =LI13-LI10 -> 34.23925701 | LJ14: =LJ13-LJ10 -> 34.58164958 | LK14: =LK13-LK10 -> 34.92746608 | LL14: =LL13-LL10 -> 35.27674074 | LM14: =LM13-LM10 -> 35.62950815 | LN14: =LN13-LN10 -> 35.98580323 | LO14: =LO13-LO10 -> 36.34566126 | LP14: =LP13-LP10 -> 36.70911787 | LQ14: =LQ13-LQ10 -> 37.07620905 | LR14: =LR13-LR10 -> 37.44697114 | LS14: =LS13-LS10 -> 37.82144085 | LT14: =LT13-LT10 -> 38.19965526 | LU14: =LU13-LU10 -> 38.58165181 | LV14: =LV13-LV10 -> 38.96746833 | LW14: =LW13-LW10 -> 39.35714302 | LX14: =LX13-LX10 -> 39.75071445 | LY14: =LY13-LY10 -> 40.14822159 | LZ14: =LZ13-LZ10 -> 40.54970381 | MA14: =MA13-MA10 -> 40.95520084 | MB14: =MB13-MB10 -> 41.36475285 | MC14: =MC13-MC10 -> 41.77840038 | MD14: =MD13-MD10 -> 42.19618439 | ME14: =ME13-ME10 -> 42.61814623 | MF14: =MF13-MF10 -> 43.04432769 | MG14: =MG13-MG10 -> 43.47477097 | MH14: =MH13-MH10 -> 43.90951868 | MI14: =MI13-MI10 -> 44.34861386 | MJ14: =MJ13-MJ10 -> 44.7921 | MK14: =MK13-MK10 -> 45.240021 | ML14: =ML13-ML10 -> 45.69242121 | MM14: =MM13-MM10 -> 46.14934543 | MN14: =MN13-MN10 -> 46.61083888 | MO14: =MO13-MO10 -> 47.07694727 | MP14: =MP13-MP10 -> 47.54771674 | MQ14: =MQ13-MQ10 -> 48.02319391 | MR14: =MR13-MR10 -> 48.50342585 | MS14: =MS13-MS10 -> 48.98846011 | MT14: =MT13-MT10 -> 49.47834471 | MU14: =MU13-MU10 -> 49.97312815 | MV14: =MV13-MV10 -> 50.47285944 | MW14: =MW13-MW10 -> 50.97758803 | MX14: =MX13-MX10 -> 51.48736391 | MY14: =MY13-MY10 -> 52.00223755 | MZ14: =MZ13-MZ10 -> 52.52225993 | NA14: =NA13-NA10 -> 53.04748252 | NB14: =NB13-NB10 -> 53.57795735 | NC14: =NC13-NC10 -> 54.11373692 | ND14: =ND13-ND10 -> 54.65487429 | NE14: =NE13-NE10 -> 55.20142304 | NF14: =NF13-NF10 -> 55.75343727 | NG14: =NG13-NG10 -> 56.31097164 | NH14: =NH13-NH10 -> 56.87408136 | NI14: =NI13-NI10 -> 57.44282217 | NJ14: =NJ13-NJ10 -> 58.01725039 | NK14: =NK13-NK10 -> 58.59742289 | NL14: =NL13-NL10 -> 59.18339712 | NM14: =NM13-NM10 -> 59.77523109 | NN14: =NN13-NN10 -> 60.37298341 | NO14: =NO13-NO10 -> 60.97671324 | NP14: =NP13-NP10 -> 61.58648037 | NQ14: =NQ13-NQ10 -> 62.20234518 | NR14: =NR13-NR10 -> 62.82436863 | NS14: =NS13-NS10 -> 63.45261231 | NT14: =NT13-NT10 -> 64.08713844 | NU14: =NU13-NU10 -> 64.72800982 | NV14: =NV13-NV10 -> 65.37528992 | NW14: =NW13-NW10 -> 66.02904282 | NX14: =NX13-NX10 -> 66.68933325 | NY14: =NY13-NY10 -> 67.35622658 | NZ14: =NZ13-NZ10 -> 68.02978884 | OA14: =OA13-OA10 -> 68.71008673 | OB14: =OB13-OB10 -> 69.3971876 | OC14: =OC13-OC10 -> 70.09115948 | OD14: =OD13-OD10 -> 70.79207107 | OE14: =OE13-OE10 -> 71.49999178 | OF14: =OF13-OF10 -> 72.2149917 | OG14: =OG13-OG10 -> 72.93714162 | OH14: =OH13-OH10 -> 73.66651303 | OI14: =OI13-OI10 -> 74.40317816 | OJ14: =OJ13-OJ10 -> 75.14720995 | OK14: =OK13-OK10 -> 75.89868204 | OL14: =OL13-OL10 -> 76.65766886 | OM14: =OM13-OM10 -> 77.42424555 | ON14: =ON13-ON10 -> 78.19848801 | OO14: =OO13-OO10 -> 78.98047289 | OP14: =OP13-OP10 -> 79.77027762 | OQ14: =OQ13-OQ10 -> 80.56798039 | OR14: =OR13-OR10 -> 81.3736602 | OS14: =OS13-OS10 -> 82.1873968 | OT14: =OT13-OT10 -> 83.00927077 | OU14: =OU13-OU10 -> 83.83936348 | OV14: =OV13-OV10 -> 84.67775711 | OW14: =OW13-OW10 -> 85.52453468 | OX14: =OX13-OX10 -> 86.37978003 | OY14: =OY13-OY10 -> 87.24357783 | OZ14: =OZ13-OZ10 -> 88.11601361 | PA14: =PA13-PA10 -> 88.99717374 | PB14: =PB13-PB10 -> 89.88714548 | PC14: =PC13-PC10 -> 90.78601694 | PD14: =PD13-PD10 -> 91.6938771 | PE14: =PE13-PE10 -> 92.61081588 | PF14: =PF13-PF10 -> 93.53692403 | PG14: =PG13-PG10 -> 94.47229327 | PH14: =PH13-PH10 -> 95.41701621 | PI14: =PI13-PI10 -> 96.37118637 | PJ14: =PJ13-PJ10 -> 97.33489823 | PK14: =PK13-PK10 -> 98.30824722 | PL14: =PL13-PL10 -> 99.29132969 | PM14: =PM13-PM10 -> 100.284243 | PN14: =PN13-PN10 -> 101.2870854 | PO14: =PO13-PO10 -> 102.2999563 | PP14: =PP13-PP10 -> 103.3229558 | PQ14: =PQ13-PQ10 -> 104.3561854 | PR14: =PR13-PR10 -> 105.3997472 | PS14: =PS13-PS10 -> 106.4537447 | PT14: =PT13-PT10 -> 107.5182822 | PU14: =PU13-PU10 -> 108.593465 | PV14: =PV13-PV10 -> 109.6793996 | PW14: =PW13-PW10 -> 110.7761936 | PX14: =PX13-PX10 -> 111.8839556 | PY14: =PY13-PY10 -> 113.0027951 | PZ14: =PZ13-PZ10 -> 114.1328231 | QA14: =QA13-QA10 -> 115.2741513 | QB14: =QB13-QB10 -> 116.4268928 | QC14: =QC13-QC10 -> 117.5911617 | QD14: =QD13-QD10 -> 118.7670734 | QE14: =QE13-QE10 -> 119.9547441 | QF14: =QF13-QF10 -> 121.1542915 | QG14: =QG13-QG10 -> 122.3658345 | QH14: =QH13-QH10 -> 123.5894928 | QI14: =QI13-QI10 -> 124.8253877 | QJ14: =QJ13-QJ10 -> 126.0736416 | QK14: =QK13-QK10 -> 127.334378 | QL14: =QL13-QL10 -> 128.6077218 | QM14: =QM13-QM10 -> 129.893799 | QN14: =QN13-QN10 -> 131.192737 | QO14: =QO13-QO10 -> 132.5046644 | QP14: =QP13-QP10 -> 133.829711 | QQ14: =QQ13-QQ10 -> 135.1680081 | QR14: =QR13-QR10 -> 136.5196882 | QS14: =QS13-QS10 -> 137.8848851 | QT14: =QT13-QT10 -> 139.2637339 | QU14: =QU13-QU10 -> 140.6563713 | QV14: =QV13-QV10 -> 142.062935 | QW14: =QW13-QW10 -> 143.4835643 | QX14: =QX13-QX10 -> 144.9184 | QY14: =QY13-QY10 -> 146.367584 | QZ14: =QZ13-QZ10 -> 147.8312598 | RA14: =RA13-RA10 -> 149.3095724 | RB14: =RB13-RB10 -> 150.8026682 | RC14: =RC13-RC10 -> 152.3106948 | RD14: =RD13-RD10 -> 153.8338018 | RE14: =RE13-RE10 -> 155.3721398 | RF14: =RF13-RF10 -> 156.9258612 | RG14: =RG13-RG10 -> 158.4951198 | RH14: =RH13-RH10 -> 160.080071 | RI14: =RI13-RI10 -> 161.6808717 | RJ14: =RJ13-RJ10 -> 163.2976804 | RK14: =RK13-RK10 -> 164.9306572 | RL14: =RL13-RL10 -> 166.5799638 | RM14: =RM13-RM10 -> 168.2457635 | RN14: =RN13-RN10 -> 169.9282211 | RO14: =RO13-RO10 -> 171.6275033 | RP14: =RP13-RP10 -> 173.3437783 | RQ14: =RQ13-RQ10 -> 175.0772161 | RR14: =RR13-RR10 -> 176.8279883 | RS14: =RS13-RS10 -> 178.5962682 | RT14: =RT13-RT10 -> 180.3822308 | RU14: =RU13-RU10 -> 182.1860531 | RV14: =RV13-RV10 -> 184.0079137 | RW14: =RW13-RW10 -> 185.8479928 | RX14: =RX13-RX10 -> 187.7064727 | RY14: =RY13-RY10 -> 189.5835375 | RZ14: =RZ13-RZ10 -> 191.4793728 | SA14: =SA13-SA10 -> 193.3941666 | SB14: =SB13-SB10 -> 195.3281082 | SC14: =SC13-SC10 -> 197.2813893 | SD14: =SD13-SD10 -> 199.2542032 | SE14: =SE13-SE10 -> 201.2467452 | SF14: =SF13-SF10 -> 203.2592127 | SG14: =SG13-SG10 -> 205.2918048 | SH14: =SH13-SH10 -> 207.3447229 | SI14: =SI13-SI10 -> 209.4181701 | SJ14: =SJ13-SJ10 -> 211.5123518 | SK14: =SK13-SK10 -> 213.6274753 | SL14: =SL13-SL10 -> 215.7637501 | SM14: =SM13-SM10 -> 217.9213876 | SN14: =SN13-SN10 -> 220.1006015 | SO14: =SO13-SO10 -> 222.3016075 | SP14: =SP13-SP10 -> 224.5246235 | SQ14: =SQ13-SQ10 -> 226.7698698 | SR14: =SR13-SR10 -> 229.0375685 | SS14: =SS13-SS10 -> 231.3279442 | ST14: =ST13-ST10 -> 233.6412236 | SU14: =SU13-SU10 -> 235.9776358 | SV14: =SV13-SV10 -> 238.3374122 | SW14: =SW13-SW10 -> 240.7207863 | SX14: =SX13-SX10 -> 243.1279942 | SY14: =SY13-SY10 -> 245.5592741 | SZ14: =SZ13-SZ10 -> 248.0148669 | TA14: =TA13-TA10 -> 250.4950155 | TB14: =TB13-TB10 -> 252.9999657 | TC14: =TC13-TC10 -> 255.5299653
F15: CoC | G15: Growth | H15: Mult | AA15: =AA10-Z10 -> 3.694389 | AD15: =AD10*AD6*AD63*(1+G18) -> 157.2707498
D16: NPV of Dividends: True Value | E16: =NPV(F16,12:12) -> 130.484584 | F16: =Scenarios!D3 -> 0.084
D18: Growth Method - Initial Period | E18: =K12*H18 -> 135.5932203 | F18: =Scenarios!D3 -> 0.084 | G18: =Scenarios!H48 -> 0.025 | H18: =1/(F18-G18) -> 16.94915254
F20: ROC | G20: (1-g/r)
D21: Value Driver | E21: =K11*H21 -> 157.164869 | F21: =Scenarios!H47 -> 0.11 | G21: =(1-G18/F21) -> 0.7727272727 | H21: =G21/(F18-G18) -> 13.09707242
D23: Price to Earnings | E23: =E16/K11 -> 10.87371533
D24: Price to Book | E24: =E16/Scenarios!D4 -> 1.30484584
J25: =J3 -> 0 | K25: =K3 -> 1 | L25: =L3 -> 2 | M25: =M3 -> 3 | N25: =N3 -> 4 | O25: =O3 -> 5 | P25: =P3 -> 6 | Q25: =Q3 -> 7 | R25: =R3 -> 8 | S25: =S3 -> 9 | T25: =T3 -> 10 | U25: =U3 -> 11 | V25: =V3 -> 12 | W25: =W3 -> 13 | X25: =X3 -> 14 | Y25: =Y3 -> 15 | Z25: =Z3 -> 16 | AA25: =AA3 -> 17 | AB25: =AB3 -> 18 | AC25: =AC3 -> 19 | AD25: =AD3 -> 20 | AE25: =AE3 -> 21 | AF25: =AF3 -> 22 | AG25: =AG3 -> 23 | AH25: =AH3 -> 24 | AI25: =AI3 -> 25 | AJ25: =AJ3 -> 26 | AK25: =AK3 -> 27 | AL25: =AL3 -> 28 | AM25: =AM3 -> 29 | AN25: =AN3 -> 30 | AO25: =AO3 -> 31 | AP25: =AP3 -> 32 | AQ25: =AQ3 -> 33 | AR25: =AR3 -> 34 | AS25: =AS3 -> 35 | AT25: =AT3 -> 36 | AU25: =AU3 -> 37 | AV25: =AV3 -> 38 | AW25: =AW3 -> 39 | AX25: =AX3 -> 40 | AY25: =AY3 -> 41 | AZ25: =AZ3 -> 42 | BA25: =BA3 -> 43 | BB25: =BB3 -> 44 | BC25: =BC3 -> 45 | BD25: =BD3 -> 46 | BE25: =BE3 -> 47 | BF25: =BF3 -> 48 | BG25: =BG3 -> 49 | BH25: =BH3 -> 50 | BI25: =BI3 -> 51 | BJ25: =BJ3 -> 52 | BK25: =BK3 -> 53 | BL25: =BL3 -> 54 | BM25: =BM3 -> 55 | BN25: =BN3 -> 56 | BO25: =BO3 -> 57 | BP25: =BP3 -> 58 | BQ25: =BQ3 -> 59 | BR25: =BR3 -> 60 | BS25: =BS3 -> 61 | BT25: =BT3 -> 62 | BU25: =BU3 -> 63 | BV25: =BV3 -> 64 | BW25: =BW3 -> 65 | BX25: =BX3 -> 66 | BY25: =BY3 -> 67 | BZ25: =BZ3 -> 68 | CA25: =CA3 -> 69 | CB25: =CB3 -> 70 | CC25: =CC3 -> 71 | CD25: =CD3 -> 72 | CE25: =CE3 -> 73 | CF25: =CF3 -> 74 | CG25: =CG3 -> 75 | CH25: =CH3 -> 76 | CI25: =CI3 -> 77 | CJ25: =CJ3 -> 78 | CK25: =CK3 -> 79 | CL25: =CL3 -> 80 | CM25: =CM3 -> 81 | CN25: =CN3 -> 82 | CO25: =CO3 -> 83 | CP25: =CP3 -> 84 | CQ25: =CQ3 -> 85 | CR25: =CR3 -> 86 | CS25: =CS3 -> 87 | CT25: =CT3 -> 88 | CU25: =CU3 -> 89 | CV25: =CV3 -> 90 | CW25: =CW3 -> 91 | CX25: =CX3 -> 92 | CY25: =CY3 -> 93 | CZ25: =CZ3 -> 94 | DA25: =DA3 -> 95 | DB25: =DB3 -> 96 | DC25: =DC3 -> 97 | DD25: =DD3 -> 98 | DE25: =DE3 -> 99 | DF25: =DF3 -> 100 | DG25: =DG3 -> 101 | DH25: =DH3 -> 102 | DI25: =DI3 -> 103 | DJ25: =DJ3 -> 104 | DK25: =DK3 -> 105 | DL25: =DL3 -> 106 | DM25: =DM3 -> 107 | DN25: =DN3 -> 108 | DO25: =DO3 -> 109 | DP25: =DP3 -> 110 | DQ25: =DQ3 -> 111 | DR25: =DR3 -> 112 | DS25: =DS3 -> 113 | DT25: =DT3 -> 114 | DU25: =DU3 -> 115 | DV25: =DV3 -> 116 | DW25: =DW3 -> 117 | DX25: =DX3 -> 118 | DY25: =DY3 -> 119 | DZ25: =DZ3 -> 120 | EA25: =EA3 -> 121 | EB25: =EB3 -> 122 | EC25: =EC3 -> 123 | ED25: =ED3 -> 124 | EE25: =EE3 -> 125 | EF25: =EF3 -> 126 | EG25: =EG3 -> 127 | EH25: =EH3 -> 128 | EI25: =EI3 -> 129 | EJ25: =EJ3 -> 130 | EK25: =EK3 -> 131 | EL25: =EL3 -> 132 | EM25: =EM3 -> 133 | EN25: =EN3 -> 134 | EO25: =EO3 -> 135 | EP25: =EP3 -> 136 | EQ25: =EQ3 -> 137 | ER25: =ER3 -> 138 | ES25: =ES3 -> 139 | ET25: =ET3 -> 140 | EU25: =EU3 -> 141 | EV25: =EV3 -> 142 | EW25: =EW3 -> 143 | EX25: =EX3 -> 144 | EY25: =EY3 -> 145 | EZ25: =EZ3 -> 146 | FA25: =FA3 -> 147 | FB25: =FB3 -> 148 | FC25: =FC3 -> 149 | FD25: =FD3 -> 150 | FE25: =FE3 -> 151 | FF25: =FF3 -> 152 | FG25: =FG3 -> 153 | FH25: =FH3 -> 154 | FI25: =FI3 -> 155 | FJ25: =FJ3 -> 156 | FK25: =FK3 -> 157 | FL25: =FL3 -> 158 | FM25: =FM3 -> 159 | FN25: =FN3 -> 160 | FO25: =FO3 -> 161 | FP25: =FP3 -> 162 | FQ25: =FQ3 -> 163 | FR25: =FR3 -> 164 | FS25: =FS3 -> 165 | FT25: =FT3 -> 166 | FU25: =FU3 -> 167 | FV25: =FV3 -> 168 | FW25: =FW3 -> 169 | FX25: =FX3 -> 170 | FY25: =FY3 -> 171 | FZ25: =FZ3 -> 172 | GA25: =GA3 -> 173 | GB25: =GB3 -> 174 | GC25: =GC3 -> 175 | GD25: =GD3 -> 176 | GE25: =GE3 -> 177 | GF25: =GF3 -> 178 | GG25: =GG3 -> 179 | GH25: =GH3 -> 180 | GI25: =GI3 -> 181 | GJ25: =GJ3 -> 182 | GK25: =GK3 -> 183 | GL25: =GL3 -> 184 | GM25: =GM3 -> 185 | GN25: =GN3 -> 186 | GO25: =GO3 -> 187 | GP25: =GP3 -> 188 | GQ25: =GQ3 -> 189 | GR25: =GR3 -> 190 | GS25: =GS3 -> 191 | GT25: =GT3 -> 192 | GU25: =GU3 -> 193 | GV25: =GV3 -> 194 | GW25: =GW3 -> 195 | GX25: =GX3 -> 196 | GY25: =GY3 -> 197 | GZ25: =GZ3 -> 198 | HA25: =HA3 -> 199 | HB25: =HB3 -> 200 | HC25: =HC3 -> 201 | HD25: =HD3 -> 202 | HE25: =HE3 -> 203 | HF25: =HF3 -> 204 | HG25: =HG3 -> 205 | HH25: =HH3 -> 206 | HI25: =HI3 -> 207 | HJ25: =HJ3 -> 208 | HK25: =HK3 -> 209 | HL25: =HL3 -> 210 | HM25: =HM3 -> 211 | HN25: =HN3 -> 212 | HO25: =HO3 -> 213 | HP25: =HP3 -> 214 | HQ25: =HQ3 -> 215 | HR25: =HR3 -> 216 | HS25: =HS3 -> 217 | HT25: =HT3 -> 218 | HU25: =HU3 -> 219 | HV25: =HV3 -> 220 | HW25: =HW3 -> 221 | HX25: =HX3 -> 222 | HY25: =HY3 -> 223 | HZ25: =HZ3 -> 224 | IA25: =IA3 -> 225 | IB25: =IB3 -> 226 | IC25: =IC3 -> 227 | ID25: =ID3 -> 228 | IE25: =IE3 -> 229 | IF25: =IF3 -> 230 | IG25: =IG3 -> 231 | IH25: =IH3 -> 232 | II25: =II3 -> 233 | IJ25: =IJ3 -> 234 | IK25: =IK3 -> 235 | IL25: =IL3 -> 236 | IM25: =IM3 -> 237 | IN25: =IN3 -> 238 | IO25: =IO3 -> 239 | IP25: =IP3 -> 240 | IQ25: =IQ3 -> 241 | IR25: =IR3 -> 242 | IS25: =IS3 -> 243 | IT25: =IT3 -> 244 | IU25: =IU3 -> 245 | IV25: =IV3 -> 246 | IW25: =IW3 -> 247 | IX25: =IX3 -> 248 | IY25: =IY3 -> 249 | IZ25: =IZ3 -> 250 | JA25: =JA3 -> 251 | JB25: =JB3 -> 252 | JC25: =JC3 -> 253 | JD25: =JD3 -> 254 | JE25: =JE3 -> 255 | JF25: =JF3 -> 256 | JG25: =JG3 -> 257 | JH25: =JH3 -> 258 | JI25: =JI3 -> 259 | JJ25: =JJ3 -> 260 | JK25: =JK3 -> 261 | JL25: =JL3 -> 262 | JM25: =JM3 -> 263 | JN25: =JN3 -> 264 | JO25: =JO3 -> 265 | JP25: =JP3 -> 266 | JQ25: =JQ3 -> 267 | JR25: =JR3 -> 268 | JS25: =JS3 -> 269 | JT25: =JT3 -> 270 | JU25: =JU3 -> 271 | JV25: =JV3 -> 272 | JW25: =JW3 -> 273 | JX25: =JX3 -> 274 | JY25: =JY3 -> 275 | JZ25: =JZ3 -> 276 | KA25: =KA3 -> 277 | KB25: =KB3 -> 278 | KC25: =KC3 -> 279 | KD25: =KD3 -> 280 | KE25: =KE3 -> 281 | KF25: =KF3 -> 282 | KG25: =KG3 -> 283 | KH25: =KH3 -> 284 | KI25: =KI3 -> 285 | KJ25: =KJ3 -> 286 | KK25: =KK3 -> 287 | KL25: =KL3 -> 288 | KM25: =KM3 -> 289 | KN25: =KN3 -> 290 | KO25: =KO3 -> 291 | KP25: =KP3 -> 292 | KQ25: =KQ3 -> 293 | KR25: =KR3 -> 294 | KS25: =KS3 -> 295 | KT25: =KT3 -> 296 | KU25: =KU3 -> 297 | KV25: =KV3 -> 298 | KW25: =KW3 -> 299 | KX25: =KX3 -> 300 | KY25: =KY3 -> 301 | KZ25: =KZ3 -> 302 | LA25: =LA3 -> 303 | LB25: =LB3 -> 304 | LC25: =LC3 -> 305 | LD25: =LD3 -> 306 | LE25: =LE3 -> 307 | LF25: =LF3 -> 308 | LG25: =LG3 -> 309 | LH25: =LH3 -> 310 | LI25: =LI3 -> 311 | LJ25: =LJ3 -> 312 | LK25: =LK3 -> 313 | LL25: =LL3 -> 314 | LM25: =LM3 -> 315 | LN25: =LN3 -> 316 | LO25: =LO3 -> 317 | LP25: =LP3 -> 318 | LQ25: =LQ3 -> 319 | LR25: =LR3 -> 320 | LS25: =LS3 -> 321 | LT25: =LT3 -> 322 | LU25: =LU3 -> 323 | LV25: =LV3 -> 324 | LW25: =LW3 -> 325 | LX25: =LX3 -> 326 | LY25: =LY3 -> 327 | LZ25: =LZ3 -> 328 | MA25: =MA3 -> 329 | MB25: =MB3 -> 330 | MC25: =MC3 -> 331 | MD25: =MD3 -> 332 | ME25: =ME3 -> 333 | MF25: =MF3 -> 334 | MG25: =MG3 -> 335 | MH25: =MH3 -> 336 | MI25: =MI3 -> 337 | MJ25: =MJ3 -> 338 | MK25: =MK3 -> 339 | ML25: =ML3 -> 340 | MM25: =MM3 -> 341 | MN25: =MN3 -> 342 | MO25: =MO3 -> 343 | MP25: =MP3 -> 344 | MQ25: =MQ3 -> 345 | MR25: =MR3 -> 346 | MS25: =MS3 -> 347 | MT25: =MT3 -> 348 | MU25: =MU3 -> 349 | MV25: =MV3 -> 350 | MW25: =MW3 -> 351 | MX25: =MX3 -> 352 | MY25: =MY3 -> 353 | MZ25: =MZ3 -> 354 | NA25: =NA3 -> 355 | NB25: =NB3 -> 356 | NC25: =NC3 -> 357 | ND25: =ND3 -> 358 | NE25: =NE3 -> 359 | NF25: =NF3 -> 360 | NG25: =NG3 -> 361 | NH25: =NH3 -> 362 | NI25: =NI3 -> 363 | NJ25: =NJ3 -> 364 | NK25: =NK3 -> 365 | NL25: =NL3 -> 366 | NM25: =NM3 -> 367 | NN25: =NN3 -> 368 | NO25: =NO3 -> 369 | NP25: =NP3 -> 370 | NQ25: =NQ3 -> 371 | NR25: =NR3 -> 372 | NS25: =NS3 -> 373 | NT25: =NT3 -> 374 | NU25: =NU3 -> 375 | NV25: =NV3 -> 376 | NW25: =NW3 -> 377 | NX25: =NX3 -> 378 | NY25: =NY3 -> 379 | NZ25: =NZ3 -> 380 | OA25: =OA3 -> 381 | OB25: =OB3 -> 382 | OC25: =OC3 -> 383 | OD25: =OD3 -> 384 | OE25: =OE3 -> 385 | OF25: =OF3 -> 386 | OG25: =OG3 -> 387 | OH25: =OH3 -> 388 | OI25: =OI3 -> 389 | OJ25: =OJ3 -> 390 | OK25: =OK3 -> 391 | OL25: =OL3 -> 392 | OM25: =OM3 -> 393 | ON25: =ON3 -> 394 | OO25: =OO3 -> 395 | OP25: =OP3 -> 396 | OQ25: =OQ3 -> 397 | OR25: =OR3 -> 398 | OS25: =OS3 -> 399 | OT25: =OT3 -> 400 | OU25: =OU3 -> 401 | OV25: =OV3 -> 402 | OW25: =OW3 -> 403 | OX25: =OX3 -> 404 | OY25: =OY3 -> 405 | OZ25: =OZ3 -> 406 | PA25: =PA3 -> 407 | PB25: =PB3 -> 408 | PC25: =PC3 -> 409 | PD25: =PD3 -> 410 | PE25: =PE3 -> 411 | PF25: =PF3 -> 412 | PG25: =PG3 -> 413 | PH25: =PH3 -> 414 | PI25: =PI3 -> 415 | PJ25: =PJ3 -> 416 | PK25: =PK3 -> 417 | PL25: =PL3 -> 418 | PM25: =PM3 -> 419 | PN25: =PN3 -> 420 | PO25: =PO3 -> 421 | PP25: =PP3 -> 422 | PQ25: =PQ3 -> 423 | PR25: =PR3 -> 424 | PS25: =PS3 -> 425 | PT25: =PT3 -> 426 | PU25: =PU3 -> 427 | PV25: =PV3 -> 428 | PW25: =PW3 -> 429 | PX25: =PX3 -> 430 | PY25: =PY3 -> 431 | PZ25: =PZ3 -> 432 | QA25: =QA3 -> 433 | QB25: =QB3 -> 434 | QC25: =QC3 -> 435 | QD25: =QD3 -> 436 | QE25: =QE3 -> 437 | QF25: =QF3 -> 438 | QG25: =QG3 -> 439 | QH25: =QH3 -> 440 | QI25: =QI3 -> 441 | QJ25: =QJ3 -> 442 | QK25: =QK3 -> 443 | QL25: =QL3 -> 444 | QM25: =QM3 -> 445 | QN25: =QN3 -> 446 | QO25: =QO3 -> 447 | QP25: =QP3 -> 448 | QQ25: =QQ3 -> 449 | QR25: =QR3 -> 450 | QS25: =QS3 -> 451 | QT25: =QT3 -> 452 | QU25: =QU3 -> 453 | QV25: =QV3 -> 454 | QW25: =QW3 -> 455 | QX25: =QX3 -> 456 | QY25: =QY3 -> 457 | QZ25: =QZ3 -> 458 | RA25: =RA3 -> 459 | RB25: =RB3 -> 460 | RC25: =RC3 -> 461 | RD25: =RD3 -> 462 | RE25: =RE3 -> 463 | RF25: =RF3 -> 464 | RG25: =RG3 -> 465 | RH25: =RH3 -> 466 | RI25: =RI3 -> 467 | RJ25: =RJ3 -> 468 | RK25: =RK3 -> 469 | RL25: =RL3 -> 470 | RM25: =RM3 -> 471 | RN25: =RN3 -> 472 | RO25: =RO3 -> 473 | RP25: =RP3 -> 474 | RQ25: =RQ3 -> 475 | RR25: =RR3 -> 476 | RS25: =RS3 -> 477 | RT25: =RT3 -> 478 | RU25: =RU3 -> 479 | RV25: =RV3 -> 480 | RW25: =RW3 -> 481 | RX25: =RX3 -> 482 | RY25: =RY3 -> 483 | RZ25: =RZ3 -> 484 | SA25: =SA3 -> 485 | SB25: =SB3 -> 486 | SC25: =SC3 -> 487 | SD25: =SD3 -> 488 | SE25: =SE3 -> 489 | SF25: =SF3 -> 490 | SG25: =SG3 -> 491 | SH25: =SH3 -> 492 | SI25: =SI3 -> 493 | SJ25: =SJ3 -> 494 | SK25: =SK3 -> 495 | SL25: =SL3 -> 496 | SM25: =SM3 -> 497 | SN25: =SN3 -> 498 | SO25: =SO3 -> 499 | SP25: =SP3 -> 500 | SQ25: =SQ3 -> 501 | SR25: =SR3 -> 502 | SS25: =SS3 -> 503 | ST25: =ST3 -> 504 | SU25: =SU3 -> 505 | SV25: =SV3 -> 506 | SW25: =SW3 -> 507 | SX25: =SX3 -> 508 | SY25: =SY3 -> 509 | SZ25: =SZ3 -> 510 | TA25: =TA3 -> 511 | TB25: =TB3 -> 512 | TC25: =TC3 -> 513
B26: Net Income and Dividend
D27: Net Income | K27: =K4*K11 -> 12 | L27: =L4*L11 -> 12.48 | M27: =M4*M11 -> 12.9792 | N27: =N4*N11 -> 13.498368 | O27: =O4*O11 -> 14.03830272 | P27: =P4*P11 -> 14.59983483 | Q27: =Q4*Q11 -> 15.18382822 | R27: =R4*R11 -> 15.79118135 | S27: =S4*S11 -> 16.4228286 | T27: =T4*T11 -> 17.07974175 | U27: =U4*U11 -> 17.76293142 | V27: =V4*V11 -> 18.47344868 | W27: =W4*W11 -> 19.21238662 | X27: =X4*X11 -> 19.98088209 | Y27: =Y4*Y11 -> 19.04844092 | Z27: =Z4*Z11 -> 0 | AA27: =AA4*AA11 -> 0 | AB27: =AB4*AB11 -> 0 | AC27: =AC4*AC11 -> 0 | AD27: =AD4*AD11 -> 0 | AE27: =AE4*AE11 -> 0 | AF27: =AF4*AF11 -> 0 | AG27: =AG4*AG11 -> 0 | AH27: =AH4*AH11 -> 0 | AI27: =AI4*AI11 -> 0 | AJ27: =AJ4*AJ11 -> 0 | AK27: =AK4*AK11 -> 0 | AL27: =AL4*AL11 -> 0 | AM27: =AM4*AM11 -> 0 | AN27: =AN4*AN11 -> 0 | AO27: =AO4*AO11 -> 0 | AP27: =AP4*AP11 -> 0 | AQ27: =AQ4*AQ11 -> 0 | AR27: =AR4*AR11 -> 0 | AS27: =AS4*AS11 -> 0 | AT27: =AT4*AT11 -> 0 | AU27: =AU4*AU11 -> 0 | AV27: =AV4*AV11 -> 0 | AW27: =AW4*AW11 -> 0 | AX27: =AX4*AX11 -> 0 | AY27: =AY4*AY11 -> 0 | AZ27: =AZ4*AZ11 -> 0 | BA27: =BA4*BA11 -> 0 | BB27: =BB4*BB11 -> 0 | BC27: =BC4*BC11 -> 0 | BD27: =BD4*BD11 -> 0 | BE27: =BE4*BE11 -> 0 | BF27: =BF4*BF11 -> 0 | BG27: =BG4*BG11 -> 0 | BH27: =BH4*BH11 -> 0 | BI27: =BI4*BI11 -> 0 | BJ27: =BJ4*BJ11 -> 0 | BK27: =BK4*BK11 -> 0 | BL27: =BL4*BL11 -> 0 | BM27: =BM4*BM11 -> 0 | BN27: =BN4*BN11 -> 0 | BO27: =BO4*BO11 -> 0 | BP27: =BP4*BP11 -> 0 | BQ27: =BQ4*BQ11 -> 0 | BR27: =BR4*BR11 -> 0 | BS27: =BS4*BS11 -> 0 | BT27: =BT4*BT11 -> 0 | BU27: =BU4*BU11 -> 0 | BV27: =BV4*BV11 -> 0 | BW27: =BW4*BW11 -> 0 | BX27: =BX4*BX11 -> 0 | BY27: =BY4*BY11 -> 0 | BZ27: =BZ4*BZ11 -> 0 | CA27: =CA4*CA11 -> 0 | CB27: =CB4*CB11 -> 0 | CC27: =CC4*CC11 -> 0 | CD27: =CD4*CD11 -> 0 | CE27: =CE4*CE11 -> 0 | CF27: =CF4*CF11 -> 0 | CG27: =CG4*CG11 -> 0 | CH27: =CH4*CH11 -> 0 | CI27: =CI4*CI11 -> 0 | CJ27: =CJ4*CJ11 -> 0 | CK27: =CK4*CK11 -> 0 | CL27: =CL4*CL11 -> 0 | CM27: =CM4*CM11 -> 0 | CN27: =CN4*CN11 -> 0 | CO27: =CO4*CO11 -> 0 | CP27: =CP4*CP11 -> 0 | CQ27: =CQ4*CQ11 -> 0 | CR27: =CR4*CR11 -> 0 | CS27: =CS4*CS11 -> 0 | CT27: =CT4*CT11 -> 0 | CU27: =CU4*CU11 -> 0 | CV27: =CV4*CV11 -> 0 | CW27: =CW4*CW11 -> 0 | CX27: =CX4*CX11 -> 0 | CY27: =CY4*CY11 -> 0 | CZ27: =CZ4*CZ11 -> 0 | DA27: =DA4*DA11 -> 0 | DB27: =DB4*DB11 -> 0 | DC27: =DC4*DC11 -> 0 | DD27: =DD4*DD11 -> 0 | DE27: =DE4*DE11 -> 0 | DF27: =DF4*DF11 -> 0 | DG27: =DG4*DG11 -> 0 | DH27: =DH4*DH11 -> 0 | DI27: =DI4*DI11 -> 0 | DJ27: =DJ4*DJ11 -> 0 | DK27: =DK4*DK11 -> 0 | DL27: =DL4*DL11 -> 0 | DM27: =DM4*DM11 -> 0 | DN27: =DN4*DN11 -> 0 | DO27: =DO4*DO11 -> 0 | DP27: =DP4*DP11 -> 0 | DQ27: =DQ4*DQ11 -> 0 | DR27: =DR4*DR11 -> 0 | DS27: =DS4*DS11 -> 0 | DT27: =DT4*DT11 -> 0 | DU27: =DU4*DU11 -> 0 | DV27: =DV4*DV11 -> 0 | DW27: =DW4*DW11 -> 0 | DX27: =DX4*DX11 -> 0 | DY27: =DY4*DY11 -> 0 | DZ27: =DZ4*DZ11 -> 0 | EA27: =EA4*EA11 -> 0 | EB27: =EB4*EB11 -> 0 | EC27: =EC4*EC11 -> 0 | ED27: =ED4*ED11 -> 0 | EE27: =EE4*EE11 -> 0 | EF27: =EF4*EF11 -> 0 | EG27: =EG4*EG11 -> 0 | EH27: =EH4*EH11 -> 0 | EI27: =EI4*EI11 -> 0 | EJ27: =EJ4*EJ11 -> 0 | EK27: =EK4*EK11 -> 0 | EL27: =EL4*EL11 -> 0 | EM27: =EM4*EM11 -> 0 | EN27: =EN4*EN11 -> 0 | EO27: =EO4*EO11 -> 0 | EP27: =EP4*EP11 -> 0 | EQ27: =EQ4*EQ11 -> 0 | ER27: =ER4*ER11 -> 0 | ES27: =ES4*ES11 -> 0 | ET27: =ET4*ET11 -> 0 | EU27: =EU4*EU11 -> 0 | EV27: =EV4*EV11 -> 0 | EW27: =EW4*EW11 -> 0 | EX27: =EX4*EX11 -> 0 | EY27: =EY4*EY11 -> 0 | EZ27: =EZ4*EZ11 -> 0 | FA27: =FA4*FA11 -> 0 | FB27: =FB4*FB11 -> 0 | FC27: =FC4*FC11 -> 0 | FD27: =FD4*FD11 -> 0 | FE27: =FE4*FE11 -> 0 | FF27: =FF4*FF11 -> 0 | FG27: =FG4*FG11 -> 0 | FH27: =FH4*FH11 -> 0 | FI27: =FI4*FI11 -> 0 | FJ27: =FJ4*FJ11 -> 0 | FK27: =FK4*FK11 -> 0 | FL27: =FL4*FL11 -> 0 | FM27: =FM4*FM11 -> 0 | FN27: =FN4*FN11 -> 0 | FO27: =FO4*FO11 -> 0 | FP27: =FP4*FP11 -> 0 | FQ27: =FQ4*FQ11 -> 0 | FR27: =FR4*FR11 -> 0 | FS27: =FS4*FS11 -> 0 | FT27: =FT4*FT11 -> 0 | FU27: =FU4*FU11 -> 0 | FV27: =FV4*FV11 -> 0 | FW27: =FW4*FW11 -> 0 | FX27: =FX4*FX11 -> 0 | FY27: =FY4*FY11 -> 0 | FZ27: =FZ4*FZ11 -> 0 | GA27: =GA4*GA11 -> 0 | GB27: =GB4*GB11 -> 0 | GC27: =GC4*GC11 -> 0 | GD27: =GD4*GD11 -> 0 | GE27: =GE4*GE11 -> 0 | GF27: =GF4*GF11 -> 0 | GG27: =GG4*GG11 -> 0 | GH27: =GH4*GH11 -> 0 | GI27: =GI4*GI11 -> 0 | GJ27: =GJ4*GJ11 -> 0 | GK27: =GK4*GK11 -> 0 | GL27: =GL4*GL11 -> 0 | GM27: =GM4*GM11 -> 0 | GN27: =GN4*GN11 -> 0 | GO27: =GO4*GO11 -> 0 | GP27: =GP4*GP11 -> 0 | GQ27: =GQ4*GQ11 -> 0 | GR27: =GR4*GR11 -> 0 | GS27: =GS4*GS11 -> 0 | GT27: =GT4*GT11 -> 0 | GU27: =GU4*GU11 -> 0 | GV27: =GV4*GV11 -> 0 | GW27: =GW4*GW11 -> 0 | GX27: =GX4*GX11 -> 0 | GY27: =GY4*GY11 -> 0 | GZ27: =GZ4*GZ11 -> 0 | HA27: =HA4*HA11 -> 0 | HB27: =HB4*HB11 -> 0 | HC27: =HC4*HC11 -> 0 | HD27: =HD4*HD11 -> 0 | HE27: =HE4*HE11 -> 0 | HF27: =HF4*HF11 -> 0 | HG27: =HG4*HG11 -> 0 | HH27: =HH4*HH11 -> 0 | HI27: =HI4*HI11 -> 0 | HJ27: =HJ4*HJ11 -> 0 | HK27: =HK4*HK11 -> 0 | HL27: =HL4*HL11 -> 0 | HM27: =HM4*HM11 -> 0 | HN27: =HN4*HN11 -> 0 | HO27: =HO4*HO11 -> 0 | HP27: =HP4*HP11 -> 0 | HQ27: =HQ4*HQ11 -> 0 | HR27: =HR4*HR11 -> 0 | HS27: =HS4*HS11 -> 0 | HT27: =HT4*HT11 -> 0 | HU27: =HU4*HU11 -> 0 | HV27: =HV4*HV11 -> 0 | HW27: =HW4*HW11 -> 0 | HX27: =HX4*HX11 -> 0 | HY27: =HY4*HY11 -> 0 | HZ27: =HZ4*HZ11 -> 0 | IA27: =IA4*IA11 -> 0 | IB27: =IB4*IB11 -> 0 | IC27: =IC4*IC11 -> 0 | ID27: =ID4*ID11 -> 0 | IE27: =IE4*IE11 -> 0 | IF27: =IF4*IF11 -> 0 | IG27: =IG4*IG11 -> 0 | IH27: =IH4*IH11 -> 0 | II27: =II4*II11 -> 0 | IJ27: =IJ4*IJ11 -> 0 | IK27: =IK4*IK11 -> 0 | IL27: =IL4*IL11 -> 0 | IM27: =IM4*IM11 -> 0 | IN27: =IN4*IN11 -> 0 | IO27: =IO4*IO11 -> 0 | IP27: =IP4*IP11 -> 0 | IQ27: =IQ4*IQ11 -> 0 | IR27: =IR4*IR11 -> 0 | IS27: =IS4*IS11 -> 0 | IT27: =IT4*IT11 -> 0 | IU27: =IU4*IU11 -> 0 | IV27: =IV4*IV11 -> 0 | IW27: =IW4*IW11 -> 0 | IX27: =IX4*IX11 -> 0 | IY27: =IY4*IY11 -> 0 | IZ27: =IZ4*IZ11 -> 0 | JA27: =JA4*JA11 -> 0 | JB27: =JB4*JB11 -> 0 | JC27: =JC4*JC11 -> 0 | JD27: =JD4*JD11 -> 0 | JE27: =JE4*JE11 -> 0 | JF27: =JF4*JF11 -> 0 | JG27: =JG4*JG11 -> 0 | JH27: =JH4*JH11 -> 0 | JI27: =JI4*JI11 -> 0 | JJ27: =JJ4*JJ11 -> 0 | JK27: =JK4*JK11 -> 0 | JL27: =JL4*JL11 -> 0 | JM27: =JM4*JM11 -> 0 | JN27: =JN4*JN11 -> 0 | JO27: =JO4*JO11 -> 0 | JP27: =JP4*JP11 -> 0 | JQ27: =JQ4*JQ11 -> 0 | JR27: =JR4*JR11 -> 0 | JS27: =JS4*JS11 -> 0 | JT27: =JT4*JT11 -> 0 | JU27: =JU4*JU11 -> 0 | JV27: =JV4*JV11 -> 0 | JW27: =JW4*JW11 -> 0 | JX27: =JX4*JX11 -> 0 | JY27: =JY4*JY11 -> 0 | JZ27: =JZ4*JZ11 -> 0 | KA27: =KA4*KA11 -> 0 | KB27: =KB4*KB11 -> 0 | KC27: =KC4*KC11 -> 0 | KD27: =KD4*KD11 -> 0 | KE27: =KE4*KE11 -> 0 | KF27: =KF4*KF11 -> 0 | KG27: =KG4*KG11 -> 0 | KH27: =KH4*KH11 -> 0 | KI27: =KI4*KI11 -> 0 | KJ27: =KJ4*KJ11 -> 0 | KK27: =KK4*KK11 -> 0 | KL27: =KL4*KL11 -> 0 | KM27: =KM4*KM11 -> 0 | KN27: =KN4*KN11 -> 0 | KO27: =KO4*KO11 -> 0 | KP27: =KP4*KP11 -> 0 | KQ27: =KQ4*KQ11 -> 0 | KR27: =KR4*KR11 -> 0 | KS27: =KS4*KS11 -> 0 | KT27: =KT4*KT11 -> 0 | KU27: =KU4*KU11 -> 0 | KV27: =KV4*KV11 -> 0 | KW27: =KW4*KW11 -> 0 | KX27: =KX4*KX11 -> 0 | KY27: =KY4*KY11 -> 0 | KZ27: =KZ4*KZ11 -> 0 | LA27: =LA4*LA11 -> 0 | LB27: =LB4*LB11 -> 0 | LC27: =LC4*LC11 -> 0 | LD27: =LD4*LD11 -> 0 | LE27: =LE4*LE11 -> 0 | LF27: =LF4*LF11 -> 0 | LG27: =LG4*LG11 -> 0 | LH27: =LH4*LH11 -> 0 | LI27: =LI4*LI11 -> 0 | LJ27: =LJ4*LJ11 -> 0 | LK27: =LK4*LK11 -> 0 | LL27: =LL4*LL11 -> 0 | LM27: =LM4*LM11 -> 0 | LN27: =LN4*LN11 -> 0 | LO27: =LO4*LO11 -> 0 | LP27: =LP4*LP11 -> 0 | LQ27: =LQ4*LQ11 -> 0 | LR27: =LR4*LR11 -> 0 | LS27: =LS4*LS11 -> 0 | LT27: =LT4*LT11 -> 0 | LU27: =LU4*LU11 -> 0 | LV27: =LV4*LV11 -> 0 | LW27: =LW4*LW11 -> 0 | LX27: =LX4*LX11 -> 0 | LY27: =LY4*LY11 -> 0 | LZ27: =LZ4*LZ11 -> 0 | MA27: =MA4*MA11 -> 0 | MB27: =MB4*MB11 -> 0 | MC27: =MC4*MC11 -> 0 | MD27: =MD4*MD11 -> 0 | ME27: =ME4*ME11 -> 0 | MF27: =MF4*MF11 -> 0 | MG27: =MG4*MG11 -> 0 | MH27: =MH4*MH11 -> 0 | MI27: =MI4*MI11 -> 0 | MJ27: =MJ4*MJ11 -> 0 | MK27: =MK4*MK11 -> 0 | ML27: =ML4*ML11 -> 0 | MM27: =MM4*MM11 -> 0 | MN27: =MN4*MN11 -> 0 | MO27: =MO4*MO11 -> 0 | MP27: =MP4*MP11 -> 0 | MQ27: =MQ4*MQ11 -> 0 | MR27: =MR4*MR11 -> 0 | MS27: =MS4*MS11 -> 0 | MT27: =MT4*MT11 -> 0 | MU27: =MU4*MU11 -> 0 | MV27: =MV4*MV11 -> 0 | MW27: =MW4*MW11 -> 0 | MX27: =MX4*MX11 -> 0 | MY27: =MY4*MY11 -> 0 | MZ27: =MZ4*MZ11 -> 0 | NA27: =NA4*NA11 -> 0 | NB27: =NB4*NB11 -> 0 | NC27: =NC4*NC11 -> 0 | ND27: =ND4*ND11 -> 0 | NE27: =NE4*NE11 -> 0 | NF27: =NF4*NF11 -> 0 | NG27: =NG4*NG11 -> 0 | NH27: =NH4*NH11 -> 0 | NI27: =NI4*NI11 -> 0 | NJ27: =NJ4*NJ11 -> 0 | NK27: =NK4*NK11 -> 0 | NL27: =NL4*NL11 -> 0 | NM27: =NM4*NM11 -> 0 | NN27: =NN4*NN11 -> 0 | NO27: =NO4*NO11 -> 0 | NP27: =NP4*NP11 -> 0 | NQ27: =NQ4*NQ11 -> 0 | NR27: =NR4*NR11 -> 0 | NS27: =NS4*NS11 -> 0 | NT27: =NT4*NT11 -> 0 | NU27: =NU4*NU11 -> 0 | NV27: =NV4*NV11 -> 0 | NW27: =NW4*NW11 -> 0 | NX27: =NX4*NX11 -> 0 | NY27: =NY4*NY11 -> 0 | NZ27: =NZ4*NZ11 -> 0 | OA27: =OA4*OA11 -> 0 | OB27: =OB4*OB11 -> 0 | OC27: =OC4*OC11 -> 0 | OD27: =OD4*OD11 -> 0 | OE27: =OE4*OE11 -> 0 | OF27: =OF4*OF11 -> 0 | OG27: =OG4*OG11 -> 0 | OH27: =OH4*OH11 -> 0 | OI27: =OI4*OI11 -> 0 | OJ27: =OJ4*OJ11 -> 0 | OK27: =OK4*OK11 -> 0 | OL27: =OL4*OL11 -> 0 | OM27: =OM4*OM11 -> 0 | ON27: =ON4*ON11 -> 0 | OO27: =OO4*OO11 -> 0 | OP27: =OP4*OP11 -> 0 | OQ27: =OQ4*OQ11 -> 0 | OR27: =OR4*OR11 -> 0 | OS27: =OS4*OS11 -> 0 | OT27: =OT4*OT11 -> 0 | OU27: =OU4*OU11 -> 0 | OV27: =OV4*OV11 -> 0 | OW27: =OW4*OW11 -> 0 | OX27: =OX4*OX11 -> 0 | OY27: =OY4*OY11 -> 0 | OZ27: =OZ4*OZ11 -> 0 | PA27: =PA4*PA11 -> 0 | PB27: =PB4*PB11 -> 0 | PC27: =PC4*PC11 -> 0 | PD27: =PD4*PD11 -> 0 | PE27: =PE4*PE11 -> 0 | PF27: =PF4*PF11 -> 0 | PG27: =PG4*PG11 -> 0 | PH27: =PH4*PH11 -> 0 | PI27: =PI4*PI11 -> 0 | PJ27: =PJ4*PJ11 -> 0 | PK27: =PK4*PK11 -> 0 | PL27: =PL4*PL11 -> 0 | PM27: =PM4*PM11 -> 0 | PN27: =PN4*PN11 -> 0 | PO27: =PO4*PO11 -> 0 | PP27: =PP4*PP11 -> 0 | PQ27: =PQ4*PQ11 -> 0 | PR27: =PR4*PR11 -> 0 | PS27: =PS4*PS11 -> 0 | PT27: =PT4*PT11 -> 0 | PU27: =PU4*PU11 -> 0 | PV27: =PV4*PV11 -> 0 | PW27: =PW4*PW11 -> 0 | PX27: =PX4*PX11 -> 0 | PY27: =PY4*PY11 -> 0 | PZ27: =PZ4*PZ11 -> 0 | QA27: =QA4*QA11 -> 0 | QB27: =QB4*QB11 -> 0 | QC27: =QC4*QC11 -> 0 | QD27: =QD4*QD11 -> 0 | QE27: =QE4*QE11 -> 0 | QF27: =QF4*QF11 -> 0 | QG27: =QG4*QG11 -> 0 | QH27: =QH4*QH11 -> 0 | QI27: =QI4*QI11 -> 0 | QJ27: =QJ4*QJ11 -> 0 | QK27: =QK4*QK11 -> 0 | QL27: =QL4*QL11 -> 0 | QM27: =QM4*QM11 -> 0 | QN27: =QN4*QN11 -> 0 | QO27: =QO4*QO11 -> 0 | QP27: =QP4*QP11 -> 0 | QQ27: =QQ4*QQ11 -> 0 | QR27: =QR4*QR11 -> 0 | QS27: =QS4*QS11 -> 0 | QT27: =QT4*QT11 -> 0 | QU27: =QU4*QU11 -> 0 | QV27: =QV4*QV11 -> 0 | QW27: =QW4*QW11 -> 0 | QX27: =QX4*QX11 -> 0 | QY27: =QY4*QY11 -> 0 | QZ27: =QZ4*QZ11 -> 0 | RA27: =RA4*RA11 -> 0 | RB27: =RB4*RB11 -> 0 | RC27: =RC4*RC11 -> 0 | RD27: =RD4*RD11 -> 0 | RE27: =RE4*RE11 -> 0 | RF27: =RF4*RF11 -> 0 | RG27: =RG4*RG11 -> 0 | RH27: =RH4*RH11 -> 0 | RI27: =RI4*RI11 -> 0 | RJ27: =RJ4*RJ11 -> 0 | RK27: =RK4*RK11 -> 0 | RL27: =RL4*RL11 -> 0 | RM27: =RM4*RM11 -> 0 | RN27: =RN4*RN11 -> 0 | RO27: =RO4*RO11 -> 0 | RP27: =RP4*RP11 -> 0 | RQ27: =RQ4*RQ11 -> 0 | RR27: =RR4*RR11 -> 0 | RS27: =RS4*RS11 -> 0 | RT27: =RT4*RT11 -> 0 | RU27: =RU4*RU11 -> 0 | RV27: =RV4*RV11 -> 0 | RW27: =RW4*RW11 -> 0 | RX27: =RX4*RX11 -> 0 | RY27: =RY4*RY11 -> 0 | RZ27: =RZ4*RZ11 -> 0 | SA27: =SA4*SA11 -> 0 | SB27: =SB4*SB11 -> 0 | SC27: =SC4*SC11 -> 0 | SD27: =SD4*SD11 -> 0 | SE27: =SE4*SE11 -> 0 | SF27: =SF4*SF11 -> 0 | SG27: =SG4*SG11 -> 0 | SH27: =SH4*SH11 -> 0 | SI27: =SI4*SI11 -> 0 | SJ27: =SJ4*SJ11 -> 0 | SK27: =SK4*SK11 -> 0 | SL27: =SL4*SL11 -> 0 | SM27: =SM4*SM11 -> 0 | SN27: =SN4*SN11 -> 0 | SO27: =SO4*SO11 -> 0 | SP27: =SP4*SP11 -> 0 | SQ27: =SQ4*SQ11 -> 0 | SR27: =SR4*SR11 -> 0 | SS27: =SS4*SS11 -> 0 | ST27: =ST4*ST11 -> 0 | SU27: =SU4*SU11 -> 0 | SV27: =SV4*SV11 -> 0 | SW27: =SW4*SW11 -> 0 | SX27: =SX4*SX11 -> 0 | SY27: =SY4*SY11 -> 0 | SZ27: =SZ4*SZ11 -> 0 | TA27: =TA4*TA11 -> 0 | TB27: =TB4*TB11 -> 0 | TC27: =TC4*TC11 -> 0
D28: Prior Cash Flow (t-t) | K28: =J12*K5 -> 0 | L28: =K12*L5 -> 0 | M28: =L12*M5 -> 0 | N28: =M12*N5 -> 0 | O28: =N12*O5 -> 0 | P28: =O12*P5 -> 0 | Q28: =P12*Q5 -> 0 | R28: =Q12*R5 -> 0 | S28: =R12*S5 -> 0 | T28: =S12*T5 -> 0 | U28: =T12*U5 -> 0 | V28: =U12*V5 -> 0 | W28: =V12*W5 -> 0 | X28: =W12*X5 -> 0 | Y28: =X12*Y5 -> 13.32058806 | Z28: =Y12*Z5 -> 0 | AA28: =Z12*AA5 -> 0 | AB28: =AA12*AB5 -> 0 | AC28: =AB12*AC5 -> 0 | AD28: =AC12*AD5 -> 0 | AE28: =AD12*AE5 -> 0 | AF28: =AE12*AF5 -> 0 | AG28: =AF12*AG5 -> 0 | AH28: =AG12*AH5 -> 0 | AI28: =AH12*AI5 -> 0 | AJ28: =AI12*AJ5 -> 0 | AK28: =AJ12*AK5 -> 0 | AL28: =AK12*AL5 -> 0 | AM28: =AL12*AM5 -> 0 | AN28: =AM12*AN5 -> 0 | AO28: =AN12*AO5 -> 0 | AP28: =AO12*AP5 -> 0 | AQ28: =AP12*AQ5 -> 0 | AR28: =AQ12*AR5 -> 0 | AS28: =AR12*AS5 -> 0 | AT28: =AS12*AT5 -> 0 | AU28: =AT12*AU5 -> 0 | AV28: =AU12*AV5 -> 0 | AW28: =AV12*AW5 -> 0 | AX28: =AW12*AX5 -> 0 | AY28: =AX12*AY5 -> 0 | AZ28: =AY12*AZ5 -> 0 | BA28: =AZ12*BA5 -> 0 | BB28: =BA12*BB5 -> 0 | BC28: =BB12*BC5 -> 0 | BD28: =BC12*BD5 -> 0 | BE28: =BD12*BE5 -> 0 | BF28: =BE12*BF5 -> 0 | BG28: =BF12*BG5 -> 0 | BH28: =BG12*BH5 -> 0 | BI28: =BH12*BI5 -> 0 | BJ28: =BI12*BJ5 -> 0 | BK28: =BJ12*BK5 -> 0 | BL28: =BK12*BL5 -> 0 | BM28: =BL12*BM5 -> 0 | BN28: =BM12*BN5 -> 0 | BO28: =BN12*BO5 -> 0 | BP28: =BO12*BP5 -> 0 | BQ28: =BP12*BQ5 -> 0 | BR28: =BQ12*BR5 -> 0 | BS28: =BR12*BS5 -> 0 | BT28: =BS12*BT5 -> 0 | BU28: =BT12*BU5 -> 0 | BV28: =BU12*BV5 -> 0 | BW28: =BV12*BW5 -> 0 | BX28: =BW12*BX5 -> 0 | BY28: =BX12*BY5 -> 0 | BZ28: =BY12*BZ5 -> 0 | CA28: =BZ12*CA5 -> 0 | CB28: =CA12*CB5 -> 0 | CC28: =CB12*CC5 -> 0 | CD28: =CC12*CD5 -> 0 | CE28: =CD12*CE5 -> 0 | CF28: =CE12*CF5 -> 0 | CG28: =CF12*CG5 -> 0 | CH28: =CG12*CH5 -> 0 | CI28: =CH12*CI5 -> 0 | CJ28: =CI12*CJ5 -> 0 | CK28: =CJ12*CK5 -> 0 | CL28: =CK12*CL5 -> 0 | CM28: =CL12*CM5 -> 0 | CN28: =CM12*CN5 -> 0 | CO28: =CN12*CO5 -> 0 | CP28: =CO12*CP5 -> 0 | CQ28: =CP12*CQ5 -> 0 | CR28: =CQ12*CR5 -> 0 | CS28: =CR12*CS5 -> 0 | CT28: =CS12*CT5 -> 0 | CU28: =CT12*CU5 -> 0 | CV28: =CU12*CV5 -> 0 | CW28: =CV12*CW5 -> 0 | CX28: =CW12*CX5 -> 0 | CY28: =CX12*CY5 -> 0 | CZ28: =CY12*CZ5 -> 0 | DA28: =CZ12*DA5 -> 0 | DB28: =DA12*DB5 -> 0 | DC28: =DB12*DC5 -> 0 | DD28: =DC12*DD5 -> 0 | DE28: =DD12*DE5 -> 0 | DF28: =DE12*DF5 -> 0 | DG28: =DF12*DG5 -> 0 | DH28: =DG12*DH5 -> 0 | DI28: =DH12*DI5 -> 0 | DJ28: =DI12*DJ5 -> 0 | DK28: =DJ12*DK5 -> 0 | DL28: =DK12*DL5 -> 0 | DM28: =DL12*DM5 -> 0 | DN28: =DM12*DN5 -> 0 | DO28: =DN12*DO5 -> 0 | DP28: =DO12*DP5 -> 0 | DQ28: =DP12*DQ5 -> 0 | DR28: =DQ12*DR5 -> 0 | DS28: =DR12*DS5 -> 0 | DT28: =DS12*DT5 -> 0 | DU28: =DT12*DU5 -> 0 | DV28: =DU12*DV5 -> 0 | DW28: =DV12*DW5 -> 0 | DX28: =DW12*DX5 -> 0 | DY28: =DX12*DY5 -> 0 | DZ28: =DY12*DZ5 -> 0 | EA28: =DZ12*EA5 -> 0 | EB28: =EA12*EB5 -> 0 | EC28: =EB12*EC5 -> 0 | ED28: =EC12*ED5 -> 0 | EE28: =ED12*EE5 -> 0 | EF28: =EE12*EF5 -> 0 | EG28: =EF12*EG5 -> 0 | EH28: =EG12*EH5 -> 0 | EI28: =EH12*EI5 -> 0 | EJ28: =EI12*EJ5 -> 0 | EK28: =EJ12*EK5 -> 0 | EL28: =EK12*EL5 -> 0 | EM28: =EL12*EM5 -> 0 | EN28: =EM12*EN5 -> 0 | EO28: =EN12*EO5 -> 0 | EP28: =EO12*EP5 -> 0 | EQ28: =EP12*EQ5 -> 0 | ER28: =EQ12*ER5 -> 0 | ES28: =ER12*ES5 -> 0 | ET28: =ES12*ET5 -> 0 | EU28: =ET12*EU5 -> 0 | EV28: =EU12*EV5 -> 0 | EW28: =EV12*EW5 -> 0 | EX28: =EW12*EX5 -> 0 | EY28: =EX12*EY5 -> 0 | EZ28: =EY12*EZ5 -> 0 | FA28: =EZ12*FA5 -> 0 | FB28: =FA12*FB5 -> 0 | FC28: =FB12*FC5 -> 0 | FD28: =FC12*FD5 -> 0 | FE28: =FD12*FE5 -> 0 | FF28: =FE12*FF5 -> 0 | FG28: =FF12*FG5 -> 0 | FH28: =FG12*FH5 -> 0 | FI28: =FH12*FI5 -> 0 | FJ28: =FI12*FJ5 -> 0 | FK28: =FJ12*FK5 -> 0 | FL28: =FK12*FL5 -> 0 | FM28: =FL12*FM5 -> 0 | FN28: =FM12*FN5 -> 0 | FO28: =FN12*FO5 -> 0 | FP28: =FO12*FP5 -> 0 | FQ28: =FP12*FQ5 -> 0 | FR28: =FQ12*FR5 -> 0 | FS28: =FR12*FS5 -> 0 | FT28: =FS12*FT5 -> 0 | FU28: =FT12*FU5 -> 0 | FV28: =FU12*FV5 -> 0 | FW28: =FV12*FW5 -> 0 | FX28: =FW12*FX5 -> 0 | FY28: =FX12*FY5 -> 0 | FZ28: =FY12*FZ5 -> 0 | GA28: =FZ12*GA5 -> 0 | GB28: =GA12*GB5 -> 0 | GC28: =GB12*GC5 -> 0 | GD28: =GC12*GD5 -> 0 | GE28: =GD12*GE5 -> 0 | GF28: =GE12*GF5 -> 0 | GG28: =GF12*GG5 -> 0 | GH28: =GG12*GH5 -> 0 | GI28: =GH12*GI5 -> 0 | GJ28: =GI12*GJ5 -> 0 | GK28: =GJ12*GK5 -> 0 | GL28: =GK12*GL5 -> 0 | GM28: =GL12*GM5 -> 0 | GN28: =GM12*GN5 -> 0 | GO28: =GN12*GO5 -> 0 | GP28: =GO12*GP5 -> 0 | GQ28: =GP12*GQ5 -> 0 | GR28: =GQ12*GR5 -> 0 | GS28: =GR12*GS5 -> 0 | GT28: =GS12*GT5 -> 0 | GU28: =GT12*GU5 -> 0 | GV28: =GU12*GV5 -> 0 | GW28: =GV12*GW5 -> 0 | GX28: =GW12*GX5 -> 0 | GY28: =GX12*GY5 -> 0 | GZ28: =GY12*GZ5 -> 0 | HA28: =GZ12*HA5 -> 0 | HB28: =HA12*HB5 -> 0 | HC28: =HB12*HC5 -> 0 | HD28: =HC12*HD5 -> 0 | HE28: =HD12*HE5 -> 0 | HF28: =HE12*HF5 -> 0 | HG28: =HF12*HG5 -> 0 | HH28: =HG12*HH5 -> 0 | HI28: =HH12*HI5 -> 0 | HJ28: =HI12*HJ5 -> 0 | HK28: =HJ12*HK5 -> 0 | HL28: =HK12*HL5 -> 0 | HM28: =HL12*HM5 -> 0 | HN28: =HM12*HN5 -> 0 | HO28: =HN12*HO5 -> 0 | HP28: =HO12*HP5 -> 0 | HQ28: =HP12*HQ5 -> 0 | HR28: =HQ12*HR5 -> 0 | HS28: =HR12*HS5 -> 0 | HT28: =HS12*HT5 -> 0 | HU28: =HT12*HU5 -> 0 | HV28: =HU12*HV5 -> 0 | HW28: =HV12*HW5 -> 0 | HX28: =HW12*HX5 -> 0 | HY28: =HX12*HY5 -> 0 | HZ28: =HY12*HZ5 -> 0 | IA28: =HZ12*IA5 -> 0 | IB28: =IA12*IB5 -> 0 | IC28: =IB12*IC5 -> 0 | ID28: =IC12*ID5 -> 0 | IE28: =ID12*IE5 -> 0 | IF28: =IE12*IF5 -> 0 | IG28: =IF12*IG5 -> 0 | IH28: =IG12*IH5 -> 0 | II28: =IH12*II5 -> 0 | IJ28: =II12*IJ5 -> 0 | IK28: =IJ12*IK5 -> 0 | IL28: =IK12*IL5 -> 0 | IM28: =IL12*IM5 -> 0 | IN28: =IM12*IN5 -> 0 | IO28: =IN12*IO5 -> 0 | IP28: =IO12*IP5 -> 0 | IQ28: =IP12*IQ5 -> 0 | IR28: =IQ12*IR5 -> 0 | IS28: =IR12*IS5 -> 0 | IT28: =IS12*IT5 -> 0 | IU28: =IT12*IU5 -> 0 | IV28: =IU12*IV5 -> 0 | IW28: =IV12*IW5 -> 0 | IX28: =IW12*IX5 -> 0 | IY28: =IX12*IY5 -> 0 | IZ28: =IY12*IZ5 -> 0 | JA28: =IZ12*JA5 -> 0 | JB28: =JA12*JB5 -> 0 | JC28: =JB12*JC5 -> 0 | JD28: =JC12*JD5 -> 0 | JE28: =JD12*JE5 -> 0 | JF28: =JE12*JF5 -> 0 | JG28: =JF12*JG5 -> 0 | JH28: =JG12*JH5 -> 0 | JI28: =JH12*JI5 -> 0 | JJ28: =JI12*JJ5 -> 0 | JK28: =JJ12*JK5 -> 0 | JL28: =JK12*JL5 -> 0 | JM28: =JL12*JM5 -> 0 | JN28: =JM12*JN5 -> 0 | JO28: =JN12*JO5 -> 0 | JP28: =JO12*JP5 -> 0 | JQ28: =JP12*JQ5 -> 0 | JR28: =JQ12*JR5 -> 0 | JS28: =JR12*JS5 -> 0 | JT28: =JS12*JT5 -> 0 | JU28: =JT12*JU5 -> 0 | JV28: =JU12*JV5 -> 0 | JW28: =JV12*JW5 -> 0 | JX28: =JW12*JX5 -> 0 | JY28: =JX12*JY5 -> 0 | JZ28: =JY12*JZ5 -> 0 | KA28: =JZ12*KA5 -> 0 | KB28: =KA12*KB5 -> 0 | KC28: =KB12*KC5 -> 0 | KD28: =KC12*KD5 -> 0 | KE28: =KD12*KE5 -> 0 | KF28: =KE12*KF5 -> 0 | KG28: =KF12*KG5 -> 0 | KH28: =KG12*KH5 -> 0 | KI28: =KH12*KI5 -> 0 | KJ28: =KI12*KJ5 -> 0 | KK28: =KJ12*KK5 -> 0 | KL28: =KK12*KL5 -> 0 | KM28: =KL12*KM5 -> 0 | KN28: =KM12*KN5 -> 0 | KO28: =KN12*KO5 -> 0 | KP28: =KO12*KP5 -> 0 | KQ28: =KP12*KQ5 -> 0 | KR28: =KQ12*KR5 -> 0 | KS28: =KR12*KS5 -> 0 | KT28: =KS12*KT5 -> 0 | KU28: =KT12*KU5 -> 0 | KV28: =KU12*KV5 -> 0 | KW28: =KV12*KW5 -> 0 | KX28: =KW12*KX5 -> 0 | KY28: =KX12*KY5 -> 0 | KZ28: =KY12*KZ5 -> 0 | LA28: =KZ12*LA5 -> 0 | LB28: =LA12*LB5 -> 0 | LC28: =LB12*LC5 -> 0 | LD28: =LC12*LD5 -> 0 | LE28: =LD12*LE5 -> 0 | LF28: =LE12*LF5 -> 0 | LG28: =LF12*LG5 -> 0 | LH28: =LG12*LH5 -> 0 | LI28: =LH12*LI5 -> 0 | LJ28: =LI12*LJ5 -> 0 | LK28: =LJ12*LK5 -> 0 | LL28: =LK12*LL5 -> 0 | LM28: =LL12*LM5 -> 0 | LN28: =LM12*LN5 -> 0 | LO28: =LN12*LO5 -> 0 | LP28: =LO12*LP5 -> 0 | LQ28: =LP12*LQ5 -> 0 | LR28: =LQ12*LR5 -> 0 | LS28: =LR12*LS5 -> 0 | LT28: =LS12*LT5 -> 0 | LU28: =LT12*LU5 -> 0 | LV28: =LU12*LV5 -> 0 | LW28: =LV12*LW5 -> 0 | LX28: =LW12*LX5 -> 0 | LY28: =LX12*LY5 -> 0 | LZ28: =LY12*LZ5 -> 0 | MA28: =LZ12*MA5 -> 0 | MB28: =MA12*MB5 -> 0 | MC28: =MB12*MC5 -> 0 | MD28: =MC12*MD5 -> 0 | ME28: =MD12*ME5 -> 0 | MF28: =ME12*MF5 -> 0 | MG28: =MF12*MG5 -> 0 | MH28: =MG12*MH5 -> 0 | MI28: =MH12*MI5 -> 0 | MJ28: =MI12*MJ5 -> 0 | MK28: =MJ12*MK5 -> 0 | ML28: =MK12*ML5 -> 0 | MM28: =ML12*MM5 -> 0 | MN28: =MM12*MN5 -> 0 | MO28: =MN12*MO5 -> 0 | MP28: =MO12*MP5 -> 0 | MQ28: =MP12*MQ5 -> 0 | MR28: =MQ12*MR5 -> 0 | MS28: =MR12*MS5 -> 0 | MT28: =MS12*MT5 -> 0 | MU28: =MT12*MU5 -> 0 | MV28: =MU12*MV5 -> 0 | MW28: =MV12*MW5 -> 0 | MX28: =MW12*MX5 -> 0 | MY28: =MX12*MY5 -> 0 | MZ28: =MY12*MZ5 -> 0 | NA28: =MZ12*NA5 -> 0 | NB28: =NA12*NB5 -> 0 | NC28: =NB12*NC5 -> 0 | ND28: =NC12*ND5 -> 0 | NE28: =ND12*NE5 -> 0 | NF28: =NE12*NF5 -> 0 | NG28: =NF12*NG5 -> 0 | NH28: =NG12*NH5 -> 0 | NI28: =NH12*NI5 -> 0 | NJ28: =NI12*NJ5 -> 0 | NK28: =NJ12*NK5 -> 0 | NL28: =NK12*NL5 -> 0 | NM28: =NL12*NM5 -> 0 | NN28: =NM12*NN5 -> 0 | NO28: =NN12*NO5 -> 0 | NP28: =NO12*NP5 -> 0 | NQ28: =NP12*NQ5 -> 0 | NR28: =NQ12*NR5 -> 0 | NS28: =NR12*NS5 -> 0 | NT28: =NS12*NT5 -> 0 | NU28: =NT12*NU5 -> 0 | NV28: =NU12*NV5 -> 0 | NW28: =NV12*NW5 -> 0 | NX28: =NW12*NX5 -> 0 | NY28: =NX12*NY5 -> 0 | NZ28: =NY12*NZ5 -> 0 | OA28: =NZ12*OA5 -> 0 | OB28: =OA12*OB5 -> 0 | OC28: =OB12*OC5 -> 0 | OD28: =OC12*OD5 -> 0 | OE28: =OD12*OE5 -> 0 | OF28: =OE12*OF5 -> 0 | OG28: =OF12*OG5 -> 0 | OH28: =OG12*OH5 -> 0 | OI28: =OH12*OI5 -> 0 | OJ28: =OI12*OJ5 -> 0 | OK28: =OJ12*OK5 -> 0 | OL28: =OK12*OL5 -> 0 | OM28: =OL12*OM5 -> 0 | ON28: =OM12*ON5 -> 0 | OO28: =ON12*OO5 -> 0 | OP28: =OO12*OP5 -> 0 | OQ28: =OP12*OQ5 -> 0 | OR28: =OQ12*OR5 -> 0 | OS28: =OR12*OS5 -> 0 | OT28: =OS12*OT5 -> 0 | OU28: =OT12*OU5 -> 0 | OV28: =OU12*OV5 -> 0 | OW28: =OV12*OW5 -> 0 | OX28: =OW12*OX5 -> 0 | OY28: =OX12*OY5 -> 0 | OZ28: =OY12*OZ5 -> 0 | PA28: =OZ12*PA5 -> 0 | PB28: =PA12*PB5 -> 0 | PC28: =PB12*PC5 -> 0 | PD28: =PC12*PD5 -> 0 | PE28: =PD12*PE5 -> 0 | PF28: =PE12*PF5 -> 0 | PG28: =PF12*PG5 -> 0 | PH28: =PG12*PH5 -> 0 | PI28: =PH12*PI5 -> 0 | PJ28: =PI12*PJ5 -> 0 | PK28: =PJ12*PK5 -> 0 | PL28: =PK12*PL5 -> 0 | PM28: =PL12*PM5 -> 0 | PN28: =PM12*PN5 -> 0 | PO28: =PN12*PO5 -> 0 | PP28: =PO12*PP5 -> 0 | PQ28: =PP12*PQ5 -> 0 | PR28: =PQ12*PR5 -> 0 | PS28: =PR12*PS5 -> 0 | PT28: =PS12*PT5 -> 0 | PU28: =PT12*PU5 -> 0 | PV28: =PU12*PV5 -> 0 | PW28: =PV12*PW5 -> 0 | PX28: =PW12*PX5 -> 0 | PY28: =PX12*PY5 -> 0 | PZ28: =PY12*PZ5 -> 0 | QA28: =PZ12*QA5 -> 0 | QB28: =QA12*QB5 -> 0 | QC28: =QB12*QC5 -> 0 | QD28: =QC12*QD5 -> 0 | QE28: =QD12*QE5 -> 0 | QF28: =QE12*QF5 -> 0 | QG28: =QF12*QG5 -> 0 | QH28: =QG12*QH5 -> 0 | QI28: =QH12*QI5 -> 0 | QJ28: =QI12*QJ5 -> 0 | QK28: =QJ12*QK5 -> 0 | QL28: =QK12*QL5 -> 0 | QM28: =QL12*QM5 -> 0 | QN28: =QM12*QN5 -> 0 | QO28: =QN12*QO5 -> 0 | QP28: =QO12*QP5 -> 0 | QQ28: =QP12*QQ5 -> 0 | QR28: =QQ12*QR5 -> 0 | QS28: =QR12*QS5 -> 0 | QT28: =QS12*QT5 -> 0 | QU28: =QT12*QU5 -> 0 | QV28: =QU12*QV5 -> 0 | QW28: =QV12*QW5 -> 0 | QX28: =QW12*QX5 -> 0 | QY28: =QX12*QY5 -> 0 | QZ28: =QY12*QZ5 -> 0 | RA28: =QZ12*RA5 -> 0 | RB28: =RA12*RB5 -> 0 | RC28: =RB12*RC5 -> 0 | RD28: =RC12*RD5 -> 0 | RE28: =RD12*RE5 -> 0 | RF28: =RE12*RF5 -> 0 | RG28: =RF12*RG5 -> 0 | RH28: =RG12*RH5 -> 0 | RI28: =RH12*RI5 -> 0 | RJ28: =RI12*RJ5 -> 0 | RK28: =RJ12*RK5 -> 0 | RL28: =RK12*RL5 -> 0 | RM28: =RL12*RM5 -> 0 | RN28: =RM12*RN5 -> 0 | RO28: =RN12*RO5 -> 0 | RP28: =RO12*RP5 -> 0 | RQ28: =RP12*RQ5 -> 0 | RR28: =RQ12*RR5 -> 0 | RS28: =RR12*RS5 -> 0 | RT28: =RS12*RT5 -> 0 | RU28: =RT12*RU5 -> 0 | RV28: =RU12*RV5 -> 0 | RW28: =RV12*RW5 -> 0 | RX28: =RW12*RX5 -> 0 | RY28: =RX12*RY5 -> 0 | RZ28: =RY12*RZ5 -> 0 | SA28: =RZ12*SA5 -> 0 | SB28: =SA12*SB5 -> 0 | SC28: =SB12*SC5 -> 0 | SD28: =SC12*SD5 -> 0 | SE28: =SD12*SE5 -> 0 | SF28: =SE12*SF5 -> 0 | SG28: =SF12*SG5 -> 0 | SH28: =SG12*SH5 -> 0 | SI28: =SH12*SI5 -> 0 | SJ28: =SI12*SJ5 -> 0 | SK28: =SJ12*SK5 -> 0 | SL28: =SK12*SL5 -> 0 | SM28: =SL12*SM5 -> 0 | SN28: =SM12*SN5 -> 0 | SO28: =SN12*SO5 -> 0 | SP28: =SO12*SP5 -> 0 | SQ28: =SP12*SQ5 -> 0 | SR28: =SQ12*SR5 -> 0 | SS28: =SR12*SS5 -> 0 | ST28: =SS12*ST5 -> 0 | SU28: =ST12*SU5 -> 0 | SV28: =SU12*SV5 -> 0 | SW28: =SV12*SW5 -> 0 | SX28: =SW12*SX5 -> 0 | SY28: =SX12*SY5 -> 0 | SZ28: =SY12*SZ5 -> 0 | TA28: =SZ12*TA5 -> 0 | TB28: =TA12*TB5 -> 0 | TC28: =TB12*TC5 -> 0
D29: Value over Explicit Period | E29: =NPV(F29,K29:KW29) -> 84.4205783 | F29: =Scenarios!D3 -> 0.084 | K29: =K12*K4 -> 8 | L29: =L12*L4 -> 8.32 | M29: =M12*M4 -> 8.6528 | N29: =N12*N4 -> 8.998912 | O29: =O12*O4 -> 9.35886848 | P29: =P12*P4 -> 9.733223219 | Q29: =Q12*Q4 -> 10.12255215 | R29: =R12*R4 -> 10.52745423 | S29: =S12*S4 -> 10.9485524 | T29: =T12*T4 -> 11.3864945 | U29: =U12*U4 -> 11.84195428 | V29: =V12*V4 -> 12.31563245 | W29: =W12*W4 -> 12.80825775 | X29: =X12*X4 -> 13.32058806 | Y29: =Y12*Y4 -> 14.7192498 | Z29: =Z12*Z4 -> 0 | AA29: =AA12*AA4 -> 0 | AB29: =AB12*AB4 -> 0 | AC29: =AC12*AC4 -> 0 | AD29: =AD12*AD4 -> 0 | AE29: =AE12*AE4 -> 0 | AF29: =AF12*AF4 -> 0 | AG29: =AG12*AG4 -> 0 | AH29: =AH12*AH4 -> 0 | AI29: =AI12*AI4 -> 0 | AJ29: =AJ12*AJ4 -> 0 | AK29: =AK12*AK4 -> 0 | AL29: =AL12*AL4 -> 0 | AM29: =AM12*AM4 -> 0 | AN29: =AN12*AN4 -> 0 | AO29: =AO12*AO4 -> 0 | AP29: =AP12*AP4 -> 0 | AQ29: =AQ12*AQ4 -> 0 | AR29: =AR12*AR4 -> 0 | AS29: =AS12*AS4 -> 0 | AT29: =AT12*AT4 -> 0 | AU29: =AU12*AU4 -> 0 | AV29: =AV12*AV4 -> 0 | AW29: =AW12*AW4 -> 0 | AX29: =AX12*AX4 -> 0 | AY29: =AY12*AY4 -> 0 | AZ29: =AZ12*AZ4 -> 0 | BA29: =BA12*BA4 -> 0 | BB29: =BB12*BB4 -> 0 | BC29: =BC12*BC4 -> 0 | BD29: =BD12*BD4 -> 0 | BE29: =BE12*BE4 -> 0 | BF29: =BF12*BF4 -> 0 | BG29: =BG12*BG4 -> 0 | BH29: =BH12*BH4 -> 0 | BI29: =BI12*BI4 -> 0 | BJ29: =BJ12*BJ4 -> 0 | BK29: =BK12*BK4 -> 0 | BL29: =BL12*BL4 -> 0 | BM29: =BM12*BM4 -> 0 | BN29: =BN12*BN4 -> 0 | BO29: =BO12*BO4 -> 0 | BP29: =BP12*BP4 -> 0 | BQ29: =BQ12*BQ4 -> 0 | BR29: =BR12*BR4 -> 0 | BS29: =BS12*BS4 -> 0 | BT29: =BT12*BT4 -> 0 | BU29: =BU12*BU4 -> 0 | BV29: =BV12*BV4 -> 0 | BW29: =BW12*BW4 -> 0 | BX29: =BX12*BX4 -> 0 | BY29: =BY12*BY4 -> 0 | BZ29: =BZ12*BZ4 -> 0 | CA29: =CA12*CA4 -> 0 | CB29: =CB12*CB4 -> 0 | CC29: =CC12*CC4 -> 0 | CD29: =CD12*CD4 -> 0 | CE29: =CE12*CE4 -> 0 | CF29: =CF12*CF4 -> 0 | CG29: =CG12*CG4 -> 0 | CH29: =CH12*CH4 -> 0 | CI29: =CI12*CI4 -> 0 | CJ29: =CJ12*CJ4 -> 0 | CK29: =CK12*CK4 -> 0 | CL29: =CL12*CL4 -> 0 | CM29: =CM12*CM4 -> 0 | CN29: =CN12*CN4 -> 0 | CO29: =CO12*CO4 -> 0 | CP29: =CP12*CP4 -> 0 | CQ29: =CQ12*CQ4 -> 0 | CR29: =CR12*CR4 -> 0 | CS29: =CS12*CS4 -> 0 | CT29: =CT12*CT4 -> 0 | CU29: =CU12*CU4 -> 0 | CV29: =CV12*CV4 -> 0 | CW29: =CW12*CW4 -> 0 | CX29: =CX12*CX4 -> 0 | CY29: =CY12*CY4 -> 0 | CZ29: =CZ12*CZ4 -> 0 | DA29: =DA12*DA4 -> 0 | DB29: =DB12*DB4 -> 0 | DC29: =DC12*DC4 -> 0 | DD29: =DD12*DD4 -> 0 | DE29: =DE12*DE4 -> 0 | DF29: =DF12*DF4 -> 0 | DG29: =DG12*DG4 -> 0 | DH29: =DH12*DH4 -> 0 | DI29: =DI12*DI4 -> 0 | DJ29: =DJ12*DJ4 -> 0 | DK29: =DK12*DK4 -> 0 | DL29: =DL12*DL4 -> 0 | DM29: =DM12*DM4 -> 0 | DN29: =DN12*DN4 -> 0 | DO29: =DO12*DO4 -> 0 | DP29: =DP12*DP4 -> 0 | DQ29: =DQ12*DQ4 -> 0 | DR29: =DR12*DR4 -> 0 | DS29: =DS12*DS4 -> 0 | DT29: =DT12*DT4 -> 0 | DU29: =DU12*DU4 -> 0 | DV29: =DV12*DV4 -> 0 | DW29: =DW12*DW4 -> 0 | DX29: =DX12*DX4 -> 0 | DY29: =DY12*DY4 -> 0 | DZ29: =DZ12*DZ4 -> 0 | EA29: =EA12*EA4 -> 0 | EB29: =EB12*EB4 -> 0 | EC29: =EC12*EC4 -> 0 | ED29: =ED12*ED4 -> 0 | EE29: =EE12*EE4 -> 0 | EF29: =EF12*EF4 -> 0 | EG29: =EG12*EG4 -> 0 | EH29: =EH12*EH4 -> 0 | EI29: =EI12*EI4 -> 0 | EJ29: =EJ12*EJ4 -> 0 | EK29: =EK12*EK4 -> 0 | EL29: =EL12*EL4 -> 0 | EM29: =EM12*EM4 -> 0 | EN29: =EN12*EN4 -> 0 | EO29: =EO12*EO4 -> 0 | EP29: =EP12*EP4 -> 0 | EQ29: =EQ12*EQ4 -> 0 | ER29: =ER12*ER4 -> 0 | ES29: =ES12*ES4 -> 0 | ET29: =ET12*ET4 -> 0 | EU29: =EU12*EU4 -> 0 | EV29: =EV12*EV4 -> 0 | EW29: =EW12*EW4 -> 0 | EX29: =EX12*EX4 -> 0 | EY29: =EY12*EY4 -> 0 | EZ29: =EZ12*EZ4 -> 0 | FA29: =FA12*FA4 -> 0 | FB29: =FB12*FB4 -> 0 | FC29: =FC12*FC4 -> 0 | FD29: =FD12*FD4 -> 0 | FE29: =FE12*FE4 -> 0 | FF29: =FF12*FF4 -> 0 | FG29: =FG12*FG4 -> 0 | FH29: =FH12*FH4 -> 0 | FI29: =FI12*FI4 -> 0 | FJ29: =FJ12*FJ4 -> 0 | FK29: =FK12*FK4 -> 0 | FL29: =FL12*FL4 -> 0 | FM29: =FM12*FM4 -> 0 | FN29: =FN12*FN4 -> 0 | FO29: =FO12*FO4 -> 0 | FP29: =FP12*FP4 -> 0 | FQ29: =FQ12*FQ4 -> 0 | FR29: =FR12*FR4 -> 0 | FS29: =FS12*FS4 -> 0 | FT29: =FT12*FT4 -> 0 | FU29: =FU12*FU4 -> 0 | FV29: =FV12*FV4 -> 0 | FW29: =FW12*FW4 -> 0 | FX29: =FX12*FX4 -> 0 | FY29: =FY12*FY4 -> 0 | FZ29: =FZ12*FZ4 -> 0 | GA29: =GA12*GA4 -> 0 | GB29: =GB12*GB4 -> 0 | GC29: =GC12*GC4 -> 0 | GD29: =GD12*GD4 -> 0 | GE29: =GE12*GE4 -> 0 | GF29: =GF12*GF4 -> 0 | GG29: =GG12*GG4 -> 0 | GH29: =GH12*GH4 -> 0 | GI29: =GI12*GI4 -> 0 | GJ29: =GJ12*GJ4 -> 0 | GK29: =GK12*GK4 -> 0 | GL29: =GL12*GL4 -> 0 | GM29: =GM12*GM4 -> 0 | GN29: =GN12*GN4 -> 0 | GO29: =GO12*GO4 -> 0 | GP29: =GP12*GP4 -> 0 | GQ29: =GQ12*GQ4 -> 0 | GR29: =GR12*GR4 -> 0 | GS29: =GS12*GS4 -> 0 | GT29: =GT12*GT4 -> 0 | GU29: =GU12*GU4 -> 0 | GV29: =GV12*GV4 -> 0 | GW29: =GW12*GW4 -> 0 | GX29: =GX12*GX4 -> 0 | GY29: =GY12*GY4 -> 0 | GZ29: =GZ12*GZ4 -> 0 | HA29: =HA12*HA4 -> 0 | HB29: =HB12*HB4 -> 0 | HC29: =HC12*HC4 -> 0 | HD29: =HD12*HD4 -> 0 | HE29: =HE12*HE4 -> 0 | HF29: =HF12*HF4 -> 0 | HG29: =HG12*HG4 -> 0 | HH29: =HH12*HH4 -> 0 | HI29: =HI12*HI4 -> 0 | HJ29: =HJ12*HJ4 -> 0 | HK29: =HK12*HK4 -> 0 | HL29: =HL12*HL4 -> 0 | HM29: =HM12*HM4 -> 0 | HN29: =HN12*HN4 -> 0 | HO29: =HO12*HO4 -> 0 | HP29: =HP12*HP4 -> 0 | HQ29: =HQ12*HQ4 -> 0 | HR29: =HR12*HR4 -> 0 | HS29: =HS12*HS4 -> 0 | HT29: =HT12*HT4 -> 0 | HU29: =HU12*HU4 -> 0 | HV29: =HV12*HV4 -> 0 | HW29: =HW12*HW4 -> 0 | HX29: =HX12*HX4 -> 0 | HY29: =HY12*HY4 -> 0 | HZ29: =HZ12*HZ4 -> 0 | IA29: =IA12*IA4 -> 0 | IB29: =IB12*IB4 -> 0 | IC29: =IC12*IC4 -> 0 | ID29: =ID12*ID4 -> 0 | IE29: =IE12*IE4 -> 0 | IF29: =IF12*IF4 -> 0 | IG29: =IG12*IG4 -> 0 | IH29: =IH12*IH4 -> 0 | II29: =II12*II4 -> 0 | IJ29: =IJ12*IJ4 -> 0 | IK29: =IK12*IK4 -> 0 | IL29: =IL12*IL4 -> 0 | IM29: =IM12*IM4 -> 0 | IN29: =IN12*IN4 -> 0 | IO29: =IO12*IO4 -> 0 | IP29: =IP12*IP4 -> 0 | IQ29: =IQ12*IQ4 -> 0 | IR29: =IR12*IR4 -> 0 | IS29: =IS12*IS4 -> 0 | IT29: =IT12*IT4 -> 0 | IU29: =IU12*IU4 -> 0 | IV29: =IV12*IV4 -> 0 | IW29: =IW12*IW4 -> 0 | IX29: =IX12*IX4 -> 0 | IY29: =IY12*IY4 -> 0 | IZ29: =IZ12*IZ4 -> 0 | JA29: =JA12*JA4 -> 0 | JB29: =JB12*JB4 -> 0 | JC29: =JC12*JC4 -> 0 | JD29: =JD12*JD4 -> 0 | JE29: =JE12*JE4 -> 0 | JF29: =JF12*JF4 -> 0 | JG29: =JG12*JG4 -> 0 | JH29: =JH12*JH4 -> 0 | JI29: =JI12*JI4 -> 0 | JJ29: =JJ12*JJ4 -> 0 | JK29: =JK12*JK4 -> 0 | JL29: =JL12*JL4 -> 0 | JM29: =JM12*JM4 -> 0 | JN29: =JN12*JN4 -> 0 | JO29: =JO12*JO4 -> 0 | JP29: =JP12*JP4 -> 0 | JQ29: =JQ12*JQ4 -> 0 | JR29: =JR12*JR4 -> 0 | JS29: =JS12*JS4 -> 0 | JT29: =JT12*JT4 -> 0 | JU29: =JU12*JU4 -> 0 | JV29: =JV12*JV4 -> 0 | JW29: =JW12*JW4 -> 0 | JX29: =JX12*JX4 -> 0 | JY29: =JY12*JY4 -> 0 | JZ29: =JZ12*JZ4 -> 0 | KA29: =KA12*KA4 -> 0 | KB29: =KB12*KB4 -> 0 | KC29: =KC12*KC4 -> 0 | KD29: =KD12*KD4 -> 0 | KE29: =KE12*KE4 -> 0 | KF29: =KF12*KF4 -> 0 | KG29: =KG12*KG4 -> 0 | KH29: =KH12*KH4 -> 0 | KI29: =KI12*KI4 -> 0 | KJ29: =KJ12*KJ4 -> 0 | KK29: =KK12*KK4 -> 0 | KL29: =KL12*KL4 -> 0 | KM29: =KM12*KM4 -> 0 | KN29: =KN12*KN4 -> 0 | KO29: =KO12*KO4 -> 0 | KP29: =KP12*KP4 -> 0 | KQ29: =KQ12*KQ4 -> 0 | KR29: =KR12*KR4 -> 0 | KS29: =KS12*KS4 -> 0 | KT29: =KT12*KT4 -> 0 | KU29: =KU12*KU4 -> 0 | KV29: =KV12*KV4 -> 0 | KW29: =KW12*KW4 -> 0 | KX29: =KX12*KX4 -> 0 | KY29: =KY12*KY4 -> 0 | KZ29: =KZ12*KZ4 -> 0 | LA29: =LA12*LA4 -> 0 | LB29: =LB12*LB4 -> 0 | LC29: =LC12*LC4 -> 0 | LD29: =LD12*LD4 -> 0 | LE29: =LE12*LE4 -> 0 | LF29: =LF12*LF4 -> 0 | LG29: =LG12*LG4 -> 0 | LH29: =LH12*LH4 -> 0 | LI29: =LI12*LI4 -> 0 | LJ29: =LJ12*LJ4 -> 0 | LK29: =LK12*LK4 -> 0 | LL29: =LL12*LL4 -> 0 | LM29: =LM12*LM4 -> 0 | LN29: =LN12*LN4 -> 0 | LO29: =LO12*LO4 -> 0 | LP29: =LP12*LP4 -> 0 | LQ29: =LQ12*LQ4 -> 0 | LR29: =LR12*LR4 -> 0 | LS29: =LS12*LS4 -> 0 | LT29: =LT12*LT4 -> 0 | LU29: =LU12*LU4 -> 0 | LV29: =LV12*LV4 -> 0 | LW29: =LW12*LW4 -> 0 | LX29: =LX12*LX4 -> 0 | LY29: =LY12*LY4 -> 0 | LZ29: =LZ12*LZ4 -> 0 | MA29: =MA12*MA4 -> 0 | MB29: =MB12*MB4 -> 0 | MC29: =MC12*MC4 -> 0 | MD29: =MD12*MD4 -> 0 | ME29: =ME12*ME4 -> 0 | MF29: =MF12*MF4 -> 0 | MG29: =MG12*MG4 -> 0 | MH29: =MH12*MH4 -> 0 | MI29: =MI12*MI4 -> 0 | MJ29: =MJ12*MJ4 -> 0 | MK29: =MK12*MK4 -> 0 | ML29: =ML12*ML4 -> 0 | MM29: =MM12*MM4 -> 0 | MN29: =MN12*MN4 -> 0 | MO29: =MO12*MO4 -> 0 | MP29: =MP12*MP4 -> 0 | MQ29: =MQ12*MQ4 -> 0 | MR29: =MR12*MR4 -> 0 | MS29: =MS12*MS4 -> 0 | MT29: =MT12*MT4 -> 0 | MU29: =MU12*MU4 -> 0 | MV29: =MV12*MV4 -> 0 | MW29: =MW12*MW4 -> 0 | MX29: =MX12*MX4 -> 0 | MY29: =MY12*MY4 -> 0 | MZ29: =MZ12*MZ4 -> 0 | NA29: =NA12*NA4 -> 0 | NB29: =NB12*NB4 -> 0 | NC29: =NC12*NC4 -> 0 | ND29: =ND12*ND4 -> 0 | NE29: =NE12*NE4 -> 0 | NF29: =NF12*NF4 -> 0 | NG29: =NG12*NG4 -> 0 | NH29: =NH12*NH4 -> 0 | NI29: =NI12*NI4 -> 0 | NJ29: =NJ12*NJ4 -> 0 | NK29: =NK12*NK4 -> 0 | NL29: =NL12*NL4 -> 0 | NM29: =NM12*NM4 -> 0 | NN29: =NN12*NN4 -> 0 | NO29: =NO12*NO4 -> 0 | NP29: =NP12*NP4 -> 0 | NQ29: =NQ12*NQ4 -> 0 | NR29: =NR12*NR4 -> 0 | NS29: =NS12*NS4 -> 0 | NT29: =NT12*NT4 -> 0 | NU29: =NU12*NU4 -> 0 | NV29: =NV12*NV4 -> 0 | NW29: =NW12*NW4 -> 0 | NX29: =NX12*NX4 -> 0 | NY29: =NY12*NY4 -> 0 | NZ29: =NZ12*NZ4 -> 0 | OA29: =OA12*OA4 -> 0 | OB29: =OB12*OB4 -> 0 | OC29: =OC12*OC4 -> 0 | OD29: =OD12*OD4 -> 0 | OE29: =OE12*OE4 -> 0 | OF29: =OF12*OF4 -> 0 | OG29: =OG12*OG4 -> 0 | OH29: =OH12*OH4 -> 0 | OI29: =OI12*OI4 -> 0 | OJ29: =OJ12*OJ4 -> 0 | OK29: =OK12*OK4 -> 0 | OL29: =OL12*OL4 -> 0 | OM29: =OM12*OM4 -> 0 | ON29: =ON12*ON4 -> 0 | OO29: =OO12*OO4 -> 0 | OP29: =OP12*OP4 -> 0 | OQ29: =OQ12*OQ4 -> 0 | OR29: =OR12*OR4 -> 0 | OS29: =OS12*OS4 -> 0 | OT29: =OT12*OT4 -> 0 | OU29: =OU12*OU4 -> 0 | OV29: =OV12*OV4 -> 0 | OW29: =OW12*OW4 -> 0 | OX29: =OX12*OX4 -> 0 | OY29: =OY12*OY4 -> 0 | OZ29: =OZ12*OZ4 -> 0 | PA29: =PA12*PA4 -> 0 | PB29: =PB12*PB4 -> 0 | PC29: =PC12*PC4 -> 0 | PD29: =PD12*PD4 -> 0 | PE29: =PE12*PE4 -> 0 | PF29: =PF12*PF4 -> 0 | PG29: =PG12*PG4 -> 0 | PH29: =PH12*PH4 -> 0 | PI29: =PI12*PI4 -> 0 | PJ29: =PJ12*PJ4 -> 0 | PK29: =PK12*PK4 -> 0 | PL29: =PL12*PL4 -> 0 | PM29: =PM12*PM4 -> 0 | PN29: =PN12*PN4 -> 0 | PO29: =PO12*PO4 -> 0 | PP29: =PP12*PP4 -> 0 | PQ29: =PQ12*PQ4 -> 0 | PR29: =PR12*PR4 -> 0 | PS29: =PS12*PS4 -> 0 | PT29: =PT12*PT4 -> 0 | PU29: =PU12*PU4 -> 0 | PV29: =PV12*PV4 -> 0 | PW29: =PW12*PW4 -> 0 | PX29: =PX12*PX4 -> 0 | PY29: =PY12*PY4 -> 0 | PZ29: =PZ12*PZ4 -> 0 | QA29: =QA12*QA4 -> 0 | QB29: =QB12*QB4 -> 0 | QC29: =QC12*QC4 -> 0 | QD29: =QD12*QD4 -> 0 | QE29: =QE12*QE4 -> 0 | QF29: =QF12*QF4 -> 0 | QG29: =QG12*QG4 -> 0 | QH29: =QH12*QH4 -> 0 | QI29: =QI12*QI4 -> 0 | QJ29: =QJ12*QJ4 -> 0 | QK29: =QK12*QK4 -> 0 | QL29: =QL12*QL4 -> 0 | QM29: =QM12*QM4 -> 0 | QN29: =QN12*QN4 -> 0 | QO29: =QO12*QO4 -> 0 | QP29: =QP12*QP4 -> 0 | QQ29: =QQ12*QQ4 -> 0 | QR29: =QR12*QR4 -> 0 | QS29: =QS12*QS4 -> 0 | QT29: =QT12*QT4 -> 0 | QU29: =QU12*QU4 -> 0 | QV29: =QV12*QV4 -> 0 | QW29: =QW12*QW4 -> 0 | QX29: =QX12*QX4 -> 0 | QY29: =QY12*QY4 -> 0 | QZ29: =QZ12*QZ4 -> 0 | RA29: =RA12*RA4 -> 0 | RB29: =RB12*RB4 -> 0 | RC29: =RC12*RC4 -> 0 | RD29: =RD12*RD4 -> 0 | RE29: =RE12*RE4 -> 0 | RF29: =RF12*RF4 -> 0 | RG29: =RG12*RG4 -> 0 | RH29: =RH12*RH4 -> 0 | RI29: =RI12*RI4 -> 0 | RJ29: =RJ12*RJ4 -> 0 | RK29: =RK12*RK4 -> 0 | RL29: =RL12*RL4 -> 0 | RM29: =RM12*RM4 -> 0 | RN29: =RN12*RN4 -> 0 | RO29: =RO12*RO4 -> 0 | RP29: =RP12*RP4 -> 0 | RQ29: =RQ12*RQ4 -> 0 | RR29: =RR12*RR4 -> 0 | RS29: =RS12*RS4 -> 0 | RT29: =RT12*RT4 -> 0 | RU29: =RU12*RU4 -> 0 | RV29: =RV12*RV4 -> 0 | RW29: =RW12*RW4 -> 0 | RX29: =RX12*RX4 -> 0 | RY29: =RY12*RY4 -> 0 | RZ29: =RZ12*RZ4 -> 0 | SA29: =SA12*SA4 -> 0 | SB29: =SB12*SB4 -> 0 | SC29: =SC12*SC4 -> 0 | SD29: =SD12*SD4 -> 0 | SE29: =SE12*SE4 -> 0 | SF29: =SF12*SF4 -> 0 | SG29: =SG12*SG4 -> 0 | SH29: =SH12*SH4 -> 0 | SI29: =SI12*SI4 -> 0 | SJ29: =SJ12*SJ4 -> 0 | SK29: =SK12*SK4 -> 0 | SL29: =SL12*SL4 -> 0 | SM29: =SM12*SM4 -> 0 | SN29: =SN12*SN4 -> 0 | SO29: =SO12*SO4 -> 0 | SP29: =SP12*SP4 -> 0 | SQ29: =SQ12*SQ4 -> 0 | SR29: =SR12*SR4 -> 0 | SS29: =SS12*SS4 -> 0 | ST29: =ST12*ST4 -> 0 | SU29: =SU12*SU4 -> 0 | SV29: =SV12*SV4 -> 0 | SW29: =SW12*SW4 -> 0 | SX29: =SX12*SX4 -> 0 | SY29: =SY12*SY4 -> 0 | SZ29: =SZ12*SZ4 -> 0 | TA29: =TA12*TA4 -> 0 | TB29: =TB12*TB4 -> 0 | TC29: =TC12*TC4 -> 0
D30: Growth Rate Model (1+g)/(k-g) | E30: =(1+F30)/(G30-F30) -> 17.37288136 | F30: =G18 -> 0.025 | G30: =F18 -> 0.084 | K30: =K28*K5*$E$30*(1+$F$30) -> 0 | L30: =L28*L5*$E$30*(1+$F$30) -> 0 | M30: =M28*M5*$E$30*(1+$F$30) -> 0 | N30: =N28*N5*$E$30*(1+$F$30) -> 0 | O30: =O28*O5*$E$30*(1+$F$30) -> 0 | P30: =P28*P5*$E$30*(1+$F$30) -> 0 | Q30: =Q28*Q5*$E$30*(1+$F$30) -> 0 | R30: =R28*R5*$E$30*(1+$F$30) -> 0 | S30: =S28*S5*$E$30*(1+$F$30) -> 0 | T30: =T28*T5*$E$30*(1+$F$30) -> 0 | U30: =U28*U5*$E$30*(1+$F$30) -> 0 | V30: =V28*V5*$E$30*(1+$F$30) -> 0 | W30: =W28*W5*$E$30*(1+$F$30) -> 0 | X30: =X28*X5*$E$30*(1+$F$30) -> 0 | Y30: =Y28*Y5*$E$30*(1+$F$30) -> 237.2024208 | Z30: =Z28*Z5*$E$30*(1+$F$30) -> 0 | AA30: =AA28*AA5*$E$30*(1+$F$30) -> 0 | AB30: =AB28*AB5*$E$30*(1+$F$30) -> 0 | AC30: =AC28*AC5*$E$30*(1+$F$30) -> 0 | AD30: =AD28*AD5*$E$30*(1+$F$30) -> 0 | AE30: =AE28*AE5*$E$30*(1+$F$30) -> 0 | AF30: =AF28*AF5*$E$30*(1+$F$30) -> 0 | AG30: =AG28*AG5*$E$30*(1+$F$30) -> 0 | AH30: =AH28*AH5*$E$30*(1+$F$30) -> 0 | AI30: =AI28*AI5*$E$30*(1+$F$30) -> 0 | AJ30: =AJ28*AJ5*$E$30*(1+$F$30) -> 0 | AK30: =AK28*AK5*$E$30*(1+$F$30) -> 0 | AL30: =AL28*AL5*$E$30*(1+$F$30) -> 0 | AM30: =AM28*AM5*$E$30*(1+$F$30) -> 0 | AN30: =AN28*AN5*$E$30*(1+$F$30) -> 0 | AO30: =AO28*AO5*$E$30*(1+$F$30) -> 0 | AP30: =AP28*AP5*$E$30*(1+$F$30) -> 0 | AQ30: =AQ28*AQ5*$E$30*(1+$F$30) -> 0 | AR30: =AR28*AR5*$E$30*(1+$F$30) -> 0 | AS30: =AS28*AS5*$E$30*(1+$F$30) -> 0 | AT30: =AT28*AT5*$E$30*(1+$F$30) -> 0 | AU30: =AU28*AU5*$E$30*(1+$F$30) -> 0 | AV30: =AV28*AV5*$E$30*(1+$F$30) -> 0 | AW30: =AW28*AW5*$E$30*(1+$F$30) -> 0 | AX30: =AX28*AX5*$E$30*(1+$F$30) -> 0 | AY30: =AY28*AY5*$E$30*(1+$F$30) -> 0 | AZ30: =AZ28*AZ5*$E$30*(1+$F$30) -> 0 | BA30: =BA28*BA5*$E$30*(1+$F$30) -> 0 | BB30: =BB28*BB5*$E$30*(1+$F$30) -> 0 | BC30: =BC28*BC5*$E$30*(1+$F$30) -> 0 | BD30: =BD28*BD5*$E$30*(1+$F$30) -> 0 | BE30: =BE28*BE5*$E$30*(1+$F$30) -> 0 | BF30: =BF28*BF5*$E$30*(1+$F$30) -> 0 | BG30: =BG28*BG5*$E$30*(1+$F$30) -> 0 | BH30: =BH28*BH5*$E$30*(1+$F$30) -> 0 | BI30: =BI28*BI5*$E$30*(1+$F$30) -> 0 | BJ30: =BJ28*BJ5*$E$30*(1+$F$30) -> 0 | BK30: =BK28*BK5*$E$30*(1+$F$30) -> 0 | BL30: =BL28*BL5*$E$30*(1+$F$30) -> 0 | BM30: =BM28*BM5*$E$30*(1+$F$30) -> 0 | BN30: =BN28*BN5*$E$30*(1+$F$30) -> 0 | BO30: =BO28*BO5*$E$30*(1+$F$30) -> 0 | BP30: =BP28*BP5*$E$30*(1+$F$30) -> 0 | BQ30: =BQ28*BQ5*$E$30*(1+$F$30) -> 0 | BR30: =BR28*BR5*$E$30*(1+$F$30) -> 0 | BS30: =BS28*BS5*$E$30*(1+$F$30) -> 0 | BT30: =BT28*BT5*$E$30*(1+$F$30) -> 0 | BU30: =BU28*BU5*$E$30*(1+$F$30) -> 0 | BV30: =BV28*BV5*$E$30*(1+$F$30) -> 0 | BW30: =BW28*BW5*$E$30*(1+$F$30) -> 0 | BX30: =BX28*BX5*$E$30*(1+$F$30) -> 0 | BY30: =BY28*BY5*$E$30*(1+$F$30) -> 0 | BZ30: =BZ28*BZ5*$E$30*(1+$F$30) -> 0 | CA30: =CA28*CA5*$E$30*(1+$F$30) -> 0 | CB30: =CB28*CB5*$E$30*(1+$F$30) -> 0 | CC30: =CC28*CC5*$E$30*(1+$F$30) -> 0 | CD30: =CD28*CD5*$E$30*(1+$F$30) -> 0 | CE30: =CE28*CE5*$E$30*(1+$F$30) -> 0 | CF30: =CF28*CF5*$E$30*(1+$F$30) -> 0 | CG30: =CG28*CG5*$E$30*(1+$F$30) -> 0 | CH30: =CH28*CH5*$E$30*(1+$F$30) -> 0 | CI30: =CI28*CI5*$E$30*(1+$F$30) -> 0 | CJ30: =CJ28*CJ5*$E$30*(1+$F$30) -> 0 | CK30: =CK28*CK5*$E$30*(1+$F$30) -> 0 | CL30: =CL28*CL5*$E$30*(1+$F$30) -> 0 | CM30: =CM28*CM5*$E$30*(1+$F$30) -> 0 | CN30: =CN28*CN5*$E$30*(1+$F$30) -> 0 | CO30: =CO28*CO5*$E$30*(1+$F$30) -> 0 | CP30: =CP28*CP5*$E$30*(1+$F$30) -> 0 | CQ30: =CQ28*CQ5*$E$30*(1+$F$30) -> 0 | CR30: =CR28*CR5*$E$30*(1+$F$30) -> 0 | CS30: =CS28*CS5*$E$30*(1+$F$30) -> 0 | CT30: =CT28*CT5*$E$30*(1+$F$30) -> 0 | CU30: =CU28*CU5*$E$30*(1+$F$30) -> 0 | CV30: =CV28*CV5*$E$30*(1+$F$30) -> 0 | CW30: =CW28*CW5*$E$30*(1+$F$30) -> 0 | CX30: =CX28*CX5*$E$30*(1+$F$30) -> 0 | CY30: =CY28*CY5*$E$30*(1+$F$30) -> 0 | CZ30: =CZ28*CZ5*$E$30*(1+$F$30) -> 0 | DA30: =DA28*DA5*$E$30*(1+$F$30) -> 0 | DB30: =DB28*DB5*$E$30*(1+$F$30) -> 0 | DC30: =DC28*DC5*$E$30*(1+$F$30) -> 0 | DD30: =DD28*DD5*$E$30*(1+$F$30) -> 0 | DE30: =DE28*DE5*$E$30*(1+$F$30) -> 0 | DF30: =DF28*DF5*$E$30*(1+$F$30) -> 0 | DG30: =DG28*DG5*$E$30*(1+$F$30) -> 0 | DH30: =DH28*DH5*$E$30*(1+$F$30) -> 0 | DI30: =DI28*DI5*$E$30*(1+$F$30) -> 0 | DJ30: =DJ28*DJ5*$E$30*(1+$F$30) -> 0 | DK30: =DK28*DK5*$E$30*(1+$F$30) -> 0 | DL30: =DL28*DL5*$E$30*(1+$F$30) -> 0 | DM30: =DM28*DM5*$E$30*(1+$F$30) -> 0 | DN30: =DN28*DN5*$E$30*(1+$F$30) -> 0 | DO30: =DO28*DO5*$E$30*(1+$F$30) -> 0 | DP30: =DP28*DP5*$E$30*(1+$F$30) -> 0 | DQ30: =DQ28*DQ5*$E$30*(1+$F$30) -> 0 | DR30: =DR28*DR5*$E$30*(1+$F$30) -> 0 | DS30: =DS28*DS5*$E$30*(1+$F$30) -> 0 | DT30: =DT28*DT5*$E$30*(1+$F$30) -> 0 | DU30: =DU28*DU5*$E$30*(1+$F$30) -> 0 | DV30: =DV28*DV5*$E$30*(1+$F$30) -> 0 | DW30: =DW28*DW5*$E$30*(1+$F$30) -> 0 | DX30: =DX28*DX5*$E$30*(1+$F$30) -> 0 | DY30: =DY28*DY5*$E$30*(1+$F$30) -> 0 | DZ30: =DZ28*DZ5*$E$30*(1+$F$30) -> 0 | EA30: =EA28*EA5*$E$30*(1+$F$30) -> 0 | EB30: =EB28*EB5*$E$30*(1+$F$30) -> 0 | EC30: =EC28*EC5*$E$30*(1+$F$30) -> 0 | ED30: =ED28*ED5*$E$30*(1+$F$30) -> 0 | EE30: =EE28*EE5*$E$30*(1+$F$30) -> 0 | EF30: =EF28*EF5*$E$30*(1+$F$30) -> 0 | EG30: =EG28*EG5*$E$30*(1+$F$30) -> 0 | EH30: =EH28*EH5*$E$30*(1+$F$30) -> 0 | EI30: =EI28*EI5*$E$30*(1+$F$30) -> 0 | EJ30: =EJ28*EJ5*$E$30*(1+$F$30) -> 0 | EK30: =EK28*EK5*$E$30*(1+$F$30) -> 0 | EL30: =EL28*EL5*$E$30*(1+$F$30) -> 0 | EM30: =EM28*EM5*$E$30*(1+$F$30) -> 0 | EN30: =EN28*EN5*$E$30*(1+$F$30) -> 0 | EO30: =EO28*EO5*$E$30*(1+$F$30) -> 0 | EP30: =EP28*EP5*$E$30*(1+$F$30) -> 0 | EQ30: =EQ28*EQ5*$E$30*(1+$F$30) -> 0 | ER30: =ER28*ER5*$E$30*(1+$F$30) -> 0 | ES30: =ES28*ES5*$E$30*(1+$F$30) -> 0 | ET30: =ET28*ET5*$E$30*(1+$F$30) -> 0 | EU30: =EU28*EU5*$E$30*(1+$F$30) -> 0 | EV30: =EV28*EV5*$E$30*(1+$F$30) -> 0 | EW30: =EW28*EW5*$E$30*(1+$F$30) -> 0 | EX30: =EX28*EX5*$E$30*(1+$F$30) -> 0 | EY30: =EY28*EY5*$E$30*(1+$F$30) -> 0 | EZ30: =EZ28*EZ5*$E$30*(1+$F$30) -> 0 | FA30: =FA28*FA5*$E$30*(1+$F$30) -> 0 | FB30: =FB28*FB5*$E$30*(1+$F$30) -> 0 | FC30: =FC28*FC5*$E$30*(1+$F$30) -> 0 | FD30: =FD28*FD5*$E$30*(1+$F$30) -> 0 | FE30: =FE28*FE5*$E$30*(1+$F$30) -> 0 | FF30: =FF28*FF5*$E$30*(1+$F$30) -> 0 | FG30: =FG28*FG5*$E$30*(1+$F$30) -> 0 | FH30: =FH28*FH5*$E$30*(1+$F$30) -> 0 | FI30: =FI28*FI5*$E$30*(1+$F$30) -> 0 | FJ30: =FJ28*FJ5*$E$30*(1+$F$30) -> 0 | FK30: =FK28*FK5*$E$30*(1+$F$30) -> 0 | FL30: =FL28*FL5*$E$30*(1+$F$30) -> 0 | FM30: =FM28*FM5*$E$30*(1+$F$30) -> 0 | FN30: =FN28*FN5*$E$30*(1+$F$30) -> 0 | FO30: =FO28*FO5*$E$30*(1+$F$30) -> 0 | FP30: =FP28*FP5*$E$30*(1+$F$30) -> 0 | FQ30: =FQ28*FQ5*$E$30*(1+$F$30) -> 0 | FR30: =FR28*FR5*$E$30*(1+$F$30) -> 0 | FS30: =FS28*FS5*$E$30*(1+$F$30) -> 0 | FT30: =FT28*FT5*$E$30*(1+$F$30) -> 0 | FU30: =FU28*FU5*$E$30*(1+$F$30) -> 0 | FV30: =FV28*FV5*$E$30*(1+$F$30) -> 0 | FW30: =FW28*FW5*$E$30*(1+$F$30) -> 0 | FX30: =FX28*FX5*$E$30*(1+$F$30) -> 0 | FY30: =FY28*FY5*$E$30*(1+$F$30) -> 0 | FZ30: =FZ28*FZ5*$E$30*(1+$F$30) -> 0 | GA30: =GA28*GA5*$E$30*(1+$F$30) -> 0 | GB30: =GB28*GB5*$E$30*(1+$F$30) -> 0 | GC30: =GC28*GC5*$E$30*(1+$F$30) -> 0 | GD30: =GD28*GD5*$E$30*(1+$F$30) -> 0 | GE30: =GE28*GE5*$E$30*(1+$F$30) -> 0 | GF30: =GF28*GF5*$E$30*(1+$F$30) -> 0 | GG30: =GG28*GG5*$E$30*(1+$F$30) -> 0 | GH30: =GH28*GH5*$E$30*(1+$F$30) -> 0 | GI30: =GI28*GI5*$E$30*(1+$F$30) -> 0 | GJ30: =GJ28*GJ5*$E$30*(1+$F$30) -> 0 | GK30: =GK28*GK5*$E$30*(1+$F$30) -> 0 | GL30: =GL28*GL5*$E$30*(1+$F$30) -> 0 | GM30: =GM28*GM5*$E$30*(1+$F$30) -> 0 | GN30: =GN28*GN5*$E$30*(1+$F$30) -> 0 | GO30: =GO28*GO5*$E$30*(1+$F$30) -> 0 | GP30: =GP28*GP5*$E$30*(1+$F$30) -> 0 | GQ30: =GQ28*GQ5*$E$30*(1+$F$30) -> 0 | GR30: =GR28*GR5*$E$30*(1+$F$30) -> 0 | GS30: =GS28*GS5*$E$30*(1+$F$30) -> 0 | GT30: =GT28*GT5*$E$30*(1+$F$30) -> 0 | GU30: =GU28*GU5*$E$30*(1+$F$30) -> 0 | GV30: =GV28*GV5*$E$30*(1+$F$30) -> 0 | GW30: =GW28*GW5*$E$30*(1+$F$30) -> 0 | GX30: =GX28*GX5*$E$30*(1+$F$30) -> 0 | GY30: =GY28*GY5*$E$30*(1+$F$30) -> 0 | GZ30: =GZ28*GZ5*$E$30*(1+$F$30) -> 0 | HA30: =HA28*HA5*$E$30*(1+$F$30) -> 0 | HB30: =HB28*HB5*$E$30*(1+$F$30) -> 0 | HC30: =HC28*HC5*$E$30*(1+$F$30) -> 0 | HD30: =HD28*HD5*$E$30*(1+$F$30) -> 0 | HE30: =HE28*HE5*$E$30*(1+$F$30) -> 0 | HF30: =HF28*HF5*$E$30*(1+$F$30) -> 0 | HG30: =HG28*HG5*$E$30*(1+$F$30) -> 0 | HH30: =HH28*HH5*$E$30*(1+$F$30) -> 0 | HI30: =HI28*HI5*$E$30*(1+$F$30) -> 0 | HJ30: =HJ28*HJ5*$E$30*(1+$F$30) -> 0 | HK30: =HK28*HK5*$E$30*(1+$F$30) -> 0 | HL30: =HL28*HL5*$E$30*(1+$F$30) -> 0 | HM30: =HM28*HM5*$E$30*(1+$F$30) -> 0 | HN30: =HN28*HN5*$E$30*(1+$F$30) -> 0 | HO30: =HO28*HO5*$E$30*(1+$F$30) -> 0 | HP30: =HP28*HP5*$E$30*(1+$F$30) -> 0 | HQ30: =HQ28*HQ5*$E$30*(1+$F$30) -> 0 | HR30: =HR28*HR5*$E$30*(1+$F$30) -> 0 | HS30: =HS28*HS5*$E$30*(1+$F$30) -> 0 | HT30: =HT28*HT5*$E$30*(1+$F$30) -> 0 | HU30: =HU28*HU5*$E$30*(1+$F$30) -> 0 | HV30: =HV28*HV5*$E$30*(1+$F$30) -> 0 | HW30: =HW28*HW5*$E$30*(1+$F$30) -> 0 | HX30: =HX28*HX5*$E$30*(1+$F$30) -> 0 | HY30: =HY28*HY5*$E$30*(1+$F$30) -> 0 | HZ30: =HZ28*HZ5*$E$30*(1+$F$30) -> 0 | IA30: =IA28*IA5*$E$30*(1+$F$30) -> 0 | IB30: =IB28*IB5*$E$30*(1+$F$30) -> 0 | IC30: =IC28*IC5*$E$30*(1+$F$30) -> 0 | ID30: =ID28*ID5*$E$30*(1+$F$30) -> 0 | IE30: =IE28*IE5*$E$30*(1+$F$30) -> 0 | IF30: =IF28*IF5*$E$30*(1+$F$30) -> 0 | IG30: =IG28*IG5*$E$30*(1+$F$30) -> 0 | IH30: =IH28*IH5*$E$30*(1+$F$30) -> 0 | II30: =II28*II5*$E$30*(1+$F$30) -> 0 | IJ30: =IJ28*IJ5*$E$30*(1+$F$30) -> 0 | IK30: =IK28*IK5*$E$30*(1+$F$30) -> 0 | IL30: =IL28*IL5*$E$30*(1+$F$30) -> 0 | IM30: =IM28*IM5*$E$30*(1+$F$30) -> 0 | IN30: =IN28*IN5*$E$30*(1+$F$30) -> 0 | IO30: =IO28*IO5*$E$30*(1+$F$30) -> 0 | IP30: =IP28*IP5*$E$30*(1+$F$30) -> 0 | IQ30: =IQ28*IQ5*$E$30*(1+$F$30) -> 0 | IR30: =IR28*IR5*$E$30*(1+$F$30) -> 0 | IS30: =IS28*IS5*$E$30*(1+$F$30) -> 0 | IT30: =IT28*IT5*$E$30*(1+$F$30) -> 0 | IU30: =IU28*IU5*$E$30*(1+$F$30) -> 0 | IV30: =IV28*IV5*$E$30*(1+$F$30) -> 0 | IW30: =IW28*IW5*$E$30*(1+$F$30) -> 0 | IX30: =IX28*IX5*$E$30*(1+$F$30) -> 0 | IY30: =IY28*IY5*$E$30*(1+$F$30) -> 0 | IZ30: =IZ28*IZ5*$E$30*(1+$F$30) -> 0 | JA30: =JA28*JA5*$E$30*(1+$F$30) -> 0 | JB30: =JB28*JB5*$E$30*(1+$F$30) -> 0 | JC30: =JC28*JC5*$E$30*(1+$F$30) -> 0 | JD30: =JD28*JD5*$E$30*(1+$F$30) -> 0 | JE30: =JE28*JE5*$E$30*(1+$F$30) -> 0 | JF30: =JF28*JF5*$E$30*(1+$F$30) -> 0 | JG30: =JG28*JG5*$E$30*(1+$F$30) -> 0 | JH30: =JH28*JH5*$E$30*(1+$F$30) -> 0 | JI30: =JI28*JI5*$E$30*(1+$F$30) -> 0 | JJ30: =JJ28*JJ5*$E$30*(1+$F$30) -> 0 | JK30: =JK28*JK5*$E$30*(1+$F$30) -> 0 | JL30: =JL28*JL5*$E$30*(1+$F$30) -> 0 | JM30: =JM28*JM5*$E$30*(1+$F$30) -> 0 | JN30: =JN28*JN5*$E$30*(1+$F$30) -> 0 | JO30: =JO28*JO5*$E$30*(1+$F$30) -> 0 | JP30: =JP28*JP5*$E$30*(1+$F$30) -> 0 | JQ30: =JQ28*JQ5*$E$30*(1+$F$30) -> 0 | JR30: =JR28*JR5*$E$30*(1+$F$30) -> 0 | JS30: =JS28*JS5*$E$30*(1+$F$30) -> 0 | JT30: =JT28*JT5*$E$30*(1+$F$30) -> 0 | JU30: =JU28*JU5*$E$30*(1+$F$30) -> 0 | JV30: =JV28*JV5*$E$30*(1+$F$30) -> 0 | JW30: =JW28*JW5*$E$30*(1+$F$30) -> 0 | JX30: =JX28*JX5*$E$30*(1+$F$30) -> 0 | JY30: =JY28*JY5*$E$30*(1+$F$30) -> 0 | JZ30: =JZ28*JZ5*$E$30*(1+$F$30) -> 0 | KA30: =KA28*KA5*$E$30*(1+$F$30) -> 0 | KB30: =KB28*KB5*$E$30*(1+$F$30) -> 0 | KC30: =KC28*KC5*$E$30*(1+$F$30) -> 0 | KD30: =KD28*KD5*$E$30*(1+$F$30) -> 0 | KE30: =KE28*KE5*$E$30*(1+$F$30) -> 0 | KF30: =KF28*KF5*$E$30*(1+$F$30) -> 0 | KG30: =KG28*KG5*$E$30*(1+$F$30) -> 0 | KH30: =KH28*KH5*$E$30*(1+$F$30) -> 0 | KI30: =KI28*KI5*$E$30*(1+$F$30) -> 0 | KJ30: =KJ28*KJ5*$E$30*(1+$F$30) -> 0 | KK30: =KK28*KK5*$E$30*(1+$F$30) -> 0 | KL30: =KL28*KL5*$E$30*(1+$F$30) -> 0 | KM30: =KM28*KM5*$E$30*(1+$F$30) -> 0 | KN30: =KN28*KN5*$E$30*(1+$F$30) -> 0 | KO30: =KO28*KO5*$E$30*(1+$F$30) -> 0 | KP30: =KP28*KP5*$E$30*(1+$F$30) -> 0 | KQ30: =KQ28*KQ5*$E$30*(1+$F$30) -> 0 | KR30: =KR28*KR5*$E$30*(1+$F$30) -> 0 | KS30: =KS28*KS5*$E$30*(1+$F$30) -> 0 | KT30: =KT28*KT5*$E$30*(1+$F$30) -> 0 | KU30: =KU28*KU5*$E$30*(1+$F$30) -> 0 | KV30: =KV28*KV5*$E$30*(1+$F$30) -> 0 | KW30: =KW28*KW5*$E$30*(1+$F$30) -> 0 | KX30: =KX28*KX5*$E$30*(1+$F$30) -> 0 | KY30: =KY28*KY5*$E$30*(1+$F$30) -> 0 | KZ30: =KZ28*KZ5*$E$30*(1+$F$30) -> 0 | LA30: =LA28*LA5*$E$30*(1+$F$30) -> 0 | LB30: =LB28*LB5*$E$30*(1+$F$30) -> 0 | LC30: =LC28*LC5*$E$30*(1+$F$30) -> 0 | LD30: =LD28*LD5*$E$30*(1+$F$30) -> 0 | LE30: =LE28*LE5*$E$30*(1+$F$30) -> 0 | LF30: =LF28*LF5*$E$30*(1+$F$30) -> 0 | LG30: =LG28*LG5*$E$30*(1+$F$30) -> 0 | LH30: =LH28*LH5*$E$30*(1+$F$30) -> 0 | LI30: =LI28*LI5*$E$30*(1+$F$30) -> 0 | LJ30: =LJ28*LJ5*$E$30*(1+$F$30) -> 0 | LK30: =LK28*LK5*$E$30*(1+$F$30) -> 0 | LL30: =LL28*LL5*$E$30*(1+$F$30) -> 0 | LM30: =LM28*LM5*$E$30*(1+$F$30) -> 0 | LN30: =LN28*LN5*$E$30*(1+$F$30) -> 0 | LO30: =LO28*LO5*$E$30*(1+$F$30) -> 0 | LP30: =LP28*LP5*$E$30*(1+$F$30) -> 0 | LQ30: =LQ28*LQ5*$E$30*(1+$F$30) -> 0 | LR30: =LR28*LR5*$E$30*(1+$F$30) -> 0 | LS30: =LS28*LS5*$E$30*(1+$F$30) -> 0 | LT30: =LT28*LT5*$E$30*(1+$F$30) -> 0 | LU30: =LU28*LU5*$E$30*(1+$F$30) -> 0 | LV30: =LV28*LV5*$E$30*(1+$F$30) -> 0 | LW30: =LW28*LW5*$E$30*(1+$F$30) -> 0 | LX30: =LX28*LX5*$E$30*(1+$F$30) -> 0 | LY30: =LY28*LY5*$E$30*(1+$F$30) -> 0 | LZ30: =LZ28*LZ5*$E$30*(1+$F$30) -> 0 | MA30: =MA28*MA5*$E$30*(1+$F$30) -> 0 | MB30: =MB28*MB5*$E$30*(1+$F$30) -> 0 | MC30: =MC28*MC5*$E$30*(1+$F$30) -> 0 | MD30: =MD28*MD5*$E$30*(1+$F$30) -> 0 | ME30: =ME28*ME5*$E$30*(1+$F$30) -> 0 | MF30: =MF28*MF5*$E$30*(1+$F$30) -> 0 | MG30: =MG28*MG5*$E$30*(1+$F$30) -> 0 | MH30: =MH28*MH5*$E$30*(1+$F$30) -> 0 | MI30: =MI28*MI5*$E$30*(1+$F$30) -> 0 | MJ30: =MJ28*MJ5*$E$30*(1+$F$30) -> 0 | MK30: =MK28*MK5*$E$30*(1+$F$30) -> 0 | ML30: =ML28*ML5*$E$30*(1+$F$30) -> 0 | MM30: =MM28*MM5*$E$30*(1+$F$30) -> 0 | MN30: =MN28*MN5*$E$30*(1+$F$30) -> 0 | MO30: =MO28*MO5*$E$30*(1+$F$30) -> 0 | MP30: =MP28*MP5*$E$30*(1+$F$30) -> 0 | MQ30: =MQ28*MQ5*$E$30*(1+$F$30) -> 0 | MR30: =MR28*MR5*$E$30*(1+$F$30) -> 0 | MS30: =MS28*MS5*$E$30*(1+$F$30) -> 0 | MT30: =MT28*MT5*$E$30*(1+$F$30) -> 0 | MU30: =MU28*MU5*$E$30*(1+$F$30) -> 0 | MV30: =MV28*MV5*$E$30*(1+$F$30) -> 0 | MW30: =MW28*MW5*$E$30*(1+$F$30) -> 0 | MX30: =MX28*MX5*$E$30*(1+$F$30) -> 0 | MY30: =MY28*MY5*$E$30*(1+$F$30) -> 0 | MZ30: =MZ28*MZ5*$E$30*(1+$F$30) -> 0 | NA30: =NA28*NA5*$E$30*(1+$F$30) -> 0 | NB30: =NB28*NB5*$E$30*(1+$F$30) -> 0 | NC30: =NC28*NC5*$E$30*(1+$F$30) -> 0 | ND30: =ND28*ND5*$E$30*(1+$F$30) -> 0 | NE30: =NE28*NE5*$E$30*(1+$F$30) -> 0 | NF30: =NF28*NF5*$E$30*(1+$F$30) -> 0 | NG30: =NG28*NG5*$E$30*(1+$F$30) -> 0 | NH30: =NH28*NH5*$E$30*(1+$F$30) -> 0 | NI30: =NI28*NI5*$E$30*(1+$F$30) -> 0 | NJ30: =NJ28*NJ5*$E$30*(1+$F$30) -> 0 | NK30: =NK28*NK5*$E$30*(1+$F$30) -> 0 | NL30: =NL28*NL5*$E$30*(1+$F$30) -> 0 | NM30: =NM28*NM5*$E$30*(1+$F$30) -> 0 | NN30: =NN28*NN5*$E$30*(1+$F$30) -> 0 | NO30: =NO28*NO5*$E$30*(1+$F$30) -> 0 | NP30: =NP28*NP5*$E$30*(1+$F$30) -> 0 | NQ30: =NQ28*NQ5*$E$30*(1+$F$30) -> 0 | NR30: =NR28*NR5*$E$30*(1+$F$30) -> 0 | NS30: =NS28*NS5*$E$30*(1+$F$30) -> 0 | NT30: =NT28*NT5*$E$30*(1+$F$30) -> 0 | NU30: =NU28*NU5*$E$30*(1+$F$30) -> 0 | NV30: =NV28*NV5*$E$30*(1+$F$30) -> 0 | NW30: =NW28*NW5*$E$30*(1+$F$30) -> 0 | NX30: =NX28*NX5*$E$30*(1+$F$30) -> 0 | NY30: =NY28*NY5*$E$30*(1+$F$30) -> 0 | NZ30: =NZ28*NZ5*$E$30*(1+$F$30) -> 0 | OA30: =OA28*OA5*$E$30*(1+$F$30) -> 0 | OB30: =OB28*OB5*$E$30*(1+$F$30) -> 0 | OC30: =OC28*OC5*$E$30*(1+$F$30) -> 0 | OD30: =OD28*OD5*$E$30*(1+$F$30) -> 0 | OE30: =OE28*OE5*$E$30*(1+$F$30) -> 0 | OF30: =OF28*OF5*$E$30*(1+$F$30) -> 0 | OG30: =OG28*OG5*$E$30*(1+$F$30) -> 0 | OH30: =OH28*OH5*$E$30*(1+$F$30) -> 0 | OI30: =OI28*OI5*$E$30*(1+$F$30) -> 0 | OJ30: =OJ28*OJ5*$E$30*(1+$F$30) -> 0 | OK30: =OK28*OK5*$E$30*(1+$F$30) -> 0 | OL30: =OL28*OL5*$E$30*(1+$F$30) -> 0 | OM30: =OM28*OM5*$E$30*(1+$F$30) -> 0 | ON30: =ON28*ON5*$E$30*(1+$F$30) -> 0 | OO30: =OO28*OO5*$E$30*(1+$F$30) -> 0 | OP30: =OP28*OP5*$E$30*(1+$F$30) -> 0 | OQ30: =OQ28*OQ5*$E$30*(1+$F$30) -> 0 | OR30: =OR28*OR5*$E$30*(1+$F$30) -> 0 | OS30: =OS28*OS5*$E$30*(1+$F$30) -> 0 | OT30: =OT28*OT5*$E$30*(1+$F$30) -> 0 | OU30: =OU28*OU5*$E$30*(1+$F$30) -> 0 | OV30: =OV28*OV5*$E$30*(1+$F$30) -> 0 | OW30: =OW28*OW5*$E$30*(1+$F$30) -> 0 | OX30: =OX28*OX5*$E$30*(1+$F$30) -> 0 | OY30: =OY28*OY5*$E$30*(1+$F$30) -> 0 | OZ30: =OZ28*OZ5*$E$30*(1+$F$30) -> 0 | PA30: =PA28*PA5*$E$30*(1+$F$30) -> 0 | PB30: =PB28*PB5*$E$30*(1+$F$30) -> 0 | PC30: =PC28*PC5*$E$30*(1+$F$30) -> 0 | PD30: =PD28*PD5*$E$30*(1+$F$30) -> 0 | PE30: =PE28*PE5*$E$30*(1+$F$30) -> 0 | PF30: =PF28*PF5*$E$30*(1+$F$30) -> 0 | PG30: =PG28*PG5*$E$30*(1+$F$30) -> 0 | PH30: =PH28*PH5*$E$30*(1+$F$30) -> 0 | PI30: =PI28*PI5*$E$30*(1+$F$30) -> 0 | PJ30: =PJ28*PJ5*$E$30*(1+$F$30) -> 0 | PK30: =PK28*PK5*$E$30*(1+$F$30) -> 0 | PL30: =PL28*PL5*$E$30*(1+$F$30) -> 0 | PM30: =PM28*PM5*$E$30*(1+$F$30) -> 0 | PN30: =PN28*PN5*$E$30*(1+$F$30) -> 0 | PO30: =PO28*PO5*$E$30*(1+$F$30) -> 0 | PP30: =PP28*PP5*$E$30*(1+$F$30) -> 0 | PQ30: =PQ28*PQ5*$E$30*(1+$F$30) -> 0 | PR30: =PR28*PR5*$E$30*(1+$F$30) -> 0 | PS30: =PS28*PS5*$E$30*(1+$F$30) -> 0 | PT30: =PT28*PT5*$E$30*(1+$F$30) -> 0 | PU30: =PU28*PU5*$E$30*(1+$F$30) -> 0 | PV30: =PV28*PV5*$E$30*(1+$F$30) -> 0 | PW30: =PW28*PW5*$E$30*(1+$F$30) -> 0 | PX30: =PX28*PX5*$E$30*(1+$F$30) -> 0 | PY30: =PY28*PY5*$E$30*(1+$F$30) -> 0 | PZ30: =PZ28*PZ5*$E$30*(1+$F$30) -> 0 | QA30: =QA28*QA5*$E$30*(1+$F$30) -> 0 | QB30: =QB28*QB5*$E$30*(1+$F$30) -> 0 | QC30: =QC28*QC5*$E$30*(1+$F$30) -> 0 | QD30: =QD28*QD5*$E$30*(1+$F$30) -> 0 | QE30: =QE28*QE5*$E$30*(1+$F$30) -> 0 | QF30: =QF28*QF5*$E$30*(1+$F$30) -> 0 | QG30: =QG28*QG5*$E$30*(1+$F$30) -> 0 | QH30: =QH28*QH5*$E$30*(1+$F$30) -> 0 | QI30: =QI28*QI5*$E$30*(1+$F$30) -> 0 | QJ30: =QJ28*QJ5*$E$30*(1+$F$30) -> 0 | QK30: =QK28*QK5*$E$30*(1+$F$30) -> 0 | QL30: =QL28*QL5*$E$30*(1+$F$30) -> 0 | QM30: =QM28*QM5*$E$30*(1+$F$30) -> 0 | QN30: =QN28*QN5*$E$30*(1+$F$30) -> 0 | QO30: =QO28*QO5*$E$30*(1+$F$30) -> 0 | QP30: =QP28*QP5*$E$30*(1+$F$30) -> 0 | QQ30: =QQ28*QQ5*$E$30*(1+$F$30) -> 0 | QR30: =QR28*QR5*$E$30*(1+$F$30) -> 0 | QS30: =QS28*QS5*$E$30*(1+$F$30) -> 0 | QT30: =QT28*QT5*$E$30*(1+$F$30) -> 0 | QU30: =QU28*QU5*$E$30*(1+$F$30) -> 0 | QV30: =QV28*QV5*$E$30*(1+$F$30) -> 0 | QW30: =QW28*QW5*$E$30*(1+$F$30) -> 0 | QX30: =QX28*QX5*$E$30*(1+$F$30) -> 0 | QY30: =QY28*QY5*$E$30*(1+$F$30) -> 0 | QZ30: =QZ28*QZ5*$E$30*(1+$F$30) -> 0 | RA30: =RA28*RA5*$E$30*(1+$F$30) -> 0 | RB30: =RB28*RB5*$E$30*(1+$F$30) -> 0 | RC30: =RC28*RC5*$E$30*(1+$F$30) -> 0 | RD30: =RD28*RD5*$E$30*(1+$F$30) -> 0 | RE30: =RE28*RE5*$E$30*(1+$F$30) -> 0 | RF30: =RF28*RF5*$E$30*(1+$F$30) -> 0 | RG30: =RG28*RG5*$E$30*(1+$F$30) -> 0 | RH30: =RH28*RH5*$E$30*(1+$F$30) -> 0 | RI30: =RI28*RI5*$E$30*(1+$F$30) -> 0 | RJ30: =RJ28*RJ5*$E$30*(1+$F$30) -> 0 | RK30: =RK28*RK5*$E$30*(1+$F$30) -> 0 | RL30: =RL28*RL5*$E$30*(1+$F$30) -> 0 | RM30: =RM28*RM5*$E$30*(1+$F$30) -> 0 | RN30: =RN28*RN5*$E$30*(1+$F$30) -> 0 | RO30: =RO28*RO5*$E$30*(1+$F$30) -> 0 | RP30: =RP28*RP5*$E$30*(1+$F$30) -> 0 | RQ30: =RQ28*RQ5*$E$30*(1+$F$30) -> 0 | RR30: =RR28*RR5*$E$30*(1+$F$30) -> 0 | RS30: =RS28*RS5*$E$30*(1+$F$30) -> 0 | RT30: =RT28*RT5*$E$30*(1+$F$30) -> 0 | RU30: =RU28*RU5*$E$30*(1+$F$30) -> 0 | RV30: =RV28*RV5*$E$30*(1+$F$30) -> 0 | RW30: =RW28*RW5*$E$30*(1+$F$30) -> 0 | RX30: =RX28*RX5*$E$30*(1+$F$30) -> 0 | RY30: =RY28*RY5*$E$30*(1+$F$30) -> 0 | RZ30: =RZ28*RZ5*$E$30*(1+$F$30) -> 0 | SA30: =SA28*SA5*$E$30*(1+$F$30) -> 0 | SB30: =SB28*SB5*$E$30*(1+$F$30) -> 0 | SC30: =SC28*SC5*$E$30*(1+$F$30) -> 0 | SD30: =SD28*SD5*$E$30*(1+$F$30) -> 0 | SE30: =SE28*SE5*$E$30*(1+$F$30) -> 0 | SF30: =SF28*SF5*$E$30*(1+$F$30) -> 0 | SG30: =SG28*SG5*$E$30*(1+$F$30) -> 0 | SH30: =SH28*SH5*$E$30*(1+$F$30) -> 0 | SI30: =SI28*SI5*$E$30*(1+$F$30) -> 0 | SJ30: =SJ28*SJ5*$E$30*(1+$F$30) -> 0 | SK30: =SK28*SK5*$E$30*(1+$F$30) -> 0 | SL30: =SL28*SL5*$E$30*(1+$F$30) -> 0 | SM30: =SM28*SM5*$E$30*(1+$F$30) -> 0 | SN30: =SN28*SN5*$E$30*(1+$F$30) -> 0 | SO30: =SO28*SO5*$E$30*(1+$F$30) -> 0 | SP30: =SP28*SP5*$E$30*(1+$F$30) -> 0 | SQ30: =SQ28*SQ5*$E$30*(1+$F$30) -> 0 | SR30: =SR28*SR5*$E$30*(1+$F$30) -> 0 | SS30: =SS28*SS5*$E$30*(1+$F$30) -> 0 | ST30: =ST28*ST5*$E$30*(1+$F$30) -> 0 | SU30: =SU28*SU5*$E$30*(1+$F$30) -> 0 | SV30: =SV28*SV5*$E$30*(1+$F$30) -> 0 | SW30: =SW28*SW5*$E$30*(1+$F$30) -> 0 | SX30: =SX28*SX5*$E$30*(1+$F$30) -> 0 | SY30: =SY28*SY5*$E$30*(1+$F$30) -> 0 | SZ30: =SZ28*SZ5*$E$30*(1+$F$30) -> 0 | TA30: =TA28*TA5*$E$30*(1+$F$30) -> 0 | TB30: =TB28*TB5*$E$30*(1+$F$30) -> 0 | TC30: =TC28*TC5*$E$30*(1+$F$30) -> 0
D31: NPV of Terminal - Growth | E31: =NPV(F31,K30:KW30) -> 70.74241538 | F31: =Scenarios!D3 -> 0.084
D32: Total Value | E32: =E29+E31 -> 155.1629937
B34: Value Driver Method - V =NI x (1-g/ROE)/(k-g) | F34: g | G34: k | H34: ROC
D35: Net Income (t-1) | K35: =J11*K5 -> 0 | L35: =K11*L5 -> 0 | M35: =L11*M5 -> 0 | N35: =M11*N5 -> 0 | O35: =N11*O5 -> 0 | P35: =O11*P5 -> 0 | Q35: =P11*Q5 -> 0 | R35: =Q11*R5 -> 0 | S35: =R11*S5 -> 0 | T35: =S11*T5 -> 0 | U35: =T11*U5 -> 0 | V35: =U11*V5 -> 0 | W35: =V11*W5 -> 0 | X35: =W11*X5 -> 0 | Y35: =X11*Y5 -> 19.98088209 | Z35: =Y11*Z5 -> 0 | AA35: =Z11*AA5 -> 0 | AB35: =AA11*AB5 -> 0 | AC35: =AB11*AC5 -> 0 | AD35: =AC11*AD5 -> 0 | AE35: =AD11*AE5 -> 0 | AF35: =AE11*AF5 -> 0 | AG35: =AF11*AG5 -> 0 | AH35: =AG11*AH5 -> 0 | AI35: =AH11*AI5 -> 0 | AJ35: =AI11*AJ5 -> 0 | AK35: =AJ11*AK5 -> 0 | AL35: =AK11*AL5 -> 0 | AM35: =AL11*AM5 -> 0 | AN35: =AM11*AN5 -> 0 | AO35: =AN11*AO5 -> 0 | AP35: =AO11*AP5 -> 0 | AQ35: =AP11*AQ5 -> 0 | AR35: =AQ11*AR5 -> 0 | AS35: =AR11*AS5 -> 0 | AT35: =AS11*AT5 -> 0 | AU35: =AT11*AU5 -> 0 | AV35: =AU11*AV5 -> 0 | AW35: =AV11*AW5 -> 0 | AX35: =AW11*AX5 -> 0 | AY35: =AX11*AY5 -> 0 | AZ35: =AY11*AZ5 -> 0 | BA35: =AZ11*BA5 -> 0 | BB35: =BA11*BB5 -> 0 | BC35: =BB11*BC5 -> 0 | BD35: =BC11*BD5 -> 0 | BE35: =BD11*BE5 -> 0 | BF35: =BE11*BF5 -> 0 | BG35: =BF11*BG5 -> 0 | BH35: =BG11*BH5 -> 0 | BI35: =BH11*BI5 -> 0 | BJ35: =BI11*BJ5 -> 0 | BK35: =BJ11*BK5 -> 0 | BL35: =BK11*BL5 -> 0 | BM35: =BL11*BM5 -> 0 | BN35: =BM11*BN5 -> 0 | BO35: =BN11*BO5 -> 0 | BP35: =BO11*BP5 -> 0 | BQ35: =BP11*BQ5 -> 0 | BR35: =BQ11*BR5 -> 0 | BS35: =BR11*BS5 -> 0 | BT35: =BS11*BT5 -> 0 | BU35: =BT11*BU5 -> 0 | BV35: =BU11*BV5 -> 0 | BW35: =BV11*BW5 -> 0 | BX35: =BW11*BX5 -> 0 | BY35: =BX11*BY5 -> 0 | BZ35: =BY11*BZ5 -> 0 | CA35: =BZ11*CA5 -> 0 | CB35: =CA11*CB5 -> 0 | CC35: =CB11*CC5 -> 0 | CD35: =CC11*CD5 -> 0 | CE35: =CD11*CE5 -> 0 | CF35: =CE11*CF5 -> 0 | CG35: =CF11*CG5 -> 0 | CH35: =CG11*CH5 -> 0 | CI35: =CH11*CI5 -> 0 | CJ35: =CI11*CJ5 -> 0 | CK35: =CJ11*CK5 -> 0 | CL35: =CK11*CL5 -> 0 | CM35: =CL11*CM5 -> 0 | CN35: =CM11*CN5 -> 0 | CO35: =CN11*CO5 -> 0 | CP35: =CO11*CP5 -> 0 | CQ35: =CP11*CQ5 -> 0 | CR35: =CQ11*CR5 -> 0 | CS35: =CR11*CS5 -> 0 | CT35: =CS11*CT5 -> 0 | CU35: =CT11*CU5 -> 0 | CV35: =CU11*CV5 -> 0 | CW35: =CV11*CW5 -> 0 | CX35: =CW11*CX5 -> 0 | CY35: =CX11*CY5 -> 0 | CZ35: =CY11*CZ5 -> 0 | DA35: =CZ11*DA5 -> 0 | DB35: =DA11*DB5 -> 0 | DC35: =DB11*DC5 -> 0 | DD35: =DC11*DD5 -> 0 | DE35: =DD11*DE5 -> 0 | DF35: =DE11*DF5 -> 0 | DG35: =DF11*DG5 -> 0 | DH35: =DG11*DH5 -> 0 | DI35: =DH11*DI5 -> 0 | DJ35: =DI11*DJ5 -> 0 | DK35: =DJ11*DK5 -> 0 | DL35: =DK11*DL5 -> 0 | DM35: =DL11*DM5 -> 0 | DN35: =DM11*DN5 -> 0 | DO35: =DN11*DO5 -> 0 | DP35: =DO11*DP5 -> 0 | DQ35: =DP11*DQ5 -> 0 | DR35: =DQ11*DR5 -> 0 | DS35: =DR11*DS5 -> 0 | DT35: =DS11*DT5 -> 0 | DU35: =DT11*DU5 -> 0 | DV35: =DU11*DV5 -> 0 | DW35: =DV11*DW5 -> 0 | DX35: =DW11*DX5 -> 0 | DY35: =DX11*DY5 -> 0 | DZ35: =DY11*DZ5 -> 0 | EA35: =DZ11*EA5 -> 0 | EB35: =EA11*EB5 -> 0 | EC35: =EB11*EC5 -> 0 | ED35: =EC11*ED5 -> 0 | EE35: =ED11*EE5 -> 0 | EF35: =EE11*EF5 -> 0 | EG35: =EF11*EG5 -> 0 | EH35: =EG11*EH5 -> 0 | EI35: =EH11*EI5 -> 0 | EJ35: =EI11*EJ5 -> 0 | EK35: =EJ11*EK5 -> 0 | EL35: =EK11*EL5 -> 0 | EM35: =EL11*EM5 -> 0 | EN35: =EM11*EN5 -> 0 | EO35: =EN11*EO5 -> 0 | EP35: =EO11*EP5 -> 0 | EQ35: =EP11*EQ5 -> 0 | ER35: =EQ11*ER5 -> 0 | ES35: =ER11*ES5 -> 0 | ET35: =ES11*ET5 -> 0 | EU35: =ET11*EU5 -> 0 | EV35: =EU11*EV5 -> 0 | EW35: =EV11*EW5 -> 0 | EX35: =EW11*EX5 -> 0 | EY35: =EX11*EY5 -> 0 | EZ35: =EY11*EZ5 -> 0 | FA35: =EZ11*FA5 -> 0 | FB35: =FA11*FB5 -> 0 | FC35: =FB11*FC5 -> 0 | FD35: =FC11*FD5 -> 0 | FE35: =FD11*FE5 -> 0 | FF35: =FE11*FF5 -> 0 | FG35: =FF11*FG5 -> 0 | FH35: =FG11*FH5 -> 0 | FI35: =FH11*FI5 -> 0 | FJ35: =FI11*FJ5 -> 0 | FK35: =FJ11*FK5 -> 0 | FL35: =FK11*FL5 -> 0 | FM35: =FL11*FM5 -> 0 | FN35: =FM11*FN5 -> 0 | FO35: =FN11*FO5 -> 0 | FP35: =FO11*FP5 -> 0 | FQ35: =FP11*FQ5 -> 0 | FR35: =FQ11*FR5 -> 0 | FS35: =FR11*FS5 -> 0 | FT35: =FS11*FT5 -> 0 | FU35: =FT11*FU5 -> 0 | FV35: =FU11*FV5 -> 0 | FW35: =FV11*FW5 -> 0 | FX35: =FW11*FX5 -> 0 | FY35: =FX11*FY5 -> 0 | FZ35: =FY11*FZ5 -> 0 | GA35: =FZ11*GA5 -> 0 | GB35: =GA11*GB5 -> 0 | GC35: =GB11*GC5 -> 0 | GD35: =GC11*GD5 -> 0 | GE35: =GD11*GE5 -> 0 | GF35: =GE11*GF5 -> 0 | GG35: =GF11*GG5 -> 0 | GH35: =GG11*GH5 -> 0 | GI35: =GH11*GI5 -> 0 | GJ35: =GI11*GJ5 -> 0 | GK35: =GJ11*GK5 -> 0 | GL35: =GK11*GL5 -> 0 | GM35: =GL11*GM5 -> 0 | GN35: =GM11*GN5 -> 0 | GO35: =GN11*GO5 -> 0 | GP35: =GO11*GP5 -> 0 | GQ35: =GP11*GQ5 -> 0 | GR35: =GQ11*GR5 -> 0 | GS35: =GR11*GS5 -> 0 | GT35: =GS11*GT5 -> 0 | GU35: =GT11*GU5 -> 0 | GV35: =GU11*GV5 -> 0 | GW35: =GV11*GW5 -> 0 | GX35: =GW11*GX5 -> 0 | GY35: =GX11*GY5 -> 0 | GZ35: =GY11*GZ5 -> 0 | HA35: =GZ11*HA5 -> 0 | HB35: =HA11*HB5 -> 0 | HC35: =HB11*HC5 -> 0 | HD35: =HC11*HD5 -> 0 | HE35: =HD11*HE5 -> 0 | HF35: =HE11*HF5 -> 0 | HG35: =HF11*HG5 -> 0 | HH35: =HG11*HH5 -> 0 | HI35: =HH11*HI5 -> 0 | HJ35: =HI11*HJ5 -> 0 | HK35: =HJ11*HK5 -> 0 | HL35: =HK11*HL5 -> 0 | HM35: =HL11*HM5 -> 0 | HN35: =HM11*HN5 -> 0 | HO35: =HN11*HO5 -> 0 | HP35: =HO11*HP5 -> 0 | HQ35: =HP11*HQ5 -> 0 | HR35: =HQ11*HR5 -> 0 | HS35: =HR11*HS5 -> 0 | HT35: =HS11*HT5 -> 0 | HU35: =HT11*HU5 -> 0 | HV35: =HU11*HV5 -> 0 | HW35: =HV11*HW5 -> 0 | HX35: =HW11*HX5 -> 0 | HY35: =HX11*HY5 -> 0 | HZ35: =HY11*HZ5 -> 0 | IA35: =HZ11*IA5 -> 0 | IB35: =IA11*IB5 -> 0 | IC35: =IB11*IC5 -> 0 | ID35: =IC11*ID5 -> 0 | IE35: =ID11*IE5 -> 0 | IF35: =IE11*IF5 -> 0 | IG35: =IF11*IG5 -> 0 | IH35: =IG11*IH5 -> 0 | II35: =IH11*II5 -> 0 | IJ35: =II11*IJ5 -> 0 | IK35: =IJ11*IK5 -> 0 | IL35: =IK11*IL5 -> 0 | IM35: =IL11*IM5 -> 0 | IN35: =IM11*IN5 -> 0 | IO35: =IN11*IO5 -> 0 | IP35: =IO11*IP5 -> 0 | IQ35: =IP11*IQ5 -> 0 | IR35: =IQ11*IR5 -> 0 | IS35: =IR11*IS5 -> 0 | IT35: =IS11*IT5 -> 0 | IU35: =IT11*IU5 -> 0 | IV35: =IU11*IV5 -> 0 | IW35: =IV11*IW5 -> 0 | IX35: =IW11*IX5 -> 0 | IY35: =IX11*IY5 -> 0 | IZ35: =IY11*IZ5 -> 0 | JA35: =IZ11*JA5 -> 0 | JB35: =JA11*JB5 -> 0 | JC35: =JB11*JC5 -> 0 | JD35: =JC11*JD5 -> 0 | JE35: =JD11*JE5 -> 0 | JF35: =JE11*JF5 -> 0 | JG35: =JF11*JG5 -> 0 | JH35: =JG11*JH5 -> 0 | JI35: =JH11*JI5 -> 0 | JJ35: =JI11*JJ5 -> 0 | JK35: =JJ11*JK5 -> 0 | JL35: =JK11*JL5 -> 0 | JM35: =JL11*JM5 -> 0 | JN35: =JM11*JN5 -> 0 | JO35: =JN11*JO5 -> 0 | JP35: =JO11*JP5 -> 0 | JQ35: =JP11*JQ5 -> 0 | JR35: =JQ11*JR5 -> 0 | JS35: =JR11*JS5 -> 0 | JT35: =JS11*JT5 -> 0 | JU35: =JT11*JU5 -> 0 | JV35: =JU11*JV5 -> 0 | JW35: =JV11*JW5 -> 0 | JX35: =JW11*JX5 -> 0 | JY35: =JX11*JY5 -> 0 | JZ35: =JY11*JZ5 -> 0 | KA35: =JZ11*KA5 -> 0 | KB35: =KA11*KB5 -> 0 | KC35: =KB11*KC5 -> 0 | KD35: =KC11*KD5 -> 0 | KE35: =KD11*KE5 -> 0 | KF35: =KE11*KF5 -> 0 | KG35: =KF11*KG5 -> 0 | KH35: =KG11*KH5 -> 0 | KI35: =KH11*KI5 -> 0 | KJ35: =KI11*KJ5 -> 0 | KK35: =KJ11*KK5 -> 0 | KL35: =KK11*KL5 -> 0 | KM35: =KL11*KM5 -> 0 | KN35: =KM11*KN5 -> 0 | KO35: =KN11*KO5 -> 0 | KP35: =KO11*KP5 -> 0 | KQ35: =KP11*KQ5 -> 0 | KR35: =KQ11*KR5 -> 0 | KS35: =KR11*KS5 -> 0 | KT35: =KS11*KT5 -> 0 | KU35: =KT11*KU5 -> 0 | KV35: =KU11*KV5 -> 0 | KW35: =KV11*KW5 -> 0 | KX35: =KW11*KX5 -> 0 | KY35: =KX11*KY5 -> 0 | KZ35: =KY11*KZ5 -> 0 | LA35: =KZ11*LA5 -> 0 | LB35: =LA11*LB5 -> 0 | LC35: =LB11*LC5 -> 0 | LD35: =LC11*LD5 -> 0 | LE35: =LD11*LE5 -> 0 | LF35: =LE11*LF5 -> 0 | LG35: =LF11*LG5 -> 0 | LH35: =LG11*LH5 -> 0 | LI35: =LH11*LI5 -> 0 | LJ35: =LI11*LJ5 -> 0 | LK35: =LJ11*LK5 -> 0 | LL35: =LK11*LL5 -> 0 | LM35: =LL11*LM5 -> 0 | LN35: =LM11*LN5 -> 0 | LO35: =LN11*LO5 -> 0 | LP35: =LO11*LP5 -> 0 | LQ35: =LP11*LQ5 -> 0 | LR35: =LQ11*LR5 -> 0 | LS35: =LR11*LS5 -> 0 | LT35: =LS11*LT5 -> 0 | LU35: =LT11*LU5 -> 0 | LV35: =LU11*LV5 -> 0 | LW35: =LV11*LW5 -> 0 | LX35: =LW11*LX5 -> 0 | LY35: =LX11*LY5 -> 0 | LZ35: =LY11*LZ5 -> 0 | MA35: =LZ11*MA5 -> 0 | MB35: =MA11*MB5 -> 0 | MC35: =MB11*MC5 -> 0 | MD35: =MC11*MD5 -> 0 | ME35: =MD11*ME5 -> 0 | MF35: =ME11*MF5 -> 0 | MG35: =MF11*MG5 -> 0 | MH35: =MG11*MH5 -> 0 | MI35: =MH11*MI5 -> 0 | MJ35: =MI11*MJ5 -> 0 | MK35: =MJ11*MK5 -> 0 | ML35: =MK11*ML5 -> 0 | MM35: =ML11*MM5 -> 0 | MN35: =MM11*MN5 -> 0 | MO35: =MN11*MO5 -> 0 | MP35: =MO11*MP5 -> 0 | MQ35: =MP11*MQ5 -> 0 | MR35: =MQ11*MR5 -> 0 | MS35: =MR11*MS5 -> 0 | MT35: =MS11*MT5 -> 0 | MU35: =MT11*MU5 -> 0 | MV35: =MU11*MV5 -> 0 | MW35: =MV11*MW5 -> 0 | MX35: =MW11*MX5 -> 0 | MY35: =MX11*MY5 -> 0 | MZ35: =MY11*MZ5 -> 0 | NA35: =MZ11*NA5 -> 0 | NB35: =NA11*NB5 -> 0 | NC35: =NB11*NC5 -> 0 | ND35: =NC11*ND5 -> 0 | NE35: =ND11*NE5 -> 0 | NF35: =NE11*NF5 -> 0 | NG35: =NF11*NG5 -> 0 | NH35: =NG11*NH5 -> 0 | NI35: =NH11*NI5 -> 0 | NJ35: =NI11*NJ5 -> 0 | NK35: =NJ11*NK5 -> 0 | NL35: =NK11*NL5 -> 0 | NM35: =NL11*NM5 -> 0 | NN35: =NM11*NN5 -> 0 | NO35: =NN11*NO5 -> 0 | NP35: =NO11*NP5 -> 0 | NQ35: =NP11*NQ5 -> 0 | NR35: =NQ11*NR5 -> 0 | NS35: =NR11*NS5 -> 0 | NT35: =NS11*NT5 -> 0 | NU35: =NT11*NU5 -> 0 | NV35: =NU11*NV5 -> 0 | NW35: =NV11*NW5 -> 0 | NX35: =NW11*NX5 -> 0 | NY35: =NX11*NY5 -> 0 | NZ35: =NY11*NZ5 -> 0 | OA35: =NZ11*OA5 -> 0 | OB35: =OA11*OB5 -> 0 | OC35: =OB11*OC5 -> 0 | OD35: =OC11*OD5 -> 0 | OE35: =OD11*OE5 -> 0 | OF35: =OE11*OF5 -> 0 | OG35: =OF11*OG5 -> 0 | OH35: =OG11*OH5 -> 0 | OI35: =OH11*OI5 -> 0 | OJ35: =OI11*OJ5 -> 0 | OK35: =OJ11*OK5 -> 0 | OL35: =OK11*OL5 -> 0 | OM35: =OL11*OM5 -> 0 | ON35: =OM11*ON5 -> 0 | OO35: =ON11*OO5 -> 0 | OP35: =OO11*OP5 -> 0 | OQ35: =OP11*OQ5 -> 0 | OR35: =OQ11*OR5 -> 0 | OS35: =OR11*OS5 -> 0 | OT35: =OS11*OT5 -> 0 | OU35: =OT11*OU5 -> 0 | OV35: =OU11*OV5 -> 0 | OW35: =OV11*OW5 -> 0 | OX35: =OW11*OX5 -> 0 | OY35: =OX11*OY5 -> 0 | OZ35: =OY11*OZ5 -> 0 | PA35: =OZ11*PA5 -> 0 | PB35: =PA11*PB5 -> 0 | PC35: =PB11*PC5 -> 0 | PD35: =PC11*PD5 -> 0 | PE35: =PD11*PE5 -> 0 | PF35: =PE11*PF5 -> 0 | PG35: =PF11*PG5 -> 0 | PH35: =PG11*PH5 -> 0 | PI35: =PH11*PI5 -> 0 | PJ35: =PI11*PJ5 -> 0 | PK35: =PJ11*PK5 -> 0 | PL35: =PK11*PL5 -> 0 | PM35: =PL11*PM5 -> 0 | PN35: =PM11*PN5 -> 0 | PO35: =PN11*PO5 -> 0 | PP35: =PO11*PP5 -> 0 | PQ35: =PP11*PQ5 -> 0 | PR35: =PQ11*PR5 -> 0 | PS35: =PR11*PS5 -> 0 | PT35: =PS11*PT5 -> 0 | PU35: =PT11*PU5 -> 0 | PV35: =PU11*PV5 -> 0 | PW35: =PV11*PW5 -> 0 | PX35: =PW11*PX5 -> 0 | PY35: =PX11*PY5 -> 0 | PZ35: =PY11*PZ5 -> 0 | QA35: =PZ11*QA5 -> 0 | QB35: =QA11*QB5 -> 0 | QC35: =QB11*QC5 -> 0 | QD35: =QC11*QD5 -> 0 | QE35: =QD11*QE5 -> 0 | QF35: =QE11*QF5 -> 0 | QG35: =QF11*QG5 -> 0 | QH35: =QG11*QH5 -> 0 | QI35: =QH11*QI5 -> 0 | QJ35: =QI11*QJ5 -> 0 | QK35: =QJ11*QK5 -> 0 | QL35: =QK11*QL5 -> 0 | QM35: =QL11*QM5 -> 0 | QN35: =QM11*QN5 -> 0 | QO35: =QN11*QO5 -> 0 | QP35: =QO11*QP5 -> 0 | QQ35: =QP11*QQ5 -> 0 | QR35: =QQ11*QR5 -> 0 | QS35: =QR11*QS5 -> 0 | QT35: =QS11*QT5 -> 0 | QU35: =QT11*QU5 -> 0 | QV35: =QU11*QV5 -> 0 | QW35: =QV11*QW5 -> 0 | QX35: =QW11*QX5 -> 0 | QY35: =QX11*QY5 -> 0 | QZ35: =QY11*QZ5 -> 0 | RA35: =QZ11*RA5 -> 0 | RB35: =RA11*RB5 -> 0 | RC35: =RB11*RC5 -> 0 | RD35: =RC11*RD5 -> 0 | RE35: =RD11*RE5 -> 0 | RF35: =RE11*RF5 -> 0 | RG35: =RF11*RG5 -> 0 | RH35: =RG11*RH5 -> 0 | RI35: =RH11*RI5 -> 0 | RJ35: =RI11*RJ5 -> 0 | RK35: =RJ11*RK5 -> 0 | RL35: =RK11*RL5 -> 0 | RM35: =RL11*RM5 -> 0 | RN35: =RM11*RN5 -> 0 | RO35: =RN11*RO5 -> 0 | RP35: =RO11*RP5 -> 0 | RQ35: =RP11*RQ5 -> 0 | RR35: =RQ11*RR5 -> 0 | RS35: =RR11*RS5 -> 0 | RT35: =RS11*RT5 -> 0 | RU35: =RT11*RU5 -> 0 | RV35: =RU11*RV5 -> 0 | RW35: =RV11*RW5 -> 0 | RX35: =RW11*RX5 -> 0 | RY35: =RX11*RY5 -> 0 | RZ35: =RY11*RZ5 -> 0 | SA35: =RZ11*SA5 -> 0 | SB35: =SA11*SB5 -> 0 | SC35: =SB11*SC5 -> 0 | SD35: =SC11*SD5 -> 0 | SE35: =SD11*SE5 -> 0 | SF35: =SE11*SF5 -> 0 | SG35: =SF11*SG5 -> 0 | SH35: =SG11*SH5 -> 0 | SI35: =SH11*SI5 -> 0 | SJ35: =SI11*SJ5 -> 0 | SK35: =SJ11*SK5 -> 0 | SL35: =SK11*SL5 -> 0 | SM35: =SL11*SM5 -> 0 | SN35: =SM11*SN5 -> 0 | SO35: =SN11*SO5 -> 0 | SP35: =SO11*SP5 -> 0 | SQ35: =SP11*SQ5 -> 0 | SR35: =SQ11*SR5 -> 0 | SS35: =SR11*SS5 -> 0 | ST35: =SS11*ST5 -> 0 | SU35: =ST11*SU5 -> 0 | SV35: =SU11*SV5 -> 0 | SW35: =SV11*SW5 -> 0 | SX35: =SW11*SX5 -> 0 | SY35: =SX11*SY5 -> 0 | SZ35: =SY11*SZ5 -> 0 | TA35: =SZ11*TA5 -> 0 | TB35: =TA11*TB5 -> 0 | TC35: =TB11*TC5 -> 0
D36: Part 1 - (1-g/ROE)/(k-g) Multiple | E36: =(1-F36/H36)/(G36-F36) -> 10.89588378 | F36: =Scenarios!$H$41 -> 0.025 | G36: =Scenarios!D3 -> 0.084 | H36: =Scenarios!I47 -> 0.07 | K36: =$E$36*K4 -> 10.89588378 | L36: =$E$36*L4 -> 10.89588378 | M36: =$E$36*M4 -> 10.89588378 | N36: =$E$36*N4 -> 10.89588378 | O36: =$E$36*O4 -> 10.89588378 | P36: =$E$36*P4 -> 10.89588378 | Q36: =$E$36*Q4 -> 10.89588378 | R36: =$E$36*R4 -> 10.89588378 | S36: =$E$36*S4 -> 10.89588378 | T36: =$E$36*T4 -> 10.89588378 | U36: =$E$36*U4 -> 10.89588378 | V36: =$E$36*V4 -> 10.89588378 | W36: =$E$36*W4 -> 10.89588378 | X36: =$E$36*X4 -> 10.89588378 | Y36: =$E$36*Y4 -> 10.89588378 | Z36: =$E$36*Z4 -> 0 | AA36: =$E$36*AA4 -> 0 | AB36: =$E$36*AB4 -> 0 | AC36: =$E$36*AC4 -> 0 | AD36: =$E$36*AD4 -> 0 | AE36: =$E$36*AE4 -> 0 | AF36: =$E$36*AF4 -> 0 | AG36: =$E$36*AG4 -> 0 | AH36: =$E$36*AH4 -> 0 | AI36: =$E$36*AI4 -> 0 | AJ36: =$E$36*AJ4 -> 0 | AK36: =$E$36*AK4 -> 0 | AL36: =$E$36*AL4 -> 0 | AM36: =$E$36*AM4 -> 0 | AN36: =$E$36*AN4 -> 0 | AO36: =$E$36*AO4 -> 0 | AP36: =$E$36*AP4 -> 0 | AQ36: =$E$36*AQ4 -> 0 | AR36: =$E$36*AR4 -> 0 | AS36: =$E$36*AS4 -> 0 | AT36: =$E$36*AT4 -> 0 | AU36: =$E$36*AU4 -> 0 | AV36: =$E$36*AV4 -> 0 | AW36: =$E$36*AW4 -> 0 | AX36: =$E$36*AX4 -> 0 | AY36: =$E$36*AY4 -> 0 | AZ36: =$E$36*AZ4 -> 0 | BA36: =$E$36*BA4 -> 0 | BB36: =$E$36*BB4 -> 0 | BC36: =$E$36*BC4 -> 0 | BD36: =$E$36*BD4 -> 0 | BE36: =$E$36*BE4 -> 0 | BF36: =$E$36*BF4 -> 0 | BG36: =$E$36*BG4 -> 0 | BH36: =$E$36*BH4 -> 0 | BI36: =$E$36*BI4 -> 0 | BJ36: =$E$36*BJ4 -> 0 | BK36: =$E$36*BK4 -> 0 | BL36: =$E$36*BL4 -> 0 | BM36: =$E$36*BM4 -> 0 | BN36: =$E$36*BN4 -> 0 | BO36: =$E$36*BO4 -> 0 | BP36: =$E$36*BP4 -> 0 | BQ36: =$E$36*BQ4 -> 0 | BR36: =$E$36*BR4 -> 0 | BS36: =$E$36*BS4 -> 0 | BT36: =$E$36*BT4 -> 0 | BU36: =$E$36*BU4 -> 0 | BV36: =$E$36*BV4 -> 0 | BW36: =$E$36*BW4 -> 0 | BX36: =$E$36*BX4 -> 0 | BY36: =$E$36*BY4 -> 0 | BZ36: =$E$36*BZ4 -> 0 | CA36: =$E$36*CA4 -> 0 | CB36: =$E$36*CB4 -> 0 | CC36: =$E$36*CC4 -> 0 | CD36: =$E$36*CD4 -> 0 | CE36: =$E$36*CE4 -> 0 | CF36: =$E$36*CF4 -> 0 | CG36: =$E$36*CG4 -> 0 | CH36: =$E$36*CH4 -> 0 | CI36: =$E$36*CI4 -> 0 | CJ36: =$E$36*CJ4 -> 0 | CK36: =$E$36*CK4 -> 0 | CL36: =$E$36*CL4 -> 0 | CM36: =$E$36*CM4 -> 0 | CN36: =$E$36*CN4 -> 0 | CO36: =$E$36*CO4 -> 0 | CP36: =$E$36*CP4 -> 0 | CQ36: =$E$36*CQ4 -> 0 | CR36: =$E$36*CR4 -> 0 | CS36: =$E$36*CS4 -> 0 | CT36: =$E$36*CT4 -> 0 | CU36: =$E$36*CU4 -> 0 | CV36: =$E$36*CV4 -> 0 | CW36: =$E$36*CW4 -> 0 | CX36: =$E$36*CX4 -> 0 | CY36: =$E$36*CY4 -> 0 | CZ36: =$E$36*CZ4 -> 0 | DA36: =$E$36*DA4 -> 0 | DB36: =$E$36*DB4 -> 0 | DC36: =$E$36*DC4 -> 0 | DD36: =$E$36*DD4 -> 0 | DE36: =$E$36*DE4 -> 0 | DF36: =$E$36*DF4 -> 0 | DG36: =$E$36*DG4 -> 0 | DH36: =$E$36*DH4 -> 0 | DI36: =$E$36*DI4 -> 0 | DJ36: =$E$36*DJ4 -> 0 | DK36: =$E$36*DK4 -> 0 | DL36: =$E$36*DL4 -> 0 | DM36: =$E$36*DM4 -> 0 | DN36: =$E$36*DN4 -> 0 | DO36: =$E$36*DO4 -> 0 | DP36: =$E$36*DP4 -> 0 | DQ36: =$E$36*DQ4 -> 0 | DR36: =$E$36*DR4 -> 0 | DS36: =$E$36*DS4 -> 0 | DT36: =$E$36*DT4 -> 0 | DU36: =$E$36*DU4 -> 0 | DV36: =$E$36*DV4 -> 0 | DW36: =$E$36*DW4 -> 0 | DX36: =$E$36*DX4 -> 0 | DY36: =$E$36*DY4 -> 0 | DZ36: =$E$36*DZ4 -> 0 | EA36: =$E$36*EA4 -> 0 | EB36: =$E$36*EB4 -> 0 | EC36: =$E$36*EC4 -> 0 | ED36: =$E$36*ED4 -> 0 | EE36: =$E$36*EE4 -> 0 | EF36: =$E$36*EF4 -> 0 | EG36: =$E$36*EG4 -> 0 | EH36: =$E$36*EH4 -> 0 | EI36: =$E$36*EI4 -> 0 | EJ36: =$E$36*EJ4 -> 0 | EK36: =$E$36*EK4 -> 0 | EL36: =$E$36*EL4 -> 0 | EM36: =$E$36*EM4 -> 0 | EN36: =$E$36*EN4 -> 0 | EO36: =$E$36*EO4 -> 0 | EP36: =$E$36*EP4 -> 0 | EQ36: =$E$36*EQ4 -> 0 | ER36: =$E$36*ER4 -> 0 | ES36: =$E$36*ES4 -> 0 | ET36: =$E$36*ET4 -> 0 | EU36: =$E$36*EU4 -> 0 | EV36: =$E$36*EV4 -> 0 | EW36: =$E$36*EW4 -> 0 | EX36: =$E$36*EX4 -> 0 | EY36: =$E$36*EY4 -> 0 | EZ36: =$E$36*EZ4 -> 0 | FA36: =$E$36*FA4 -> 0 | FB36: =$E$36*FB4 -> 0 | FC36: =$E$36*FC4 -> 0 | FD36: =$E$36*FD4 -> 0 | FE36: =$E$36*FE4 -> 0 | FF36: =$E$36*FF4 -> 0 | FG36: =$E$36*FG4 -> 0 | FH36: =$E$36*FH4 -> 0 | FI36: =$E$36*FI4 -> 0 | FJ36: =$E$36*FJ4 -> 0 | FK36: =$E$36*FK4 -> 0 | FL36: =$E$36*FL4 -> 0 | FM36: =$E$36*FM4 -> 0 | FN36: =$E$36*FN4 -> 0 | FO36: =$E$36*FO4 -> 0 | FP36: =$E$36*FP4 -> 0 | FQ36: =$E$36*FQ4 -> 0 | FR36: =$E$36*FR4 -> 0 | FS36: =$E$36*FS4 -> 0 | FT36: =$E$36*FT4 -> 0 | FU36: =$E$36*FU4 -> 0 | FV36: =$E$36*FV4 -> 0 | FW36: =$E$36*FW4 -> 0 | FX36: =$E$36*FX4 -> 0 | FY36: =$E$36*FY4 -> 0 | FZ36: =$E$36*FZ4 -> 0 | GA36: =$E$36*GA4 -> 0 | GB36: =$E$36*GB4 -> 0 | GC36: =$E$36*GC4 -> 0 | GD36: =$E$36*GD4 -> 0 | GE36: =$E$36*GE4 -> 0 | GF36: =$E$36*GF4 -> 0 | GG36: =$E$36*GG4 -> 0 | GH36: =$E$36*GH4 -> 0 | GI36: =$E$36*GI4 -> 0 | GJ36: =$E$36*GJ4 -> 0 | GK36: =$E$36*GK4 -> 0 | GL36: =$E$36*GL4 -> 0 | GM36: =$E$36*GM4 -> 0 | GN36: =$E$36*GN4 -> 0 | GO36: =$E$36*GO4 -> 0 | GP36: =$E$36*GP4 -> 0 | GQ36: =$E$36*GQ4 -> 0 | GR36: =$E$36*GR4 -> 0 | GS36: =$E$36*GS4 -> 0 | GT36: =$E$36*GT4 -> 0 | GU36: =$E$36*GU4 -> 0 | GV36: =$E$36*GV4 -> 0 | GW36: =$E$36*GW4 -> 0 | GX36: =$E$36*GX4 -> 0 | GY36: =$E$36*GY4 -> 0 | GZ36: =$E$36*GZ4 -> 0 | HA36: =$E$36*HA4 -> 0 | HB36: =$E$36*HB4 -> 0 | HC36: =$E$36*HC4 -> 0 | HD36: =$E$36*HD4 -> 0 | HE36: =$E$36*HE4 -> 0 | HF36: =$E$36*HF4 -> 0 | HG36: =$E$36*HG4 -> 0 | HH36: =$E$36*HH4 -> 0 | HI36: =$E$36*HI4 -> 0 | HJ36: =$E$36*HJ4 -> 0 | HK36: =$E$36*HK4 -> 0 | HL36: =$E$36*HL4 -> 0 | HM36: =$E$36*HM4 -> 0 | HN36: =$E$36*HN4 -> 0 | HO36: =$E$36*HO4 -> 0 | HP36: =$E$36*HP4 -> 0 | HQ36: =$E$36*HQ4 -> 0 | HR36: =$E$36*HR4 -> 0 | HS36: =$E$36*HS4 -> 0 | HT36: =$E$36*HT4 -> 0 | HU36: =$E$36*HU4 -> 0 | HV36: =$E$36*HV4 -> 0 | HW36: =$E$36*HW4 -> 0 | HX36: =$E$36*HX4 -> 0 | HY36: =$E$36*HY4 -> 0 | HZ36: =$E$36*HZ4 -> 0 | IA36: =$E$36*IA4 -> 0 | IB36: =$E$36*IB4 -> 0 | IC36: =$E$36*IC4 -> 0 | ID36: =$E$36*ID4 -> 0 | IE36: =$E$36*IE4 -> 0 | IF36: =$E$36*IF4 -> 0 | IG36: =$E$36*IG4 -> 0 | IH36: =$E$36*IH4 -> 0 | II36: =$E$36*II4 -> 0 | IJ36: =$E$36*IJ4 -> 0 | IK36: =$E$36*IK4 -> 0 | IL36: =$E$36*IL4 -> 0 | IM36: =$E$36*IM4 -> 0 | IN36: =$E$36*IN4 -> 0 | IO36: =$E$36*IO4 -> 0 | IP36: =$E$36*IP4 -> 0 | IQ36: =$E$36*IQ4 -> 0 | IR36: =$E$36*IR4 -> 0 | IS36: =$E$36*IS4 -> 0 | IT36: =$E$36*IT4 -> 0 | IU36: =$E$36*IU4 -> 0 | IV36: =$E$36*IV4 -> 0 | IW36: =$E$36*IW4 -> 0 | IX36: =$E$36*IX4 -> 0 | IY36: =$E$36*IY4 -> 0 | IZ36: =$E$36*IZ4 -> 0 | JA36: =$E$36*JA4 -> 0 | JB36: =$E$36*JB4 -> 0 | JC36: =$E$36*JC4 -> 0 | JD36: =$E$36*JD4 -> 0 | JE36: =$E$36*JE4 -> 0 | JF36: =$E$36*JF4 -> 0 | JG36: =$E$36*JG4 -> 0 | JH36: =$E$36*JH4 -> 0 | JI36: =$E$36*JI4 -> 0 | JJ36: =$E$36*JJ4 -> 0 | JK36: =$E$36*JK4 -> 0 | JL36: =$E$36*JL4 -> 0 | JM36: =$E$36*JM4 -> 0 | JN36: =$E$36*JN4 -> 0 | JO36: =$E$36*JO4 -> 0 | JP36: =$E$36*JP4 -> 0 | JQ36: =$E$36*JQ4 -> 0 | JR36: =$E$36*JR4 -> 0 | JS36: =$E$36*JS4 -> 0 | JT36: =$E$36*JT4 -> 0 | JU36: =$E$36*JU4 -> 0 | JV36: =$E$36*JV4 -> 0 | JW36: =$E$36*JW4 -> 0 | JX36: =$E$36*JX4 -> 0 | JY36: =$E$36*JY4 -> 0 | JZ36: =$E$36*JZ4 -> 0 | KA36: =$E$36*KA4 -> 0 | KB36: =$E$36*KB4 -> 0 | KC36: =$E$36*KC4 -> 0 | KD36: =$E$36*KD4 -> 0 | KE36: =$E$36*KE4 -> 0 | KF36: =$E$36*KF4 -> 0 | KG36: =$E$36*KG4 -> 0 | KH36: =$E$36*KH4 -> 0 | KI36: =$E$36*KI4 -> 0 | KJ36: =$E$36*KJ4 -> 0 | KK36: =$E$36*KK4 -> 0 | KL36: =$E$36*KL4 -> 0 | KM36: =$E$36*KM4 -> 0 | KN36: =$E$36*KN4 -> 0 | KO36: =$E$36*KO4 -> 0 | KP36: =$E$36*KP4 -> 0 | KQ36: =$E$36*KQ4 -> 0 | KR36: =$E$36*KR4 -> 0 | KS36: =$E$36*KS4 -> 0 | KT36: =$E$36*KT4 -> 0 | KU36: =$E$36*KU4 -> 0 | KV36: =$E$36*KV4 -> 0 | KW36: =$E$36*KW4 -> 0 | KX36: =$E$36*KX4 -> 0 | KY36: =$E$36*KY4 -> 0 | KZ36: =$E$36*KZ4 -> 0 | LA36: =$E$36*LA4 -> 0 | LB36: =$E$36*LB4 -> 0 | LC36: =$E$36*LC4 -> 0 | LD36: =$E$36*LD4 -> 0 | LE36: =$E$36*LE4 -> 0 | LF36: =$E$36*LF4 -> 0 | LG36: =$E$36*LG4 -> 0 | LH36: =$E$36*LH4 -> 0 | LI36: =$E$36*LI4 -> 0 | LJ36: =$E$36*LJ4 -> 0 | LK36: =$E$36*LK4 -> 0 | LL36: =$E$36*LL4 -> 0 | LM36: =$E$36*LM4 -> 0 | LN36: =$E$36*LN4 -> 0 | LO36: =$E$36*LO4 -> 0 | LP36: =$E$36*LP4 -> 0 | LQ36: =$E$36*LQ4 -> 0 | LR36: =$E$36*LR4 -> 0 | LS36: =$E$36*LS4 -> 0 | LT36: =$E$36*LT4 -> 0 | LU36: =$E$36*LU4 -> 0 | LV36: =$E$36*LV4 -> 0 | LW36: =$E$36*LW4 -> 0 | LX36: =$E$36*LX4 -> 0 | LY36: =$E$36*LY4 -> 0 | LZ36: =$E$36*LZ4 -> 0 | MA36: =$E$36*MA4 -> 0 | MB36: =$E$36*MB4 -> 0 | MC36: =$E$36*MC4 -> 0 | MD36: =$E$36*MD4 -> 0 | ME36: =$E$36*ME4 -> 0 | MF36: =$E$36*MF4 -> 0 | MG36: =$E$36*MG4 -> 0 | MH36: =$E$36*MH4 -> 0 | MI36: =$E$36*MI4 -> 0 | MJ36: =$E$36*MJ4 -> 0 | MK36: =$E$36*MK4 -> 0 | ML36: =$E$36*ML4 -> 0 | MM36: =$E$36*MM4 -> 0 | MN36: =$E$36*MN4 -> 0 | MO36: =$E$36*MO4 -> 0 | MP36: =$E$36*MP4 -> 0 | MQ36: =$E$36*MQ4 -> 0 | MR36: =$E$36*MR4 -> 0 | MS36: =$E$36*MS4 -> 0 | MT36: =$E$36*MT4 -> 0 | MU36: =$E$36*MU4 -> 0 | MV36: =$E$36*MV4 -> 0 | MW36: =$E$36*MW4 -> 0 | MX36: =$E$36*MX4 -> 0 | MY36: =$E$36*MY4 -> 0 | MZ36: =$E$36*MZ4 -> 0 | NA36: =$E$36*NA4 -> 0 | NB36: =$E$36*NB4 -> 0 | NC36: =$E$36*NC4 -> 0 | ND36: =$E$36*ND4 -> 0 | NE36: =$E$36*NE4 -> 0 | NF36: =$E$36*NF4 -> 0 | NG36: =$E$36*NG4 -> 0 | NH36: =$E$36*NH4 -> 0 | NI36: =$E$36*NI4 -> 0 | NJ36: =$E$36*NJ4 -> 0 | NK36: =$E$36*NK4 -> 0 | NL36: =$E$36*NL4 -> 0 | NM36: =$E$36*NM4 -> 0 | NN36: =$E$36*NN4 -> 0 | NO36: =$E$36*NO4 -> 0 | NP36: =$E$36*NP4 -> 0 | NQ36: =$E$36*NQ4 -> 0 | NR36: =$E$36*NR4 -> 0 | NS36: =$E$36*NS4 -> 0 | NT36: =$E$36*NT4 -> 0 | NU36: =$E$36*NU4 -> 0 | NV36: =$E$36*NV4 -> 0 | NW36: =$E$36*NW4 -> 0 | NX36: =$E$36*NX4 -> 0 | NY36: =$E$36*NY4 -> 0 | NZ36: =$E$36*NZ4 -> 0 | OA36: =$E$36*OA4 -> 0 | OB36: =$E$36*OB4 -> 0 | OC36: =$E$36*OC4 -> 0 | OD36: =$E$36*OD4 -> 0 | OE36: =$E$36*OE4 -> 0 | OF36: =$E$36*OF4 -> 0 | OG36: =$E$36*OG4 -> 0 | OH36: =$E$36*OH4 -> 0 | OI36: =$E$36*OI4 -> 0 | OJ36: =$E$36*OJ4 -> 0 | OK36: =$E$36*OK4 -> 0 | OL36: =$E$36*OL4 -> 0 | OM36: =$E$36*OM4 -> 0 | ON36: =$E$36*ON4 -> 0 | OO36: =$E$36*OO4 -> 0 | OP36: =$E$36*OP4 -> 0 | OQ36: =$E$36*OQ4 -> 0 | OR36: =$E$36*OR4 -> 0 | OS36: =$E$36*OS4 -> 0 | OT36: =$E$36*OT4 -> 0 | OU36: =$E$36*OU4 -> 0 | OV36: =$E$36*OV4 -> 0 | OW36: =$E$36*OW4 -> 0 | OX36: =$E$36*OX4 -> 0 | OY36: =$E$36*OY4 -> 0 | OZ36: =$E$36*OZ4 -> 0 | PA36: =$E$36*PA4 -> 0 | PB36: =$E$36*PB4 -> 0 | PC36: =$E$36*PC4 -> 0 | PD36: =$E$36*PD4 -> 0 | PE36: =$E$36*PE4 -> 0 | PF36: =$E$36*PF4 -> 0 | PG36: =$E$36*PG4 -> 0 | PH36: =$E$36*PH4 -> 0 | PI36: =$E$36*PI4 -> 0 | PJ36: =$E$36*PJ4 -> 0 | PK36: =$E$36*PK4 -> 0 | PL36: =$E$36*PL4 -> 0 | PM36: =$E$36*PM4 -> 0 | PN36: =$E$36*PN4 -> 0 | PO36: =$E$36*PO4 -> 0 | PP36: =$E$36*PP4 -> 0 | PQ36: =$E$36*PQ4 -> 0 | PR36: =$E$36*PR4 -> 0 | PS36: =$E$36*PS4 -> 0 | PT36: =$E$36*PT4 -> 0 | PU36: =$E$36*PU4 -> 0 | PV36: =$E$36*PV4 -> 0 | PW36: =$E$36*PW4 -> 0 | PX36: =$E$36*PX4 -> 0 | PY36: =$E$36*PY4 -> 0 | PZ36: =$E$36*PZ4 -> 0 | QA36: =$E$36*QA4 -> 0 | QB36: =$E$36*QB4 -> 0 | QC36: =$E$36*QC4 -> 0 | QD36: =$E$36*QD4 -> 0 | QE36: =$E$36*QE4 -> 0 | QF36: =$E$36*QF4 -> 0 | QG36: =$E$36*QG4 -> 0 | QH36: =$E$36*QH4 -> 0 | QI36: =$E$36*QI4 -> 0 | QJ36: =$E$36*QJ4 -> 0 | QK36: =$E$36*QK4 -> 0 | QL36: =$E$36*QL4 -> 0 | QM36: =$E$36*QM4 -> 0 | QN36: =$E$36*QN4 -> 0 | QO36: =$E$36*QO4 -> 0 | QP36: =$E$36*QP4 -> 0 | QQ36: =$E$36*QQ4 -> 0 | QR36: =$E$36*QR4 -> 0 | QS36: =$E$36*QS4 -> 0 | QT36: =$E$36*QT4 -> 0 | QU36: =$E$36*QU4 -> 0 | QV36: =$E$36*QV4 -> 0 | QW36: =$E$36*QW4 -> 0 | QX36: =$E$36*QX4 -> 0 | QY36: =$E$36*QY4 -> 0 | QZ36: =$E$36*QZ4 -> 0 | RA36: =$E$36*RA4 -> 0 | RB36: =$E$36*RB4 -> 0 | RC36: =$E$36*RC4 -> 0 | RD36: =$E$36*RD4 -> 0 | RE36: =$E$36*RE4 -> 0 | RF36: =$E$36*RF4 -> 0 | RG36: =$E$36*RG4 -> 0 | RH36: =$E$36*RH4 -> 0 | RI36: =$E$36*RI4 -> 0 | RJ36: =$E$36*RJ4 -> 0 | RK36: =$E$36*RK4 -> 0 | RL36: =$E$36*RL4 -> 0 | RM36: =$E$36*RM4 -> 0 | RN36: =$E$36*RN4 -> 0 | RO36: =$E$36*RO4 -> 0 | RP36: =$E$36*RP4 -> 0 | RQ36: =$E$36*RQ4 -> 0 | RR36: =$E$36*RR4 -> 0 | RS36: =$E$36*RS4 -> 0 | RT36: =$E$36*RT4 -> 0 | RU36: =$E$36*RU4 -> 0 | RV36: =$E$36*RV4 -> 0 | RW36: =$E$36*RW4 -> 0 | RX36: =$E$36*RX4 -> 0 | RY36: =$E$36*RY4 -> 0 | RZ36: =$E$36*RZ4 -> 0 | SA36: =$E$36*SA4 -> 0 | SB36: =$E$36*SB4 -> 0 | SC36: =$E$36*SC4 -> 0 | SD36: =$E$36*SD4 -> 0 | SE36: =$E$36*SE4 -> 0 | SF36: =$E$36*SF4 -> 0 | SG36: =$E$36*SG4 -> 0 | SH36: =$E$36*SH4 -> 0 | SI36: =$E$36*SI4 -> 0 | SJ36: =$E$36*SJ4 -> 0 | SK36: =$E$36*SK4 -> 0 | SL36: =$E$36*SL4 -> 0 | SM36: =$E$36*SM4 -> 0 | SN36: =$E$36*SN4 -> 0 | SO36: =$E$36*SO4 -> 0 | SP36: =$E$36*SP4 -> 0 | SQ36: =$E$36*SQ4 -> 0 | SR36: =$E$36*SR4 -> 0 | SS36: =$E$36*SS4 -> 0 | ST36: =$E$36*ST4 -> 0 | SU36: =$E$36*SU4 -> 0 | SV36: =$E$36*SV4 -> 0 | SW36: =$E$36*SW4 -> 0 | SX36: =$E$36*SX4 -> 0 | SY36: =$E$36*SY4 -> 0 | SZ36: =$E$36*SZ4 -> 0 | TA36: =$E$36*TA4 -> 0 | TB36: =$E$36*TB4 -> 0 | TC36: =$E$36*TC4 -> 0
